Workbook

Sheet Information
A1: =ROW() -> 1 | B1: =Main!B1 -> Goldfields Gas Pipeline Tariff Model, 1 January 2024
A2: =ROW() -> 2 | B2: Information
A3: =ROW() -> 3 | B3: Prior to using this model
A4: =ROW() -> 4 | B4: Solver must be both installed using Excel Add-ins and enabled in the VBA window > Tools > References > Check Solver
A5: =ROW() -> 5
A6: =ROW() -> 6 | B6: Purpose of the model
A7: =ROW() -> 7 | B7: The purpose of this model is to calculate the forecast GGP reference tariff for access arrangement period 2025 -2029. This model should not be used for any other purposes.
A8: =ROW() -> 8 | B8: Any data, information and formulas that are not relevant to the calculation of the reference tariff are not to be relied upon.
A9: =ROW() -> 9
A10: =ROW() -> 10 | B10: Construction of the model
A11: =ROW() -> 11 | B11: This model was built by expanding/modifying the AA4 Final Decision tariff model. Key changes to the model includes:
A12: =ROW() -> 12 | B12: • Expanded the date range to includes calendar years 2025 -2029, and populated data/formulas for this expanded data range.
A13: =ROW() -> 13 | B13: • Changing the base year from December 2018 to December 2023.
A14: =ROW() -> 14 | B14: • in the "WACC" tab, created additional rows to hold actual historical WACC and discounting factor data for the purpose of estimating capital indexation.
A15: =ROW() -> 15 | B15: • Expanded data range for historically approved capex regulatory depreciation to include depreciations for 2025 - 2029.
A16: =ROW() -> 16 | B16: (note: historically approved regulatory depreciations were calculated based on the forecast capex. This depreciations for any year were not retrospectively adjusted even if the actual capex for a year differ from forecast capex.
A17: =ROW() -> 17 | B17: The tax depreciations for a year, on the other hand, were retrospectively adjusted to account for the actual capex for that year).
A18: =ROW() -> 18 | B18: • In "Assets" and "Tax Assets" tabs, added capex accounts for years 2025 and 2029, and populated the formulas.
A19: =ROW() -> 19 | B19: • Added additional line items for capex: Shared support assets - IOT & cyber security, Shared support assets (net IOT & cyber security) and Miscellaneous assets.
A20: =ROW() -> 20 | B20: • Added in adjustment calculations for Rules 77.2(2)(a) adjustments.
A21: =ROW() -> 21 | B21: • Solver sheets and macro for X factor calculations - modified to suit years 2025 -2029
A22: =ROW() -> 22 | B22: • "Tax_CoRE" tab - modified to suit years 2025 -2029.
A23: =ROW() -> 23 | B23: • "CoS" tab - modified to suit years 2025 - 2029.
A24: =ROW() -> 24 | B24: • "Main" tab - modified to suit years 2029 - 2029.
A25: =ROW() -> 25 | B25: • Demand forecast - added demand forecast tab for NGI-origin gas, and added a tab to sum demands for NGI-origin and Yarraloola-origin gas.
A26: =ROW() -> 26 | B26: • "Specul_Inv" tab - expanded to include years 2025 -2029.
A27: =ROW() -> 27 | B27: • Asset lives - added feature to allow selection of asset life cases: (a) uncapped; (b) capped after 2024; (c) cap all, with the selected default case being "capped after 2024". "Max Asset Life" tab added.
A28: =ROW() -> 28 | B28: • Actual/Forecast labelling updated.
A29: =ROW() -> 29 | B29: • Other miscellaneous changes.
B30: • Foncier check and Annual Tariff Variation not added.
A31: =ROW() -> 31
A32: =ROW() -> 32 | B32: Capex
A33: =ROW() -> 33 | B33: ="Under Current Cost Accounting all capex occuring after 31/12/2014 is inflated to "&TEXT(Inputs!$D$19,"dd/mm/yyyy")&" dollars." -> Under Current Cost Accounting all capex occuring after 31/12/2014 is inflated to 31/12/2023 dollars.
A34: =ROW() -> 34
A35: =ROW() -> 35 | B35: Key colour codes
A36: =ROW() -> 36 | B36: blue text | C36: Input cell, hard coded input
A37: =ROW() -> 37 | B37: yellow cell | C37: Extraordinary cell (solver target, solver input etc)
A38: =ROW() -> 38 | B38: blue text | C38: Extraordinary cell (solver target, solver input etc)
A39: =ROW() -> 39 | B39: green text | C39: Formula linking to another worksheet
A40: =ROW() -> 40 | B40: pink text | C40: Extraordinary calculation
B41: orange cell | C41: Highlight
B42: pink cell | C42: Confidential information
A43: =ROW() -> 43
A44: =ROW() -> 44 | B44: Worksheets
A45: =ROW() -> 45
A46: =ROW() -> 46 | B46: Worksheet | C46: Description
A47: =ROW() -> 47 | B47: Main | C47: Summary of outputs, total revenue, X-factor, tariffs.
A48: =ROW() -> 48 | B48: WACC | C48: Contains the relevant parameters related to computing the WACC
A49: =ROW() -> 49 | B49: Inputs | C49: Contains general inputs of assumptions, capital expenditures, operating expenditures, approved depreciations
A50: =ROW() -> 50 | B50: 2019 Capex NGR 77(2)(a) | C50: Calculation of adjustments under Rule 77(2)(a)
A51: =ROW() -> 51 | B51: Adjustments | C51: This sheet is used when making adjustments to the initial capital base, capital expenditures and operating expenditure
A52: =ROW() -> 52 | B52: Load Yarraloola | C52: Contains inputs of gas volumes, distances, reserved capacity and other relevant information required to compute the reference tariffs (from Yaraloola)
A53: =ROW() -> 53 | B53: Load NGI | C53: Contains inputs of gas volumes, distances, reserved capacity and other relevant information required to compute the reference tariffs (from NGI)
A54: =ROW() -> 54 | B54: LoadTotal | C54: Total Yaraloola and NGI loads
A55: =ROW() -> 55 | B55: CoS | C55: Computations of total revenue building block (cost of service), inflationary gain and Credit Foncier Check
A56: =ROW() -> 56 | B56: Revenue | C56: Contains relevant load parameters, tariffs and revenue
A57: =ROW() -> 57 | B57: Tax_CoRE | C57: Contains calculation of tax and imputation credits
A58: =ROW() -> 58 | B58: Assets | C58: ="Contains regulatory asset base. Computations prior to 31/12/2014 are nominal and thereafter are in Real at "&TEXT(Inputs!$D$19,"dd/mm/yyyy")&" $m." -> Contains regulatory asset base. Computations prior to 31/12/2014 are nominal and thereafter are in Real at 31/12/2023 $m.
A59: =ROW() -> 59 | B59: Tax Assets | C59: Contains tax asset base modelled from inception in 1994 based on assumed tax asset lives. The tax depreciation for capex before 2020 are nominal straight line while the capex from 2020 onwards are diminishing value
A60: =ROW() -> 60 | B60: Specul_Inv | C60: This sheet is used to record a speculative investment which could potentially be included in the Regulated Asset Base in the future
A61: =ROW() -> 61 | B61: SolverSheet | C61: This sheet is used with Excel addin Solver to compute the X-Factors and cost of raising equity
A62: =ROW() -> 62 | B62: Tariff Variation Mechanism | C62: This sheet was not updated in this mdel.
A63: =ROW() -> 63 | B63: Max Asset Life | C63: Maximum asset life of asset for a given year

Sheet Main
B1: Goldfields Gas Pipeline Tariff Model, 1 January 2024
B2: Main Summary
A3: Ref | B3: =COLUMN() -> 2 | C3: =COLUMN() -> 3 | D3: =COLUMN() -> 4 | E3: =COLUMN() -> 5 | F3: =COLUMN() -> 6 | G3: =COLUMN() -> 7 | H3: =COLUMN() -> 8
A4: =ROW() -> 4 | B4: WACC
A5: =ROW() -> 5 | D5: Real | E5: Nominal
A6: =ROW() -> 6 | C6: Post-tax WACC | D6: =WACC!O35 -> 0.04712858257 | E6: =WACC!O34 -> 0.0741445
A7: =ROW() -> 7
A8: =ROW() -> 8 | B8: Closing Regulated Asset Base
A9: =ROW() -> 9
A10: =ROW() -> 10 | D10: December 2024 | E10: December 2029
A11: =ROW() -> 11 | D11: ="[m$ " & TEXT(Inputs!$D$19,"dd/mm/yyyy") & "]" -> [m$ 31/12/2023] | E11: ="[m$ " & TEXT(Inputs!$D$19,"dd/mm/yyyy") & "]" -> [m$ 31/12/2023]
A12: =ROW() -> 12 | C12: Closing Value of Regulated Asset Base | D12: ='Assets '!BF24 -> 441.6492597 | E12: ='Assets '!BK24 -> 409.9906572
A13: =ROW() -> 13
A14: =ROW() -> 14 | B14: Revenue Building Block
A15: =ROW() -> 15
A16: =ROW() -> 16 | D16: Real | E16: Nominal | F16: Real [%] | G16: Nominal [%]
A17: =ROW() -> 17 | B17: ="PV of Total Revenue (CoS) [m$ " & TEXT(Inputs!$D$19,"dd/mm/yyyy") & "]" -> PV of Total Revenue (CoS) [m$ 31/12/2023]
A18: =ROW() -> 18 | C18: Opex | D18: =CoS!D53 -> 113.3340256 | E18: =CoS!D43 -> 113.3340256 | F18: =D18/D$24 -> 0.3745447628 | G18: =E18/E$24 -> 0.3745447628
A19: =ROW() -> 19 | C19: Depreciation | D19: =CoS!D52 -> 88.04796594 | E19: =CoS!D41 -> 88.04796594 | F19: =D19/$D$24 -> 0.290979733 | G19: =E19/E$24 -> 0.290979733
A20: =ROW() -> 20 | C20: Inflationary Gains on RAB | E20: =CoS!D42 -> -47.88171766 | F20: =D20/$D$24 -> 0 | G20: =E20/E$24 -> -0.1582388562
A21: =ROW() -> 21 | C21: Return on Asset | D21: =CoS!D51 -> 89.72161625 | E21: =CoS!D40 -> 137.6033339 | F21: =D21/$D$24 -> 0.29651079 | G21: =E21/E$24 -> 0.4547496462
A22: =ROW() -> 22 | C22: Tax | D22: =Tax_CoRE!C46 -> 22.9755923 | E22: =Tax_CoRE!C46 -> 22.9755923 | F22: =D22/$D$24 -> 0.07592942825 | G22: =E22/E$24 -> 0.07592942825
A23: =ROW() -> 23 | C23: Imputation Credits | D23: =Tax_CoRE!C47 -> -11.48779615 | E23: =Tax_CoRE!C47 -> -11.48779615 | F23: =D23/$D$24 -> -0.03796471412 | G23: =E23/E$24 -> -0.03796471412
A24: =ROW() -> 24 | C24: Total Revenue (Cost of Service) | D24: =SUM(D18:D23) -> 302.591404 | E24: =SUM(E18:E23) -> 302.591404 | F24: =SUM(F18:F23) -> 1 | G24: =SUM(G18:G23) -> 1
A25: =ROW() -> 25 | C25: Tariff Revenue | D25: =CoS!D72 -> 302.591404 | E25: =CoS!D72 -> 302.591404
A26: =ROW() -> 26 | C26: Check: | D26: =IF(ROUND(D24-D25,6)=0,"OK","Error") -> OK | E26: =IF(ROUND(E24-E25,6)=0,"OK","Error") -> OK
A27: =ROW() -> 27
A28: =ROW() -> 28 | B28: X-Factor
A29: =ROW() -> 29
A30: =ROW() -> 30 | D30: =YEAR(CoS!L$8) -> 2025 | E30: =YEAR(CoS!M$8) -> 2026 | F30: =YEAR(CoS!N$8) -> 2027 | G30: =YEAR(CoS!O$8) -> 2028 | H30: =YEAR(CoS!P$8) -> 2029
A31: =ROW() -> 31 | C31: 1. Toll charge | D31: =IF(CoS!L60="","",CoS!L60) -> 0.305028143 | E31: =IF(CoS!M60="","",CoS!M60) ->  | F31: =IF(CoS!N60="","",CoS!N60) ->  | G31: =IF(CoS!O60="","",CoS!O60) ->  | H31: =IF(CoS!P60="","",CoS!P60) -> 
A32: =ROW() -> 32 | C32: 2. Reservation charge | D32: =IF(CoS!L61="","",CoS!L61) -> 0.6580238415 | E32: =IF(CoS!M61="","",CoS!M61) ->  | F32: =IF(CoS!N61="","",CoS!N61) ->  | G32: =IF(CoS!O61="","",CoS!O61) ->  | H32: =IF(CoS!P61="","",CoS!P61) -> 
A33: =ROW() -> 33 | C33: 3. Throughput charge | D33: =IF(CoS!L62="","",CoS!L62) -> 0.6336262465 | E33: =IF(CoS!M62="","",CoS!M62) ->  | F33: =IF(CoS!N62="","",CoS!N62) ->  | G33: =IF(CoS!O62="","",CoS!O62) ->  | H33: =IF(CoS!P62="","",CoS!P62) -> 
A34: =ROW() -> 34
A35: =ROW() -> 35 | C35: Delta | D35: =NPVTarget -> 0
A36: =ROW() -> 36
A37: =ROW() -> 37 | B37: Tariff
A38: =ROW() -> 38
A39: =ROW() -> 39 | C39: Calculated Tariff [Nominal $] | D39: =YEAR(CoS!L$8) -> 2025 | E39: =YEAR(CoS!M$8) -> 2026 | F39: =YEAR(CoS!N$8) -> 2027 | G39: =YEAR(CoS!O$8) -> 2028 | H39: =YEAR(CoS!P$8) -> 2029
A40: =ROW() -> 40 | C40: Toll charge | D40: =CoS!L65 -> 0.1718356656 | E40: =CoS!M65 -> 0.1718356656 | F40: =CoS!N65 -> 0.1718356656 | G40: =CoS!O65 -> 0.1718356656 | H40: =CoS!P65 -> 0.1718356656
A41: =ROW() -> 41 | C41: Reservation charge | D41: =CoS!L66 -> 0.001323103026 | E41: =CoS!M66 -> 0.001323103026 | F41: =CoS!N66 -> 0.001323103026 | G41: =CoS!O66 -> 0.001323103026 | H41: =CoS!P66 -> 0.001323103026
A42: =ROW() -> 42 | C42: Throughput charge | D42: =CoS!L67 -> 0.000351229643 | E42: =CoS!M67 -> 0.000351229643 | F42: =CoS!N67 -> 0.000351229643 | G42: =CoS!O67 -> 0.000351229643 | H42: =CoS!P67 -> 0.000351229643

Sheet WACC
B1: =Main!B1 -> Goldfields Gas Pipeline Tariff Model, 1 January 2024
B2: WACC
A3: Ref | B3: =COLUMN() -> 2 | C3: =COLUMN() -> 3 | D3: =COLUMN() -> 4 | E3: =COLUMN() -> 5 | F3: =COLUMN() -> 6 | G3: =COLUMN() -> 7 | H3: =COLUMN() -> 8 | I3: =COLUMN() -> 9 | J3: =COLUMN() -> 10 | K3: =COLUMN() -> 11 | L3: =COLUMN() -> 12 | M3: =COLUMN() -> 13 | N3: =COLUMN() -> 14 | O3: =COLUMN() -> 15 | P3: =COLUMN() -> 16 | Q3: =COLUMN() -> 17 | R3: =COLUMN() -> 18 | S3: =COLUMN() -> 19
A4: =ROW() -> 4 | C4: ERA | D4: ERA | E4: ERA | F4: ERA | G4: ERA | H4: ERA | I4: ERA | J4: ERA | K4: ERA | L4: ERA | M4: ERA | N4: ERA | O4: ERA | P4: ERA | Q4: ERA | R4: ERA | S4: ERA
A5: =ROW() -> 5 | C5: AA1 | D5: AA2 | E5: AA3 2015 | F5: AA3 2016 | G5: AA3 2017 | H5: AA3 2018 | I5: AA3 2019 | J5: AA4 2020 | K5: AA4 2021 | L5: AA4 2022 | M5: AA4 2023 | N5: AA4 2024 | O5: AA5 2025 | P5: AA5 2026 | Q5: AA5 2027 | R5: AA5 2028 | S5: AA5 2029
A6: =ROW() -> 6 | B6: Return on Debt
A7: =ROW() -> 7 | B7: Debt: Nominal Risk Free Rate (DRfn) | C7: 0.0545 | D7: 0.0579 | E7: 0.0182 | F7: =$E$7 -> 0.0182 | G7: =$E$7 -> 0.0182 | H7: =$E$7 -> 0.0182 | I7: =$E$7 -> 0.0182
A8: =ROW() -> 8 | B8: Debt: Real Risk Free Rate (DRfr) | C8: =((1+C7)/(C25+1))-1 -> 0.02690000847 | D8: =((1+D7)/(D25+1))-1 -> 0.03209756098 | E8: =((1+E7)/(E25+1))-1 -> 0.003548196334 | F8: =$E$8 -> 0.003548196334 | G8: =$E$8 -> 0.003548196334 | H8: =$E$8 -> 0.003548196334 | I8: =$E$8 -> 0.003548196334
A9: =ROW() -> 9 | B9: Cost of Debt; 5 year Interest Rate Swap Spread | E9: 0.00296 | F9: =E9 -> 0.00296 | G9: =F9 -> 0.00296 | H9: =G9 -> 0.00296 | I9: =H9 -> 0.00296 | J9: 0.0087 | K9: =J9 -> 0.0087 | L9: =K9 -> 0.0087 | M9: =L9 -> 0.0087 | N9: =M9 -> 0.0087 | O9: 0.04285 | P9: =O9 -> 0.04285 | Q9: =P9 -> 0.04285 | R9: =Q9 -> 0.04285 | S9: =R9 -> 0.04285
A10: =ROW() -> 10 | B10: Cost of Debt; Debt Risk Premium (Drp) | D10: 0.0283 | E10: 0.025259 | F10: =IF(ISNUMBER(F58),AVERAGE(F58:F67),E10) -> 0.027128 | G10: =IF(ISNUMBER(G57),AVERAGE(G57:G66),F10) -> 0.028551 | H10: =IF(ISNUMBER(H56),AVERAGE(H56:H65),G10) -> 0.026657 | I10: =IF(ISNUMBER(I55),AVERAGE(I55:I64),H10) -> 0.023652 | J10: =J39 -> 0.02325 | K10: 0.02288 | L10: 0.0212 | M10: 0.02036 | N10: 0.02002 | O10: =O39 -> 0.01986 | P10: 0.01986 | Q10: 0.01986 | R10: 0.01986 | S10: 0.01986
A11: =ROW() -> 11 | B11: Cost of Debt; Debt Issuing Cost (Disc) + Hedging Cost | D11: 0.00125 | E11: =0.125%+0.114% -> 0.00239 | F11: =$E11 -> 0.00239 | G11: 0.00239 | H11: 0.00239 | I11: 0.00239 | J11: =0.1%+0.114% -> 0.00214 | K11: =J11 -> 0.00214 | L11: 0.00214 | M11: 0.00214 | N11: 0.00214 | O11: =0.165%+0.123% -> 0.00288 | P11: =O11 -> 0.00288 | Q11: =P11 -> 0.00288 | R11: =Q11 -> 0.00288 | S11: =R11 -> 0.00288
A12: =ROW() -> 12 | B12: Cost of Debt; Risk Margin (Rm) -- Nominal Return on Debt (DPn) | D12: =SUM(D9:D11) -> 0.02955 | E12: 0.030609 | F12: 0.032478 | G12: 0.033901 | H12: 0.032007 | I12: 0.029002 | J12: 0.03409 | K12: 0.03372 | L12: 0.03204 | M12: 0.0312 | N12: 0.03086 | O12: =SUM(O9:O11) -> 0.06559 | P12: 0.06559 | Q12: 0.06559 | R12: 0.06559 | S12: 0.06559
A13: =ROW() -> 13 | B13: Nominal Cost of Debt (DPn) | C13: =C7+C12 -> 0.0545 | D13: 0.08745 | E13: 0.048809 | F13: 0.050678 | G13: 0.052101 | H13: 0.050207 | I13: 0.047202 | J13: =J12 -> 0.03409 | K13: =K12 -> 0.03372 | L13: 0.03204 | M13: 0.0312 | N13: 0.03086 | O13: =O12 -> 0.06559 | P13: =P12 -> 0.06559 | Q13: 0.06559 | R13: 0.06559 | S13: 0.06559
A14: =ROW() -> 14
A15: =ROW() -> 15 | B15: Return on Equity
A16: =ROW() -> 16 | B16: Equity: Nominal Risk Free Rate (ERfn) | C16: 0.0545 | D16: 0.0579 | E16: 0.0182 | F16: =$E$7 -> 0.0182 | G16: =$E$7 -> 0.0182 | H16: =$E$7 -> 0.0182 | I16: =$E$7 -> 0.0182 | J16: 0.0072 | K16: =J16 -> 0.0072 | L16: =K16 -> 0.0072 | M16: 0.0072 | N16: 0.0072 | O16: 0.0419 | P16: =O16 -> 0.0419 | Q16: =P16 -> 0.0419 | R16: =Q16 -> 0.0419 | S16: =R16 -> 0.0419
A17: =ROW() -> 17 | B17: Australian Market Risk Premium (Rp) | D17: 0.06 | E17: 0.074 | F17: =$E17 -> 0.074 | G17: 0.074 | H17: 0.074 | I17: 0.074 | J17: 0.06 | K17: =J17 -> 0.06 | L17: 0.06 | M17: 0.06 | N17: 0.06 | O17: 0.061 | P17: =O17 -> 0.061 | Q17: 0.061 | R17: 0.061 | S17: 0.061
A18: =ROW() -> 18 | B18: Equity Beta (Be) | E18: 0.7 | F18: 0.7 | G18: 0.7 | H18: 0.7 | I18: 0.7 | J18: 0.7 | K18: =J18 -> 0.7 | L18: 0.7 | M18: 0.7 | N18: 0.7 | O18: 0.7 | P18: 0.7 | Q18: 0.7 | R18: 0.7 | S18: 0.7
A19: =ROW() -> 19 | B19: Nominal Pre Tax Cost of Equity (EPn) | C19: =(C7+C17*C18)/(1-C26*(1-C27)) -> 0.07864357864 | D19: 0.1307620693 | E19: =(E7+E17*E18)/(1-E26*(1-E27)) -> 0.08536585366 | F19: =(F7+F17*F18)/(1-F26*(1-F27)) -> 0.08536585366 | G19: =(G7+G17*G18)/(1-G26*(1-G27)) -> 0.08536585366 | H19: =(H7+H17*H18)/(1-H26*(1-H27)) -> 0.08536585366 | I19: =(I7+I17*I18)/(1-I26*(1-I27)) -> 0.08536585366 | J19: =J20/(1-J26*(1-J27)) -> 0.05788235294 | K19: 0.05788235294 | L19: 0.05788235294 | M19: 0.05788235294 | N19: 0.05788235294 | O19: 0.09952941176 | P19: 0.09952941176 | Q19: 0.09952941176 | R19: 0.09952941176 | S19: 0.09952941176
A20: =ROW() -> 20 | B20: Nominal After Tax Cost of Equity (EAn) -- Nominal return on Equity | C20: =C16+C17*C18 -> 0.0545 | D20: 0.1129 | E20: =E16+E17*E18 -> 0.07 | F20: 0.07 | G20: 0.07 | H20: 0.07 | I20: 0.07 | J20: 0.0492 | K20: 0.0492 | L20: 0.0492 | M20: 0.0492 | N20: 0.0492 | O20: =O16+O17*O18 -> 0.0846 | P20: 0.0846 | Q20: 0.0846 | R20: 0.0846 | S20: 0.0846
A21: =ROW() -> 21
A22: =ROW() -> 22 | B22: Other Parameter
A23: =ROW() -> 23 | B23: Debt Proportion (D) | C23: 0.6 | D23: 0.6 | E23: 0.6 | F23: =$E$23 -> 0.6 | G23: =$E$23 -> 0.6 | H23: 0.6 | I23: 0.6 | J23: 0.55 | K23: =J23 -> 0.55 | L23: =K23 -> 0.55 | M23: 0.55 | N23: 0.55 | O23: 0.55 | P23: =O23 -> 0.55 | Q23: =P23 -> 0.55 | R23: =Q23 -> 0.55 | S23: =R23 -> 0.55
A24: =ROW() -> 24 | B24: Equity Proportion (E) | C24: =1-C23 -> 0.4 | D24: =1-D23 -> 0.4 | E24: =1-E23 -> 0.4 | F24: =$E$24 -> 0.4 | G24: =$E$24 -> 0.4 | H24: 0.4 | I24: 0.4 | J24: =1-J23 -> 0.45 | K24: =1-K23 -> 0.45 | L24: 0.45 | M24: 0.45 | N24: 0.45 | O24: =1-O23 -> 0.45 | P24: =1-P23 -> 0.45 | Q24: 0.45 | R24: 0.45 | S24: 0.45
A25: =ROW() -> 25 | B25: Inflation Rate for WACC (I) | C25: 0.026877 | D25: 0.025 | E25: 0.0146 | F25: =$E$25 -> 0.0146 | G25: =$E$25 -> 0.0146 | H25: =$E$25 -> 0.0146 | I25: 0.0146 | J25: 0.0114 | K25: =J25 -> 0.0114 | L25: 0.0114 | M25: 0.0114 | N25: 0.0114 | O25: 0.0258 | P25: =O25 -> 0.0258 | Q25: =P25 -> 0.0258 | R25: =Q25 -> 0.0258 | S25: =R25 -> 0.0258
A26: =ROW() -> 26 | B26: Corporate Tax Rate (T) | C26: 0.307 | D26: 0.3 | E26: 0.3 | F26: =$E26 -> 0.3 | G26: 0.3 | H26: 0.3 | I26: 0.3 | J26: 0.3 | K26: =J26 -> 0.3 | L26: 0.3 | M26: 0.3 | N26: 0.3 | O26: 0.3 | P26: 0.3 | Q26: 0.3 | R26: 0.3 | S26: 0.3
A27: =ROW() -> 27 | B27: Franking Credit (g) | E27: 0.4 | F27: 0.4 | G27: 0.4 | H27: 0.4 | I27: 0.4 | J27: 0.5 | K27: =J27 -> 0.5 | L27: 0.5 | M27: 0.5 | N27: 0.5 | O27: 0.5 | P27: 0.5 | Q27: 0.5 | R27: 0.5 | S27: 0.5
A28: =ROW() -> 28 | B28: Imputation Adj (G) | J28: =(1-J26)/(1-J26*(1-J27)) -> 0.8235294118 | K28: 0.8235294118 | L28: 0.8235294118 | M28: 0.8235294118 | N28: 0.8235294118 | O28: =(1-O26)/(1-O26*(1-O27)) -> 0.8235294118 | P28: 0.8235294118 | Q28: 0.8235294118 | R28: 0.8235294118 | S28: 0.8235294118
A29: =ROW() -> 29
A30: =ROW() -> 30 | B30: WACC; Pre-tax Officer (Market Practise or Forward Transformation)
A31: =ROW() -> 31 | B31: Nominal Pre Tax WACC (WPn) | C31: 0.106 | D31: 0.1047748277 | E31: =E19*E24+E13*E23 -> 0.06343174146 | F31: 0.06455314146 | G31: 0.06540694146 | H31: 0.06427054146 | I31: 0.06246754146 | J31: 0.04479655882 | K31: 0.04459305882 | L31: 0.04366905882 | M31: 0.04320705882 | N31: 0.04302005882 | O31: =O19*O24+O13*O23 -> 0.08086273529 | P31: 0.08086273529 | Q31: 0.08086273529 | R31: 0.08086273529 | S31: 0.08086273529
A32: =ROW() -> 32 | B32: Real Pre Tax WACC (WPr) | C32: =((1+C31)/(1+C25))-1 -> 0.07705207147 | D32: 0.0778 | E32: =(1+E31)/(1+E25)-1 -> 0.04812905723 | F32: 0.04923432039 | G32: 0.05007583428 | H32: 0.04895578697 | I32: 0.04717873198 | J32: =(1+J31)/(1+J25)-1 -> 0.03302012935 | K32: 0.0328189231 | L32: 0.03190533797 | M32: 0.03144854541 | N32: 0.03126365318 | O32: =(1+O31)/(1+O25)-1 -> 0.05367784685 | P32: 0.05367784685 | Q32: 0.05367784685 | R32: 0.05367784685 | S32: 0.05367784685
A33: =ROW() -> 33 | B33: WACC: Vanilla
A34: =ROW() -> 34 | B34: Nominal After Tax WACC | E34: =E13*E23+E20*E24 -> 0.0572854 | F34: 0.0584068 | G34: 0.0592606 | H34: 0.0581242 | I34: 0.0563212 | J34: 0.0408895 | K34: 0.040686 | L34: 0.039762 | M34: 0.0393 | N34: 0.039113 | O34: =O13*O23+O20*O24 -> 0.0741445 | P34: 0.0741445 | Q34: 0.0741445 | R34: 0.0741445 | S34: 0.0741445
A35: =ROW() -> 35 | B35: Real After Tax WACC | E35: =(1+E34)/(1+E25)-1 -> 0.04207116105 | F35: 0.04317642421 | G35: 0.0440179381 | H35: 0.04289789079 | I35: 0.0411208358 | J35: 0.02915710896 | K35: 0.02895590271 | L35: 0.02804231758 | M35: 0.02758552501 | N35: 0.02740063279 | O35: =(1+O34)/(1+O25)-1 -> 0.04712858257 | P35: 0.04712858257 | Q35: 0.04712858257 | R35: 0.04712858257 | S35: 0.04712858257
A36: =ROW() -> 36
A37: =ROW() -> 37 | B37: Cost of Debt; Debt Risk Premium (Drp)
A38: =ROW() -> 38 | B38: Trailing Average DRP | J38: =IF(Inputs!BE$24="","",Inputs!BE$24) -> 0.02325 | K38: =IF(Inputs!BF$24="","",Inputs!BF$24) -> 0.02288 | L38: =IF(Inputs!BG$24="","",Inputs!BG$24) -> 0.0212 | M38: =IF(Inputs!BH$24="","",Inputs!BH$24) -> 0.02036 | N38: =IF(Inputs!BI$24="","",Inputs!BI$24) -> 0.02002 | O38: =IF(Inputs!BJ$24="","",Inputs!BJ$24) -> 0.01986 | P38: =IF(Inputs!BK$24="","",Inputs!BK$24) ->  | Q38: =IF(Inputs!BL$24="","",Inputs!BL$24) ->  | R38: =IF(Inputs!BM$24="","",Inputs!BM$24) ->  | S38: =IF(Inputs!BN$24="","",Inputs!BN$24) -> 
A39: =ROW() -> 39 | B39: Modelled DRP | J39: =IF(J38="",I39,J38) -> 0.02325 | K39: =IF(K38="",J39,K38) -> 0.02288 | L39: =IF(L38="",K39,L38) -> 0.0212 | M39: =IF(M38="",L39,M38) -> 0.02036 | N39: =IF(N38="",M39,N38) -> 0.02002 | O39: =IF(O38="",N39,O38) -> 0.01986 | P39: =IF(P38="",O39,P38) -> 0.01986 | Q39: =IF(Q38="",P39,Q38) -> 0.01986 | R39: =IF(R38="",Q39,R38) -> 0.01986 | S39: =IF(S38="",R39,S38) -> 0.01986
A40: =ROW() -> 40
A41: =ROW() -> 41 | B41: Annual Update of Debt Risk Premium | E41: 2015 | F41: =E41+1 -> 2016 | G41: =F41+1 -> 2017 | H41: 2018 | I41: 2019 | J41: 2020 | K41: 2021 | L41: 2022 | M41: 2023 | N41: 2024 | O41: =N41+1 -> 2025 | P41: =O41+1 -> 2026 | Q41: =P41+1 -> 2027 | R41: =Q41+1 -> 2028 | S41: =R41+1 -> 2029
A42: =ROW() -> 42 | B42: Trailing Average DRP | E42: =ROUND(AVERAGE(E55:E68),5) -> 0.02526 | F42: =IF(F58="","",ROUND(AVERAGE(F55:F68),5)) -> 0.02713 | G42: =IF(G57="","",ROUND(AVERAGE(G55:G68),5)) -> 0.02855 | H42: =IF(H56="","",ROUND(AVERAGE(H55:H68),5)) -> 0.02666 | I42: =IF(I55="","",ROUND(AVERAGE(I55:I68),5)) -> 0.02365 | J42: =IF(J54="","",ROUND(AVERAGE(J45:J68),5)) -> 0.02325 | K42: =IF(K53="","",ROUND(AVERAGE(K45:K68),5)) -> 0.02288 | L42: =IF(L52="","",ROUND(AVERAGE(L45:L68),5)) -> 0.0212 | M42: =IF(M51="","",ROUND(AVERAGE(M45:M68),5)) -> 0.02036 | N42: =IF(N50="","",ROUND(AVERAGE(N45:N68),5)) -> 0.02002 | O42: =IF(O49="","",ROUND(AVERAGE(O45:O68),5)) -> 0.01986 | P42: =IF(P48="","",ROUND(AVERAGE(P45:P68),5)) ->  | Q42: =IF(Q47="","",ROUND(AVERAGE(Q45:Q68),5)) ->  | R42: =IF(R46="","",ROUND(AVERAGE(R45:R68),5)) ->  | S42: =IF(S45="","",ROUND(AVERAGE(S45:S68),5)) -> 
A43: =ROW() -> 43
A44: =ROW() -> 44 | B44: Annual Debt Risk Premium, Year | E44: =E41 -> 2015 | F44: 2016 | G44: 2017 | H44: 2018 | I44: 2019 | J44: 2020 | K44: 2021 | L44: 2022 | M44: 2023 | N44: 2024 | O44: 2025 | P44: 2026 | Q44: 2027 | R44: 2028 | S44: 2029
B45: 2029 | S45: =IF(Inputs!$BN$23="","",Inputs!$BN$23) -> 
B46: 2028 | R46: =IF(Inputs!$BM$23="","",Inputs!$BM$23) ->  | S46: =R46 -> 
B47: 2027 | Q47: =IF(Inputs!$BL$23="","",Inputs!$BL$23) ->  | R47: =Q47 ->  | S47: =R47 -> 
B48: 2026 | P48: =IF(Inputs!$BK$23="","",Inputs!$BK$23) ->  | Q48: =P48 ->  | R48: =Q48 -> 
B49: 2025 | O49: =IF(Inputs!BJ$23="","",Inputs!BJ$23) -> 0.01908 | P49: =O49 -> 0.01908 | Q49: =P49 -> 0.01908 | R49: 0.01908 | S49: 0.01908
A50: =ROW() -> 50 | B50: =B51+1 -> 2024 | N50: =IF(Inputs!BI$23="","",Inputs!BI$23) -> 0.01908 | O50: =N50 -> 0.01908 | P50: =O50 -> 0.01908 | Q50: 0.01908 | R50: 0.01908 | S50: 0.01908
A51: =ROW() -> 51 | B51: 2023 | M51: =IF(Inputs!BH$23="","",Inputs!BH$23) -> 0.02209 | N51: =M51 -> 0.02209 | O51: =N51 -> 0.02209 | P51: 0.02209 | Q51: 0.02209 | R51: 0.02209 | S51: 0.02209
A52: =ROW() -> 52 | B52: 2022 | L52: =IF(Inputs!BG$23="","",Inputs!BG$23) -> 0.01482 | M52: 0.01482 | N52: =M52 -> 0.01482 | O52: 0.01482 | P52: 0.01482 | Q52: 0.01482 | R52: 0.01482 | S52: 0.01482
A53: =ROW() -> 53 | B53: 2021 | K53: =IF(Inputs!BF$23="","",Inputs!BF$23) -> 0.02009 | L53: 0.02009 | M53: 0.02009 | N53: =M53 -> 0.02009 | O53: 0.02009 | P53: 0.02009 | Q53: 0.02009 | R53: 0.02009 | S53: 0.02009
A54: =ROW() -> 54 | B54: 2020 | J54: =IF(Inputs!BE$23="","",Inputs!BE$23) -> 0.01725 | K54: 0.01725 | L54: 0.01725 | M54: 0.01725 | N54: 0.01725 | O54: 0.01725 | P54: 0.01725 | Q54: 0.01725 | R54: 0.01725 | S54: 0.01725
A55: =ROW() -> 55 | B55: 2019 | I55: 0.01619 | J55: =I55 -> 0.01619 | K55: 0.01619 | L55: 0.01619 | M55: 0.01619 | N55: =M55 -> 0.01619 | O55: 0.01619 | P55: 0.01619 | Q55: 0.01619 | R55: 0.01619
A56: =ROW() -> 56 | B56: 2018 | H56: 0.01862 | I56: 0.01862 | J56: 0.01862 | K56: 0.01862 | L56: 0.01862 | M56: 0.01862 | N56: =M56 -> 0.01862 | O56: 0.01862 | P56: 0.01862 | Q56: 0.01862
A57: =ROW() -> 57 | B57: 2017 | G57: 0.02553 | H57: 0.02553 | I57: 0.02553 | J57: 0.02553 | K57: 0.02553 | L57: 0.02553 | M57: 0.02553 | N57: =M57 -> 0.02553 | O57: 0.02553 | P57: 0.02553
A58: =ROW() -> 58 | B58: 2016 | F58: 0.02582 | G58: 0.02582 | H58: 0.02582 | I58: 0.02582 | J58: 0.02582 | K58: 0.02582 | L58: 0.02582 | M58: 0.02582 | N58: =M58 -> 0.02582 | O58: 0.02582
A59: =ROW() -> 59 | B59: 2015 | E59: 0.0207 | F59: =E59 -> 0.0207 | G59: 0.0207 | H59: 0.0207 | I59: 0.0207 | J59: 0.0207 | K59: 0.0207 | L59: 0.0207 | M59: 0.0207 | N59: =M59 -> 0.0207
A60: =ROW() -> 60 | B60: 2014 | E60: 0.02251 | F60: =E60 -> 0.02251 | G60: 0.02251 | H60: 0.02251 | I60: 0.02251 | J60: 0.02251 | K60: 0.02251 | L60: 0.02251 | M60: 0.02251
A61: =ROW() -> 61 | B61: 2013 | E61: 0.03043 | F61: 0.03043 | G61: 0.03043 | H61: 0.03043 | I61: 0.03043 | J61: 0.03043 | K61: 0.03043 | L61: 0.03043
A62: =ROW() -> 62 | B62: 2012 | E62: 0.03168 | F62: 0.03168 | G62: 0.03168 | H62: 0.03168 | I62: 0.03168 | J62: 0.03168 | K62: 0.03168
A63: =ROW() -> 63 | B63: 2011 | E63: 0.02379 | F63: 0.02379 | G63: 0.02379 | H63: 0.02379 | I63: 0.02379 | J63: 0.02379
A64: =ROW() -> 64 | B64: 2010 | E64: 0.02125 | F64: 0.02125 | G64: 0.02125 | H64: 0.02125 | I64: 0.02125
A65: =ROW() -> 65 | B65: 2009 | E65: 0.04624 | F65: =E65 -> 0.04624 | G65: =F65 -> 0.04624 | H65: 0.04624
A66: =ROW() -> 66 | B66: 2008 | E66: 0.03756 | F66: =E66 -> 0.03756 | G66: =F66 -> 0.03756
A67: =ROW() -> 67 | B67: =B68+1 -> 2007 | E67: 0.0113 | F67: =E67 -> 0.0113
A68: =ROW() -> 68 | B68: 2006 | E68: 0.00713
C69: Outcome based on regulatory judgement
J71: =COUNT(J45:J63) -> 10 | K71: =COUNT(K45:K63) -> 10 | L71: 10 | M71: 10 | N71: 10 | O71: 10 | P71: 9 | Q71: 8 | R71: 7 | S71: 6
A75: Discount factors calculations
C78: ERA | D78: ERA | E78: ERA | F78: ERA | G78: ERA | H78: ERA | I78: ERA | J78: ERA | K78: ERA | L78: ERA | M78: ERA | N78: ERA | O78: ERA | P78: ERA | Q78: ERA | R78: ERA | S78: ERA | T78: ERA | U78: ERA
C79: AA2 | D79: AA3 2015 | E79: AA3 2016 | F79: AA3 2017 | G79: AA3 2018 | H79: AA3 2019 | I79: AA4 2020 | J79: AA3 2019 | K79: AA3 2019 | L79: AA3 2020 | M79: AA4 2021 | N79: AA4 2022 | O79: AA4 2023 | P79: AA4 2024 | Q79: AA5 2025 | R79: AA5 2026 | S79: AA5 2027 | T79: AA5 2028 | U79: AA5 2029
A80: Start Date | J80: 2018-01-01 | K80: 2019-01-01 | L80: 2020-01-01 | M80: 2021-01-01 | N80: 2022-01-01 | O80: 2023-01-01 | P80: 2024-01-01 | Q80: 2025-01-01 | R80: 2026-01-01 | S80: 2027-01-01 | T80: 2028-01-01 | U80: 2029-01-01
A81: End Date | J81: 2018-12-31 | K81: 2019-12-31 | L81: 2020-12-31 | M81: 2021-12-31 | N81: 2022-12-31 | O81: 2023-12-31 | P81: 2024-12-31 | Q81: 2025-12-31 | R81: 2026-12-31 | S81: 2027-12-31 | T81: 2028-12-31 | U81: 2029-12-31
A83: Discount factors - nominal
A84: Nominal After Tax WACC | K84: =I34 -> 0.0563212 | L84: =J34 -> 0.0408895 | M84: =K34 -> 0.040686 | N84: 0.039762 | O84: 0.0393 | P84: 0.039113 | Q84: 0.0741445 | R84: 0.0741445 | S84: 0.0741445 | T84: 0.0741445 | U84: 0.0741445
A85: Nominal WACC discount factor - base: 31 December 2018 | J85: 1 | K85: =J85/(1+K84) -> 0.9466817479 | L85: =K85/(1+L84) -> 0.9094930326 | M85: 0.8739360697 | N85: 0.8405154926 | O85: 0.8087323127 | P85: 0.7782910162 | Q85: 0.7245682645 | R85: 0.6745538096 | S85: 0.6279916804 | T85: 0.5846435749 | U85: 0.54428764
A86: ="Nominal WACC discount factor - base: " & TEXT(Inputs!$D$15,"dd-mmm-yyyy") -> Nominal WACC discount factor - base: 31-Dec-2023 | J86: =K86*(1+J84) -> 1.189746065 | K86: =L86*(1+K84) -> 1.189746065 | L86: =M86*(1+L84) -> 1.126310884 | M86: =N86*(1+M84) -> 1.082065757 | N86: =O86*(1+N84) -> 1.039762 | O86: =O85/HLOOKUP(Inputs!$D$15,WACC!$A$81:$U$85,5,FALSE) -> 1 | P86: =O86/(1+P84) -> 0.9623592429 | Q86: =P86/(1+Q84) -> 0.8959308947 | R86: 0.8340878669 | S86: 0.7765136505 | T86: 0.7229135843 | U86: 0.6730133462
A89: Discount factors - real
A90: Real After Tax WACC | K90: =(1+K84)/(1+HLOOKUP(K81,Inputs!$BD$8:$BN$17,10,FALSE))-1 -> 0.03723105783 | L90: =(1+L84)/(1+HLOOKUP(L81,Inputs!$BD$8:$BN$17,10,FALSE))-1 -> 0.03200819027 | M90: =(1+M84)/(1+HLOOKUP(M81,Inputs!$BD$8:$BN$17,10,FALSE))-1 -> 0.005510298434 | N90: =(1+N84)/(1+HLOOKUP(N81,Inputs!$BD$8:$BN$17,10,FALSE))-1 -> -0.03575588226 | O90: =(1+O84)/(1+HLOOKUP(O81,Inputs!$BD$8:$BN$17,10,FALSE))-1 -> -0.003069544365 | P90: =(1+P84)/(1+HLOOKUP(P81,Inputs!$BD$8:$BN$17,10,FALSE))-1 -> 0.006404842615 | Q90: =(1+Q84)/(1+HLOOKUP(Q81,Inputs!$BD$8:$BN$17,10,FALSE))-1 -> 0.04712858257 | R90: =(1+R84)/(1+HLOOKUP(R81,Inputs!$BD$8:$BN$17,10,FALSE))-1 -> 0.04712858257 | S90: =(1+S84)/(1+HLOOKUP(S81,Inputs!$BD$8:$BN$17,10,FALSE))-1 -> 0.04712858257 | T90: =(1+T84)/(1+HLOOKUP(T81,Inputs!$BD$8:$BN$17,10,FALSE))-1 -> 0.04712858257 | U90: =(1+U84)/(1+HLOOKUP(U81,Inputs!$BD$8:$BN$17,10,FALSE))-1 -> 0.04712858257
A91: Real WACC discount factor - base: 31 December 2018 | J91: 1 | K91: =J91/(1+K90) -> 0.9641053384 | L91: =K91/(1+L90) -> 0.9342031851 | M91: 0.9290836569 | N91: 0.9635357269 | O91: 0.966502449 | P91: 0.9603515485 | Q91: 0.9171285786 | R91: 0.8758509641 | S91: 0.8364311496 | T91: 0.7987855202 | U91: 0.7628342245
A92: ="Real WACC discount factor - base: " & TEXT(Inputs!$D$15,"dd-mmm-yyyy") -> Real WACC discount factor - base: 31-Dec-2023 | J92: =K92*(1+J90) -> 1.037844236 | K92: =L92*(1+K90) -> 1.037844236 | L92: =M92*(1+L90) -> 1.000591168 | M92: =N92*(1+M90) -> 0.9695573906 | N92: =O92*(1+N90) -> 0.9642441177 | O92: =O91/HLOOKUP(Inputs!$D$15,WACC!$A$81:$U$91,11,FALSE) -> 1 | P92: =O92/(1+P90) -> 0.9936359183 | Q92: 0.9489149039 | R92: 0.9062066681 | S92: 0.8654206209 | T92: 0.8264702496 | U92: 0.7892729349

Sheet Assets_tab_AA4 (hidden)
B1: ERA, GGT Tariff Model, December 2019 [Final Decision]
B2: Assets
A3: Ref | B3: 2 | C3: 3 | D3: 4 | E3: 5 | F3: 6 | G3: 7 | H3: 8 | I3: 9 | J3: 10 | K3: 11 | L3: 12 | M3: 13 | N3: 14 | O3: 15 | P3: 16 | Q3: 17 | R3: 18 | S3: 19 | T3: 20 | U3: 21 | V3: 22 | W3: 23 | X3: 24 | Y3: 25 | Z3: 26 | AA3: 27 | AB3: 28 | AC3: 29 | AD3: 30 | AE3: 31 | AF3: 32 | AG3: 33 | AH3: 34 | AI3: 35 | AJ3: 36 | AK3: 37 | AL3: 38 | AM3: 39 | AN3: 40 | AO3: 41 | AP3: 42 | AQ3: 43 | AR3: 44 | AS3: 45 | AT3: 46 | AU3: 47 | AV3: 48 | AW3: 49 | AX3: 50 | AY3: 51 | AZ3: 52 | BA3: 53 | BB3: 54 | BC3: 55 | BD3: 56 | BE3: 57 | BF3: 58
A4: 4 | B4: Actual or Forecast | C4: Actual | D4: Actual | E4: Actual | F4: Actual | G4: Actual | H4: Actual | I4: Actual | J4: Actual | K4: Actual | L4: Actual | M4: Actual | N4: Actual | O4: Actual | P4: Actual | Q4: Actual | R4: Actual | S4: Actual | T4: Actual | U4: Actual | V4: Actual | W4: Actual | X4: Actual | Y4: Actual | Z4: Actual | AA4: Actual | AB4: Actual | AC4: Actual | AD4: Actual | AE4: Actual | AF4: Actual | AG4: Actual | AH4: Actual | AI4: Actual | AJ4: Actual | AK4: Actual | AL4: Actual | AM4: Actual | AN4: Actual | AO4: Actual | AP4: Actual | AQ4: Actual | AR4: Actual | AS4: Actual | AT4: Actual | AU4: Actual | AV4: Forecast | AW4: Forecast | AX4: Forecast | AY4: Forecast | AZ4: Forecast | BA4: Forecast | BB4: Forecast | BC4: Forecast | BD4: Forecast | BE4: Forecast | BF4: Forecast
A5: 5 | B5: Year Type | C5: Calendar | D5: Calendar | E5: Calendar | F5: Calendar | G5: Calendar | H5: Calendar | I5: Calendar | J5: Calendar | K5: Calendar | L5: Calendar | M5: Calendar | N5: Calendar | O5: Calendar | P5: Calendar | Q5: Calendar | R5: Calendar | S5: Calendar | T5: Calendar | U5: Calendar | V5: Calendar | W5: Calendar | X5: Calendar | Y5: Calendar | Z5: Calendar | AA5: Calendar | AB5: Calendar | AC5: Calendar | AD5: Calendar | AE5: Calendar | AF5: Calendar | AG5: Calendar | AH5: Calendar | AI5: Calendar | AJ5: Calendar | AK5: Calendar | AL5: Calendar | AM5: Calendar | AN5: Calendar | AO5: Calendar | AP5: Calendar | AQ5: Calendar | AR5: Calendar | AS5: Calendar | AT5: Calendar | AU5: Calendar | AV5: Calendar | AW5: Calendar | AX5: Calendar | AY5: Calendar | AZ5: Calendar | BA5: Calendar | BB5: Calendar | BC5: Calendar | BD5: Calendar | BE5: Calendar | BF5: Calendar
A6: 6 | B6: Regulatory Period | D6: 1 | E6: 1 | F6: 1 | G6: 1 | H6: 1 | I6: 1 | J6: 1 | K6: 1 | L6: 1 | M6: 1 | N6: 1 | O6: 1 | P6: 1 | Q6: 1 | R6: 1 | S6: 1 | T6: 1 | U6: 1 | V6: 1 | W6: 1 | X6: 1 | Y6: 1 | Z6: 1 | AA6: 1 | AB6: 1 | AC6: 1 | AD6: 1 | AE6: 1 | AF6: 1 | AG6: 1 | AH6: 1 | AI6: 1 | AJ6: 1 | AK6: 1 | AL6: 1 | AM6: 1 | AN6: 1 | AO6: 1 | AP6: 1 | AQ6: 1 | AR6: 2 | AS6: 2 | AT6: 2 | AU6: 2 | AV6: 2 | AW6: 3 | AX6: 3 | AY6: 3 | AZ6: 3 | BA6: 3 | BB6: 4 | BC6: 4 | BD6: 4 | BE6: 4 | BF6: 4
A7: 7 | B7: Start Date | C7: 1999-10-01 | D7: 2000-01-01 | E7: 2000-04-01 | F7: 2000-07-01 | G7: 2000-10-01 | H7: 2001-01-01 | I7: 2001-04-01 | J7: 2001-07-01 | K7: 2001-10-01 | L7: 2002-01-01 | M7: 2002-04-01 | N7: 2002-07-01 | O7: 2002-10-01 | P7: 2003-01-01 | Q7: 2003-04-01 | R7: 2003-07-01 | S7: 2003-10-01 | T7: 2004-01-01 | U7: 2004-04-01 | V7: 2004-07-01 | W7: 2004-10-01 | X7: 2005-01-01 | Y7: 2005-04-01 | Z7: 2005-07-01 | AA7: 2005-10-01 | AB7: 2006-01-01 | AC7: 2006-04-01 | AD7: 2006-07-01 | AE7: 2006-10-01 | AF7: 2007-01-01 | AG7: 2007-04-01 | AH7: 2007-07-01 | AI7: 2007-10-01 | AJ7: 2008-01-01 | AK7: 2008-04-01 | AL7: 2008-07-01 | AM7: 2008-10-01 | AN7: 2009-01-01 | AO7: 2009-04-01 | AP7: 2009-07-01 | AQ7: 2009-10-01 | AR7: 2010-01-01 | AS7: 2011-01-01 | AT7: 2012-01-01 | AU7: 2013-01-01 | AV7: 2014-01-01 | AW7: 2015-01-01 | AX7: 2016-01-01 | AY7: 2017-01-01 | AZ7: 2018-01-01 | BA7: 2019-01-01 | BB7: 2020-01-01 | BC7: 2021-01-01 | BD7: 2022-01-01 | BE7: 2023-01-01 | BF7: 2024-01-01
A8: 8 | B8: End Date | C8: 1999-12-31 | D8: 2000-03-31 | E8: 2000-06-30 | F8: 2000-09-30 | G8: 2000-12-31 | H8: 2001-03-31 | I8: 2001-06-30 | J8: 2001-09-30 | K8: 2001-12-31 | L8: 2002-03-31 | M8: 2002-06-30 | N8: 2002-09-30 | O8: 2002-12-31 | P8: 2003-03-31 | Q8: 2003-06-30 | R8: 2003-09-30 | S8: 2003-12-31 | T8: 2004-03-31 | U8: 2004-06-30 | V8: 2004-09-30 | W8: 2004-12-31 | X8: 2005-03-31 | Y8: 2005-06-30 | Z8: 2005-09-30 | AA8: 2005-12-31 | AB8: 2006-03-31 | AC8: 2006-06-30 | AD8: 2006-09-30 | AE8: 2006-12-31 | AF8: 2007-03-31 | AG8: 2007-06-30 | AH8: 2007-09-30 | AI8: 2007-12-31 | AJ8: 2008-03-31 | AK8: 2008-06-30 | AL8: 2008-09-30 | AM8: 2008-12-31 | AN8: 2009-03-31 | AO8: 2009-06-30 | AP8: 2009-09-30 | AQ8: 2009-12-31 | AR8: 2010-12-31 | AS8: 2011-12-31 | AT8: 2012-12-31 | AU8: 2013-12-31 | AV8: 2014-12-31 | AW8: 2015-12-31 | AX8: 2016-12-31 | AY8: 2017-12-31 | AZ8: 2018-12-31 | BA8: 2019-12-31 | BB8: 2020-12-31 | BC8: 2021-12-31 | BD8: 2022-12-31 | BE8: 2023-12-31 | BF8: 2024-12-31
A9: 9 | B9: Year | C9: 1999-12-31 | D9: 2000-03-31 | E9: 2000-06-30 | F9: 2000-09-30 | G9: 2000-12-31 | H9: 2001-03-31 | I9: 2001-06-30 | J9: 2001-09-30 | K9: 2001-12-31 | L9: 2002-03-31 | M9: 2002-06-30 | N9: 2002-09-30 | O9: 2002-12-31 | P9: 2003-03-31 | Q9: 2003-06-30 | R9: 2003-09-30 | S9: 2003-12-31 | T9: 2004-03-31 | U9: 2004-06-30 | V9: 2004-09-30 | W9: 2004-12-31 | X9: 2005-03-31 | Y9: 2005-06-30 | Z9: 2005-09-30 | AA9: 2005-12-31 | AB9: 2006-03-31 | AC9: 2006-06-30 | AD9: 2006-09-30 | AE9: 2006-12-31 | AF9: 2007-03-31 | AG9: 2007-06-30 | AH9: 2007-09-30 | AI9: 2007-12-31 | AJ9: 2008-03-31 | AK9: 2008-06-30 | AL9: 2008-09-30 | AM9: 2008-12-31 | AN9: 2009-03-31 | AO9: 2009-06-30 | AP9: 2009-09-30 | AQ9: 2009-12-31 | AR9: 2010-12-31 | AS9: 2011-12-31 | AT9: 2012-12-31 | AU9: 2013-12-31 | AV9: 2014-12-31 | AW9: 2015-12-31 | AX9: 2016-12-31 | AY9: 2017-12-31 | AZ9: 2018-12-31 | BA9: 2019-12-31 | BB9: 2020-12-31 | BC9: 2021-12-31 | BD9: 2022-12-31 | BE9: 2023-12-31 | BF9: 2024-12-31
A10: 10 | B10: Quarter | D10: Q1 | E10: Q2 | F10: Q3 | G10: Q4 | H10: Q1 | I10: Q2 | J10: Q3 | K10: Q4 | L10: Q1 | M10: Q2 | N10: Q3 | O10: Q4 | P10: Q1 | Q10: Q2 | R10: Q3 | S10: Q4 | T10: Q1 | U10: Q2 | V10: Q3 | W10: Q4 | X10: Q1 | Y10: Q2 | Z10: Q3 | AA10: Q4 | AB10: Q1 | AC10: Q2 | AD10: Q3 | AE10: Q4 | AF10: Q1 | AG10: Q2 | AH10: Q3 | AI10: Q4 | AJ10: Q1 | AK10: Q2 | AL10: Q3 | AM10: Q4 | AN10: - | AO10: - | AP10: - | AQ10: - | AR10: - | AS10: - | AT10: - | AU10: - | AV10: - | AW10: - | AX10: - | AY10: - | AZ10: - | BA10: - | BB10: - | BC10: - | BD10: - | BE10: - | BF10: -
A11: 11 | B11: Days | C11: 92 | D11: 91 | E11: 91 | F11: 92 | G11: 92 | H11: 90 | I11: 91 | J11: 92 | K11: 92 | L11: 90 | M11: 91 | N11: 92 | O11: 92 | P11: 90 | Q11: 91 | R11: 92 | S11: 92 | T11: 91 | U11: 91 | V11: 92 | W11: 92 | X11: 90 | Y11: 91 | Z11: 92 | AA11: 92 | AB11: 90 | AC11: 91 | AD11: 92 | AE11: 92 | AF11: 90 | AG11: 91 | AH11: 92 | AI11: 92 | AJ11: 91 | AK11: 91 | AL11: 92 | AM11: 92 | AN11: 90 | AO11: 91 | AP11: 92 | AQ11: 92 | AR11: 365 | AS11: 365 | AT11: 366 | AU11: 365 | AV11: 365 | AW11: 365 | AX11: 366 | AY11: 365 | AZ11: 365 | BA11: 365 | BB11: 366 | BC11: 365 | BD11: 365 | BE11: 365 | BF11: 366
A12: 12 | B12: Years (nearest half) | C12: 0.25 | D12: 0.25 | E12: 0.25 | F12: 0.25 | G12: 0.25 | H12: 0.25 | I12: 0.25 | J12: 0.25 | K12: 0.25 | L12: 0.25 | M12: 0.25 | N12: 0.25 | O12: 0.25 | P12: 0.25 | Q12: 0.25 | R12: 0.25 | S12: 0.25 | T12: 0.25 | U12: 0.25 | V12: 0.25 | W12: 0.25 | X12: 0.25 | Y12: 0.25 | Z12: 0.25 | AA12: 0.25 | AB12: 0.25 | AC12: 0.25 | AD12: 0.25 | AE12: 0.25 | AF12: 0.25 | AG12: 0.25 | AH12: 0.25 | AI12: 0.25 | AJ12: 0.25 | AK12: 0.25 | AL12: 0.25 | AM12: 0.25 | AN12: 0.25 | AO12: 0.25 | AP12: 0.25 | AQ12: 0.25 | AR12: 1 | AS12: 1 | AT12: 1 | AU12: 1 | AV12: 1 | AW12: 1 | AX12: 1 | AY12: 1 | AZ12: 1 | BA12: 1 | BB12: 1 | BC12: 1 | BD12: 1 | BE12: 1 | BF12: 1
A13: 13 | B13: Period End CPI | D13: 69.7 | E13: 70.2 | F13: 72.9 | G13: 73.1 | H13: 73.9 | I13: 74.5 | J13: 74.7 | K13: 75.4 | L13: 76.1 | M13: 76.6 | N13: 77.1 | O13: 77.6 | P13: 78.6 | Q13: 78.6 | R13: 79.1 | S13: 79.5 | T13: 80.2 | U13: 80.6 | V13: 80.9 | W13: 81.5 | X13: 82.1 | Y13: 82.6 | Z13: 83.4 | AA13: 83.8 | AB13: 84.5 | AC13: 85.9 | AD13: 86.7 | AE13: 86.6 | AF13: 86.6 | AG13: 87.7 | AH13: 88.3 | AI13: 89.1 | AJ13: 90.3 | AK13: 91.6 | AL13: 92.7 | AM13: 92.4 | AN13: 92.5 | AO13: 92.9 | AP13: 93.8 | AQ13: 94.3 | AR13: 96.9 | AS13: 99.8 | AT13: 102 | AU13: 104.8 | AV13: 106.6 | AW13: 108.4 | AX13: 110 | AY13: 112.1 | AZ13: 114.1 | BA13: 115.40074 | BB13: 116.7163084 | BC13: 118.0468744 | BD13: 119.3926087 | BE13: 120.7536845 | BF13: 122.1302765
A14: 14 | B14: Period End December Inflation | E14: 0.007173601148 | F14: 0.03846153846 | G14: 0.002743484225 | H14: 0.01094391245 | I14: 0.008119079838 | J14: 0.002684563758 | K14: 0.0093708166 | L14: 0.009283819629 | M14: 0.006570302234 | N14: 0.006527415144 | O14: 0.006485084306 | P14: 0.01288659794 | Q14: 0 | R14: 0.006361323155 | S14: 0.005056890013 | T14: 0.008805031447 | U14: 0.004987531172 | V14: 0.003722084367 | W14: 0.007416563659 | X14: 0.00736196319 | Y14: 0.006090133983 | Z14: 0.009685230024 | AA14: 0.00479616307 | AB14: 0.008353221957 | AC14: 0.01656804734 | AD14: 0.009313154831 | AE14: -0.001153402537 | AF14: 0 | AG14: 0.01270207852 | AH14: 0.006841505131 | AI14: 0.00906002265 | AJ14: 0.01346801347 | AK14: 0.01439645626 | AL14: 0.01200873362 | AM14: -0.003236245955 | AN14: 0.001082251082 | AO14: 0.004324324324 | AP14: 0.009687836383 | AQ14: 0.005330490405 | AR14: 0.02757158006 | AS14: 0.02992776058 | AT14: 0.02204408818 | AU14: 0.02745098039 | AV14: 0.01717557252 | AW14: 0.01688555347 | AX14: 0.0147601476 | AY14: 0.01909090909 | AZ14: 0.0178412132 | BA14: 0.0114 | BB14: 0.0114 | BC14: 0.0114 | BD14: 0.0114 | BE14: 0.0114 | BF14: 0.0114
A15: 15 | B15: Inflation Factor (convert nominal to real $ 31/12/2018) | AV15: 1.070356473 | AW15: 1.052583026 | AX15: 1.037272727 | AY15: 1.017841213 | AZ15: 1 | BA15: 0.9887284952 | BB15: 0.9775840371 | BC15: 0.9665651939 | BD15: 0.9556705497 | BE15: 0.9448987044 | BF15: 0.9342482741
A16: 16
A17: 17 | B17: Regulated Asset Base
A18: 18 | B18: Total Assets ($m) | D18: $OD | E18: $OD | F18: $OD | G18: $OD | H18: $OD | I18: $OD | J18: $OD | K18: $OD | L18: $OD | M18: $OD | N18: $OD | O18: $OD | P18: $OD | Q18: $OD | R18: $OD | S18: $OD | T18: $OD | U18: $OD | V18: $OD | W18: $OD | X18: $OD | Y18: $OD | Z18: $OD | AA18: $OD | AB18: $OD | AC18: $OD | AD18: $OD | AE18: $OD | AF18: $OD | AG18: $OD | AH18: $OD | AI18: $OD | AJ18: $OD | AK18: $OD | AL18: $OD | AM18: $OD | AN18: $OD | AO18: $OD | AP18: $OD | AQ18: $OD | AR18: $OD | AS18: $OD | AT18: $OD | AU18: $OD | AV18: $OD | AW18: $ 31/12/2018 | AX18: $ 31/12/2018 | AY18: $ 31/12/2018 | AZ18: $ 31/12/2018 | BA18: $ 31/12/2018 | BB18: $ 31/12/2018 | BC18: $ 31/12/2018 | BD18: $ 31/12/2018 | BE18: $ 31/12/2018 | BF18: $ 31/12/2018
A19: 19 | B19: Opening Capital Base | D19: 513.6507412 | E19: 512.3542726 | F19: 510.6812074 | G19: 508.9784195 | H19: 507.2855475 | I19: 507.5448639 | J19: 506.9821673 | K19: 506.4016887 | L19: 505.8305348 | M19: 502.7955854 | N19: 500.3632851 | O19: 497.9275213 | P19: 495.5082167 | Q19: 496.7991657 | R19: 496.5723124 | S19: 496.3241892 | T19: 496.089625 | U19: 494.1251487 | V19: 492.8483494 | W19: 491.5480768 | X19: 490.254997 | Y19: 487.9811024 | Z19: 485.6649543 | AA19: 482.9186846 | AB19: 480.1918203 | AC19: 477.9519931 | AD19: 475.8060582 | AE19: 473.5586518 | AF19: 471.0359144 | AG19: 468.7805148 | AH19: 466.5894859 | AI19: 463.8700789 | AJ19: 460.9624448 | AK19: 457.8169372 | AL19: 455.3539411 | AM19: 452.7213459 | AN19: 450.3456326 | AO19: 448.4789919 | AP19: 446.7259949 | AQ19: 444.2113322 | AR19: 442.5623507 | AS19: 432.2627235 | AT19: 421.2829256 | AU19: 410.0546066 | AV19: 400.4881677 | AW19: 417.8270175 | AX19: 413.7801096 | AY19: 403.6894352 | AZ19: 393.5653294 | BA19: 382.767607 | BB19: 372.9542808 | BC19: 365.4873563 | BD19: 354.8241776 | BE19: 343.7634294 | BF19: 332.4803028
A20: 20 | B20: Capex | D20: 1.277726184 | E20: 0.911032965 | F20: 0.8912137351 | G20: 0.911032965 | H20: 2.873124682 | I20: 2.069509701 | J20: 2.070125761 | K20: 2.09784845 | L20: -0.3475490295 | M20: 0.2590162554 | N20: 0.2594690435 | O20: 0.27984451 | P20: 3.994014386 | Q20: 2.498273571 | R20: 2.499065137 | S20: 2.534685618 | T20: 0.8268350308 | U20: 1.53485659 | V20: 1.507319175 | W20: 1.53485659 | X20: 0.5743863703 | Y20: 0.5401060492 | Z20: 0.117957629 | AA20: 0.14533614 | AB20: 0.6403464717 | AC20: 0.7500695849 | AD20: 0.6644289855 | AE20: 0.40492871 | AF20: 0.6880974596 | AG20: 0.769020198 | AH20: 0.2571943737 | AI20: 0.08551934 | AJ20: -0.1358019645 | AK20: 0.55677197 | AL20: 0.3972354206 | AM20: 0.66417979 | AN20: 1.183314972 | AO20: 1.30770854 | AP20: 0.242097693 | AQ20: 0.73151163 | AR20: 0.45728972 | AS20: 0.3146466 | AT20: 0.6636569338 | AU20: 2.593294029 | AV20: 2.136212137 | AW20: 3.426074848 | AX20: 1.461393017 | AY20: 1.457626743 | AZ20: 0.7663077899 | BA20: 1.621671855 | BB20: 3.288486051 | BC20: 1.039266436 | BD20: 0.679542281 | BE20: 0.4750191812 | BF20: 0.8322250379
A21: 21 | B21: Depreciation | D21: 2.574194826 | E21: 2.5840982 | F21: 2.594001575 | G21: 2.60390495 | H21: 2.613808325 | I21: 2.632206328 | J21: 2.650604331 | K21: 2.669002334 | L21: 2.687400337 | M21: 2.691316595 | N21: 2.695232853 | O21: 2.699149111 | P21: 2.703065369 | Q21: 2.725126856 | R21: 2.747188344 | S21: 2.769249831 | T21: 2.791311319 | U21: 2.811655885 | V21: 2.807591828 | W21: 2.827936394 | X21: 2.848280961 | Y21: 2.856254136 | Z21: 2.864227311 | AA21: 2.872200486 | AB21: 2.880173661 | AC21: 2.896004495 | AD21: 2.911835329 | AE21: 2.927666163 | AF21: 2.943496996 | AG21: 2.960049151 | AH21: 2.976601306 | AI21: 2.993153461 | AJ21: 3.009705616 | AK21: 3.019768116 | AL21: 3.029830616 | AM21: 3.039893116 | AN21: 3.049955616 | AO21: 3.060705616 | AP21: 2.756760323 | AQ21: 2.767510323 | AR21: 10.75691687 | AS21: 11.29444454 | AT21: 11.89197592 | AU21: 12.15973289 | AV21: 12.26189027 | AW21: 7.47298272 | AX21: 11.55206744 | AY21: 11.58173249 | AZ21: 11.56403026 | BA21: 11.43499806 | BB21: 10.75541053 | BC21: 11.70244517 | BD21: 11.7402904 | BE21: 11.75814579 | BF21: 10.73149733
A22: 22 | B22: Over-Depreciation | AQ22: 0.3870171279 | AV22: 0
A23: 23 | B23: Asset Adjustment | D23: 0 | E23: 0 | F23: 0 | G23: 0 | H23: 0 | I23: 0 | J23: 0 | K23: 0 | L23: 0 | M23: 0 | N23: 0 | O23: 0 | P23: 0 | Q23: 0 | R23: 0 | S23: 0 | T23: 0 | U23: 0 | V23: 0 | W23: 0 | X23: 0 | Y23: 0 | Z23: 0 | AA23: 0 | AB23: 0 | AC23: 0 | AD23: 0 | AE23: 0 | AF23: 0 | AG23: 0 | AH23: 0 | AI23: 0 | AJ23: 0 | AK23: 0 | AL23: 0 | AM23: 0 | AN23: 0 | AO23: 0 | AP23: 0 | AQ23: 0 | AR23: 0 | AS23: 0 | AT23: 0 | AU23: 0 | AV23: 0 | AW23: 0 | AX23: 0 | AY23: 0 | AZ23: 0 | BA23: 0 | BB23: 0 | BC23: 0 | BD23: 0 | BE23: 0 | BF23: 0
A24: 24 | B24: Closing Capital Base | C24: 513.6507412 | D24: 512.3542726 | E24: 510.6812074 | F24: 508.9784195 | G24: 507.2855475 | H24: 507.5448639 | I24: 506.9821673 | J24: 506.4016887 | K24: 505.8305348 | L24: 502.7955854 | M24: 500.3632851 | N24: 497.9275213 | O24: 495.5082167 | P24: 496.7991657 | Q24: 496.5723124 | R24: 496.3241892 | S24: 496.089625 | T24: 494.1251487 | U24: 492.8483494 | V24: 491.5480768 | W24: 490.254997 | X24: 487.9811024 | Y24: 485.6649543 | Z24: 482.9186846 | AA24: 480.1918203 | AB24: 477.9519931 | AC24: 475.8060582 | AD24: 473.5586518 | AE24: 471.0359144 | AF24: 468.7805148 | AG24: 466.5894859 | AH24: 463.8700789 | AI24: 460.9624448 | AJ24: 457.8169372 | AK24: 455.3539411 | AL24: 452.7213459 | AM24: 450.3456326 | AN24: 448.4789919 | AO24: 446.7259949 | AP24: 444.2113322 | AQ24: 442.5623507 | AR24: 432.2627235 | AS24: 421.2829256 | AT24: 410.0546066 | AU24: 400.4881677 | AV24: 390.3624896 | AW24: 413.7801096 | AX24: 403.6894352 | AY24: 393.5653294 | AZ24: 382.767607 | BA24: 372.9542808 | BB24: 365.4873563 | BC24: 354.8241776 | BD24: 343.7634294 | BE24: 332.4803028 | BF24: 322.5810305
A25: 25 | B25: Asset Account
A26: 26 | B26: Opening Capital Base ($m) | D26: $OD | E26: $OD | F26: $OD | G26: $OD | H26: $OD | I26: $OD | J26: $OD | K26: $OD | L26: $OD | M26: $OD | N26: $OD | O26: $OD | P26: $OD | Q26: $OD | R26: $OD | S26: $OD | T26: $OD | U26: $OD | V26: $OD | W26: $OD | X26: $OD | Y26: $OD | Z26: $OD | AA26: $OD | AB26: $OD | AC26: $OD | AD26: $OD | AE26: $OD | AF26: $OD | AG26: $OD | AH26: $OD | AI26: $OD | AJ26: $OD | AK26: $OD | AL26: $OD | AM26: $OD | AN26: $OD | AO26: $OD | AP26: $OD | AQ26: $OD | AR26: $OD | AS26: $OD | AT26: $OD | AU26: $OD | AV26: $OD | AW26: $ 31/12/2018 | AX26: $ 31/12/2018 | AY26: $ 31/12/2018 | AZ26: $ 31/12/2018 | BA26: $ 31/12/2018 | BB26: $ 31/12/2018 | BC26: $ 31/12/2018 | BD26: $ 31/12/2018 | BE26: $ 31/12/2018 | BF26: $ 31/12/2018
A27: 27 | B27: Pipeline and laterals | D27: 438.6555358 | E27: 436.9553205 | F27: 435.2551053 | G27: 433.55489 | H27: 431.8546748 | I27: 430.1544595 | J27: 428.4542443 | K27: 426.754029 | L27: 425.0538137 | M27: 423.3535985 | N27: 421.6533832 | O27: 419.953168 | P27: 418.2529527 | Q27: 416.5527375 | R27: 414.8525222 | S27: 413.152307 | T27: 411.4520917 | U27: 409.7518765 | V27: 408.0516612 | W27: 406.3514459 | X27: 404.6512307 | Y27: 403.2521403 | Z27: 401.5521799 | AA27: 399.8524209 | AB27: 398.1518757 | AC27: 396.4516604 | AD27: 394.7514452 | AE27: 393.0512299 | AF27: 391.3510147 | AG27: 389.6507994 | AH27: 388.2367979 | AI27: 386.5365827 | AJ27: 384.8363674 | AK27: 383.1361522 | AL27: 381.439488 | AM27: 379.7492947 | AN27: 378.1098482 | AO27: 376.4110778 | AP27: 374.7122857 | AQ27: 373.0206333 | AR27: 371.3214634 | AS27: 364.4275467 | AT27: 357.6165671 | AU27: 350.8055875 | AV27: 344.0202408 | AW27: 360.9341154 | AX27: 355.5912628 | AY27: 348.7712411 | AZ27: 341.7023259 | BA27: 334.3510349 | BB27: 326.9988297 | BC27: 319.8847614 | BD27: 312.5545693 | BE27: 305.2243772 | BF27: 297.8941851
A28: 28 | B28: Main line valve and scraper stations | D28: 9.177771758 | E28: 9.126211242 | F28: 9.074650727 | G28: 9.023090211 | H28: 8.971529696 | I28: 8.91996918 | J28: 8.868408665 | K28: 8.816848149 | L28: 8.765287634 | M28: 8.713727118 | N28: 8.662166603 | O28: 8.610606087 | P28: 8.559045572 | Q28: 8.507485056 | R28: 8.455924541 | S28: 8.404364025 | T28: 8.35280351 | U28: 8.301242994 | V28: 8.249682479 | W28: 8.198121963 | X28: 8.146561448 | Y28: 8.095000932 | Z28: 8.043440417 | AA28: 7.991879901 | AB28: 7.940319386 | AC28: 7.88875887 | AD28: 7.837198355 | AE28: 7.785637839 | AF28: 7.734077324 | AG28: 7.682516808 | AH28: 7.630956293 | AI28: 7.579395777 | AJ28: 7.527835262 | AK28: 7.476274746 | AL28: 7.424714231 | AM28: 7.373153715 | AN28: 7.3215932 | AO28: 7.297147174 | AP28: 7.246731579 | AQ28: 7.195171063 | AR28: 7.143610548 | AS28: 6.936794808 | AT28: 6.728659069 | AU28: 6.520523329 | AV28: 6.312387589 | AW28: 6.533725479 | AX28: 6.433338043 | AY28: 6.213527288 | AZ28: 5.98099849 | BA28: 5.748469692 | BB28: 5.515940894 | BC28: 5.323998092 | BD28: 5.100124404 | BE28: 4.876250715 | BF28: 4.652377027
A29: 29 | B29: Compressor stations | D29: 41.57599489 | E29: 41.87835785 | F29: 42.17466574 | G29: 42.46491858 | H29: 42.74911634 | I29: 44.31732938 | J29: 45.86873676 | K29: 47.4033385 | L29: 48.92113458 | M29: 48.56781014 | N29: 48.21313267 | O29: 47.85710217 | P29: 47.49971864 | Q29: 49.42893362 | R29: 51.3377293 | S29: 53.22610569 | T29: 55.0940628 | U29: 55.50950475 | V29: 55.91646155 | W29: 56.31493319 | X29: 56.70491967 | Y29: 56.30488785 | Z29: 56.0337194 | AA29: 55.4617427 | AB29: 54.85979697 | AC29: 54.25855922 | AD29: 53.94851838 | AE29: 53.62908184 | AF29: 53.17123274 | AG29: 52.59447759 | AH29: 52.09955494 | AI29: 51.47240359 | AJ29: 50.79947086 | AK29: 50.09864497 | AL29: 49.62984866 | AM29: 48.96999054 | AN29: 48.39793576 | AO29: 47.98111214 | AP29: 47.28813644 | AQ29: 46.58925799 | AR29: 46.01302828 | AS29: 43.7578377 | AT29: 41.07046215 | AU29: 38.37061915 | AV29: 35.97156751 | AW29: 36.1448146 | AX29: 33.68450385 | AY29: 30.80213448 | AZ29: 28.87633054 | BA29: 26.29467849 | BB29: 24.27959436 | BC29: 22.11532227 | BD29: 19.33200806 | BE29: 16.81222735 | BF29: 13.89524213
A30: 30 | B30: Receipt and delivery point facilities | D30: 1.534343975 | E30: 1.558746464 | F30: 1.582815127 | G30: 1.606549965 | H30: 1.629950977 | I30: 1.637245197 | J30: 1.644337032 | K30: 1.651226483 | L30: 1.65791355 | M30: 1.654892868 | N30: 1.651749013 | O30: 1.648481986 | P30: 1.645091785 | Q30: 1.644175027 | R30: 1.643113458 | S30: 1.641907078 | T30: 1.640555886 | U30: 1.630127291 | V30: 1.619628323 | W30: 1.609058982 | X30: 1.598419268 | Y30: 1.579264431 | Z30: 1.560109594 | AA30: 1.540954757 | AB30: 1.53935359 | AC30: 1.533880183 | AD30: 1.637270806 | AE30: 1.736517649 | AF30: 1.843124272 | AG30: 2.220042635 | AH30: 2.285418628 | AI30: 2.266392462 | AJ30: 2.247237625 | AK30: 2.228082788 | AL30: 2.208927951 | AM30: 2.189773114 | AN30: 2.173837417 | AO30: 2.15468258 | AP30: 2.135527743 | AQ30: 2.116372906 | AR30: 2.097218069 | AS30: 1.987969677 | AT30: 1.875797697 | AU30: 1.761714116 | AV30: 1.781217888 | AW30: 1.980951946 | AX30: 2.308660511 | AY30: 1.760591803 | AZ30: 1.623863893 | BA30: 1.658256759 | BB30: 1.617319575 | BC30: 2.050876732 | BD30: 2.501124505 | BE30: 2.403630415 | BF30: 2.221686439
A31: 31 | B31: SCADA and communications | D31: 10.12958811 | E31: 9.870005114 | F31: 9.610305702 | G31: 9.350489872 | H31: 9.090557623 | I31: 8.824819428 | J31: 8.55905964 | K31: 8.293278259 | L31: 8.027475285 | M31: 7.774329737 | N31: 7.52095128 | O31: 7.267339912 | P31: 7.013495634 | Q31: 6.762790657 | R31: 6.511796565 | S31: 6.26051336 | T31: 6.008941041 | U31: 5.849627246 | V31: 5.688481877 | W31: 5.525504934 | X31: 5.360696416 | Y31: 5.109163539 | Z31: 4.837937048 | AA31: 4.561854152 | AB31: 4.284581441 | AC31: 4.058352287 | AD31: 3.977491745 | AE31: 3.867204387 | AF31: 3.599320512 | AG31: 3.354419151 | AH31: 3.126595433 | AI31: 2.842054028 | AJ31: 2.592987387 | AK31: 2.289403539 | AL31: 2.03584629 | AM31: 2.028371282 | AN31: 2.054632394 | AO31: 1.991348866 | AP31: 2.144309418 | AQ31: 2.104300578 | AR31: 2.125790765 | AS31: 1.883720177 | AT31: 1.793999726 | AU31: 1.764290185 | AV31: 1.427360321 | AW31: 2.007911789 | AX31: 3.014852096 | AY31: 3.641779822 | AZ31: 3.320998842 | BA31: 3.053149932 | BB31: 2.79262896 | BC31: 2.534934222 | BD31: 2.130666499 | BE31: 1.791107822 | BF31: 1.708184565
A32: 32 | B32: Cathodic protection | D32: 1.828833019 | E32: 1.780705834 | F32: 1.732578649 | G32: 1.684451464 | H32: 1.63632428 | I32: 1.588197095 | J32: 1.54006991 | K32: 1.491942726 | L32: 1.443815541 | M32: 1.395688356 | N32: 1.347561172 | O32: 1.299433987 | P32: 1.251306802 | Q32: 1.207126867 | R32: 1.162881145 | S32: 1.118569636 | T32: 1.074192338 | U32: 1.025802004 | V32: 0.977411669 | W32: 0.9290213343 | X32: 0.8806309996 | Y32: 0.8325376649 | Z32: 0.7841473302 | AA32: 0.7357569955 | AB32: 0.6873666608 | AC32: 0.6389763261 | AD32: 0.5905859914 | AE32: 0.5504456567 | AF32: 0.502055322 | AG32: 0.4536649873 | AH32: 0.4052746526 | AI32: 0.3568843179 | AJ32: 0.3084939832 | AK32: 0.2601036485 | AL32: 0.2773992838 | AM32: 0.2308844491 | AN32: 0.2286573044 | AO32: 0.2887613997 | AP32: 0.980253675 | AQ32: 1.141389705 | AR32: 1.729809375 | AS32: 1.610898404 | AT32: 1.403892059 | AU32: 1.106399082 | AV32: 0.8064909284 | AW32: 0.5395055932 | AX32: 1.087849895 | AY32: 0.9531799665 | AZ32: 0.8158919873 | BA32: 0.6765477229 | BB32: 0.6093489718 | BC32: 0.522800553 | BD32: 0.3919663197 | BE32: 0.2616957315 | BF32: 0.1340656204
A33: 33 | B33: Maintenance bases and depots | D33: 7.727642558 | E33: 7.686051785 | F33: 7.644451898 | G33: 7.602842897 | H33: 7.56122478 | I33: 7.518841644 | J33: 7.476453173 | K33: 7.434059366 | L33: 7.391660224 | M33: 7.348738702 | N33: 7.30581443 | O33: 7.262887408 | P33: 7.219957635 | Q33: 7.176475113 | R33: 7.132992591 | S33: 7.089510069 | T33: 7.046027547 | U33: 7.002545025 | V33: 6.959062503 | W33: 6.915579981 | X33: 6.872097458 | Y33: 6.828614936 | Z33: 6.785132414 | AA33: 6.741649892 | AB33: 6.70078637 | AC33: 6.657303848 | AD33: 6.648658626 | AE33: 6.605176103 | AF33: 6.561693581 | AG33: 6.518211059 | AH33: 6.474728537 | AI33: 6.441711875 | AJ33: 6.399890353 | AK33: 6.356407831 | AL33: 6.374204248 | AM33: 6.342964796 | AN33: 6.370703614 | AO33: 6.327221092 | AP33: 6.28373857 | AQ33: 6.240256048 | AR33: 6.215583526 | AS33: 6.105522449 | AT33: 5.926752671 | AU33: 5.747524108 | AV33: 6.623812511 | AW33: 6.916007765 | AX33: 6.728773482 | AY33: 6.509383699 | AZ33: 6.289993917 | BA33: 6.089683425 | BB33: 6.176281267 | BC33: 8.097908257 | BD33: 8.007516434 | BE33: 7.738490901 | BF33: 7.469465367
A34: 34 | B34: Other assets | D34: 0.4393552199 | E34: 0.5505046291 | F34: 0.6582650875 | G34: 0.762636595 | H34: 0.8636191517 | I34: 0.8801763077 | J34: 0.895370424 | K34: 0.9092015008 | L34: 0.921669538 | M34: 0.9664288607 | N34: 1.008983786 | O34: 1.049334313 | P34: 1.087480443 | Q34: 1.080945682 | R34: 1.073268436 | S34: 1.064448705 | T34: 1.054486488 | U34: 1.395980821 | V34: 1.727517693 | W34: 2.073505726 | X34: 2.409536299 | Y34: 2.41849275 | Z34: 2.534057439 | AA34: 2.524381787 | AB34: 2.519696682 | AC34: 2.570376905 | AD34: 2.551194028 | AE34: 2.49943179 | AF34: 2.439469321 | AG34: 2.407883182 | AH34: 2.4621375 | AI34: 2.536447706 | AJ34: 2.41195542 | AK34: 2.315864821 | AL34: 2.307509692 | AM34: 2.208421413 | AN34: 2.059932874 | AO34: 2.144390855 | AP34: 2.082072196 | AQ34: 1.980662617 | AR34: 2.092558672 | AS34: 1.729145519 | AT34: 1.043507059 | AU34: 0.1546611136 | AV34: -0.2781978787 | AW34: -1.322296187 | AX34: 0.8385878132 | AY34: 0.9453159571 | AZ34: 0.8626447539 | BA34: 0.8035049333 | BB34: 0.8720559701 | BC34: 0.8473289156 | BD34: 0.6972984717 | BE34: 0.5472680278 | BF34: 0.397237584
A35: 35 | B35: Equity Raising Cost | D35: 0 | E35: 0 | F35: 0 | G35: 0 | H35: 0 | I35: 0 | J35: 0 | K35: 0 | L35: 0 | M35: 0 | N35: 0 | O35: 0 | P35: 0 | Q35: 0 | R35: 0 | S35: 0 | T35: 0 | U35: 0 | V35: 0 | W35: 0 | X35: 0 | Y35: 0 | Z35: 0 | AA35: 0 | AB35: 0 | AC35: 0 | AD35: 0 | AE35: 0 | AF35: 0 | AG35: 0 | AH35: 0 | AI35: 0 | AJ35: 0 | AK35: 0 | AL35: 0 | AM35: 0 | AN35: 0 | AO35: 0 | AP35: 0 | AQ35: 0 | AR35: 0 | AS35: 0 | AT35: 0 | AU35: 0 | AV35: 0 | AW35: 0 | AX35: 0 | AY35: 0 | AZ35: 0 | BA35: 0 | BB35: 0 | BC35: 0.01714471367 | BD35: 0.01662242997 | BE35: 0.01610014626 | BF35: 0.01557786255
A36: 36 | B36: Non-depreciable assets | D36: 2.581675929 | E36: 2.948369148 | F36: 2.948369148 | G36: 2.928549918 | H36: 2.928549918 | I36: 3.70382615 | J36: 3.675487401 | K36: 3.647764712 | L36: 3.647764712 | M36: 3.020371172 | N36: 2.999542918 | O36: 2.979167451 | P36: 2.979167451 | Q36: 4.43849622 | R36: 4.402084174 | S36: 4.366463693 | T36: 4.366463693 | U36: 3.658442134 | V36: 3.658442134 | W36: 3.63090472 | X36: 3.63090472 | Y36: 3.561 | Z36: 3.534230769 | AA36: 3.508043478 | AB36: 3.508043478 | AC36: 3.894125 | AD36: 3.863695055 | AE36: 3.83392663 | AF36: 3.83392663 | AG36: 3.8985 | AH36: 3.868021978 | AI36: 3.838206522 | AJ36: 3.838206522 | AK36: 3.656002747 | AL36: 3.656002747 | AM36: 3.628491848 | AN36: 3.628491848 | AO36: 3.88325 | AP36: 3.85293956 | AQ36: 3.823288043 | AR36: 3.823288043 | AS36: 3.823288043 | AT36: 3.823288043 | AU36: 3.823288043 | AV36: 3.823288043 | AW36: 4.092281105 | AX36: 4.092281105 | AY36: 4.092281105 | AZ36: 4.092281105 | BA36: 4.092281105 | BB36: 4.092281105 | BC36: 4.092281105 | BD36: 4.092281105 | BE36: 4.092281105 | BF36: 4.092281105
A37: 37 | B37: Total | D37: 513.6507412 | E37: 512.3542726 | F37: 510.6812074 | G37: 508.9784195 | H37: 507.2855475 | I37: 507.5448639 | J37: 506.9821673 | K37: 506.4016887 | L37: 505.8305348 | M37: 502.7955854 | N37: 500.3632851 | O37: 497.9275213 | P37: 495.5082167 | Q37: 496.7991657 | R37: 496.5723124 | S37: 496.3241892 | T37: 496.089625 | U37: 494.1251487 | V37: 492.8483494 | W37: 491.5480768 | X37: 490.254997 | Y37: 487.9811024 | Z37: 485.6649543 | AA37: 482.9186846 | AB37: 480.1918203 | AC37: 477.9519931 | AD37: 475.8060582 | AE37: 473.5586518 | AF37: 471.0359144 | AG37: 468.7805148 | AH37: 466.5894859 | AI37: 463.8700789 | AJ37: 460.9624448 | AK37: 457.8169372 | AL37: 455.3539411 | AM37: 452.7213459 | AN37: 450.3456326 | AO37: 448.4789919 | AP37: 446.7259949 | AQ37: 444.2113322 | AR37: 442.5623507 | AS37: 432.2627235 | AT37: 421.2829256 | AU37: 410.0546066 | AV37: 400.4881677 | AW37: 417.8270175 | AX37: 413.7801096 | AY37: 403.6894352 | AZ37: 393.5653294 | BA37: 382.767607 | BB37: 372.9542808 | BC37: 365.4873563 | BD37: 354.8241776 | BE37: 343.7634294 | BF37: 332.4803028
A38: 38 | B38: Capex ($m)
A39: 39 | B39: Pipeline and laterals | D39: 0 | E39: 0 | F39: 0 | G39: 0 | H39: 0 | I39: 0 | J39: 0 | K39: 0 | L39: 0 | M39: 0 | N39: 0 | O39: 0 | P39: 0 | Q39: 0 | R39: 0 | S39: 0 | T39: 0 | U39: 0 | V39: 0 | W39: 0 | X39: 0.30112484 | Y39: 0.00025486 | Z39: 0.00045632 | AA39: -0.00033 | AB39: 0 | AC39: 0 | AD39: 0 | AE39: 0 | AF39: 0 | AG39: 0.28621376 | AH39: 0 | AI39: 0 | AJ39: 0 | AK39: 0.00355109 | AL39: 0.01002201 | AM39: 0.06076867 | AN39: 0.00144492 | AO39: 0.0014231 | AP39: 0.00856286 | AQ39: 0.00071536 | AR39: -0.082937 | AS39: 0 | AT39: 0 | AU39: 0.025633 | AV39: 0 | AW39: 1.858949047 | AX39: 0.5102709704 | AY39: 0.2809646297 | AZ39: 0.000914249579 | BA39: 0 | BB39: 0.2130798669 | BC39: 0 | BD39: 0 | BE39: 0 | BF39: 0
A40: 40 | B40: Main line valve and scraper stations | D40: 0 | E40: 0 | F40: 0 | G40: 0 | H40: 0 | I40: 0 | J40: 0 | K40: 0 | L40: 0 | M40: 0 | N40: 0 | O40: 0 | P40: 0 | Q40: 0 | R40: 0 | S40: 0 | T40: 0 | U40: 0 | V40: 0 | W40: 0 | X40: 0 | Y40: 0 | Z40: 0 | AA40: 0 | AB40: 0 | AC40: 0 | AD40: 0 | AE40: 0 | AF40: 0 | AG40: 0 | AH40: 0 | AI40: 0 | AJ40: 0 | AK40: 0 | AL40: 0 | AM40: 0 | AN40: 0.02711449 | AO40: 0.00114492 | AP40: 0 | AQ40: 0 | AR40: 0 | AS40: 0 | AT40: 0 | AU40: 0 | AV40: 0 | AW40: 0.1153276481 | AX40: 0.001555810255 | AY40: 0 | AZ40: 0 | BA40: 0 | BB40: 0 | BC40: 0 | BD40: 0 | BE40: 0 | BF40: 0
A41: 41 | B41: Compressor stations | D41: 0.7266078075 | E41: 0.7266078075 | F41: 0.7266078075 | G41: 0.7266078075 | H41: 2.016678142 | I41: 2.016678142 | J41: 2.016678142 | K41: 2.016678142 | L41: 0.1623632675 | M41: 0.1623632675 | N41: 0.1623632675 | O41: 0.1623632675 | P41: 2.450314792 | Q41: 2.450314792 | R41: 2.450314792 | S41: 2.450314792 | T41: 1.018218935 | U41: 1.018218935 | V41: 1.018218935 | W41: 1.018218935 | X41: 0.23668579 | Y41: 0.36644481 | Z41: 0.06653221 | AA41: 0.03745882 | AB41: 0.03906246 | AC41: 0.33773978 | AD41: 0.3358245 | AE41: 0.20489235 | AF41: 0.09346673 | AG41: 0.18295022 | AH41: 0.05837254 | AI41: 0.02024216 | AJ41: 0 | AK41: 0.23202959 | AL41: 0.04096777 | AM41: 0.12877112 | AN41: 0.28400227 | AO41: 0.0078502 | AP41: 0.00194744 | AQ41: 0 | AR41: 0.36723542 | AS41: 0.0473 | AT41: 0.1505567938 | AU41: 0.4783121846 | AV41: 0.7031027752 | AW41: -0.01647923985 | AX41: 0 | AY41: 0.9827399411 | AZ41: 0.3268918291 | BA41: 0.9000233794 | BB41: 0.5489796931 | BC41: 0.1634470684 | BD41: 0.432428803 | BE41: 0.04963858866 | BF41: 0.5155026365
A42: 42 | B42: Receipt and delivery point facilities | D42: 0.04005906 | E42: 0.04005906 | F42: 0.04005906 | G42: 0.04005906 | H42: 0.0242860925 | I42: 0.0242860925 | J42: 0.0242860925 | K42: 0.0242860925 | L42: 0.0147807275 | M42: 0.0147807275 | N42: 0.0147807275 | O42: 0.0147807275 | P42: 0.0173773425 | Q42: 0.0173773425 | R42: 0.0173773425 | S42: 0.0173773425 | T42: 0.00844475 | U42: 0.00844475 | V42: 0.00844475 | W42: 0.00844475 | X42: 0 | Y42: 0 | Z42: 0 | AA42: 0.01755367 | AB42: 0.01368143 | AC42: 0.12254546 | AD42: 0.11840168 | AE42: 0.12576146 | AF42: 0.3960732 | AG42: 0.08453083 | AH42: 0.00012867 | AI42: 0 | AJ42: 0 | AK42: 0 | AL42: 0 | AM42: 0.00321914 | AN42: 0 | AO42: 0 | AP42: 0 | AQ42: 0 | AR42: 0 | AS42: 0 | AT42: 0 | AU42: 0.1356 | AV42: 0.1877352741 | AW42: 0.4333042232 | AX42: -0.4100328718 | AY42: 0.001307925959 | AZ42: 0.1875442241 | BA42: 0.1230663449 | BB42: 0.1485634316 | BC42: 0.6091621534 | BD42: 0.08172569551 | BE42: 0 | BF42: 0
A43: 43 | B43: SCADA and communications | D43: 0.006985115 | E43: 0.006985115 | F43: 0.006985115 | G43: 0.006985115 | H43: 0.0012955875 | I43: 0.0012955875 | J43: 0.0012955875 | K43: 0.0012955875 | L43: 0.0139746075 | M43: 0.0139746075 | N43: 0.0139746075 | O43: 0.0139746075 | P43: 0.0173468175 | Q43: 0.0173468175 | R43: 0.0173468175 | S43: 0.0173468175 | T43: 0.109894455 | U43: 0.109894455 | V43: 0.109894455 | W43: 0.109894455 | X43: 0.02500167 | Y43: 0.00555411 | Z43: 0.00094376 | AA43: 0 | AB43: 0.05128961 | AC43: 0.20082489 | AD43: 0.17556474 | AE43: 0.02213489 | AF43: 0.04928407 | AG43: 0.07052838 | AH43: 0.01797736 | AI43: 0.05761879 | AJ43: 0.00726825 | AK43: 0.05729485 | AL43: 0.30337709 | AM43: 0.33711321 | AN43: 0.24756857 | AO43: 0.46381265 | AP43: 0.00427515 | AQ43: 0 | AR43: 0.06002106 | AS43: 0.2441346 | AT43: 0.48731914 | AU43: 0.36361653 | AV43: 1.166620315 | AW43: 0.9384630268 | AX43: 1.026476793 | AY43: 0.06619123194 | AZ43: 0.1099072675 | BA43: 0 | BB43: 0.2164537358 | BC43: 0.09152612498 | BD43: 0.1653877825 | BE43: 0.4253805925 | BF43: 0.3167224013
A44: 44 | B44: Cathodic protection | D44: 0 | E44: 0 | F44: 0 | G44: 0 | H44: 0 | I44: 0 | J44: 0 | K44: 0 | L44: 0 | M44: 0 | N44: 0 | O44: 0 | P44: 0.00394725 | Q44: 0.00394725 | R44: 0.00394725 | S44: 0.00394725 | T44: 0 | U44: 0 | V44: 0 | W44: 0 | X44: 0.000297 | Y44: 0 | Z44: 0 | AA44: 0 | AB44: 0 | AC44: 0 | AD44: 0.00825 | AE44: 0 | AF44: 0 | AG44: 0 | AH44: 0 | AI44: 0 | AJ44: 0 | AK44: 0.06568597 | AL44: 0.0018755 | AM44: 0.04616319 | AN44: 0.10849443 | AO44: 0.73988261 | AP44: 0.16139918 | AQ44: 0.58868282 | AR44: 0 | AS44: 0 | AT44: 0 | AU44: 0 | AV44: 0 | AW44: 0 | AX44: 0 | AY44: 0 | AZ44: 0 | BA44: 0.07353988287 | BB44: 0 | BC44: 0 | BD44: 0 | BE44: 0 | BF44: 0
A45: 45 | B45: Maintenance bases and depots | D45: 0.00182295 | E45: 0.00182295 | F45: 0.00182295 | G45: 0.00182295 | H45: 0.001067045 | I45: 0.001067045 | J45: 0.001067045 | K45: 0.001067045 | L45: 0.00055 | M45: 0.00055 | N45: 0.00055 | O45: 0.00055 | P45: 0 | Q45: 0 | R45: 0 | S45: 0 | T45: 0 | U45: 0 | V45: 0 | W45: 0 | X45: 0 | Y45: 0 | Z45: 0 | AA45: 0.002619 | AB45: 0 | AC45: 0.0348373 | AD45: 0 | AE45: 0 | AF45: 0 | AG45: 0 | AH45: 0.01046586 | AI45: 0.001661 | AJ45: 0 | AK45: 0.06127894 | AL45: 0.01224307 | AM45: 0.07122134 | AN45: 0 | AO45: 0 | AP45: 0 | AQ45: 0.01881 | AR45: 0.06827324 | AS45: 0 | AT45: 0 | AU45: 1.056 | AV45: 0.01781308687 | AW45: 0.02612537852 | AX45: 0 | AY45: 0 | AZ45: 0.01907929041 | BA45: 0.3059876245 | BB45: 2.14426461 | BC45: 0.1751310891 | BD45: 0 | BE45: 0 | BF45: 0
A46: 46 | B46: Other assets | D46: 0.1355580325 | E46: 0.1355580325 | F46: 0.1355580325 | G46: 0.1355580325 | H46: 0.0545215825 | I46: 0.0545215825 | J46: 0.0545215825 | K46: 0.0545215825 | L46: 0.0881759075 | M46: 0.0881759075 | N46: 0.0881759075 | O46: 0.0881759075 | P46: 0.045699415 | Q46: 0.045699415 | R46: 0.045699415 | S46: 0.045699415 | T46: 0.39829845 | U46: 0.39829845 | V46: 0.39829845 | W46: 0.39829845 | X46: 0.08118179 | Y46: 0.1946215 | Z46: 0.07621263 | AA46: 0.08803465 | AB46: 0.15023145 | AC46: 0.0845521 | AD46: 0.05615649 | AE46: 0.05214001 | AF46: 0.08470009 | AG46: 0.17527503 | AH46: 0.2000654 | AI46: 0.00599739 | AJ46: 0.03913356 | AK46: 0.13693153 | AL46: 0.05626088 | AM46: 0.01692312 | AN46: 0.25993214 | AO46: 0.1239055 | AP46: 0.09556458 | AQ46: 0.12330345 | AR46: 0.044697 | AS46: 0.023212 | AT46: 0.025781 | AU46: 0.5341323141 | AV46: 0.06094068551 | AW46: 0.07038476481 | AX46: 0.3331223155 | AY46: 0.1264230141 | AZ46: 0.1219709292 | BA46: 0.2190546234 | BB46: 0 | BC46: 0 | BD46: 0 | BE46: 0 | BF46: 0
A47: 47 | B47: Equity Raising Cost | D47: 0 | E47: 0 | F47: 0 | G47: 0 | H47: 0 | I47: 0 | J47: 0 | K47: 0 | L47: 0 | M47: 0 | N47: 0 | O47: 0 | P47: 0 | Q47: 0 | R47: 0 | S47: 0 | T47: 0 | U47: 0 | V47: 0 | W47: 0 | X47: 0 | Y47: 0 | Z47: 0 | AA47: 0 | AB47: 0 | AC47: 0 | AD47: 0 | AE47: 0 | AF47: 0 | AG47: 0 | AH47: 0 | AI47: 0 | AJ47: 0 | AK47: 0 | AL47: 0 | AM47: 0 | AN47: 0 | AO47: 0 | AP47: 0 | AQ47: 0 | AR47: 0 | AS47: 0 | AT47: 0 | AU47: 0 | AV47: 0 | AW47: 0 | AX47: 0 | AY47: 0 | AZ47: 0 | BA47: 0 | BB47: 0.01714471367 | BC47: 0 | BD47: 0 | BE47: 0 | BF47: 0
A48: 48 | B48: Non-depreciable assets | D48: 0.366693219 | E48: 0 | F48: -0.01981922987 | G48: 0 | H48: 0.7752762321 | I48: -0.0283387489 | J48: -0.02772268914 | K48: 0 | L48: -0.6273935395 | M48: -0.02082825464 | N48: -0.0203754665 | O48: 0 | P48: 1.459328769 | Q48: -0.03641204637 | R48: -0.03562048015 | S48: 0 | T48: -0.7080215592 | U48: 0 | V48: -0.0275374145 | W48: 0 | X48: -0.06990471975 | Y48: -0.02676923077 | Z48: -0.02618729097 | AA48: 0 | AB48: 0.3860815217 | AC48: -0.03042994505 | AD48: -0.02976842451 | AE48: 0 | AF48: 0.06457336957 | AG48: -0.03047802198 | AH48: -0.02981545628 | AI48: 0 | AJ48: -0.1822037745 | AK48: 0 | AL48: -0.02751089943 | AM48: 0 | AN48: 0.2547581522 | AO48: -0.03031043956 | AP48: -0.02965151696 | AQ48: 0 | AR48: 0 | AS48: 0 | AT48: 0 | AU48: 0 | AV48: 0 | AW48: 0 | AX48: 0 | AY48: 0 | AZ48: 0 | BA48: 0 | BB48: 0 | BC48: 0 | BD48: 0 | BE48: 0 | BF48: 0
A49: 49 | B49: Total | D49: 1.277726184 | E49: 0.911032965 | F49: 0.8912137351 | G49: 0.911032965 | H49: 2.873124682 | I49: 2.069509701 | J49: 2.070125761 | K49: 2.09784845 | L49: -0.3475490295 | M49: 0.2590162554 | N49: 0.2594690435 | O49: 0.27984451 | P49: 3.994014386 | Q49: 2.498273571 | R49: 2.499065137 | S49: 2.534685618 | T49: 0.8268350308 | U49: 1.53485659 | V49: 1.507319175 | W49: 1.53485659 | X49: 0.5743863703 | Y49: 0.5401060492 | Z49: 0.117957629 | AA49: 0.14533614 | AB49: 0.6403464717 | AC49: 0.7500695849 | AD49: 0.6644289855 | AE49: 0.40492871 | AF49: 0.6880974596 | AG49: 0.769020198 | AH49: 0.2571943737 | AI49: 0.08551934 | AJ49: -0.1358019645 | AK49: 0.55677197 | AL49: 0.3972354206 | AM49: 0.66417979 | AN49: 1.183314972 | AO49: 1.30770854 | AP49: 0.242097693 | AQ49: 0.73151163 | AR49: 0.45728972 | AS49: 0.3146466 | AT49: 0.6636569338 | AU49: 2.593294029 | AV49: 2.136212137 | AW49: 3.426074848 | AX49: 1.461393017 | AY49: 1.457626743 | AZ49: 0.7663077899 | BA49: 1.621671855 | BB49: 3.288486051 | BC49: 1.039266436 | BD49: 0.679542281 | BE49: 0.4750191812 | BF49: 0.8322250379
A50: 50 | B50: Depreciation ($m)
A51: 51 | B51: Pipeline and laterals | D51: 1.700215255 | E51: 1.700215255 | F51: 1.700215255 | G51: 1.700215255 | H51: 1.700215255 | I51: 1.700215255 | J51: 1.700215255 | K51: 1.700215255 | L51: 1.700215255 | M51: 1.700215255 | N51: 1.700215255 | O51: 1.700215255 | P51: 1.700215255 | Q51: 1.700215255 | R51: 1.700215255 | S51: 1.700215255 | T51: 1.700215255 | U51: 1.700215255 | V51: 1.700215255 | W51: 1.700215255 | X51: 1.700215255 | Y51: 1.700215255 | Z51: 1.700215255 | AA51: 1.700215255 | AB51: 1.700215255 | AC51: 1.700215255 | AD51: 1.700215255 | AE51: 1.700215255 | AF51: 1.700215255 | AG51: 1.700215255 | AH51: 1.700215255 | AI51: 1.700215255 | AJ51: 1.700215255 | AK51: 1.700215255 | AL51: 1.700215255 | AM51: 1.700215255 | AN51: 1.700215255 | AO51: 1.700215255 | AP51: 1.700215255 | AQ51: 1.700215255 | AR51: 6.810979642 | AS51: 6.810979642 | AT51: 6.810979642 | AU51: 6.810979642 | AV51: 6.810979642 | AW51: 7.201801621 | AX51: 7.330292719 | AY51: 7.349879779 | AZ51: 7.352205244 | BA51: 7.352205244 | BB51: 7.3271481 | BC51: 7.330192098 | BD51: 7.330192098 | BE51: 7.330192098 | BF51: 7.330192098
A52: 52 | B52: Main line valve and scraper stations | D52: 0.05156051549 | E52: 0.05156051549 | F52: 0.05156051549 | G52: 0.05156051549 | H52: 0.05156051549 | I52: 0.05156051549 | J52: 0.05156051549 | K52: 0.05156051549 | L52: 0.05156051549 | M52: 0.05156051549 | N52: 0.05156051549 | O52: 0.05156051549 | P52: 0.05156051549 | Q52: 0.05156051549 | R52: 0.05156051549 | S52: 0.05156051549 | T52: 0.05156051549 | U52: 0.05156051549 | V52: 0.05156051549 | W52: 0.05156051549 | X52: 0.05156051549 | Y52: 0.05156051549 | Z52: 0.05156051549 | AA52: 0.05156051549 | AB52: 0.05156051549 | AC52: 0.05156051549 | AD52: 0.05156051549 | AE52: 0.05156051549 | AF52: 0.05156051549 | AG52: 0.05156051549 | AH52: 0.05156051549 | AI52: 0.05156051549 | AJ52: 0.05156051549 | AK52: 0.05156051549 | AL52: 0.05156051549 | AM52: 0.05156051549 | AN52: 0.05156051549 | AO52: 0.05156051549 | AP52: 0.05156051549 | AQ52: 0.05156051549 | AR52: 0.2068157397 | AS52: 0.2081357397 | AT52: 0.2081357397 | AU52: 0.2081357397 | AV52: 0.2081357397 | AW52: 0.2157150835 | AX52: 0.2213665656 | AY52: 0.2325287979 | AZ52: 0.2325287979 | BA52: 0.2325287979 | BB52: 0.1919428019 | BC52: 0.2238736884 | BD52: 0.2238736884 | BE52: 0.2238736884 | BF52: 0.2238736884
A53: 53 | B53: Compressor stations | D53: 0.4242448458 | E53: 0.4302999108 | F53: 0.4363549759 | G53: 0.442410041 | H53: 0.448465106 | I53: 0.4652707572 | J53: 0.4820764084 | K53: 0.4988820596 | L53: 0.5156877108 | M53: 0.517040738 | N53: 0.5183937652 | O53: 0.5197467925 | P53: 0.5210998197 | Q53: 0.5415191096 | R53: 0.5619383996 | S53: 0.5823576895 | T53: 0.6027769794 | U53: 0.6112621372 | V53: 0.619747295 | W53: 0.6282324528 | X53: 0.6367176106 | Y53: 0.6376132594 | Z53: 0.6385089081 | AA53: 0.6394045569 | AB53: 0.6403002057 | AC53: 0.6477806221 | AD53: 0.6552610386 | AE53: 0.6627414551 | AF53: 0.6702218715 | AG53: 0.6778728774 | AH53: 0.6855238832 | AI53: 0.6931748891 | AJ53: 0.7008258949 | AK53: 0.7008258949 | AL53: 0.7008258949 | AM53: 0.7008258949 | AN53: 0.7008258949 | AO53: 0.7008258949 | AP53: 0.7008258949 | AQ53: 0.7008258949 | AR53: 2.622426004 | AS53: 2.734675547 | AT53: 2.850399789 | AU53: 2.877363829 | AV53: 2.905719919 | AW53: 2.443831514 | AX53: 2.882369365 | AY53: 2.908543884 | AZ53: 2.908543884 | BA53: 2.915107509 | BB53: 2.713251784 | BC53: 2.946761279 | BD53: 2.952209514 | BE53: 2.966623808 | BF53: 2.060091994
A54: 54 | B54: Receipt and delivery point facilities | D54: 0.01565657117 | E54: 0.01599039667 | F54: 0.01632422217 | G54: 0.01665804767 | H54: 0.01699187317 | I54: 0.01719425728 | J54: 0.01739664138 | K54: 0.01759902549 | L54: 0.01780140959 | M54: 0.01792458232 | N54: 0.01804775505 | O54: 0.01817092778 | P54: 0.01829410051 | Q54: 0.0184389117 | R54: 0.01858372288 | S54: 0.01872853407 | T54: 0.01887334526 | U54: 0.01894371817 | V54: 0.01901409109 | W54: 0.01908446401 | X54: 0.01915483692 | Y54: 0.01915483692 | Z54: 0.01915483692 | AA54: 0.01915483692 | AB54: 0.01915483692 | AC54: 0.01915483692 | AD54: 0.01915483692 | AE54: 0.01915483692 | AF54: 0.01915483692 | AG54: 0.01915483692 | AH54: 0.01915483692 | AI54: 0.01915483692 | AJ54: 0.01915483692 | AK54: 0.01915483692 | AL54: 0.01915483692 | AM54: 0.01915483692 | AN54: 0.01915483692 | AO54: 0.01915483692 | AP54: 0.01915483692 | AQ54: 0.01915483692 | AR54: 0.1092483923 | AS54: 0.1121719801 | AT54: 0.1140835808 | AU54: 0.1160962281 | AV54: 0.1182127807 | AW54: 0.1055956587 | AX54: 0.1380358359 | AY54: 0.1380358359 | AZ54: 0.1531513587 | BA54: 0.164003529 | BB54: -0.2849937255 | BC54: 0.1589143804 | BD54: 0.1792197856 | BE54: 0.1819439754 | BF54: 0.1484277508
A55: 55 | B55: SCADA and communications | D55: 0.2665681081 | E55: 0.2666845267 | F55: 0.2668009452 | G55: 0.2669173638 | H55: 0.2670337824 | I55: 0.2670553755 | J55: 0.2670769687 | K55: 0.2670985618 | L55: 0.2671201549 | M55: 0.267353065 | N55: 0.2675859752 | O55: 0.2678188853 | P55: 0.2680517954 | Q55: 0.268340909 | R55: 0.2686300227 | S55: 0.2689191363 | T55: 0.2692082499 | U55: 0.2710398242 | V55: 0.2728713984 | W55: 0.2747029727 | X55: 0.2765345469 | Y55: 0.2767806014 | Z55: 0.2770266558 | AA55: 0.2772727103 | AB55: 0.2775187648 | AC55: 0.2816854314 | AD55: 0.2858520981 | AE55: 0.2900187648 | AF55: 0.2941854314 | AG55: 0.2983520981 | AH55: 0.3025187648 | AI55: 0.3066854314 | AJ55: 0.3108520981 | AK55: 0.3108520981 | AL55: 0.3108520981 | AM55: 0.3108520981 | AN55: 0.3108520981 | AO55: 0.3108520981 | AP55: 0.04428399002 | AQ55: 0.04428399002 | AR55: 0.3020916487 | AS55: 0.3338550502 | AT55: 0.5170286812 | AU55: 0.7005463943 | AV55: 0.718052532 | AW55: -0.06847728018 | AX55: 0.3995490669 | AY55: 0.3869722115 | AZ55: 0.3777561773 | BA55: 0.2605209728 | BB55: 0.4741484739 | BC55: 0.4957938475 | BD55: 0.50494646 | BE55: 0.5083038496 | BF55: 0.5132730578
A56: 56 | B56: Cathodic protection | D56: 0.0481271847 | E56: 0.0481271847 | F56: 0.0481271847 | G56: 0.0481271847 | H56: 0.0481271847 | I56: 0.0481271847 | J56: 0.0481271847 | K56: 0.0481271847 | L56: 0.0481271847 | M56: 0.0481271847 | N56: 0.0481271847 | O56: 0.0481271847 | P56: 0.0481271847 | Q56: 0.0481929722 | R56: 0.0482587597 | S56: 0.0483245472 | T56: 0.0483903347 | U56: 0.0483903347 | V56: 0.0483903347 | W56: 0.0483903347 | X56: 0.0483903347 | Y56: 0.0483903347 | Z56: 0.0483903347 | AA56: 0.0483903347 | AB56: 0.0483903347 | AC56: 0.0483903347 | AD56: 0.0483903347 | AE56: 0.0483903347 | AF56: 0.0483903347 | AG56: 0.0483903347 | AH56: 0.0483903347 | AI56: 0.0483903347 | AJ56: 0.0483903347 | AK56: 0.0483903347 | AL56: 0.0483903347 | AM56: 0.0483903347 | AN56: 0.0483903347 | AO56: 0.0483903347 | AP56: 0.00026315 | AQ56: 0.00026315 | AR56: 0.1189109711 | AS56: 0.2070063451 | AT56: 0.2974929768 | AU56: 0.2999081535 | AV56: 0.3024480167 | AW56: -0.5483443023 | AX56: 0.134669929 | AY56: 0.1372879792 | AZ56: 0.1393442644 | BA56: 0.1407386339 | BB56: 0.08654841888 | BC56: 0.1308342333 | BD56: 0.1302705881 | BE56: 0.1276301111 | BF56: 0.08503903184
A57: 57 | B57: Maintenance bases and depots | D57: 0.04341372223 | E57: 0.04342283698 | F57: 0.04343195173 | G57: 0.04344106648 | H57: 0.04345018123 | I57: 0.04345551646 | J57: 0.04346085168 | K57: 0.04346618691 | L57: 0.04347152213 | M57: 0.04347427213 | N57: 0.04347702213 | O57: 0.04347977213 | P57: 0.04348252213 | Q57: 0.04348252213 | R57: 0.04348252213 | S57: 0.04348252213 | T57: 0.04348252213 | U57: 0.04348252213 | V57: 0.04348252213 | W57: 0.04348252213 | X57: 0.04348252213 | Y57: 0.04348252213 | Z57: 0.04348252213 | AA57: 0.04348252213 | AB57: 0.04348252213 | AC57: 0.04348252213 | AD57: 0.04348252213 | AE57: 0.04348252213 | AF57: 0.04348252213 | AG57: 0.04348252213 | AH57: 0.04348252213 | AI57: 0.04348252213 | AJ57: 0.04348252213 | AK57: 0.04348252213 | AL57: 0.04348252213 | AM57: 0.04348252213 | AN57: 0.04348252213 | AO57: 0.04348252213 | AP57: 0.04348252213 | AQ57: 0.04348252213 | AR57: 0.178334317 | AS57: 0.178769778 | AT57: 0.1792285622 | AU57: 0.1797115976 | AV57: 0.1802195702 | AW57: 0.2133596614 | AX57: 0.2193897826 | AY57: 0.2193897826 | AZ57: 0.2193897826 | BA57: 0.2193897826 | BB57: 0.2226376195 | BC57: 0.2655229117 | BD57: 0.2690255335 | BE57: 0.2690255335 | BF57: 0.2690255335
A58: 58 | B58: Other assets | D58: 0.02440862333 | E58: 0.02779757414 | F58: 0.03118652495 | G58: 0.03457547577 | H58: 0.03796442658 | I58: 0.03932746614 | J58: 0.0406905057 | K58: 0.04205354527 | L58: 0.04341658483 | M58: 0.04562098252 | N58: 0.0478253802 | O58: 0.05002977789 | P58: 0.05223417558 | Q58: 0.05337666095 | R58: 0.05451914633 | S58: 0.0556616317 | T58: 0.05680411708 | U58: 0.06676157833 | V58: 0.05231041625 | W58: 0.0622678775 | X58: 0.07222533875 | Y58: 0.07905681076 | Z58: 0.08588828277 | AA58: 0.09271975478 | AB58: 0.09955122679 | AC58: 0.1037349774 | AD58: 0.107918728 | AE58: 0.1121024786 | AF58: 0.1162862292 | AG58: 0.1210207116 | AH58: 0.1257551941 | AI58: 0.1304896765 | AJ58: 0.1352241589 | AK58: 0.1452866589 | AL58: 0.1553491589 | AM58: 0.1654116589 | AN58: 0.1754741589 | AO58: 0.1862241589 | AP58: 0.1969741589 | AQ58: 0.2077241589 | AR58: 0.4081101529 | AS58: 0.7088504603 | AT58: 0.9146269453 | AU58: 0.9669913064 | AV58: 1.018122067 | AW58: -2.090499236 | AX58: 0.2263941716 | AY58: 0.2090942173 | AZ58: 0.1811107498 | BA58: 0.1505035866 | BB58: 0.02472705449 | BC58: 0.1500304439 | BD58: 0.1500304439 | BE58: 0.1500304439 | BF58: 0.1010518912
A59: 59 | B59: Equity Raising Cost | D59: 0 | E59: 0 | F59: 0 | G59: 0 | H59: 0 | I59: 0 | J59: 0 | K59: 0 | L59: 0 | M59: 0 | N59: 0 | O59: 0 | P59: 0 | Q59: 0 | R59: 0 | S59: 0 | T59: 0 | U59: 0 | V59: 0 | W59: 0 | X59: 0 | Y59: 0 | Z59: 0 | AA59: 0 | AB59: 0 | AC59: 0 | AD59: 0 | AE59: 0 | AF59: 0 | AG59: 0 | AH59: 0 | AI59: 0 | AJ59: 0 | AK59: 0 | AL59: 0 | AM59: 0 | AN59: 0 | AO59: 0 | AP59: 0 | AQ59: 0 | AR59: 0 | AS59: 0 | AT59: 0 | AU59: 0 | AV59: 0 | AW59: 0 | AX59: 0 | AY59: 0 | AZ59: 0 | BA59: 0 | BB59: 0 | BC59: 0.0005222837058 | BD59: 0.0005222837058 | BE59: 0.0005222837058 | BF59: 0.0005222837058
A60: 60 | B60: Non-depreciable assets | D60: 0 | E60: 0 | F60: 0 | G60: 0 | H60: 0 | I60: 0 | J60: 0 | K60: 0 | L60: 0 | M60: 0 | N60: 0 | O60: 0 | P60: 0 | Q60: 0 | R60: 0 | S60: 0 | T60: 0 | U60: 0 | V60: 0 | W60: 0 | X60: 0 | Y60: 0 | Z60: 0 | AA60: 0 | AB60: 0 | AC60: 0 | AD60: 0 | AE60: 0 | AF60: 0 | AG60: 0 | AH60: 0 | AI60: 0 | AJ60: 0 | AK60: 0 | AL60: 0 | AM60: 0 | AN60: 0 | AO60: 0 | AP60: 0 | AQ60: 0 | AR60: 0 | AS60: 0 | AT60: 0 | AU60: 0 | AV60: 0 | AW60: 0 | AX60: 0 | AY60: 0 | AZ60: 0 | BA60: 0 | BB60: 0 | BC60: 0 | BD60: 0 | BE60: 0 | BF60: 0
A61: 61 | B61: Total | D61: 2.574194826 | E61: 2.5840982 | F61: 2.594001575 | G61: 2.60390495 | H61: 2.613808325 | I61: 2.632206328 | J61: 2.650604331 | K61: 2.669002334 | L61: 2.687400337 | M61: 2.691316595 | N61: 2.695232853 | O61: 2.699149111 | P61: 2.703065369 | Q61: 2.725126856 | R61: 2.747188344 | S61: 2.769249831 | T61: 2.791311319 | U61: 2.811655885 | V61: 2.807591828 | W61: 2.827936394 | X61: 2.848280961 | Y61: 2.856254136 | Z61: 2.864227311 | AA61: 2.872200486 | AB61: 2.880173661 | AC61: 2.896004495 | AD61: 2.911835329 | AE61: 2.927666163 | AF61: 2.943496996 | AG61: 2.960049151 | AH61: 2.976601306 | AI61: 2.993153461 | AJ61: 3.009705616 | AK61: 3.019768116 | AL61: 3.029830616 | AM61: 3.039893116 | AN61: 3.049955616 | AO61: 3.060705616 | AP61: 2.756760323 | AQ61: 2.767510323 | AR61: 10.75691687 | AS61: 11.29444454 | AT61: 11.89197592 | AU61: 12.15973289 | AV61: 12.26189027 | AW61: 7.47298272 | AX61: 11.55206744 | AY61: 11.58173249 | AZ61: 11.56403026 | BA61: 11.43499806 | BB61: 10.75541053 | BC61: 11.70244517 | BD61: 11.7402904 | BE61: 11.75814579 | BF61: 10.73149733
A62: 62 | B62: Over-Depreciation ($m)
A63: 63 | B63: Pipeline and laterals | AQ63: 0.00033
A64: 64 | B64: Main line valve and scraper stations | AQ64: 0
A65: 65 | B65: Compressor stations | AQ65: 0.1245961865
A66: 66 | B66: Receipt and delivery point facilities | AQ66: 0
A67: 67 | B67: SCADA and communications | AQ67: 0.0657741773
A68: 68 | B68: Cathodic protection | AQ68: 0
A69: 69 | B69: Maintenance bases and depots | AQ69: 0
A70: 70 | B70: Other assets | AQ70: 0.1963167641
A71: 71 | B71: Equity Raising Cost
A72: 72 | B72: Non-depreciable assets | AQ72: 0
A73: 73 | B73: Total | D73: 0 | E73: 0 | F73: 0 | G73: 0 | H73: 0 | I73: 0 | J73: 0 | K73: 0 | L73: 0 | M73: 0 | N73: 0 | O73: 0 | P73: 0 | Q73: 0 | R73: 0 | S73: 0 | T73: 0 | U73: 0 | V73: 0 | W73: 0 | X73: 0 | Y73: 0 | Z73: 0 | AA73: 0 | AB73: 0 | AC73: 0 | AD73: 0 | AE73: 0 | AF73: 0 | AG73: 0 | AH73: 0 | AI73: 0 | AJ73: 0 | AK73: 0 | AL73: 0 | AM73: 0 | AN73: 0 | AO73: 0 | AP73: 0 | AQ73: 0.3870171279 | AR73: 0 | AS73: 0 | AT73: 0 | AU73: 0 | AV73: 0 | AW73: 0 | AX73: 0 | AY73: 0 | AZ73: 0 | BA73: 0 | BB73: 0 | BC73: 0 | BD73: 0 | BE73: 0 | BF73: 0
A74: 74 | B74: Asset Adjustment ($m)
A75: 75 | B75: Pipeline and laterals | D75: 0 | E75: 0 | F75: 0 | G75: 0 | H75: 0 | I75: 0 | J75: 0 | K75: 0 | L75: 0 | M75: 0 | N75: 0 | O75: 0 | P75: 0 | Q75: 0 | R75: 0 | S75: 0 | T75: 0 | U75: 0 | V75: 0 | W75: 0 | X75: 0 | Y75: 0 | Z75: 0 | AA75: 0 | AB75: 0 | AC75: 0 | AD75: 0 | AE75: 0 | AF75: 0 | AG75: 0 | AH75: 0 | AI75: 0 | AJ75: 0 | AK75: 0 | AL75: 0 | AM75: 0 | AN75: 0 | AO75: 0 | AP75: 0 | AQ75: 0 | AR75: 0 | AS75: 0 | AT75: 0 | AU75: 0 | AV75: 0 | AW75: 0 | AX75: 0 | AY75: 0 | AZ75: 0 | BA75: 0 | BB75: 0 | BC75: 0 | BD75: 0 | BE75: 0 | BF75: 0
A76: 76 | B76: Main line valve and scraper stations | D76: 0 | E76: 0 | F76: 0 | G76: 0 | H76: 0 | I76: 0 | J76: 0 | K76: 0 | L76: 0 | M76: 0 | N76: 0 | O76: 0 | P76: 0 | Q76: 0 | R76: 0 | S76: 0 | T76: 0 | U76: 0 | V76: 0 | W76: 0 | X76: 0 | Y76: 0 | Z76: 0 | AA76: 0 | AB76: 0 | AC76: 0 | AD76: 0 | AE76: 0 | AF76: 0 | AG76: 0 | AH76: 0 | AI76: 0 | AJ76: 0 | AK76: 0 | AL76: 0 | AM76: 0 | AN76: 0 | AO76: 0 | AP76: 0 | AQ76: 0 | AR76: 0 | AS76: 0 | AT76: 0 | AU76: 0 | AV76: 0 | AW76: 0 | AX76: 0 | AY76: 0 | AZ76: 0 | BA76: 0 | BB76: 0 | BC76: 0 | BD76: 0 | BE76: 0 | BF76: 0
A77: 77 | B77: Compressor stations | D77: 0 | E77: 0 | F77: 0 | G77: 0 | H77: 0 | I77: 0 | J77: 0 | K77: 0 | L77: 0 | M77: 0 | N77: 0 | O77: 0 | P77: 0 | Q77: 0 | R77: 0 | S77: 0 | T77: 0 | U77: 0 | V77: 0 | W77: 0 | X77: 0 | Y77: 0 | Z77: 0 | AA77: 0 | AB77: 0 | AC77: 0 | AD77: 0 | AE77: 0 | AF77: 0 | AG77: 0 | AH77: 0 | AI77: 0 | AJ77: 0 | AK77: 0 | AL77: 0 | AM77: 0 | AN77: 0 | AO77: 0 | AP77: 0 | AQ77: 0 | AR77: 0 | AS77: 0 | AT77: 0 | AU77: 0 | AV77: 0 | AW77: 0 | AX77: 0 | AY77: 0 | AZ77: 0 | BA77: 0 | BB77: 0 | BC77: 0 | BD77: 0 | BE77: 0 | BF77: 0
A78: 78 | B78: Receipt and delivery point facilities | D78: 0 | E78: 0 | F78: 0 | G78: 0 | H78: 0 | I78: 0 | J78: 0 | K78: 0 | L78: 0 | M78: 0 | N78: 0 | O78: 0 | P78: 0 | Q78: 0 | R78: 0 | S78: 0 | T78: 0 | U78: 0 | V78: 0 | W78: 0 | X78: 0 | Y78: 0 | Z78: 0 | AA78: 0 | AB78: 0 | AC78: 0 | AD78: 0 | AE78: 0 | AF78: 0 | AG78: 0 | AH78: 0 | AI78: 0 | AJ78: 0 | AK78: 0 | AL78: 0 | AM78: 0 | AN78: 0 | AO78: 0 | AP78: 0 | AQ78: 0 | AR78: 0 | AS78: 0 | AT78: 0 | AU78: 0 | AV78: 0 | AW78: 0 | AX78: 0 | AY78: 0 | AZ78: 0 | BA78: 0 | BB78: 0 | BC78: 0 | BD78: 0 | BE78: 0 | BF78: 0
A79: 79 | B79: SCADA and communications | D79: 0 | E79: 0 | F79: 0 | G79: 0 | H79: 0 | I79: 0 | J79: 0 | K79: 0 | L79: 0 | M79: 0 | N79: 0 | O79: 0 | P79: 0 | Q79: 0 | R79: 0 | S79: 0 | T79: 0 | U79: 0 | V79: 0 | W79: 0 | X79: 0 | Y79: 0 | Z79: 0 | AA79: 0 | AB79: 0 | AC79: 0 | AD79: 0 | AE79: 0 | AF79: 0 | AG79: 0 | AH79: 0 | AI79: 0 | AJ79: 0 | AK79: 0 | AL79: 0 | AM79: 0 | AN79: 0 | AO79: 0 | AP79: 0 | AQ79: 0 | AR79: 0 | AS79: 0 | AT79: 0 | AU79: 0 | AV79: 0 | AW79: 0 | AX79: 0 | AY79: 0 | AZ79: 0 | BA79: 0 | BB79: 0 | BC79: 0 | BD79: 0 | BE79: 0 | BF79: 0
A80: 80 | B80: Cathodic protection | D80: 0 | E80: 0 | F80: 0 | G80: 0 | H80: 0 | I80: 0 | J80: 0 | K80: 0 | L80: 0 | M80: 0 | N80: 0 | O80: 0 | P80: 0 | Q80: 0 | R80: 0 | S80: 0 | T80: 0 | U80: 0 | V80: 0 | W80: 0 | X80: 0 | Y80: 0 | Z80: 0 | AA80: 0 | AB80: 0 | AC80: 0 | AD80: 0 | AE80: 0 | AF80: 0 | AG80: 0 | AH80: 0 | AI80: 0 | AJ80: 0 | AK80: 0 | AL80: 0 | AM80: 0 | AN80: 0 | AO80: 0 | AP80: 0 | AQ80: 0 | AR80: 0 | AS80: 0 | AT80: 0 | AU80: 0 | AV80: 0 | AW80: 0 | AX80: 0 | AY80: 0 | AZ80: 0 | BA80: 0 | BB80: 0 | BC80: 0 | BD80: 0 | BE80: 0 | BF80: 0
A81: 81 | B81: Maintenance bases and depots | D81: 0 | E81: 0 | F81: 0 | G81: 0 | H81: 0 | I81: 0 | J81: 0 | K81: 0 | L81: 0 | M81: 0 | N81: 0 | O81: 0 | P81: 0 | Q81: 0 | R81: 0 | S81: 0 | T81: 0 | U81: 0 | V81: 0 | W81: 0 | X81: 0 | Y81: 0 | Z81: 0 | AA81: 0 | AB81: 0 | AC81: 0 | AD81: 0 | AE81: 0 | AF81: 0 | AG81: 0 | AH81: 0 | AI81: 0 | AJ81: 0 | AK81: 0 | AL81: 0 | AM81: 0 | AN81: 0 | AO81: 0 | AP81: 0 | AQ81: 0 | AR81: 0 | AS81: 0 | AT81: 0 | AU81: 0 | AV81: 0 | AW81: 0 | AX81: 0 | AY81: 0 | AZ81: 0 | BA81: 0 | BB81: 0 | BC81: 0 | BD81: 0 | BE81: 0 | BF81: 0
A82: 82 | B82: Other assets | D82: 0 | E82: 0 | F82: 0 | G82: 0 | H82: 0 | I82: 0 | J82: 0 | K82: 0 | L82: 0 | M82: 0 | N82: 0 | O82: 0 | P82: 0 | Q82: 0 | R82: 0 | S82: 0 | T82: 0 | U82: 0 | V82: 0 | W82: 0 | X82: 0 | Y82: 0 | Z82: 0 | AA82: 0 | AB82: 0 | AC82: 0 | AD82: 0 | AE82: 0 | AF82: 0 | AG82: 0 | AH82: 0 | AI82: 0 | AJ82: 0 | AK82: 0 | AL82: 0 | AM82: 0 | AN82: 0 | AO82: 0 | AP82: 0 | AQ82: 0 | AR82: 0 | AS82: 0 | AT82: 0 | AU82: 0 | AV82: 0 | AW82: 0 | AX82: 0 | AY82: 0 | AZ82: 0 | BA82: 0 | BB82: 0 | BC82: 0 | BD82: 0 | BE82: 0 | BF82: 0
A83: 83 | B83: Equity Raising Cost | D83: 0 | E83: 0 | F83: 0 | G83: 0 | H83: 0 | I83: 0 | J83: 0 | K83: 0 | L83: 0 | M83: 0 | N83: 0 | O83: 0 | P83: 0 | Q83: 0 | R83: 0 | S83: 0 | T83: 0 | U83: 0 | V83: 0 | W83: 0 | X83: 0 | Y83: 0 | Z83: 0 | AA83: 0 | AB83: 0 | AC83: 0 | AD83: 0 | AE83: 0 | AF83: 0 | AG83: 0 | AH83: 0 | AI83: 0 | AJ83: 0 | AK83: 0 | AL83: 0 | AM83: 0 | AN83: 0 | AO83: 0 | AP83: 0 | AQ83: 0 | AR83: 0 | AS83: 0 | AT83: 0 | AU83: 0 | AV83: 0 | AW83: 0 | AX83: 0 | AY83: 0 | AZ83: 0 | BA83: 0 | BB83: 0 | BC83: 0 | BD83: 0 | BE83: 0 | BF83: 0
A84: 84 | B84: Non-depreciable assets | D84: 0 | E84: 0 | F84: 0 | G84: 0 | H84: 0 | I84: 0 | J84: 0 | K84: 0 | L84: 0 | M84: 0 | N84: 0 | O84: 0 | P84: 0 | Q84: 0 | R84: 0 | S84: 0 | T84: 0 | U84: 0 | V84: 0 | W84: 0 | X84: 0 | Y84: 0 | Z84: 0 | AA84: 0 | AB84: 0 | AC84: 0 | AD84: 0 | AE84: 0 | AF84: 0 | AG84: 0 | AH84: 0 | AI84: 0 | AJ84: 0 | AK84: 0 | AL84: 0 | AM84: 0 | AN84: 0 | AO84: 0 | AP84: 0 | AQ84: 0 | AR84: 0 | AS84: 0 | AT84: 0 | AU84: 0 | AV84: 0 | AW84: 0 | AX84: 0 | AY84: 0 | AZ84: 0 | BA84: 0 | BB84: 0 | BC84: 0 | BD84: 0 | BE84: 0 | BF84: 0
A85: 85 | B85: Total | D85: 0 | E85: 0 | F85: 0 | G85: 0 | H85: 0 | I85: 0 | J85: 0 | K85: 0 | L85: 0 | M85: 0 | N85: 0 | O85: 0 | P85: 0 | Q85: 0 | R85: 0 | S85: 0 | T85: 0 | U85: 0 | V85: 0 | W85: 0 | X85: 0 | Y85: 0 | Z85: 0 | AA85: 0 | AB85: 0 | AC85: 0 | AD85: 0 | AE85: 0 | AF85: 0 | AG85: 0 | AH85: 0 | AI85: 0 | AJ85: 0 | AK85: 0 | AL85: 0 | AM85: 0 | AN85: 0 | AO85: 0 | AP85: 0 | AQ85: 0 | AR85: 0 | AS85: 0 | AT85: 0 | AU85: 0 | AV85: 0 | AW85: 0 | AX85: 0 | AY85: 0 | AZ85: 0 | BA85: 0 | BB85: 0 | BC85: 0 | BD85: 0 | BE85: 0 | BF85: 0
A86: 86 | B86: Closing Capital Base ($m)
A87: 87 | B87: Pipeline and laterals | D87: 436.9553205 | E87: 435.2551053 | F87: 433.55489 | G87: 431.8546748 | H87: 430.1544595 | I87: 428.4542443 | J87: 426.754029 | K87: 425.0538137 | L87: 423.3535985 | M87: 421.6533832 | N87: 419.953168 | O87: 418.2529527 | P87: 416.5527375 | Q87: 414.8525222 | R87: 413.152307 | S87: 411.4520917 | T87: 409.7518765 | U87: 408.0516612 | V87: 406.3514459 | W87: 404.6512307 | X87: 403.2521403 | Y87: 401.5521799 | Z87: 399.8524209 | AA87: 398.1518757 | AB87: 396.4516604 | AC87: 394.7514452 | AD87: 393.0512299 | AE87: 391.3510147 | AF87: 389.6507994 | AG87: 388.2367979 | AH87: 386.5365827 | AI87: 384.8363674 | AJ87: 383.1361522 | AK87: 381.439488 | AL87: 379.7492947 | AM87: 378.1098482 | AN87: 376.4110778 | AO87: 374.7122857 | AP87: 373.0206333 | AQ87: 371.3214634 | AR87: 364.4275467 | AS87: 357.6165671 | AT87: 350.8055875 | AU87: 344.0202408 | AV87: 337.2092612 | AW87: 355.5912628 | AX87: 348.7712411 | AY87: 341.7023259 | AZ87: 334.3510349 | BA87: 326.9988297 | BB87: 319.8847614 | BC87: 312.5545693 | BD87: 305.2243772 | BE87: 297.8941851 | BF87: 290.563993
A88: 88 | B88: Main line valve and scraper stations | D88: 9.126211242 | E88: 9.074650727 | F88: 9.023090211 | G88: 8.971529696 | H88: 8.91996918 | I88: 8.868408665 | J88: 8.816848149 | K88: 8.765287634 | L88: 8.713727118 | M88: 8.662166603 | N88: 8.610606087 | O88: 8.559045572 | P88: 8.507485056 | Q88: 8.455924541 | R88: 8.404364025 | S88: 8.35280351 | T88: 8.301242994 | U88: 8.249682479 | V88: 8.198121963 | W88: 8.146561448 | X88: 8.095000932 | Y88: 8.043440417 | Z88: 7.991879901 | AA88: 7.940319386 | AB88: 7.88875887 | AC88: 7.837198355 | AD88: 7.785637839 | AE88: 7.734077324 | AF88: 7.682516808 | AG88: 7.630956293 | AH88: 7.579395777 | AI88: 7.527835262 | AJ88: 7.476274746 | AK88: 7.424714231 | AL88: 7.373153715 | AM88: 7.3215932 | AN88: 7.297147174 | AO88: 7.246731579 | AP88: 7.195171063 | AQ88: 7.143610548 | AR88: 6.936794808 | AS88: 6.728659069 | AT88: 6.520523329 | AU88: 6.312387589 | AV88: 6.10425185 | AW88: 6.433338043 | AX88: 6.213527288 | AY88: 5.98099849 | AZ88: 5.748469692 | BA88: 5.515940894 | BB88: 5.323998092 | BC88: 5.100124404 | BD88: 4.876250715 | BE88: 4.652377027 | BF88: 4.428503339
A89: 89 | B89: Compressor stations | D89: 41.87835785 | E89: 42.17466574 | F89: 42.46491858 | G89: 42.74911634 | H89: 44.31732938 | I89: 45.86873676 | J89: 47.4033385 | K89: 48.92113458 | L89: 48.56781014 | M89: 48.21313267 | N89: 47.85710217 | O89: 47.49971864 | P89: 49.42893362 | Q89: 51.3377293 | R89: 53.22610569 | S89: 55.0940628 | T89: 55.50950475 | U89: 55.91646155 | V89: 56.31493319 | W89: 56.70491967 | X89: 56.30488785 | Y89: 56.0337194 | Z89: 55.4617427 | AA89: 54.85979697 | AB89: 54.25855922 | AC89: 53.94851838 | AD89: 53.62908184 | AE89: 53.17123274 | AF89: 52.59447759 | AG89: 52.09955494 | AH89: 51.47240359 | AI89: 50.79947086 | AJ89: 50.09864497 | AK89: 49.62984866 | AL89: 48.96999054 | AM89: 48.39793576 | AN89: 47.98111214 | AO89: 47.28813644 | AP89: 46.58925799 | AQ89: 46.01302828 | AR89: 43.7578377 | AS89: 41.07046215 | AT89: 38.37061915 | AU89: 35.97156751 | AV89: 33.76895037 | AW89: 33.68450385 | AX89: 30.80213448 | AY89: 28.87633054 | AZ89: 26.29467849 | BA89: 24.27959436 | BB89: 22.11532227 | BC89: 19.33200806 | BD89: 16.81222735 | BE89: 13.89524213 | BF89: 12.35065277
A90: 90 | B90: Receipt and delivery point facilities | D90: 1.558746464 | E90: 1.582815127 | F90: 1.606549965 | G90: 1.629950977 | H90: 1.637245197 | I90: 1.644337032 | J90: 1.651226483 | K90: 1.65791355 | L90: 1.654892868 | M90: 1.651749013 | N90: 1.648481986 | O90: 1.645091785 | P90: 1.644175027 | Q90: 1.643113458 | R90: 1.641907078 | S90: 1.640555886 | T90: 1.630127291 | U90: 1.619628323 | V90: 1.609058982 | W90: 1.598419268 | X90: 1.579264431 | Y90: 1.560109594 | Z90: 1.540954757 | AA90: 1.53935359 | AB90: 1.533880183 | AC90: 1.637270806 | AD90: 1.736517649 | AE90: 1.843124272 | AF90: 2.220042635 | AG90: 2.285418628 | AH90: 2.266392462 | AI90: 2.247237625 | AJ90: 2.228082788 | AK90: 2.208927951 | AL90: 2.189773114 | AM90: 2.173837417 | AN90: 2.15468258 | AO90: 2.135527743 | AP90: 2.116372906 | AQ90: 2.097218069 | AR90: 1.987969677 | AS90: 1.875797697 | AT90: 1.761714116 | AU90: 1.781217888 | AV90: 1.850740381 | AW90: 2.308660511 | AX90: 1.760591803 | AY90: 1.623863893 | AZ90: 1.658256759 | BA90: 1.617319575 | BB90: 2.050876732 | BC90: 2.501124505 | BD90: 2.403630415 | BE90: 2.221686439 | BF90: 2.073258688
A91: 91 | B91: SCADA and communications | D91: 9.870005114 | E91: 9.610305702 | F91: 9.350489872 | G91: 9.090557623 | H91: 8.824819428 | I91: 8.55905964 | J91: 8.293278259 | K91: 8.027475285 | L91: 7.774329737 | M91: 7.52095128 | N91: 7.267339912 | O91: 7.013495634 | P91: 6.762790657 | Q91: 6.511796565 | R91: 6.26051336 | S91: 6.008941041 | T91: 5.849627246 | U91: 5.688481877 | V91: 5.525504934 | W91: 5.360696416 | X91: 5.109163539 | Y91: 4.837937048 | Z91: 4.561854152 | AA91: 4.284581441 | AB91: 4.058352287 | AC91: 3.977491745 | AD91: 3.867204387 | AE91: 3.599320512 | AF91: 3.354419151 | AG91: 3.126595433 | AH91: 2.842054028 | AI91: 2.592987387 | AJ91: 2.289403539 | AK91: 2.03584629 | AL91: 2.028371282 | AM91: 2.054632394 | AN91: 1.991348866 | AO91: 2.144309418 | AP91: 2.104300578 | AQ91: 2.125790765 | AR91: 1.883720177 | AS91: 1.793999726 | AT91: 1.764290185 | AU91: 1.427360321 | AV91: 1.875928104 | AW91: 3.014852096 | AX91: 3.641779822 | AY91: 3.320998842 | AZ91: 3.053149932 | BA91: 2.79262896 | BB91: 2.534934222 | BC91: 2.130666499 | BD91: 1.791107822 | BE91: 1.708184565 | BF91: 1.511633908
A92: 92 | B92: Cathodic protection | D92: 1.780705834 | E92: 1.732578649 | F92: 1.684451464 | G92: 1.63632428 | H92: 1.588197095 | I92: 1.54006991 | J92: 1.491942726 | K92: 1.443815541 | L92: 1.395688356 | M92: 1.347561172 | N92: 1.299433987 | O92: 1.251306802 | P92: 1.207126867 | Q92: 1.162881145 | R92: 1.118569636 | S92: 1.074192338 | T92: 1.025802004 | U92: 0.977411669 | V92: 0.9290213343 | W92: 0.8806309996 | X92: 0.8325376649 | Y92: 0.7841473302 | Z92: 0.7357569955 | AA92: 0.6873666608 | AB92: 0.6389763261 | AC92: 0.5905859914 | AD92: 0.5504456567 | AE92: 0.502055322 | AF92: 0.4536649873 | AG92: 0.4052746526 | AH92: 0.3568843179 | AI92: 0.3084939832 | AJ92: 0.2601036485 | AK92: 0.2773992838 | AL92: 0.2308844491 | AM92: 0.2286573044 | AN92: 0.2887613997 | AO92: 0.980253675 | AP92: 1.141389705 | AQ92: 1.729809375 | AR92: 1.610898404 | AS92: 1.403892059 | AT92: 1.106399082 | AU92: 0.8064909284 | AV92: 0.5040429118 | AW92: 1.087849895 | AX92: 0.9531799665 | AY92: 0.8158919873 | AZ92: 0.6765477229 | BA92: 0.6093489718 | BB92: 0.522800553 | BC92: 0.3919663197 | BD92: 0.2616957315 | BE92: 0.1340656204 | BF92: 0.04902658858
A93: 93 | B93: Maintenance bases and depots | D93: 7.686051785 | E93: 7.644451898 | F93: 7.602842897 | G93: 7.56122478 | H93: 7.518841644 | I93: 7.476453173 | J93: 7.434059366 | K93: 7.391660224 | L93: 7.348738702 | M93: 7.30581443 | N93: 7.262887408 | O93: 7.219957635 | P93: 7.176475113 | Q93: 7.132992591 | R93: 7.089510069 | S93: 7.046027547 | T93: 7.002545025 | U93: 6.959062503 | V93: 6.915579981 | W93: 6.872097458 | X93: 6.828614936 | Y93: 6.785132414 | Z93: 6.741649892 | AA93: 6.70078637 | AB93: 6.657303848 | AC93: 6.648658626 | AD93: 6.605176103 | AE93: 6.561693581 | AF93: 6.518211059 | AG93: 6.474728537 | AH93: 6.441711875 | AI93: 6.399890353 | AJ93: 6.356407831 | AK93: 6.374204248 | AL93: 6.342964796 | AM93: 6.370703614 | AN93: 6.327221092 | AO93: 6.28373857 | AP93: 6.240256048 | AQ93: 6.215583526 | AR93: 6.105522449 | AS93: 5.926752671 | AT93: 5.747524108 | AU93: 6.623812511 | AV93: 6.461406028 | AW93: 6.728773482 | AX93: 6.509383699 | AY93: 6.289993917 | AZ93: 6.089683425 | BA93: 6.176281267 | BB93: 8.097908257 | BC93: 8.007516434 | BD93: 7.738490901 | BE93: 7.469465367 | BF93: 7.200439834
A94: 94 | B94: Other assets | D94: 0.5505046291 | E94: 0.6582650875 | F94: 0.762636595 | G94: 0.8636191517 | H94: 0.8801763077 | I94: 0.895370424 | J94: 0.9092015008 | K94: 0.921669538 | L94: 0.9664288607 | M94: 1.008983786 | N94: 1.049334313 | O94: 1.087480443 | P94: 1.080945682 | Q94: 1.073268436 | R94: 1.064448705 | S94: 1.054486488 | T94: 1.395980821 | U94: 1.727517693 | V94: 2.073505726 | W94: 2.409536299 | X94: 2.41849275 | Y94: 2.534057439 | Z94: 2.524381787 | AA94: 2.519696682 | AB94: 2.570376905 | AC94: 2.551194028 | AD94: 2.49943179 | AE94: 2.439469321 | AF94: 2.407883182 | AG94: 2.4621375 | AH94: 2.536447706 | AI94: 2.41195542 | AJ94: 2.315864821 | AK94: 2.307509692 | AL94: 2.208421413 | AM94: 2.059932874 | AN94: 2.144390855 | AO94: 2.082072196 | AP94: 1.980662617 | AQ94: 2.092558672 | AR94: 1.729145519 | AS94: 1.043507059 | AT94: 0.1546611136 | AU94: -0.2781978787 | AV94: -1.23537926 | AW94: 0.8385878132 | AX94: 0.9453159571 | AY94: 0.8626447539 | AZ94: 0.8035049333 | BA94: 0.8720559701 | BB94: 0.8473289156 | BC94: 0.6972984717 | BD94: 0.5472680278 | BE94: 0.397237584 | BF94: 0.2961856928
A95: 95 | B95: Equity Raising Cost | D95: 0 | E95: 0 | F95: 0 | G95: 0 | H95: 0 | I95: 0 | J95: 0 | K95: 0 | L95: 0 | M95: 0 | N95: 0 | O95: 0 | P95: 0 | Q95: 0 | R95: 0 | S95: 0 | T95: 0 | U95: 0 | V95: 0 | W95: 0 | X95: 0 | Y95: 0 | Z95: 0 | AA95: 0 | AB95: 0 | AC95: 0 | AD95: 0 | AE95: 0 | AF95: 0 | AG95: 0 | AH95: 0 | AI95: 0 | AJ95: 0 | AK95: 0 | AL95: 0 | AM95: 0 | AN95: 0 | AO95: 0 | AP95: 0 | AQ95: 0 | AR95: 0 | AS95: 0 | AT95: 0 | AU95: 0 | AV95: 0 | AW95: 0 | AX95: 0 | AY95: 0 | AZ95: 0 | BA95: 0 | BB95: 0.01714471367 | BC95: 0.01662242997 | BD95: 0.01610014626 | BE95: 0.01557786255 | BF95: 0.01505557885
A96: 96 | B96: Non-depreciable assets | D96: 2.948369148 | E96: 2.948369148 | F96: 2.928549918 | G96: 2.928549918 | H96: 3.70382615 | I96: 3.675487401 | J96: 3.647764712 | K96: 3.647764712 | L96: 3.020371172 | M96: 2.999542918 | N96: 2.979167451 | O96: 2.979167451 | P96: 4.43849622 | Q96: 4.402084174 | R96: 4.366463693 | S96: 4.366463693 | T96: 3.658442134 | U96: 3.658442134 | V96: 3.63090472 | W96: 3.63090472 | X96: 3.561 | Y96: 3.534230769 | Z96: 3.508043478 | AA96: 3.508043478 | AB96: 3.894125 | AC96: 3.863695055 | AD96: 3.83392663 | AE96: 3.83392663 | AF96: 3.8985 | AG96: 3.868021978 | AH96: 3.838206522 | AI96: 3.838206522 | AJ96: 3.656002747 | AK96: 3.656002747 | AL96: 3.628491848 | AM96: 3.628491848 | AN96: 3.88325 | AO96: 3.85293956 | AP96: 3.823288043 | AQ96: 3.823288043 | AR96: 3.823288043 | AS96: 3.823288043 | AT96: 3.823288043 | AU96: 3.823288043 | AV96: 3.823288043 | AW96: 4.092281105 | AX96: 4.092281105 | AY96: 4.092281105 | AZ96: 4.092281105 | BA96: 4.092281105 | BB96: 4.092281105 | BC96: 4.092281105 | BD96: 4.092281105 | BE96: 4.092281105 | BF96: 4.092281105
A97: 97 | B97: Total | D97: 512.3542726 | E97: 510.6812074 | F97: 508.9784195 | G97: 507.2855475 | H97: 507.5448639 | I97: 506.9821673 | J97: 506.4016887 | K97: 505.8305348 | L97: 502.7955854 | M97: 500.3632851 | N97: 497.9275213 | O97: 495.5082167 | P97: 496.7991657 | Q97: 496.5723124 | R97: 496.3241892 | S97: 496.089625 | T97: 494.1251487 | U97: 492.8483494 | V97: 491.5480768 | W97: 490.254997 | X97: 487.9811024 | Y97: 485.6649543 | Z97: 482.9186846 | AA97: 480.1918203 | AB97: 477.9519931 | AC97: 475.8060582 | AD97: 473.5586518 | AE97: 471.0359144 | AF97: 468.7805148 | AG97: 466.5894859 | AH97: 463.8700789 | AI97: 460.9624448 | AJ97: 457.8169372 | AK97: 455.3539411 | AL97: 452.7213459 | AM97: 450.3456326 | AN97: 448.4789919 | AO97: 446.7259949 | AP97: 444.2113322 | AQ97: 442.5623507 | AR97: 432.2627235 | AS97: 421.2829256 | AT97: 410.0546066 | AU97: 400.4881677 | AV97: 390.3624896 | AW97: 413.7801096 | AX97: 403.6894352 | AY97: 393.5653294 | AZ97: 382.767607 | BA97: 372.9542808 | BB97: 365.4873563 | BC97: 354.8241776 | BD97: 343.7634294 | BE97: 332.4803028 | BF97: 322.5810305
A98: 98 | B98: ICB Account
A99: 99 | B99: Life (years)
A100: 100 | B100: Pipeline and laterals | D100: 64.5 | E100: 64.25 | F100: 64 | G100: 63.75 | H100: 63.5 | I100: 63.25 | J100: 63 | K100: 62.75 | L100: 62.5 | M100: 62.25 | N100: 62 | O100: 61.75 | P100: 61.5 | Q100: 61.25 | R100: 61 | S100: 60.75 | T100: 60.5 | U100: 60.25 | V100: 60 | W100: 59.75 | X100: 59.5 | Y100: 59.25 | Z100: 59 | AA100: 58.75 | AB100: 58.5 | AC100: 58.25 | AD100: 58 | AE100: 57.75 | AF100: 57.5 | AG100: 57.25 | AH100: 57 | AI100: 56.75 | AJ100: 56.5 | AK100: 56.25 | AL100: 56 | AM100: 55.75 | AN100: 55.5 | AO100: 55.25 | AP100: 55 | AQ100: 54.75 | AR100: 54.5 | AS100: 53.5 | AT100: 52.5 | AU100: 51.5 | AV100: 50.5 | AW100: 49.5 | AX100: 48.5 | AY100: 47.5 | AZ100: 46.5 | BA100: 45.5 | BB100: 44.5 | BC100: 43.5 | BD100: 42.5 | BE100: 41.5 | BF100: 40.5
A101: 101 | B101: Main line valve and scraper stations | D101: 44.5 | E101: 44.25 | F101: 44 | G101: 43.75 | H101: 43.5 | I101: 43.25 | J101: 43 | K101: 42.75 | L101: 42.5 | M101: 42.25 | N101: 42 | O101: 41.75 | P101: 41.5 | Q101: 41.25 | R101: 41 | S101: 40.75 | T101: 40.5 | U101: 40.25 | V101: 40 | W101: 39.75 | X101: 39.5 | Y101: 39.25 | Z101: 39 | AA101: 38.75 | AB101: 38.5 | AC101: 38.25 | AD101: 38 | AE101: 37.75 | AF101: 37.5 | AG101: 37.25 | AH101: 37 | AI101: 36.75 | AJ101: 36.5 | AK101: 36.25 | AL101: 36 | AM101: 35.75 | AN101: 35.5 | AO101: 35.25 | AP101: 35 | AQ101: 34.75 | AR101: 34.5 | AS101: 33.5 | AT101: 32.5 | AU101: 31.5 | AV101: 30.5 | AW101: 29.5 | AX101: 28.5 | AY101: 27.5 | AZ101: 26.5 | BA101: 25.5 | BB101: 24.5 | BC101: 23.5 | BD101: 22.5 | BE101: 21.5 | BF101: 20.5
A102: 102 | B102: Compressor stations | D102: 24.5 | E102: 24.25 | F102: 24 | G102: 23.75 | H102: 23.5 | I102: 23.25 | J102: 23 | K102: 22.75 | L102: 22.5 | M102: 22.25 | N102: 22 | O102: 21.75 | P102: 21.5 | Q102: 21.25 | R102: 21 | S102: 20.75 | T102: 20.5 | U102: 20.25 | V102: 20 | W102: 19.75 | X102: 19.5 | Y102: 19.25 | Z102: 19 | AA102: 18.75 | AB102: 18.5 | AC102: 18.25 | AD102: 18 | AE102: 17.75 | AF102: 17.5 | AG102: 17.25 | AH102: 17 | AI102: 16.75 | AJ102: 16.5 | AK102: 16.25 | AL102: 16 | AM102: 15.75 | AN102: 15.5 | AO102: 15.25 | AP102: 15 | AQ102: 14.75 | AR102: 14.5 | AS102: 13.5 | AT102: 12.5 | AU102: 11.5 | AV102: 10.5 | AW102: 9.5 | AX102: 8.5 | AY102: 7.5 | AZ102: 6.5 | BA102: 5.5 | BB102: 4.5 | BC102: 3.5 | BD102: 2.5 | BE102: 1.5 | BF102: 0.5
A103: 103 | B103: Receipt and delivery point facilities | D103: 24.5 | E103: 24.25 | F103: 24 | G103: 23.75 | H103: 23.5 | I103: 23.25 | J103: 23 | K103: 22.75 | L103: 22.5 | M103: 22.25 | N103: 22 | O103: 21.75 | P103: 21.5 | Q103: 21.25 | R103: 21 | S103: 20.75 | T103: 20.5 | U103: 20.25 | V103: 20 | W103: 19.75 | X103: 19.5 | Y103: 19.25 | Z103: 19 | AA103: 18.75 | AB103: 18.5 | AC103: 18.25 | AD103: 18 | AE103: 17.75 | AF103: 17.5 | AG103: 17.25 | AH103: 17 | AI103: 16.75 | AJ103: 16.5 | AK103: 16.25 | AL103: 16 | AM103: 15.75 | AN103: 15.5 | AO103: 15.25 | AP103: 15 | AQ103: 14.75 | AR103: 14.5 | AS103: 13.5 | AT103: 12.5 | AU103: 11.5 | AV103: 10.5 | AW103: 9.5 | AX103: 8.5 | AY103: 7.5 | AZ103: 6.5 | BA103: 5.5 | BB103: 4.5 | BC103: 3.5 | BD103: 2.5 | BE103: 1.5 | BF103: 0.5
A104: 104 | B104: SCADA and communications | D104: 9.5 | E104: 9.25 | F104: 9 | G104: 8.75 | H104: 8.5 | I104: 8.25 | J104: 8 | K104: 7.75 | L104: 7.5 | M104: 7.25 | N104: 7 | O104: 6.75 | P104: 6.5 | Q104: 6.25 | R104: 6 | S104: 5.75 | T104: 5.5 | U104: 5.25 | V104: 5 | W104: 4.75 | X104: 4.5 | Y104: 4.25 | Z104: 4 | AA104: 3.75 | AB104: 3.5 | AC104: 3.25 | AD104: 3 | AE104: 2.75 | AF104: 2.5 | AG104: 2.25 | AH104: 2 | AI104: 1.75 | AJ104: 1.5 | AK104: 1.25 | AL104: 1 | AM104: 0.75 | AN104: 0.5 | AO104: 0.25 | AP104: 0 | AQ104: 0 | AR104: 0 | AS104: 0 | AT104: 0 | AU104: 0 | AV104: 0 | AW104: 0 | AX104: 0 | AY104: 0 | AZ104: 0 | BA104: 0 | BB104: 0 | BC104: 0 | BD104: 0 | BE104: 0 | BF104: 0
A105: 105 | B105: Cathodic protection | D105: 9.5 | E105: 9.25 | F105: 9 | G105: 8.75 | H105: 8.5 | I105: 8.25 | J105: 8 | K105: 7.75 | L105: 7.5 | M105: 7.25 | N105: 7 | O105: 6.75 | P105: 6.5 | Q105: 6.25 | R105: 6 | S105: 5.75 | T105: 5.5 | U105: 5.25 | V105: 5 | W105: 4.75 | X105: 4.5 | Y105: 4.25 | Z105: 4 | AA105: 3.75 | AB105: 3.5 | AC105: 3.25 | AD105: 3 | AE105: 2.75 | AF105: 2.5 | AG105: 2.25 | AH105: 2 | AI105: 1.75 | AJ105: 1.5 | AK105: 1.25 | AL105: 1 | AM105: 0.75 | AN105: 0.5 | AO105: 0.25 | AP105: 0 | AQ105: 0 | AR105: 0 | AS105: 0 | AT105: 0 | AU105: 0 | AV105: 0 | AW105: 0 | AX105: 0 | AY105: 0 | AZ105: 0 | BA105: 0 | BB105: 0 | BC105: 0 | BD105: 0 | BE105: 0 | BF105: 0
A106: 106 | B106: Maintenance bases and depots | D106: 44.5 | E106: 44.25 | F106: 44 | G106: 43.75 | H106: 43.5 | I106: 43.25 | J106: 43 | K106: 42.75 | L106: 42.5 | M106: 42.25 | N106: 42 | O106: 41.75 | P106: 41.5 | Q106: 41.25 | R106: 41 | S106: 40.75 | T106: 40.5 | U106: 40.25 | V106: 40 | W106: 39.75 | X106: 39.5 | Y106: 39.25 | Z106: 39 | AA106: 38.75 | AB106: 38.5 | AC106: 38.25 | AD106: 38 | AE106: 37.75 | AF106: 37.5 | AG106: 37.25 | AH106: 37 | AI106: 36.75 | AJ106: 36.5 | AK106: 36.25 | AL106: 36 | AM106: 35.75 | AN106: 35.5 | AO106: 35.25 | AP106: 35 | AQ106: 34.75 | AR106: 34.5 | AS106: 33.5 | AT106: 32.5 | AU106: 31.5 | AV106: 30.5 | AW106: 29.5 | AX106: 28.5 | AY106: 27.5 | AZ106: 26.5 | BA106: 25.5 | BB106: 24.5 | BC106: 23.5 | BD106: 22.5 | BE106: 21.5 | BF106: 20.5
A107: 107 | B107: Other assets | D107: 4.5 | E107: 4.25 | F107: 4 | G107: 3.75 | H107: 3.5 | I107: 3.25 | J107: 3 | K107: 2.75 | L107: 2.5 | M107: 2.25 | N107: 2 | O107: 1.75 | P107: 1.5 | Q107: 1.25 | R107: 1 | S107: 0.75 | T107: 0.5 | U107: 0.25 | V107: 0 | W107: 0 | X107: 0 | Y107: 0 | Z107: 0 | AA107: 0 | AB107: 0 | AC107: 0 | AD107: 0 | AE107: 0 | AF107: 0 | AG107: 0 | AH107: 0 | AI107: 0 | AJ107: 0 | AK107: 0 | AL107: 0 | AM107: 0 | AN107: 0 | AO107: 0 | AP107: 0 | AQ107: 0 | AR107: 0 | AS107: 0 | AT107: 0 | AU107: 0 | AV107: 0 | AW107: 0 | AX107: 0 | AY107: 0 | AZ107: 0 | BA107: 0 | BB107: 0 | BC107: 0 | BD107: 0 | BE107: 0 | BF107: 0
A108: 108 | B108: Equity Raising Cost | D108: 0 | E108: 0 | F108: 0 | G108: 0 | H108: 0 | I108: 0 | J108: 0 | K108: 0 | L108: 0 | M108: 0 | N108: 0 | O108: 0 | P108: 0 | Q108: 0 | R108: 0 | S108: 0 | T108: 0 | U108: 0 | V108: 0 | W108: 0 | X108: 0 | Y108: 0 | Z108: 0 | AA108: 0 | AB108: 0 | AC108: 0 | AD108: 0 | AE108: 0 | AF108: 0 | AG108: 0 | AH108: 0 | AI108: 0 | AJ108: 0 | AK108: 0 | AL108: 0 | AM108: 0 | AN108: 0 | AO108: 0 | AP108: 0 | AQ108: 0 | AR108: 0 | AS108: 0 | AT108: 0 | AU108: 0 | AV108: 0 | AW108: 0 | AX108: 0 | AY108: 0 | AZ108: 0 | BA108: 0 | BB108: 0 | BC108: 0 | BD108: 0 | BE108: 0 | BF108: 0
A109: 109 | B109: Non-depreciable assets
A110: 110
A111: 111 | B111: ICB Opening Asset Value ($m) | D111: $OD | E111: $OD | F111: $OD | G111: $OD | H111: $OD | I111: $OD | J111: $OD | K111: $OD | L111: $OD | M111: $OD | N111: $OD | O111: $OD | P111: $OD | Q111: $OD | R111: $OD | S111: $OD | T111: $OD | U111: $OD | V111: $OD | W111: $OD | X111: $OD | Y111: $OD | Z111: $OD | AA111: $OD | AB111: $OD | AC111: $OD | AD111: $OD | AE111: $OD | AF111: $OD | AG111: $OD | AH111: $OD | AI111: $OD | AJ111: $OD | AK111: $OD | AL111: $OD | AM111: $OD | AN111: $OD | AO111: $OD | AP111: $OD | AQ111: $OD | AR111: $OD | AS111: $OD | AT111: $OD | AU111: $OD | AV111: $OD | AW111: $ 31/12/2018 | AX111: $ 31/12/2018 | AY111: $ 31/12/2018 | AZ111: $ 31/12/2018 | BA111: $ 31/12/2018 | BB111: $ 31/12/2018 | BC111: $ 31/12/2018 | BD111: $ 31/12/2018 | BE111: $ 31/12/2018 | BF111: $ 31/12/2018
A112: 112 | B112: Pipeline and laterals | D112: 438.6555358 | E112: 436.9553205 | F112: 435.2551053 | G112: 433.55489 | H112: 431.8546748 | I112: 430.1544595 | J112: 428.4542443 | K112: 426.754029 | L112: 425.0538137 | M112: 423.3535985 | N112: 421.6533832 | O112: 419.953168 | P112: 418.2529527 | Q112: 416.5527375 | R112: 414.8525222 | S112: 413.152307 | T112: 411.4520917 | U112: 409.7518765 | V112: 408.0516612 | W112: 406.3514459 | X112: 404.6512307 | Y112: 402.9510154 | Z112: 401.2508002 | AA112: 399.5505849 | AB112: 397.8503697 | AC112: 396.1501544 | AD112: 394.4499392 | AE112: 392.7497239 | AF112: 391.0495086 | AG112: 389.3492934 | AH112: 387.6490781 | AI112: 385.9488629 | AJ112: 384.2486476 | AK112: 382.5484324 | AL112: 380.8482171 | AM112: 379.1480019 | AN112: 377.4477866 | AO112: 375.7475714 | AP112: 374.0473561 | AQ112: 372.3471408 | AR112: 370.6469256 | AS112: 363.8460646 | AT112: 357.0452035 | AU112: 350.2443425 | AV112: 343.4434815 | AW112: 360.3276079 | AX112: 353.0482622 | AY112: 345.7689166 | AZ112: 338.489571 | BA112: 331.2102254 | BB112: 323.9308798 | BC112: 316.6515342 | BD112: 309.3721886 | BE112: 302.092843 | BF112: 294.8134973
A113: 113 | B113: Main line valve and scraper stations | D113: 9.177771758 | E113: 9.126211242 | F113: 9.074650727 | G113: 9.023090211 | H113: 8.971529696 | I113: 8.91996918 | J113: 8.868408665 | K113: 8.816848149 | L113: 8.765287634 | M113: 8.713727118 | N113: 8.662166603 | O113: 8.610606087 | P113: 8.559045572 | Q113: 8.507485056 | R113: 8.455924541 | S113: 8.404364025 | T113: 8.35280351 | U113: 8.301242994 | V113: 8.249682479 | W113: 8.198121963 | X113: 8.146561448 | Y113: 8.095000932 | Z113: 8.043440417 | AA113: 7.991879901 | AB113: 7.940319386 | AC113: 7.88875887 | AD113: 7.837198355 | AE113: 7.785637839 | AF113: 7.734077324 | AG113: 7.682516808 | AH113: 7.630956293 | AI113: 7.579395777 | AJ113: 7.527835262 | AK113: 7.476274746 | AL113: 7.424714231 | AM113: 7.373153715 | AN113: 7.3215932 | AO113: 7.270032684 | AP113: 7.218472169 | AQ113: 7.166911653 | AR113: 7.115351138 | AS113: 6.909109076 | AT113: 6.702867014 | AU113: 6.496624952 | AV113: 6.29038289 | AW113: 6.512199517 | AX113: 6.291446991 | AY113: 6.070694465 | AZ113: 5.849941939 | BA113: 5.629189413 | BB113: 5.408436887 | BC113: 5.187684361 | BD113: 4.966931835 | BE113: 4.746179309 | BF113: 4.525426783
A114: 114 | B114: Compressor stations | D114: 41.57599489 | E114: 41.15175004 | F114: 40.72750519 | G114: 40.30326035 | H114: 39.8790155 | I114: 39.45477066 | J114: 39.03052581 | K114: 38.60628097 | L114: 38.18203612 | M114: 37.75779127 | N114: 37.33354643 | O114: 36.90930158 | P114: 36.48505674 | Q114: 36.06081189 | R114: 35.63656704 | S114: 35.2123222 | T114: 34.78807735 | U114: 34.36383251 | V114: 33.93958766 | W114: 33.51534282 | X114: 33.09109797 | Y114: 32.66685312 | Z114: 32.24260828 | AA114: 31.81836343 | AB114: 31.39411859 | AC114: 30.96987374 | AD114: 30.5456289 | AE114: 30.12138405 | AF114: 29.6971392 | AG114: 29.27289436 | AH114: 28.84864951 | AI114: 28.42440467 | AJ114: 28.00015982 | AK114: 27.57591498 | AL114: 27.15167013 | AM114: 26.72742528 | AN114: 26.30318044 | AO114: 25.87893559 | AP114: 25.45469075 | AQ114: 25.0304459 | AR114: 24.60620105 | AS114: 22.90922167 | AT114: 21.21224229 | AU114: 19.51526291 | AV114: 17.81828352 | AW114: 17.25554224 | AX114: 15.43916937 | AY114: 13.6227965 | AZ114: 11.80642363 | BA114: 9.990050768 | BB114: 8.173677901 | BC114: 6.357305034 | BD114: 4.540932167 | BE114: 2.7245593 | BF114: 0.9081864334
A115: 115 | B115: Receipt and delivery point facilities | D115: 1.534343975 | E115: 1.518687404 | F115: 1.503030833 | G115: 1.487374262 | H115: 1.47171769 | I115: 1.456061119 | J115: 1.440404548 | K115: 1.424747977 | L115: 1.409091406 | M115: 1.393434835 | N115: 1.377778263 | O115: 1.362121692 | P115: 1.346465121 | Q115: 1.33080855 | R115: 1.315151979 | S115: 1.299495408 | T115: 1.283838836 | U115: 1.268182265 | V115: 1.252525694 | W115: 1.236869123 | X115: 1.221212552 | Y115: 1.20555598 | Z115: 1.189899409 | AA115: 1.174242838 | AB115: 1.158586267 | AC115: 1.142929696 | AD115: 1.127273125 | AE115: 1.111616553 | AF115: 1.095959982 | AG115: 1.080303411 | AH115: 1.06464684 | AI115: 1.048990269 | AJ115: 1.033333698 | AK115: 1.017677126 | AL115: 1.002020555 | AM115: 0.986363984 | AN115: 0.9707074128 | AO115: 0.9550508417 | AP115: 0.9393942705 | AQ115: 0.9237376993 | AR115: 0.9080811281 | AS115: 0.8454548434 | AT115: 0.7828285587 | AU115: 0.720202274 | AV115: 0.6575759893 | AW115: 0.6368082674 | AX115: 0.5697758182 | AY115: 0.502743369 | AZ115: 0.4357109198 | BA115: 0.3686784706 | BB115: 0.3016460214 | BC115: 0.2346135722 | BD115: 0.167581123 | BE115: 0.1005486738 | BF115: 0.0335162246
A116: 116 | B116: SCADA and communications | D116: 10.12958811 | E116: 9.863019999 | F116: 9.596451891 | G116: 9.329883783 | H116: 9.063315675 | I116: 8.796747567 | J116: 8.530179459 | K116: 8.263611351 | L116: 7.997043242 | M116: 7.730475134 | N116: 7.463907026 | O116: 7.197338918 | P116: 6.93077081 | Q116: 6.664202702 | R116: 6.397634594 | S116: 6.131066486 | T116: 5.864498378 | U116: 5.59793027 | V116: 5.331362162 | W116: 5.064794054 | X116: 4.798225945 | Y116: 4.531657837 | Z116: 4.265089729 | AA116: 3.998521621 | AB116: 3.731953513 | AC116: 3.465385405 | AD116: 3.198817297 | AE116: 2.932249189 | AF116: 2.665681081 | AG116: 2.399112973 | AH116: 2.132544865 | AI116: 1.865976757 | AJ116: 1.599408648 | AK116: 1.33284054 | AL116: 1.066272432 | AM116: 0.7997043242 | AN116: 0.5331362162 | AO116: 0.2665681081 | AP116: 1.33226763e-15 | AQ116: 1.33226763e-15 | AR116: 1.33226763e-15 | AS116: 1.33226763e-15 | AT116: 1.33226763e-15 | AU116: 1.33226763e-15 | AV116: 1.33226763e-15 | AW116: 1.426001281e-15 | AX116: 0 | AY116: 0 | AZ116: 0 | BA116: 0 | BB116: 0 | BC116: 0 | BD116: 0 | BE116: 0 | BF116: 0
A117: 117 | B117: Cathodic protection | D117: 1.828833019 | E117: 1.780705834 | F117: 1.732578649 | G117: 1.684451464 | H117: 1.63632428 | I117: 1.588197095 | J117: 1.54006991 | K117: 1.491942726 | L117: 1.443815541 | M117: 1.395688356 | N117: 1.347561172 | O117: 1.299433987 | P117: 1.251306802 | Q117: 1.203179617 | R117: 1.155052433 | S117: 1.106925248 | T117: 1.058798063 | U117: 1.010670879 | V117: 0.962543694 | W117: 0.9144165093 | X117: 0.8662893246 | Y117: 0.8181621399 | Z117: 0.7700349552 | AA117: 0.7219077705 | AB117: 0.6737805858 | AC117: 0.6256534011 | AD117: 0.5775262164 | AE117: 0.5293990317 | AF117: 0.481271847 | AG117: 0.4331446623 | AH117: 0.3850174776 | AI117: 0.3368902929 | AJ117: 0.2887631082 | AK117: 0.2406359235 | AL117: 0.1925087388 | AM117: 0.1443815541 | AN117: 0.0962543694 | AO117: 0.0481271847 | AP117: 0 | AQ117: 0 | AR117: 0 | AS117: 0 | AT117: 0 | AU117: 0 | AV117: 0 | AW117: 0 | AX117: 0 | AY117: 0 | AZ117: 0 | BA117: 0 | BB117: 0 | BC117: 0 | BD117: 0 | BE117: 0 | BF117: 0
A118: 118 | B118: Maintenance bases and depots | D118: 7.727642558 | E118: 7.684228835 | F118: 7.640815113 | G118: 7.597401391 | H118: 7.553987669 | I118: 7.510573947 | J118: 7.467160224 | K118: 7.423746502 | L118: 7.38033278 | M118: 7.336919058 | N118: 7.293505335 | O118: 7.250091613 | P118: 7.206677891 | Q118: 7.163264169 | R118: 7.119850446 | S118: 7.076436724 | T118: 7.033023002 | U118: 6.98960928 | V118: 6.946195557 | W118: 6.902781835 | X118: 6.859368113 | Y118: 6.815954391 | Z118: 6.772540669 | AA118: 6.729126946 | AB118: 6.685713224 | AC118: 6.642299502 | AD118: 6.59888578 | AE118: 6.555472057 | AF118: 6.512058335 | AG118: 6.468644613 | AH118: 6.425230891 | AI118: 6.381817168 | AJ118: 6.338403446 | AK118: 6.294989724 | AL118: 6.251576002 | AM118: 6.20816228 | AN118: 6.164748557 | AO118: 6.121334835 | AP118: 6.077921113 | AQ118: 6.034507391 | AR118: 5.991093668 | AS118: 5.817438779 | AT118: 5.64378389 | AU118: 5.470129002 | AV118: 5.296474113 | AW118: 5.483242715 | AX118: 5.297370081 | AY118: 5.111497446 | AZ118: 4.925624812 | BA118: 4.739752177 | BB118: 4.553879543 | BC118: 4.368006909 | BD118: 4.182134274 | BE118: 3.99626164 | BF118: 3.810389005
A119: 119 | B119: Other assets | D119: 0.4393552199 | E119: 0.4149465966 | F119: 0.3905379733 | G119: 0.3661293499 | H119: 0.3417207266 | I119: 0.3173121033 | J119: 0.29290348 | K119: 0.2684948566 | L119: 0.2440862333 | M119: 0.21967761 | N119: 0.1952689866 | O119: 0.1708603633 | P119: 0.14645174 | Q119: 0.1220431166 | R119: 0.09763449332 | S119: 0.07322586999 | T119: 0.04881724666 | U119: 0.02440862333 | V119: 0 | W119: 0 | X119: 0 | Y119: 0 | Z119: 0 | AA119: 0 | AB119: 0 | AC119: 0 | AD119: 0 | AE119: 0 | AF119: 0 | AG119: 0 | AH119: 0 | AI119: 0 | AJ119: 0 | AK119: 0 | AL119: 0 | AM119: 0 | AN119: 0 | AO119: 0 | AP119: 0 | AQ119: 0 | AR119: 0 | AS119: 0 | AT119: 0 | AU119: 0 | AV119: 0 | AW119: 0 | AX119: 0 | AY119: 0 | AZ119: 0 | BA119: 0 | BB119: 0 | BC119: 0 | BD119: 0 | BE119: 0 | BF119: 0
A120: 120 | B120: Equity Raising Cost | D120: 0 | E120: 0 | F120: 0 | G120: 0 | H120: 0 | I120: 0 | J120: 0 | K120: 0 | L120: 0 | M120: 0 | N120: 0 | O120: 0 | P120: 0 | Q120: 0 | R120: 0 | S120: 0 | T120: 0 | U120: 0 | V120: 0 | W120: 0 | X120: 0 | Y120: 0 | Z120: 0 | AA120: 0 | AB120: 0 | AC120: 0 | AD120: 0 | AE120: 0 | AF120: 0 | AG120: 0 | AH120: 0 | AI120: 0 | AJ120: 0 | AK120: 0 | AL120: 0 | AM120: 0 | AN120: 0 | AO120: 0 | AP120: 0 | AQ120: 0 | AR120: 0 | AS120: 0 | AT120: 0 | AU120: 0 | AV120: 0 | AW120: 0 | AX120: 0 | AY120: 0 | AZ120: 0 | BA120: 0 | BB120: 0 | BC120: 0 | BD120: 0 | BE120: 0 | BF120: 0
A121: 121 | B121: Non-depreciable assets | D121: 2.581675929 | E121: 2.581675929 | F121: 2.581675929 | G121: 2.581675929 | H121: 2.581675929 | I121: 2.581675929 | J121: 2.581675929 | K121: 2.581675929 | L121: 2.581675929 | M121: 2.581675929 | N121: 2.581675929 | O121: 2.581675929 | P121: 2.581675929 | Q121: 2.581675929 | R121: 2.581675929 | S121: 2.581675929 | T121: 2.581675929 | U121: 2.581675929 | V121: 2.581675929 | W121: 2.581675929 | X121: 2.581675929 | Y121: 2.581675929 | Z121: 2.581675929 | AA121: 2.581675929 | AB121: 2.581675929 | AC121: 2.581675929 | AD121: 2.581675929 | AE121: 2.581675929 | AF121: 2.581675929 | AG121: 2.581675929 | AH121: 2.581675929 | AI121: 2.581675929 | AJ121: 2.581675929 | AK121: 2.581675929 | AL121: 2.581675929 | AM121: 2.581675929 | AN121: 2.581675929 | AO121: 2.581675929 | AP121: 2.581675929 | AQ121: 2.581675929 | AR121: 2.581675929 | AS121: 2.581675929 | AT121: 2.581675929 | AU121: 2.581675929 | AV121: 2.581675929 | AW121: 2.763313541 | AX121: 2.763313541 | AY121: 2.763313541 | AZ121: 2.763313541 | BA121: 2.763313541 | BB121: 2.763313541 | BC121: 2.763313541 | BD121: 2.763313541 | BE121: 2.763313541 | BF121: 2.763313541
A122: 122 | B122: Total | D122: 513.6507412 | E122: 511.0765464 | F122: 508.5023516 | G122: 505.9281568 | H122: 503.3539619 | I122: 500.7797671 | J122: 498.2055723 | K122: 495.6313775 | L122: 493.0571826 | M122: 490.4829878 | N122: 487.908793 | O122: 485.3345982 | P122: 482.7604033 | Q122: 480.1862085 | R122: 477.6120137 | S122: 475.0378189 | T122: 472.463624 | U122: 469.8894292 | V122: 467.3152344 | W122: 464.7654482 | X122: 462.215662 | Y122: 459.6658758 | Z122: 457.1160896 | AA122: 454.5663034 | AB122: 452.0165172 | AC122: 449.466731 | AD122: 446.9169448 | AE122: 444.3671586 | AF122: 441.8173724 | AG122: 439.2675861 | AH122: 436.7177999 | AI122: 434.1680137 | AJ122: 431.6182275 | AK122: 429.0684413 | AL122: 426.5186551 | AM122: 423.9688689 | AN122: 421.4190827 | AO122: 418.8692965 | AP122: 416.3195103 | AQ122: 414.0844194 | AR122: 411.8493285 | AS122: 402.9089649 | AT122: 393.9686012 | AU122: 385.0282376 | AV122: 376.087874 | AW122: 392.9787141 | AX122: 383.409338 | AY122: 373.839962 | AZ122: 364.2705859 | BA122: 354.7012098 | BB122: 345.1318337 | BC122: 335.5624576 | BD122: 325.9930815 | BE122: 316.4237054 | BF122: 306.8543293
A123: 123 | B123: ICB Depreciation ($m)
A124: 124 | B124: Pipeline and laterals | D124: 1.700215255 | E124: 1.700215255 | F124: 1.700215255 | G124: 1.700215255 | H124: 1.700215255 | I124: 1.700215255 | J124: 1.700215255 | K124: 1.700215255 | L124: 1.700215255 | M124: 1.700215255 | N124: 1.700215255 | O124: 1.700215255 | P124: 1.700215255 | Q124: 1.700215255 | R124: 1.700215255 | S124: 1.700215255 | T124: 1.700215255 | U124: 1.700215255 | V124: 1.700215255 | W124: 1.700215255 | X124: 1.700215255 | Y124: 1.700215255 | Z124: 1.700215255 | AA124: 1.700215255 | AB124: 1.700215255 | AC124: 1.700215255 | AD124: 1.700215255 | AE124: 1.700215255 | AF124: 1.700215255 | AG124: 1.700215255 | AH124: 1.700215255 | AI124: 1.700215255 | AJ124: 1.700215255 | AK124: 1.700215255 | AL124: 1.700215255 | AM124: 1.700215255 | AN124: 1.700215255 | AO124: 1.700215255 | AP124: 1.700215255 | AQ124: 1.700215255 | AR124: 6.80086102 | AS124: 6.80086102 | AT124: 6.80086102 | AU124: 6.80086102 | AV124: 6.80086102 | AW124: 7.279345613 | AX124: 7.279345613 | AY124: 7.279345613 | AZ124: 7.279345613 | BA124: 7.279345613 | BB124: 7.279345613 | BC124: 7.279345613 | BD124: 7.279345613 | BE124: 7.279345613 | BF124: 7.279345613
A125: 125 | B125: Main line valve and scraper stations | D125: 0.05156051549 | E125: 0.05156051549 | F125: 0.05156051549 | G125: 0.05156051549 | H125: 0.05156051549 | I125: 0.05156051549 | J125: 0.05156051549 | K125: 0.05156051549 | L125: 0.05156051549 | M125: 0.05156051549 | N125: 0.05156051549 | O125: 0.05156051549 | P125: 0.05156051549 | Q125: 0.05156051549 | R125: 0.05156051549 | S125: 0.05156051549 | T125: 0.05156051549 | U125: 0.05156051549 | V125: 0.05156051549 | W125: 0.05156051549 | X125: 0.05156051549 | Y125: 0.05156051549 | Z125: 0.05156051549 | AA125: 0.05156051549 | AB125: 0.05156051549 | AC125: 0.05156051549 | AD125: 0.05156051549 | AE125: 0.05156051549 | AF125: 0.05156051549 | AG125: 0.05156051549 | AH125: 0.05156051549 | AI125: 0.05156051549 | AJ125: 0.05156051549 | AK125: 0.05156051549 | AL125: 0.05156051549 | AM125: 0.05156051549 | AN125: 0.05156051549 | AO125: 0.05156051549 | AP125: 0.05156051549 | AQ125: 0.05156051549 | AR125: 0.206242062 | AS125: 0.206242062 | AT125: 0.206242062 | AU125: 0.206242062 | AV125: 0.206242062 | AW125: 0.220752526 | AX125: 0.220752526 | AY125: 0.220752526 | AZ125: 0.220752526 | BA125: 0.220752526 | BB125: 0.220752526 | BC125: 0.220752526 | BD125: 0.220752526 | BE125: 0.220752526 | BF125: 0.220752526
A126: 126 | B126: Compressor stations | D126: 0.4242448458 | E126: 0.4242448458 | F126: 0.4242448458 | G126: 0.4242448458 | H126: 0.4242448458 | I126: 0.4242448458 | J126: 0.4242448458 | K126: 0.4242448458 | L126: 0.4242448458 | M126: 0.4242448458 | N126: 0.4242448458 | O126: 0.4242448458 | P126: 0.4242448458 | Q126: 0.4242448458 | R126: 0.4242448458 | S126: 0.4242448458 | T126: 0.4242448458 | U126: 0.4242448458 | V126: 0.4242448458 | W126: 0.4242448458 | X126: 0.4242448458 | Y126: 0.4242448458 | Z126: 0.4242448458 | AA126: 0.4242448458 | AB126: 0.4242448458 | AC126: 0.4242448458 | AD126: 0.4242448458 | AE126: 0.4242448458 | AF126: 0.4242448458 | AG126: 0.4242448458 | AH126: 0.4242448458 | AI126: 0.4242448458 | AJ126: 0.4242448458 | AK126: 0.4242448458 | AL126: 0.4242448458 | AM126: 0.4242448458 | AN126: 0.4242448458 | AO126: 0.4242448458 | AP126: 0.4242448458 | AQ126: 0.4242448458 | AR126: 1.696979383 | AS126: 1.696979383 | AT126: 1.696979383 | AU126: 1.696979383 | AV126: 1.696979383 | AW126: 1.816372867 | AX126: 1.816372867 | AY126: 1.816372867 | AZ126: 1.816372867 | BA126: 1.816372867 | BB126: 1.816372867 | BC126: 1.816372867 | BD126: 1.816372867 | BE126: 1.816372867 | BF126: 0.9081864334
A127: 127 | B127: Receipt and delivery point facilities | D127: 0.01565657117 | E127: 0.01565657117 | F127: 0.01565657117 | G127: 0.01565657117 | H127: 0.01565657117 | I127: 0.01565657117 | J127: 0.01565657117 | K127: 0.01565657117 | L127: 0.01565657117 | M127: 0.01565657117 | N127: 0.01565657117 | O127: 0.01565657117 | P127: 0.01565657117 | Q127: 0.01565657117 | R127: 0.01565657117 | S127: 0.01565657117 | T127: 0.01565657117 | U127: 0.01565657117 | V127: 0.01565657117 | W127: 0.01565657117 | X127: 0.01565657117 | Y127: 0.01565657117 | Z127: 0.01565657117 | AA127: 0.01565657117 | AB127: 0.01565657117 | AC127: 0.01565657117 | AD127: 0.01565657117 | AE127: 0.01565657117 | AF127: 0.01565657117 | AG127: 0.01565657117 | AH127: 0.01565657117 | AI127: 0.01565657117 | AJ127: 0.01565657117 | AK127: 0.01565657117 | AL127: 0.01565657117 | AM127: 0.01565657117 | AN127: 0.01565657117 | AO127: 0.01565657117 | AP127: 0.01565657117 | AQ127: 0.01565657117 | AR127: 0.0626262847 | AS127: 0.0626262847 | AT127: 0.0626262847 | AU127: 0.0626262847 | AV127: 0.0626262847 | AW127: 0.06703244919 | AX127: 0.06703244919 | AY127: 0.06703244919 | AZ127: 0.06703244919 | BA127: 0.06703244919 | BB127: 0.06703244919 | BC127: 0.06703244919 | BD127: 0.06703244919 | BE127: 0.06703244919 | BF127: 0.0335162246
A128: 128 | B128: SCADA and communications | D128: 0.2665681081 | E128: 0.2665681081 | F128: 0.2665681081 | G128: 0.2665681081 | H128: 0.2665681081 | I128: 0.2665681081 | J128: 0.2665681081 | K128: 0.2665681081 | L128: 0.2665681081 | M128: 0.2665681081 | N128: 0.2665681081 | O128: 0.2665681081 | P128: 0.2665681081 | Q128: 0.2665681081 | R128: 0.2665681081 | S128: 0.2665681081 | T128: 0.2665681081 | U128: 0.2665681081 | V128: 0.2665681081 | W128: 0.2665681081 | X128: 0.2665681081 | Y128: 0.2665681081 | Z128: 0.2665681081 | AA128: 0.2665681081 | AB128: 0.2665681081 | AC128: 0.2665681081 | AD128: 0.2665681081 | AE128: 0.2665681081 | AF128: 0.2665681081 | AG128: 0.2665681081 | AH128: 0.2665681081 | AI128: 0.2665681081 | AJ128: 0.2665681081 | AK128: 0.2665681081 | AL128: 0.2665681081 | AM128: 0.2665681081 | AN128: 0.2665681081 | AO128: 0.2665681081 | AP128: 0 | AQ128: 0 | AR128: 0 | AS128: 0 | AT128: 0 | AU128: 0 | AV128: 0 | AW128: 1.426001281e-15 | AX128: 0 | AY128: 0 | AZ128: 0 | BA128: 0 | BB128: 0 | BC128: 0 | BD128: 0 | BE128: 0 | BF128: 0
A129: 129 | B129: Cathodic protection | D129: 0.0481271847 | E129: 0.0481271847 | F129: 0.0481271847 | G129: 0.0481271847 | H129: 0.0481271847 | I129: 0.0481271847 | J129: 0.0481271847 | K129: 0.0481271847 | L129: 0.0481271847 | M129: 0.0481271847 | N129: 0.0481271847 | O129: 0.0481271847 | P129: 0.0481271847 | Q129: 0.0481271847 | R129: 0.0481271847 | S129: 0.0481271847 | T129: 0.0481271847 | U129: 0.0481271847 | V129: 0.0481271847 | W129: 0.0481271847 | X129: 0.0481271847 | Y129: 0.0481271847 | Z129: 0.0481271847 | AA129: 0.0481271847 | AB129: 0.0481271847 | AC129: 0.0481271847 | AD129: 0.0481271847 | AE129: 0.0481271847 | AF129: 0.0481271847 | AG129: 0.0481271847 | AH129: 0.0481271847 | AI129: 0.0481271847 | AJ129: 0.0481271847 | AK129: 0.0481271847 | AL129: 0.0481271847 | AM129: 0.0481271847 | AN129: 0.0481271847 | AO129: 0.0481271847 | AP129: 0 | AQ129: 0 | AR129: 0 | AS129: 0 | AT129: 0 | AU129: 0 | AV129: 0 | AW129: 0 | AX129: 0 | AY129: 0 | AZ129: 0 | BA129: 0 | BB129: 0 | BC129: 0 | BD129: 0 | BE129: 0 | BF129: 0
A130: 130 | B130: Maintenance bases and depots | D130: 0.04341372223 | E130: 0.04341372223 | F130: 0.04341372223 | G130: 0.04341372223 | H130: 0.04341372223 | I130: 0.04341372223 | J130: 0.04341372223 | K130: 0.04341372223 | L130: 0.04341372223 | M130: 0.04341372223 | N130: 0.04341372223 | O130: 0.04341372223 | P130: 0.04341372223 | Q130: 0.04341372223 | R130: 0.04341372223 | S130: 0.04341372223 | T130: 0.04341372223 | U130: 0.04341372223 | V130: 0.04341372223 | W130: 0.04341372223 | X130: 0.04341372223 | Y130: 0.04341372223 | Z130: 0.04341372223 | AA130: 0.04341372223 | AB130: 0.04341372223 | AC130: 0.04341372223 | AD130: 0.04341372223 | AE130: 0.04341372223 | AF130: 0.04341372223 | AG130: 0.04341372223 | AH130: 0.04341372223 | AI130: 0.04341372223 | AJ130: 0.04341372223 | AK130: 0.04341372223 | AL130: 0.04341372223 | AM130: 0.04341372223 | AN130: 0.04341372223 | AO130: 0.04341372223 | AP130: 0.04341372223 | AQ130: 0.04341372223 | AR130: 0.1736548889 | AS130: 0.1736548889 | AT130: 0.1736548889 | AU130: 0.1736548889 | AV130: 0.1736548889 | AW130: 0.1858726344 | AX130: 0.1858726344 | AY130: 0.1858726344 | AZ130: 0.1858726344 | BA130: 0.1858726344 | BB130: 0.1858726344 | BC130: 0.1858726344 | BD130: 0.1858726344 | BE130: 0.1858726344 | BF130: 0.1858726344
A131: 131 | B131: Other assets | D131: 0.02440862333 | E131: 0.02440862333 | F131: 0.02440862333 | G131: 0.02440862333 | H131: 0.02440862333 | I131: 0.02440862333 | J131: 0.02440862333 | K131: 0.02440862333 | L131: 0.02440862333 | M131: 0.02440862333 | N131: 0.02440862333 | O131: 0.02440862333 | P131: 0.02440862333 | Q131: 0.02440862333 | R131: 0.02440862333 | S131: 0.02440862333 | T131: 0.02440862333 | U131: 0.02440862333 | V131: 0 | W131: 0 | X131: 0 | Y131: 0 | Z131: 0 | AA131: 0 | AB131: 0 | AC131: 0 | AD131: 0 | AE131: 0 | AF131: 0 | AG131: 0 | AH131: 0 | AI131: 0 | AJ131: 0 | AK131: 0 | AL131: 0 | AM131: 0 | AN131: 0 | AO131: 0 | AP131: 0 | AQ131: 0 | AR131: 0 | AS131: 0 | AT131: 0 | AU131: 0 | AV131: 0 | AW131: 0 | AX131: 0 | AY131: 0 | AZ131: 0 | BA131: 0 | BB131: 0 | BC131: 0 | BD131: 0 | BE131: 0 | BF131: 0
A132: 132 | B132: Equity Raising Cost | D132: 0 | E132: 0 | F132: 0 | G132: 0 | H132: 0 | I132: 0 | J132: 0 | K132: 0 | L132: 0 | M132: 0 | N132: 0 | O132: 0 | P132: 0 | Q132: 0 | R132: 0 | S132: 0 | T132: 0 | U132: 0 | V132: 0 | W132: 0 | X132: 0 | Y132: 0 | Z132: 0 | AA132: 0 | AB132: 0 | AC132: 0 | AD132: 0 | AE132: 0 | AF132: 0 | AG132: 0 | AH132: 0 | AI132: 0 | AJ132: 0 | AK132: 0 | AL132: 0 | AM132: 0 | AN132: 0 | AO132: 0 | AP132: 0 | AQ132: 0 | AR132: 0 | AS132: 0 | AT132: 0 | AU132: 0 | AV132: 0 | AW132: 0 | AX132: 0 | AY132: 0 | AZ132: 0 | BA132: 0 | BB132: 0 | BC132: 0 | BD132: 0 | BE132: 0 | BF132: 0
A133: 133 | B133: Non-depreciable assets | D133: 0 | E133: 0 | F133: 0 | G133: 0 | H133: 0 | I133: 0 | J133: 0 | K133: 0 | L133: 0 | M133: 0 | N133: 0 | O133: 0 | P133: 0 | Q133: 0 | R133: 0 | S133: 0 | T133: 0 | U133: 0 | V133: 0 | W133: 0 | X133: 0 | Y133: 0 | Z133: 0 | AA133: 0 | AB133: 0 | AC133: 0 | AD133: 0 | AE133: 0 | AF133: 0 | AG133: 0 | AH133: 0 | AI133: 0 | AJ133: 0 | AK133: 0 | AL133: 0 | AM133: 0 | AN133: 0 | AO133: 0 | AP133: 0 | AQ133: 0 | AR133: 0 | AS133: 0 | AT133: 0 | AU133: 0 | AV133: 0 | AW133: 0 | AX133: 0 | AY133: 0 | AZ133: 0 | BA133: 0
A134: 134 | B134: Total | D134: 2.574194826 | E134: 2.574194826 | F134: 2.574194826 | G134: 2.574194826 | H134: 2.574194826 | I134: 2.574194826 | J134: 2.574194826 | K134: 2.574194826 | L134: 2.574194826 | M134: 2.574194826 | N134: 2.574194826 | O134: 2.574194826 | P134: 2.574194826 | Q134: 2.574194826 | R134: 2.574194826 | S134: 2.574194826 | T134: 2.574194826 | U134: 2.574194826 | V134: 2.549786202 | W134: 2.549786202 | X134: 2.549786202 | Y134: 2.549786202 | Z134: 2.549786202 | AA134: 2.549786202 | AB134: 2.549786202 | AC134: 2.549786202 | AD134: 2.549786202 | AE134: 2.549786202 | AF134: 2.549786202 | AG134: 2.549786202 | AH134: 2.549786202 | AI134: 2.549786202 | AJ134: 2.549786202 | AK134: 2.549786202 | AL134: 2.549786202 | AM134: 2.549786202 | AN134: 2.549786202 | AO134: 2.549786202 | AP134: 2.23509091 | AQ134: 2.23509091 | AR134: 8.940363639 | AS134: 8.940363639 | AT134: 8.940363639 | AU134: 8.940363639 | AV134: 8.940363639 | AW134: 9.56937609 | AX134: 9.56937609 | AY134: 9.56937609 | AZ134: 9.56937609 | BA134: 9.56937609 | BB134: 9.56937609 | BC134: 9.56937609 | BD134: 9.56937609 | BE134: 9.56937609 | BF134: 8.627673432
A135: 135 | B135: ICB Adjustments (From Adjustments Tab) ($m)
A136: 136 | B136: Pipeline and laterals | D136: 0 | E136: 0 | F136: 0 | G136: 0 | H136: 0 | I136: 0 | J136: 0 | K136: 0 | L136: 0 | M136: 0 | N136: 0 | O136: 0 | P136: 0 | Q136: 0 | R136: 0 | S136: 0 | T136: 0 | U136: 0 | V136: 0 | W136: 0 | X136: 0 | Y136: 0 | Z136: 0 | AA136: 0 | AB136: 0 | AC136: 0 | AD136: 0 | AE136: 0 | AF136: 0 | AG136: 0 | AH136: 0 | AI136: 0 | AJ136: 0 | AK136: 0 | AL136: 0 | AM136: 0 | AN136: 0 | AO136: 0 | AP136: 0 | AQ136: 0 | AR136: 0 | AS136: 0 | AT136: 0 | AU136: 0 | AV136: 0 | AW136: 0 | AX136: 0 | AY136: 0 | AZ136: 0 | BA136: 0 | BB136: 0 | BC136: 0 | BD136: 0 | BE136: 0 | BF136: 0
A137: 137 | B137: Main line valve and scraper stations | D137: 0 | E137: 0 | F137: 0 | G137: 0 | H137: 0 | I137: 0 | J137: 0 | K137: 0 | L137: 0 | M137: 0 | N137: 0 | O137: 0 | P137: 0 | Q137: 0 | R137: 0 | S137: 0 | T137: 0 | U137: 0 | V137: 0 | W137: 0 | X137: 0 | Y137: 0 | Z137: 0 | AA137: 0 | AB137: 0 | AC137: 0 | AD137: 0 | AE137: 0 | AF137: 0 | AG137: 0 | AH137: 0 | AI137: 0 | AJ137: 0 | AK137: 0 | AL137: 0 | AM137: 0 | AN137: 0 | AO137: 0 | AP137: 0 | AQ137: 0 | AR137: 0 | AS137: 0 | AT137: 0 | AU137: 0 | AV137: 0 | AW137: 0 | AX137: 0 | AY137: 0 | AZ137: 0 | BA137: 0 | BB137: 0 | BC137: 0 | BD137: 0 | BE137: 0 | BF137: 0
A138: 138 | B138: Compressor stations | D138: 0 | E138: 0 | F138: 0 | G138: 0 | H138: 0 | I138: 0 | J138: 0 | K138: 0 | L138: 0 | M138: 0 | N138: 0 | O138: 0 | P138: 0 | Q138: 0 | R138: 0 | S138: 0 | T138: 0 | U138: 0 | V138: 0 | W138: 0 | X138: 0 | Y138: 0 | Z138: 0 | AA138: 0 | AB138: 0 | AC138: 0 | AD138: 0 | AE138: 0 | AF138: 0 | AG138: 0 | AH138: 0 | AI138: 0 | AJ138: 0 | AK138: 0 | AL138: 0 | AM138: 0 | AN138: 0 | AO138: 0 | AP138: 0 | AQ138: 0 | AR138: 0 | AS138: 0 | AT138: 0 | AU138: 0 | AV138: 0 | AW138: 0 | AX138: 0 | AY138: 0 | AZ138: 0 | BA138: 0 | BB138: 0 | BC138: 0 | BD138: 0 | BE138: 0 | BF138: 0
A139: 139 | B139: Receipt and delivery point facilities | D139: 0 | E139: 0 | F139: 0 | G139: 0 | H139: 0 | I139: 0 | J139: 0 | K139: 0 | L139: 0 | M139: 0 | N139: 0 | O139: 0 | P139: 0 | Q139: 0 | R139: 0 | S139: 0 | T139: 0 | U139: 0 | V139: 0 | W139: 0 | X139: 0 | Y139: 0 | Z139: 0 | AA139: 0 | AB139: 0 | AC139: 0 | AD139: 0 | AE139: 0 | AF139: 0 | AG139: 0 | AH139: 0 | AI139: 0 | AJ139: 0 | AK139: 0 | AL139: 0 | AM139: 0 | AN139: 0 | AO139: 0 | AP139: 0 | AQ139: 0 | AR139: 0 | AS139: 0 | AT139: 0 | AU139: 0 | AV139: 0 | AW139: 0 | AX139: 0 | AY139: 0 | AZ139: 0 | BA139: 0 | BB139: 0 | BC139: 0 | BD139: 0 | BE139: 0 | BF139: 0
A140: 140 | B140: SCADA and communications | D140: 0 | E140: 0 | F140: 0 | G140: 0 | H140: 0 | I140: 0 | J140: 0 | K140: 0 | L140: 0 | M140: 0 | N140: 0 | O140: 0 | P140: 0 | Q140: 0 | R140: 0 | S140: 0 | T140: 0 | U140: 0 | V140: 0 | W140: 0 | X140: 0 | Y140: 0 | Z140: 0 | AA140: 0 | AB140: 0 | AC140: 0 | AD140: 0 | AE140: 0 | AF140: 0 | AG140: 0 | AH140: 0 | AI140: 0 | AJ140: 0 | AK140: 0 | AL140: 0 | AM140: 0 | AN140: 0 | AO140: 0 | AP140: 0 | AQ140: 0 | AR140: 0 | AS140: 0 | AT140: 0 | AU140: 0 | AV140: 0 | AW140: 0 | AX140: 0 | AY140: 0 | AZ140: 0 | BA140: 0 | BB140: 0 | BC140: 0 | BD140: 0 | BE140: 0 | BF140: 0
A141: 141 | B141: Cathodic protection | D141: 0 | E141: 0 | F141: 0 | G141: 0 | H141: 0 | I141: 0 | J141: 0 | K141: 0 | L141: 0 | M141: 0 | N141: 0 | O141: 0 | P141: 0 | Q141: 0 | R141: 0 | S141: 0 | T141: 0 | U141: 0 | V141: 0 | W141: 0 | X141: 0 | Y141: 0 | Z141: 0 | AA141: 0 | AB141: 0 | AC141: 0 | AD141: 0 | AE141: 0 | AF141: 0 | AG141: 0 | AH141: 0 | AI141: 0 | AJ141: 0 | AK141: 0 | AL141: 0 | AM141: 0 | AN141: 0 | AO141: 0 | AP141: 0 | AQ141: 0 | AR141: 0 | AS141: 0 | AT141: 0 | AU141: 0 | AV141: 0 | AW141: 0 | AX141: 0 | AY141: 0 | AZ141: 0 | BA141: 0 | BB141: 0 | BC141: 0 | BD141: 0 | BE141: 0 | BF141: 0
A142: 142 | B142: Maintenance bases and depots | D142: 0 | E142: 0 | F142: 0 | G142: 0 | H142: 0 | I142: 0 | J142: 0 | K142: 0 | L142: 0 | M142: 0 | N142: 0 | O142: 0 | P142: 0 | Q142: 0 | R142: 0 | S142: 0 | T142: 0 | U142: 0 | V142: 0 | W142: 0 | X142: 0 | Y142: 0 | Z142: 0 | AA142: 0 | AB142: 0 | AC142: 0 | AD142: 0 | AE142: 0 | AF142: 0 | AG142: 0 | AH142: 0 | AI142: 0 | AJ142: 0 | AK142: 0 | AL142: 0 | AM142: 0 | AN142: 0 | AO142: 0 | AP142: 0 | AQ142: 0 | AR142: 0 | AS142: 0 | AT142: 0 | AU142: 0 | AV142: 0 | AW142: 0 | AX142: 0 | AY142: 0 | AZ142: 0 | BA142: 0 | BB142: 0 | BC142: 0 | BD142: 0 | BE142: 0 | BF142: 0
A143: 143 | B143: Other assets | D143: 0 | E143: 0 | F143: 0 | G143: 0 | H143: 0 | I143: 0 | J143: 0 | K143: 0 | L143: 0 | M143: 0 | N143: 0 | O143: 0 | P143: 0 | Q143: 0 | R143: 0 | S143: 0 | T143: 0 | U143: 0 | V143: 0 | W143: 0 | X143: 0 | Y143: 0 | Z143: 0 | AA143: 0 | AB143: 0 | AC143: 0 | AD143: 0 | AE143: 0 | AF143: 0 | AG143: 0 | AH143: 0 | AI143: 0 | AJ143: 0 | AK143: 0 | AL143: 0 | AM143: 0 | AN143: 0 | AO143: 0 | AP143: 0 | AQ143: 0 | AR143: 0 | AS143: 0 | AT143: 0 | AU143: 0 | AV143: 0 | AW143: 0 | AX143: 0 | AY143: 0 | AZ143: 0 | BA143: 0 | BB143: 0 | BC143: 0 | BD143: 0 | BE143: 0 | BF143: 0
A144: 144 | B144: Equity Raising Cost | D144: 0 | E144: 0 | F144: 0 | G144: 0 | H144: 0 | I144: 0 | J144: 0 | K144: 0 | L144: 0 | M144: 0 | N144: 0 | O144: 0 | P144: 0 | Q144: 0 | R144: 0 | S144: 0 | T144: 0 | U144: 0 | V144: 0 | W144: 0 | X144: 0 | Y144: 0 | Z144: 0 | AA144: 0 | AB144: 0 | AC144: 0 | AD144: 0 | AE144: 0 | AF144: 0 | AG144: 0 | AH144: 0 | AI144: 0 | AJ144: 0 | AK144: 0 | AL144: 0 | AM144: 0 | AN144: 0 | AO144: 0 | AP144: 0 | AQ144: 0 | AR144: 0 | AS144: 0 | AT144: 0 | AU144: 0 | AV144: 0 | AW144: 0 | AX144: 0 | AY144: 0 | AZ144: 0 | BA144: 0 | BB144: 0 | BC144: 0 | BD144: 0 | BE144: 0 | BF144: 0
A145: 145 | B145: Non-depreciable assets | D145: 0 | E145: 0 | F145: 0 | G145: 0 | H145: 0 | I145: 0 | J145: 0 | K145: 0 | L145: 0 | M145: 0 | N145: 0 | O145: 0 | P145: 0 | Q145: 0 | R145: 0 | S145: 0 | T145: 0 | U145: 0 | V145: 0 | W145: 0 | X145: 0 | Y145: 0 | Z145: 0 | AA145: 0 | AB145: 0 | AC145: 0 | AD145: 0 | AE145: 0 | AF145: 0 | AG145: 0 | AH145: 0 | AI145: 0 | AJ145: 0 | AK145: 0 | AL145: 0 | AM145: 0 | AN145: 0 | AO145: 0 | AP145: 0 | AQ145: 0 | AR145: 0 | AS145: 0 | AT145: 0 | AU145: 0 | AV145: 0 | AW145: 0 | AX145: 0 | AY145: 0 | AZ145: 0 | BA145: 0 | BB145: 0 | BC145: 0 | BD145: 0 | BE145: 0 | BF145: 0
A146: 146 | B146: Total | D146: 0 | E146: 0 | F146: 0 | G146: 0 | H146: 0 | I146: 0 | J146: 0 | K146: 0 | L146: 0 | M146: 0 | N146: 0 | O146: 0 | P146: 0 | Q146: 0 | R146: 0 | S146: 0 | T146: 0 | U146: 0 | V146: 0 | W146: 0 | X146: 0 | Y146: 0 | Z146: 0 | AA146: 0 | AB146: 0 | AC146: 0 | AD146: 0 | AE146: 0 | AF146: 0 | AG146: 0 | AH146: 0 | AI146: 0 | AJ146: 0 | AK146: 0 | AL146: 0 | AM146: 0 | AN146: 0 | AO146: 0 | AP146: 0 | AQ146: 0 | AR146: 0 | AS146: 0 | AT146: 0 | AU146: 0 | AV146: 0 | AW146: 0 | AX146: 0 | AY146: 0 | AZ146: 0 | BA146: 0 | BB146: 0 | BC146: 0 | BD146: 0 | BE146: 0 | BF146: 0
A147: 147 | B147: ICB Closing Asset Value ($m) | D147: $OD | E147: $OD | F147: $OD | G147: $OD | H147: $OD | I147: $OD | J147: $OD | K147: $OD | L147: $OD | M147: $OD | N147: $OD | O147: $OD | P147: $OD | Q147: $OD | R147: $OD | S147: $OD | T147: $OD | U147: $OD | V147: $OD | W147: $OD | X147: $OD | Y147: $OD | Z147: $OD | AA147: $OD | AB147: $OD | AC147: $OD | AD147: $OD | AE147: $OD | AF147: $OD | AG147: $OD | AH147: $OD | AI147: $OD | AJ147: $OD | AK147: $OD | AL147: $OD | AM147: $OD | AN147: $OD | AO147: $OD | AP147: $OD | AQ147: $OD | AR147: $OD | AS147: $OD | AT147: $OD | AU147: $OD | AV147: $OD | AW147: $ 31/12/2018 | AX147: $ 31/12/2018 | AY147: $ 31/12/2018 | AZ147: $ 31/12/2018 | BA147: $ 31/12/2018 | BB147: $ 31/12/2018 | BC147: $ 31/12/2018 | BD147: $ 31/12/2018 | BE147: $ 31/12/2018 | BF147: $ 31/12/2018
A148: 148 | B148: Pipeline and laterals | C148: 438.6555358 | D148: 436.9553205 | E148: 435.2551053 | F148: 433.55489 | G148: 431.8546748 | H148: 430.1544595 | I148: 428.4542443 | J148: 426.754029 | K148: 425.0538137 | L148: 423.3535985 | M148: 421.6533832 | N148: 419.953168 | O148: 418.2529527 | P148: 416.5527375 | Q148: 414.8525222 | R148: 413.152307 | S148: 411.4520917 | T148: 409.7518765 | U148: 408.0516612 | V148: 406.3514459 | W148: 404.6512307 | X148: 402.9510154 | Y148: 401.2508002 | Z148: 399.5505849 | AA148: 397.8503697 | AB148: 396.1501544 | AC148: 394.4499392 | AD148: 392.7497239 | AE148: 391.0495086 | AF148: 389.3492934 | AG148: 387.6490781 | AH148: 385.9488629 | AI148: 384.2486476 | AJ148: 382.5484324 | AK148: 380.8482171 | AL148: 379.1480019 | AM148: 377.4477866 | AN148: 375.7475714 | AO148: 374.0473561 | AP148: 372.3471408 | AQ148: 370.6469256 | AR148: 363.8460646 | AS148: 357.0452035 | AT148: 350.2443425 | AU148: 343.4434815 | AV148: 336.6426205 | AW148: 353.0482622 | AX148: 345.7689166 | AY148: 338.489571 | AZ148: 331.2102254 | BA148: 323.9308798 | BB148: 316.6515342 | BC148: 309.3721886 | BD148: 302.092843 | BE148: 294.8134973 | BF148: 287.5341517
A149: 149 | B149: Main line valve and scraper stations | C149: 9.177771758 | D149: 9.126211242 | E149: 9.074650727 | F149: 9.023090211 | G149: 8.971529696 | H149: 8.91996918 | I149: 8.868408665 | J149: 8.816848149 | K149: 8.765287634 | L149: 8.713727118 | M149: 8.662166603 | N149: 8.610606087 | O149: 8.559045572 | P149: 8.507485056 | Q149: 8.455924541 | R149: 8.404364025 | S149: 8.35280351 | T149: 8.301242994 | U149: 8.249682479 | V149: 8.198121963 | W149: 8.146561448 | X149: 8.095000932 | Y149: 8.043440417 | Z149: 7.991879901 | AA149: 7.940319386 | AB149: 7.88875887 | AC149: 7.837198355 | AD149: 7.785637839 | AE149: 7.734077324 | AF149: 7.682516808 | AG149: 7.630956293 | AH149: 7.579395777 | AI149: 7.527835262 | AJ149: 7.476274746 | AK149: 7.424714231 | AL149: 7.373153715 | AM149: 7.3215932 | AN149: 7.270032684 | AO149: 7.218472169 | AP149: 7.166911653 | AQ149: 7.115351138 | AR149: 6.909109076 | AS149: 6.702867014 | AT149: 6.496624952 | AU149: 6.29038289 | AV149: 6.084140828 | AW149: 6.291446991 | AX149: 6.070694465 | AY149: 5.849941939 | AZ149: 5.629189413 | BA149: 5.408436887 | BB149: 5.187684361 | BC149: 4.966931835 | BD149: 4.746179309 | BE149: 4.525426783 | BF149: 4.304674257
A150: 150 | B150: Compressor stations | C150: 41.57599489 | D150: 41.15175004 | E150: 40.72750519 | F150: 40.30326035 | G150: 39.8790155 | H150: 39.45477066 | I150: 39.03052581 | J150: 38.60628097 | K150: 38.18203612 | L150: 37.75779127 | M150: 37.33354643 | N150: 36.90930158 | O150: 36.48505674 | P150: 36.06081189 | Q150: 35.63656704 | R150: 35.2123222 | S150: 34.78807735 | T150: 34.36383251 | U150: 33.93958766 | V150: 33.51534282 | W150: 33.09109797 | X150: 32.66685312 | Y150: 32.24260828 | Z150: 31.81836343 | AA150: 31.39411859 | AB150: 30.96987374 | AC150: 30.5456289 | AD150: 30.12138405 | AE150: 29.6971392 | AF150: 29.27289436 | AG150: 28.84864951 | AH150: 28.42440467 | AI150: 28.00015982 | AJ150: 27.57591498 | AK150: 27.15167013 | AL150: 26.72742528 | AM150: 26.30318044 | AN150: 25.87893559 | AO150: 25.45469075 | AP150: 25.0304459 | AQ150: 24.60620105 | AR150: 22.90922167 | AS150: 21.21224229 | AT150: 19.51526291 | AU150: 17.81828352 | AV150: 16.12130414 | AW150: 15.43916937 | AX150: 13.6227965 | AY150: 11.80642363 | AZ150: 9.990050768 | BA150: 8.173677901 | BB150: 6.357305034 | BC150: 4.540932167 | BD150: 2.7245593 | BE150: 0.9081864334 | BF150: 0
A151: 151 | B151: Receipt and delivery point facilities | C151: 1.534343975 | D151: 1.518687404 | E151: 1.503030833 | F151: 1.487374262 | G151: 1.47171769 | H151: 1.456061119 | I151: 1.440404548 | J151: 1.424747977 | K151: 1.409091406 | L151: 1.393434835 | M151: 1.377778263 | N151: 1.362121692 | O151: 1.346465121 | P151: 1.33080855 | Q151: 1.315151979 | R151: 1.299495408 | S151: 1.283838836 | T151: 1.268182265 | U151: 1.252525694 | V151: 1.236869123 | W151: 1.221212552 | X151: 1.20555598 | Y151: 1.189899409 | Z151: 1.174242838 | AA151: 1.158586267 | AB151: 1.142929696 | AC151: 1.127273125 | AD151: 1.111616553 | AE151: 1.095959982 | AF151: 1.080303411 | AG151: 1.06464684 | AH151: 1.048990269 | AI151: 1.033333698 | AJ151: 1.017677126 | AK151: 1.002020555 | AL151: 0.986363984 | AM151: 0.9707074128 | AN151: 0.9550508417 | AO151: 0.9393942705 | AP151: 0.9237376993 | AQ151: 0.9080811281 | AR151: 0.8454548434 | AS151: 0.7828285587 | AT151: 0.720202274 | AU151: 0.6575759893 | AV151: 0.5949497046 | AW151: 0.5697758182 | AX151: 0.502743369 | AY151: 0.4357109198 | AZ151: 0.3686784706 | BA151: 0.3016460214 | BB151: 0.2346135722 | BC151: 0.167581123 | BD151: 0.1005486738 | BE151: 0.0335162246 | BF151: 0
A152: 152 | B152: SCADA and communications | C152: 10.12958811 | D152: 9.863019999 | E152: 9.596451891 | F152: 9.329883783 | G152: 9.063315675 | H152: 8.796747567 | I152: 8.530179459 | J152: 8.263611351 | K152: 7.997043242 | L152: 7.730475134 | M152: 7.463907026 | N152: 7.197338918 | O152: 6.93077081 | P152: 6.664202702 | Q152: 6.397634594 | R152: 6.131066486 | S152: 5.864498378 | T152: 5.59793027 | U152: 5.331362162 | V152: 5.064794054 | W152: 4.798225945 | X152: 4.531657837 | Y152: 4.265089729 | Z152: 3.998521621 | AA152: 3.731953513 | AB152: 3.465385405 | AC152: 3.198817297 | AD152: 2.932249189 | AE152: 2.665681081 | AF152: 2.399112973 | AG152: 2.132544865 | AH152: 1.865976757 | AI152: 1.599408648 | AJ152: 1.33284054 | AK152: 1.066272432 | AL152: 0.7997043242 | AM152: 0.5331362162 | AN152: 0.2665681081 | AO152: 1.33226763e-15 | AP152: 1.33226763e-15 | AQ152: 1.33226763e-15 | AR152: 1.33226763e-15 | AS152: 1.33226763e-15 | AT152: 1.33226763e-15 | AU152: 1.33226763e-15 | AV152: 1.33226763e-15 | AW152: 0 | AX152: 0 | AY152: 0 | AZ152: 0 | BA152: 0 | BB152: 0 | BC152: 0 | BD152: 0 | BE152: 0 | BF152: 0
A153: 153 | B153: Cathodic protection | C153: 1.828833019 | D153: 1.780705834 | E153: 1.732578649 | F153: 1.684451464 | G153: 1.63632428 | H153: 1.588197095 | I153: 1.54006991 | J153: 1.491942726 | K153: 1.443815541 | L153: 1.395688356 | M153: 1.347561172 | N153: 1.299433987 | O153: 1.251306802 | P153: 1.203179617 | Q153: 1.155052433 | R153: 1.106925248 | S153: 1.058798063 | T153: 1.010670879 | U153: 0.962543694 | V153: 0.9144165093 | W153: 0.8662893246 | X153: 0.8181621399 | Y153: 0.7700349552 | Z153: 0.7219077705 | AA153: 0.6737805858 | AB153: 0.6256534011 | AC153: 0.5775262164 | AD153: 0.5293990317 | AE153: 0.481271847 | AF153: 0.4331446623 | AG153: 0.3850174776 | AH153: 0.3368902929 | AI153: 0.2887631082 | AJ153: 0.2406359235 | AK153: 0.1925087388 | AL153: 0.1443815541 | AM153: 0.0962543694 | AN153: 0.0481271847 | AO153: 0 | AP153: 0 | AQ153: 0 | AR153: 0 | AS153: 0 | AT153: 0 | AU153: 0 | AV153: 0 | AW153: 0 | AX153: 0 | AY153: 0 | AZ153: 0 | BA153: 0 | BB153: 0 | BC153: 0 | BD153: 0 | BE153: 0 | BF153: 0
A154: 154 | B154: Maintenance bases and depots | C154: 7.727642558 | D154: 7.684228835 | E154: 7.640815113 | F154: 7.597401391 | G154: 7.553987669 | H154: 7.510573947 | I154: 7.467160224 | J154: 7.423746502 | K154: 7.38033278 | L154: 7.336919058 | M154: 7.293505335 | N154: 7.250091613 | O154: 7.206677891 | P154: 7.163264169 | Q154: 7.119850446 | R154: 7.076436724 | S154: 7.033023002 | T154: 6.98960928 | U154: 6.946195557 | V154: 6.902781835 | W154: 6.859368113 | X154: 6.815954391 | Y154: 6.772540669 | Z154: 6.729126946 | AA154: 6.685713224 | AB154: 6.642299502 | AC154: 6.59888578 | AD154: 6.555472057 | AE154: 6.512058335 | AF154: 6.468644613 | AG154: 6.425230891 | AH154: 6.381817168 | AI154: 6.338403446 | AJ154: 6.294989724 | AK154: 6.251576002 | AL154: 6.20816228 | AM154: 6.164748557 | AN154: 6.121334835 | AO154: 6.077921113 | AP154: 6.034507391 | AQ154: 5.991093668 | AR154: 5.817438779 | AS154: 5.64378389 | AT154: 5.470129002 | AU154: 5.296474113 | AV154: 5.122819224 | AW154: 5.297370081 | AX154: 5.111497446 | AY154: 4.925624812 | AZ154: 4.739752177 | BA154: 4.553879543 | BB154: 4.368006909 | BC154: 4.182134274 | BD154: 3.99626164 | BE154: 3.810389005 | BF154: 3.624516371
A155: 155 | B155: Other assets | C155: 0.4393552199 | D155: 0.4149465966 | E155: 0.3905379733 | F155: 0.3661293499 | G155: 0.3417207266 | H155: 0.3173121033 | I155: 0.29290348 | J155: 0.2684948566 | K155: 0.2440862333 | L155: 0.21967761 | M155: 0.1952689866 | N155: 0.1708603633 | O155: 0.14645174 | P155: 0.1220431166 | Q155: 0.09763449332 | R155: 0.07322586999 | S155: 0.04881724666 | T155: 0.02440862333 | U155: 0 | V155: 0 | W155: 0 | X155: 0 | Y155: 0 | Z155: 0 | AA155: 0 | AB155: 0 | AC155: 0 | AD155: 0 | AE155: 0 | AF155: 0 | AG155: 0 | AH155: 0 | AI155: 0 | AJ155: 0 | AK155: 0 | AL155: 0 | AM155: 0 | AN155: 0 | AO155: 0 | AP155: 0 | AQ155: 0 | AR155: 0 | AS155: 0 | AT155: 0 | AU155: 0 | AV155: 0 | AW155: 0 | AX155: 0 | AY155: 0 | AZ155: 0 | BA155: 0 | BB155: 0 | BC155: 0 | BD155: 0 | BE155: 0 | BF155: 0
A156: 156 | B156: Equity Raising Cost | D156: 0 | E156: 0 | F156: 0 | G156: 0 | H156: 0 | I156: 0 | J156: 0 | K156: 0 | L156: 0 | M156: 0 | N156: 0 | O156: 0 | P156: 0 | Q156: 0 | R156: 0 | S156: 0 | T156: 0 | U156: 0 | V156: 0 | W156: 0 | X156: 0 | Y156: 0 | Z156: 0 | AA156: 0 | AB156: 0 | AC156: 0 | AD156: 0 | AE156: 0 | AF156: 0 | AG156: 0 | AH156: 0 | AI156: 0 | AJ156: 0 | AK156: 0 | AL156: 0 | AM156: 0 | AN156: 0 | AO156: 0 | AP156: 0 | AQ156: 0 | AR156: 0 | AS156: 0 | AT156: 0 | AU156: 0 | AV156: 0 | AW156: 0 | AX156: 0 | AY156: 0 | AZ156: 0 | BA156: 0 | BB156: 0 | BC156: 0 | BD156: 0 | BE156: 0 | BF156: 0
A157: 157 | B157: Non-depreciable assets | C157: 2.581675929 | D157: 2.581675929 | E157: 2.581675929 | F157: 2.581675929 | G157: 2.581675929 | H157: 2.581675929 | I157: 2.581675929 | J157: 2.581675929 | K157: 2.581675929 | L157: 2.581675929 | M157: 2.581675929 | N157: 2.581675929 | O157: 2.581675929 | P157: 2.581675929 | Q157: 2.581675929 | R157: 2.581675929 | S157: 2.581675929 | T157: 2.581675929 | U157: 2.581675929 | V157: 2.581675929 | W157: 2.581675929 | X157: 2.581675929 | Y157: 2.581675929 | Z157: 2.581675929 | AA157: 2.581675929 | AB157: 2.581675929 | AC157: 2.581675929 | AD157: 2.581675929 | AE157: 2.581675929 | AF157: 2.581675929 | AG157: 2.581675929 | AH157: 2.581675929 | AI157: 2.581675929 | AJ157: 2.581675929 | AK157: 2.581675929 | AL157: 2.581675929 | AM157: 2.581675929 | AN157: 2.581675929 | AO157: 2.581675929 | AP157: 2.581675929 | AQ157: 2.581675929 | AR157: 2.581675929 | AS157: 2.581675929 | AT157: 2.581675929 | AU157: 2.581675929 | AV157: 2.581675929 | AW157: 2.763313541 | AX157: 2.763313541 | AY157: 2.763313541 | AZ157: 2.763313541 | BA157: 2.763313541 | BB157: 2.763313541 | BC157: 2.763313541 | BD157: 2.763313541 | BE157: 2.763313541 | BF157: 2.763313541
A158: 158 | B158: Total | C158: 513.6507412 | D158: 511.0765464 | E158: 508.5023516 | F158: 505.9281568 | G158: 503.3539619 | H158: 500.7797671 | I158: 498.2055723 | J158: 495.6313775 | K158: 493.0571826 | L158: 490.4829878 | M158: 487.908793 | N158: 485.3345982 | O158: 482.7604033 | P158: 480.1862085 | Q158: 477.6120137 | R158: 475.0378189 | S158: 472.463624 | T158: 469.8894292 | U158: 467.3152344 | V158: 464.7654482 | W158: 462.215662 | X158: 459.6658758 | Y158: 457.1160896 | Z158: 454.5663034 | AA158: 452.0165172 | AB158: 449.466731 | AC158: 446.9169448 | AD158: 444.3671586 | AE158: 441.8173724 | AF158: 439.2675861 | AG158: 436.7177999 | AH158: 434.1680137 | AI158: 431.6182275 | AJ158: 429.0684413 | AK158: 426.5186551 | AL158: 423.9688689 | AM158: 421.4190827 | AN158: 418.8692965 | AO158: 416.3195103 | AP158: 414.0844194 | AQ158: 411.8493285 | AR158: 402.9089649 | AS158: 393.9686012 | AT158: 385.0282376 | AU158: 376.087874 | AV158: 367.1475103 | AW158: 383.409338 | AX158: 373.839962 | AY158: 364.2705859 | AZ158: 354.7012098 | BA158: 345.1318337 | BB158: 335.5624576 | BC158: 325.9930815 | BD158: 316.4237054 | BE158: 306.8543293 | BF158: 298.2266559
A159: 159 | B159: Capex Account Summary ($m)
A160: 160 | B160: Total Capex Opening Asset Values | D160: $OD | E160: $OD | F160: $OD | G160: $OD | H160: $OD | I160: $OD | J160: $OD | K160: $OD | L160: $OD | M160: $OD | N160: $OD | O160: $OD | P160: $OD | Q160: $OD | R160: $OD | S160: $OD | T160: $OD | U160: $OD | V160: $OD | W160: $OD | X160: $OD | Y160: $OD | Z160: $OD | AA160: $OD | AB160: $OD | AC160: $OD | AD160: $OD | AE160: $OD | AF160: $OD | AG160: $OD | AH160: $OD | AI160: $OD | AJ160: $OD | AK160: $OD | AL160: $OD | AM160: $OD | AN160: $OD | AO160: $OD | AP160: $OD | AQ160: $OD | AR160: $OD | AS160: $OD | AT160: $OD | AU160: $OD | AV160: $OD | AW160: $ 31/12/2018 | AX160: $ 31/12/2018 | AY160: $ 31/12/2018 | AZ160: $ 31/12/2018 | BA160: $ 31/12/2018 | BB160: $ 31/12/2018 | BC160: $ 31/12/2018 | BD160: $ 31/12/2018 | BE160: $ 31/12/2018 | BF160: $ 31/12/2018
A161: 161 | B161: Pipeline and laterals | D161: 0 | E161: 0 | F161: 0 | G161: 0 | H161: 0 | I161: 0 | J161: 0 | K161: 0 | L161: 0 | M161: 0 | N161: 0 | O161: 0 | P161: 0 | Q161: 0 | R161: 0 | S161: 0 | T161: 0 | U161: 0 | V161: 0 | W161: 0 | X161: 0 | Y161: 0.30112484 | Z161: 0.3013797 | AA161: 0.30183602 | AB161: 0.30150602 | AC161: 0.30150602 | AD161: 0.30150602 | AE161: 0.30150602 | AF161: 0.30150602 | AG161: 0.30150602 | AH161: 0.58771978 | AI161: 0.58771978 | AJ161: 0.58771978 | AK161: 0.58771978 | AL161: 0.59127087 | AM161: 0.60129288 | AN161: 0.66206155 | AO161: 0.66350647 | AP161: 0.66492957 | AQ161: 0.67349243 | AR161: 0.67453779 | AS161: 0.5814821681 | AT161: 0.5713635462 | AU161: 0.5612449243 | AV161: 0.5767593024 | AW161: 0.6065075201 | AX161: 2.543000559 | AY161: 3.002324424 | AZ161: 3.212754889 | BA161: 3.140809508 | BB161: 3.067949878 | BC161: 3.233227258 | BD161: 3.182380773 | BE161: 3.131534288 | BF161: 3.080687803
A162: 162 | B162: Main line valve and scraper stations | D162: 0 | E162: 0 | F162: 0 | G162: 0 | H162: 0 | I162: 0 | J162: 0 | K162: 0 | L162: 0 | M162: 0 | N162: 0 | O162: 0 | P162: 0 | Q162: 0 | R162: 0 | S162: 0 | T162: 0 | U162: 0 | V162: 0 | W162: 0 | X162: 0 | Y162: 0 | Z162: 0 | AA162: 0 | AB162: 0 | AC162: 0 | AD162: 0 | AE162: 0 | AF162: 0 | AG162: 0 | AH162: 0 | AI162: 0 | AJ162: 0 | AK162: 0 | AL162: 0 | AM162: 0 | AN162: 0 | AO162: 0.02711449 | AP162: 0.02825941 | AQ162: 0.02825941 | AR162: 0.02825941 | AS162: 0.02768573228 | AT162: 0.02579205457 | AU162: 0.02389837685 | AV162: 0.02200469913 | AW162: 0.02152596194 | AX162: 0.1418910526 | AY162: 0.1428328232 | AZ162: 0.1310565512 | BA162: 0.1192802793 | BB162: 0.1075040074 | BC162: 0.1363137315 | BD162: 0.133192569 | BE162: 0.1300714066 | BF162: 0.1269502442
A163: 163 | B163: Compressor stations | D163: 0 | E163: 0.7266078075 | F163: 1.44716055 | G163: 2.161658227 | H163: 2.87010084 | I163: 4.862558722 | J163: 6.838210953 | K163: 8.797057533 | L163: 10.73909846 | M163: 10.81001886 | N163: 10.87958624 | O163: 10.94780059 | P163: 11.01466191 | Q163: 13.36812173 | R163: 15.70116226 | S163: 18.01378349 | T163: 20.30598544 | U163: 21.14567224 | V163: 21.97687389 | W163: 22.79959037 | X163: 23.6138217 | Y163: 23.63803473 | Z163: 23.79111112 | AA163: 23.64337927 | AB163: 23.46567838 | AC163: 23.28868548 | AD163: 23.40288948 | AE163: 23.50769779 | AF163: 23.47409353 | AG163: 23.32158324 | AH163: 23.25090542 | AI163: 23.04799893 | AJ163: 22.79931104 | AK163: 22.52272999 | AL163: 22.47817853 | AM163: 22.24256526 | AN163: 22.09475533 | AO163: 22.10217655 | AP163: 21.8334457 | AQ163: 21.55881209 | AR163: 21.40682723 | AS163: 20.84861603 | AT163: 19.85821986 | AU163: 18.85535625 | AV163: 18.15328399 | AW163: 18.88927237 | AX163: 18.24533448 | AY163: 17.17933798 | AZ163: 17.06990691 | BA163: 16.30462772 | BB163: 16.10591646 | BC163: 15.75801723 | BD163: 14.79107589 | BE163: 14.08766805 | BF163: 12.98705569
A164: 164 | B164: Receipt and delivery point facilities | D164: 0 | E164: 0.04005906 | F164: 0.0797842945 | G164: 0.1191757035 | H164: 0.158233287 | I164: 0.1811840775 | J164: 0.2039324839 | K164: 0.2264785062 | L164: 0.2488221444 | M164: 0.2614580335 | N164: 0.2739707498 | O164: 0.2863602934 | P164: 0.2986266643 | Q164: 0.3133664775 | R164: 0.3279614795 | S164: 0.3424116703 | T164: 0.3567170499 | U164: 0.3619450258 | V164: 0.3671026288 | W164: 0.3721898589 | X164: 0.377206716 | Y164: 0.3737084503 | Z164: 0.3702101845 | AA164: 0.3667119188 | AB164: 0.380767323 | AC164: 0.3909504873 | AD164: 0.5099976815 | AE164: 0.6249010958 | AF164: 0.74716429 | AG164: 1.139739224 | AH164: 1.220771789 | AI164: 1.217402193 | AJ164: 1.213903927 | AK164: 1.210405661 | AL164: 1.206907396 | AM164: 1.20340913 | AN164: 1.203130004 | AO164: 1.199631738 | AP164: 1.196133473 | AQ164: 1.192635207 | AR164: 1.189136941 | AS164: 1.142514833 | AT164: 1.092969138 | AU164: 1.041511842 | AV164: 1.123641898 | AW164: 1.344143679 | AX164: 1.738884693 | AY164: 1.257848434 | AZ164: 1.188152974 | BA164: 1.289578288 | BB164: 1.315673553 | BC164: 1.81626316 | BD164: 2.333543382 | BE164: 2.303081741 | BF164: 2.188170215
A165: 165 | B165: SCADA and communications | D165: 0 | E165: 0.006985115 | F165: 0.01385381142 | G165: 0.02060608925 | H165: 0.0272419485 | I165: 0.02807186167 | J165: 0.02888018171 | K165: 0.02966690863 | L165: 0.03043204242 | M165: 0.04385460308 | N165: 0.05704425362 | O165: 0.07000099404 | P165: 0.08272482433 | Q165: 0.0985879545 | R165: 0.114161971 | S165: 0.129446874 | T165: 0.1444426633 | U165: 0.2516969764 | V165: 0.3571197153 | W165: 0.46071088 | X165: 0.5624704704 | Y165: 0.5775057016 | Z165: 0.5728473183 | AA165: 0.5633325305 | AB165: 0.5526279283 | AC165: 0.5929668816 | AD165: 0.7786744483 | AE165: 0.9349551982 | AF165: 0.9336394316 | AG165: 0.9553061782 | AH165: 0.9940505682 | AI165: 0.9760772715 | AJ165: 0.9935787381 | AK165: 0.9565629981 | AL165: 0.9695738581 | AM165: 1.228666958 | AN165: 1.521496178 | AO165: 1.724780758 | AP165: 2.144309418 | AQ165: 2.104300578 | AR165: 2.125790765 | AS165: 1.883720177 | AT165: 1.793999726 | AU165: 1.764290185 | AV165: 1.427360321 | AW165: 2.007911789 | AX165: 3.014852096 | AY165: 3.641779822 | AZ165: 3.320998842 | BA165: 3.053149932 | BB165: 2.79262896 | BC165: 2.534934222 | BD165: 2.130666499 | BE165: 1.791107822 | BF165: 1.708184565
A166: 166 | B166: Cathodic protection | D166: 0 | E166: 0 | F166: 0 | G166: 0 | H166: 0 | I166: 0 | J166: 0 | K166: 0 | L166: 0 | M166: 0 | N166: 0 | O166: 0 | P166: 0 | Q166: 0.00394725 | R166: 0.0078287125 | S166: 0.0116443875 | T166: 0.015394275 | U166: 0.015131125 | V166: 0.014867975 | W166: 0.014604825 | X166: 0.014341675 | Y166: 0.014375525 | Z166: 0.014112375 | AA166: 0.013849225 | AB166: 0.013586075 | AC166: 0.013322925 | AD166: 0.013059775 | AE166: 0.021046625 | AF166: 0.020783475 | AG166: 0.020520325 | AH166: 0.020257175 | AI166: 0.019994025 | AJ166: 0.019730875 | AK166: 0.019467725 | AL166: 0.084890545 | AM166: 0.086502895 | AN166: 0.132402935 | AO166: 0.240634215 | AP166: 0.980253675 | AQ166: 1.141389705 | AR166: 1.729809375 | AS166: 1.610898404 | AT166: 1.403892059 | AU166: 1.106399082 | AV166: 0.8064909284 | AW166: 0.5395055932 | AX166: 1.087849895 | AY166: 0.9531799665 | AZ166: 0.8158919873 | BA166: 0.6765477229 | BB166: 0.6093489718 | BC166: 0.522800553 | BD166: 0.3919663197 | BE166: 0.2616957315 | BF166: 0.1340656204
A167: 167 | B167: Maintenance bases and depots | D167: 0 | E167: 0.00182295 | F167: 0.00363678525 | G167: 0.00544150575 | H167: 0.0072371115 | I167: 0.0082676975 | J167: 0.009292948275 | K167: 0.01031286382 | L167: 0.01132744415 | M167: 0.01181964425 | N167: 0.01230909435 | O167: 0.01279579445 | P167: 0.01327974455 | Q167: 0.01321094465 | R167: 0.01314214475 | S167: 0.01307334485 | T167: 0.01300454495 | U167: 0.01293574505 | V167: 0.01286694515 | W167: 0.01279814525 | X167: 0.01272934535 | Y167: 0.01266054545 | Z167: 0.01259174555 | AA167: 0.01252294565 | AB167: 0.01507314575 | AC167: 0.01500434585 | AD167: 0.04977284595 | AE167: 0.04970404605 | AF167: 0.04963524615 | AG167: 0.04956644625 | AH167: 0.04949764635 | AI167: 0.05989470645 | AJ167: 0.06148690655 | AK167: 0.06141810665 | AL167: 0.1226282468 | AM167: 0.1348025169 | AN167: 0.205955057 | AO167: 0.2058862571 | AP167: 0.2058174572 | AQ167: 0.2057486573 | AR167: 0.2244898574 | AS167: 0.2880836693 | AT167: 0.2829687802 | AU167: 0.2773951069 | AV167: 1.327338398 | AW167: 1.43276505 | AX167: 1.431403401 | AY167: 1.397886253 | AZ167: 1.364369105 | BA167: 1.349931247 | BB167: 1.622401724 | BC167: 3.729901348 | BD167: 3.82538216 | BE167: 3.742229261 | BF167: 3.659076362
A168: 168 | B168: Other assets | D168: 0 | E168: 0.1355580325 | F168: 0.2677271142 | G168: 0.3965072451 | H168: 0.5218984251 | I168: 0.5628642044 | J168: 0.6024669441 | K168: 0.6407066442 | L168: 0.6775833047 | M168: 0.7467512507 | N168: 0.8137147991 | O168: 0.8784739497 | P168: 0.9410287026 | Q168: 0.9589025654 | R168: 0.9756339428 | S168: 0.9912228348 | T168: 1.005669241 | U168: 1.371572198 | V168: 1.727517693 | W168: 2.073505726 | X168: 2.409536299 | Y168: 2.41849275 | Z168: 2.534057439 | AA168: 2.524381787 | AB168: 2.519696682 | AC168: 2.570376905 | AD168: 2.551194028 | AE168: 2.49943179 | AF168: 2.439469321 | AG168: 2.407883182 | AH168: 2.4621375 | AI168: 2.536447706 | AJ168: 2.41195542 | AK168: 2.315864821 | AL168: 2.307509692 | AM168: 2.208421413 | AN168: 2.059932874 | AO168: 2.144390855 | AP168: 2.082072196 | AQ168: 1.980662617 | AR168: 2.092558672 | AS168: 1.729145519 | AT168: 1.043507059 | AU168: 0.1546611136 | AV168: -0.2781978787 | AW168: -1.322296187 | AX168: 0.8385878132 | AY168: 0.9453159571 | AZ168: 0.8626447539 | BA168: 0.8035049333 | BB168: 0.8720559701 | BC168: 0.8473289156 | BD168: 0.6972984717 | BE168: 0.5472680278 | BF168: 0.397237584
A169: 169 | B169: Equity Raising Cost | D169: 0 | E169: 0 | F169: 0 | G169: 0 | H169: 0 | I169: 0 | J169: 0 | K169: 0 | L169: 0 | M169: 0 | N169: 0 | O169: 0 | P169: 0 | Q169: 0 | R169: 0 | S169: 0 | T169: 0 | U169: 0 | V169: 0 | W169: 0 | X169: 0 | Y169: 0 | Z169: 0 | AA169: 0 | AB169: 0 | AC169: 0 | AD169: 0 | AE169: 0 | AF169: 0 | AG169: 0 | AH169: 0 | AI169: 0 | AJ169: 0 | AK169: 0 | AL169: 0 | AM169: 0 | AN169: 0 | AO169: 0 | AP169: 0 | AQ169: 0 | AR169: 0 | AS169: 0 | AT169: 0 | AU169: 0 | AV169: 0 | AW169: 0 | AX169: 0 | AY169: 0 | AZ169: 0 | BA169: 0 | BB169: 0 | BC169: 0.01714471367 | BD169: 0.01662242997 | BE169: 0.01610014626 | BF169: 0.01557786255
A170: 170 | B170: Non-depreciable assets | D170: 0 | E170: 0.366693219 | F170: 0.366693219 | G170: 0.3468739891 | H170: 0.3468739891 | I170: 1.122150221 | J170: 1.093811472 | K170: 1.066088783 | L170: 1.066088783 | M170: 0.4386952437 | N170: 0.4178669891 | O170: 0.3974915226 | P170: 0.3974915226 | Q170: 1.856820291 | R170: 1.820408245 | S170: 1.784787765 | T170: 1.784787765 | U170: 1.076766205 | V170: 1.076766205 | W170: 1.049228791 | X170: 1.049228791 | Y170: 0.9793240712 | Z170: 0.9525548404 | AA170: 0.9263675495 | AB170: 0.9263675495 | AC170: 1.312449071 | AD170: 1.282019126 | AE170: 1.252250702 | AF170: 1.252250702 | AG170: 1.316824071 | AH170: 1.286346049 | AI170: 1.256530593 | AJ170: 1.256530593 | AK170: 1.074326818 | AL170: 1.074326818 | AM170: 1.046815919 | AN170: 1.046815919 | AO170: 1.301574071 | AP170: 1.271263632 | AQ170: 1.241612115 | AR170: 1.241612115 | AS170: 1.241612115 | AT170: 1.241612115 | AU170: 1.241612115 | AV170: 1.241612115 | AW170: 1.328967564 | AX170: 1.328967564 | AY170: 1.328967564 | AZ170: 1.328967564 | BA170: 1.328967564 | BB170: 1.328967564 | BC170: 1.328967564 | BD170: 1.328967564 | BE170: 1.328967564 | BF170: 1.328967564
A171: 171 | B171: Total | D171: 0 | E171: 1.277726184 | F171: 2.178855774 | G171: 3.05026276 | H171: 3.931585601 | I171: 6.765096784 | J171: 8.776594983 | K171: 10.77031124 | L171: 12.77335218 | M171: 12.31259764 | N171: 12.45449213 | O171: 12.59292314 | P171: 12.74781337 | Q171: 16.61295721 | R171: 18.96029875 | S171: 21.28637037 | T171: 23.62600098 | U171: 24.23571952 | V171: 25.53311505 | W171: 26.7826286 | X171: 28.039335 | Y171: 28.31522661 | Z171: 28.54886473 | AA171: 28.35238125 | AB171: 28.1753031 | AC171: 28.48526212 | AD171: 28.88911341 | AE171: 29.19149327 | AF171: 29.21854202 | AG171: 29.51292868 | AH171: 29.87168593 | AI171: 29.7020652 | AJ171: 29.34421728 | AK171: 28.7484959 | AL171: 28.83528596 | AM171: 28.75247697 | AN171: 28.92654984 | AO171: 29.6096954 | AP171: 30.40648453 | AQ171: 30.12691281 | AR171: 30.71302215 | AS171: 29.35375864 | AT171: 27.31432434 | AU171: 25.02636899 | AV171: 24.40029377 | AW171: 24.84830334 | AX171: 30.37077156 | AY171: 29.84947323 | AZ171: 29.29474357 | BA171: 28.06639719 | BB171: 27.82244708 | BC171: 29.9248987 | BD171: 28.83109606 | BE171: 27.33972403 | BF171: 25.62597351
A172: 172 | B172: Capex ($m) | D172: $OD | E172: $OD | F172: $OD | G172: $OD | H172: $OD | I172: $OD | J172: $OD | K172: $OD | L172: $OD | M172: $OD | N172: $OD | O172: $OD | P172: $OD | Q172: $OD | R172: $OD | S172: $OD | T172: $OD | U172: $OD | V172: $OD | W172: $OD | X172: $OD | Y172: $OD | Z172: $OD | AA172: $OD | AB172: $OD | AC172: $OD | AD172: $OD | AE172: $OD | AF172: $OD | AG172: $OD | AH172: $OD | AI172: $OD | AJ172: $OD | AK172: $OD | AL172: $OD | AM172: $OD | AN172: $OD | AO172: $OD | AP172: $OD | AQ172: $OD | AR172: $OD | AS172: $OD | AT172: $OD | AU172: $OD | AV172: $OD | AW172: $ 31/12/2018 | AX172: $ 31/12/2018 | AY172: $ 31/12/2018 | AZ172: $ 31/12/2018 | BA172: $ 31/12/2018 | BB172: $ 31/12/2018 | BC172: $ 31/12/2018 | BD172: $ 31/12/2018 | BE172: $ 31/12/2018 | BF172: $ 31/12/2018
A173: 173 | B173: Pipeline and laterals | D173: 0 | E173: 0 | F173: 0 | G173: 0 | H173: 0 | I173: 0 | J173: 0 | K173: 0 | L173: 0 | M173: 0 | N173: 0 | O173: 0 | P173: 0 | Q173: 0 | R173: 0 | S173: 0 | T173: 0 | U173: 0 | V173: 0 | W173: 0 | X173: 0.30112484 | Y173: 0.00025486 | Z173: 0.00045632 | AA173: -0.00033 | AB173: 0 | AC173: 0 | AD173: 0 | AE173: 0 | AF173: 0 | AG173: 0.28621376 | AH173: 0 | AI173: 0 | AJ173: 0 | AK173: 0.00355109 | AL173: 0.01002201 | AM173: 0.06076867 | AN173: 0.00144492 | AO173: 0.0014231 | AP173: 0.00856286 | AQ173: 0.00071536 | AR173: -0.082937 | AS173: 0 | AT173: 0 | AU173: 0.025633 | AV173: 0 | AW173: 1.858949047 | AX173: 0.5102709704 | AY173: 0.2809646297 | AZ173: 0.000914249579 | BA173: 0 | BB173: 0.2130798669 | BC173: 0 | BD173: 0 | BE173: 0 | BF173: 0
A174: 174 | B174: Main line valve and scraper stations | D174: 0 | E174: 0 | F174: 0 | G174: 0 | H174: 0 | I174: 0 | J174: 0 | K174: 0 | L174: 0 | M174: 0 | N174: 0 | O174: 0 | P174: 0 | Q174: 0 | R174: 0 | S174: 0 | T174: 0 | U174: 0 | V174: 0 | W174: 0 | X174: 0 | Y174: 0 | Z174: 0 | AA174: 0 | AB174: 0 | AC174: 0 | AD174: 0 | AE174: 0 | AF174: 0 | AG174: 0 | AH174: 0 | AI174: 0 | AJ174: 0 | AK174: 0 | AL174: 0 | AM174: 0 | AN174: 0.02711449 | AO174: 0.00114492 | AP174: 0 | AQ174: 0 | AR174: 0 | AS174: 0 | AT174: 0 | AU174: 0 | AV174: 0 | AW174: 0.1153276481 | AX174: 0.001555810255 | AY174: 0 | AZ174: 0 | BA174: 0 | BB174: 0 | BC174: 0 | BD174: 0 | BE174: 0 | BF174: 0
A175: 175 | B175: Compressor stations | D175: 0.7266078075 | E175: 0.7266078075 | F175: 0.7266078075 | G175: 0.7266078075 | H175: 2.016678142 | I175: 2.016678142 | J175: 2.016678142 | K175: 2.016678142 | L175: 0.1623632675 | M175: 0.1623632675 | N175: 0.1623632675 | O175: 0.1623632675 | P175: 2.450314792 | Q175: 2.450314792 | R175: 2.450314792 | S175: 2.450314792 | T175: 1.018218935 | U175: 1.018218935 | V175: 1.018218935 | W175: 1.018218935 | X175: 0.23668579 | Y175: 0.36644481 | Z175: 0.06653221 | AA175: 0.03745882 | AB175: 0.03906246 | AC175: 0.33773978 | AD175: 0.3358245 | AE175: 0.20489235 | AF175: 0.09346673 | AG175: 0.18295022 | AH175: 0.05837254 | AI175: 0.02024216 | AJ175: 0 | AK175: 0.23202959 | AL175: 0.04096777 | AM175: 0.12877112 | AN175: 0.28400227 | AO175: 0.0078502 | AP175: 0.00194744 | AQ175: 0 | AR175: 0.36723542 | AS175: 0.0473 | AT175: 0.1505567938 | AU175: 0.4783121846 | AV175: 0.7031027752 | AW175: -0.01647923985 | AX175: 0 | AY175: 0.9827399411 | AZ175: 0.3268918291 | BA175: 0.9000233794 | BB175: 0.5489796931 | BC175: 0.1634470684 | BD175: 0.432428803 | BE175: 0.04963858866 | BF175: 0.5155026365
A176: 176 | B176: Receipt and delivery point facilities | D176: 0.04005906 | E176: 0.04005906 | F176: 0.04005906 | G176: 0.04005906 | H176: 0.0242860925 | I176: 0.0242860925 | J176: 0.0242860925 | K176: 0.0242860925 | L176: 0.0147807275 | M176: 0.0147807275 | N176: 0.0147807275 | O176: 0.0147807275 | P176: 0.0173773425 | Q176: 0.0173773425 | R176: 0.0173773425 | S176: 0.0173773425 | T176: 0.00844475 | U176: 0.00844475 | V176: 0.00844475 | W176: 0.00844475 | X176: 0 | Y176: 0 | Z176: 0 | AA176: 0.01755367 | AB176: 0.01368143 | AC176: 0.12254546 | AD176: 0.11840168 | AE176: 0.12576146 | AF176: 0.3960732 | AG176: 0.08453083 | AH176: 0.00012867 | AI176: 0 | AJ176: 0 | AK176: 0 | AL176: 0 | AM176: 0.00321914 | AN176: 0 | AO176: 0 | AP176: 0 | AQ176: 0 | AR176: 0 | AS176: 0 | AT176: 0 | AU176: 0.1356 | AV176: 0.1877352741 | AW176: 0.4333042232 | AX176: -0.4100328718 | AY176: 0.001307925959 | AZ176: 0.1875442241 | BA176: 0.1230663449 | BB176: 0.1485634316 | BC176: 0.6091621534 | BD176: 0.08172569551 | BE176: 0 | BF176: 0
A177: 177 | B177: SCADA and communications | D177: 0.006985115 | E177: 0.006985115 | F177: 0.006985115 | G177: 0.006985115 | H177: 0.0012955875 | I177: 0.0012955875 | J177: 0.0012955875 | K177: 0.0012955875 | L177: 0.0139746075 | M177: 0.0139746075 | N177: 0.0139746075 | O177: 0.0139746075 | P177: 0.0173468175 | Q177: 0.0173468175 | R177: 0.0173468175 | S177: 0.0173468175 | T177: 0.109894455 | U177: 0.109894455 | V177: 0.109894455 | W177: 0.109894455 | X177: 0.02500167 | Y177: 0.00555411 | Z177: 0.00094376 | AA177: 0 | AB177: 0.05128961 | AC177: 0.20082489 | AD177: 0.17556474 | AE177: 0.02213489 | AF177: 0.04928407 | AG177: 0.07052838 | AH177: 0.01797736 | AI177: 0.05761879 | AJ177: 0.00726825 | AK177: 0.05729485 | AL177: 0.30337709 | AM177: 0.33711321 | AN177: 0.24756857 | AO177: 0.46381265 | AP177: 0.00427515 | AQ177: 0 | AR177: 0.06002106 | AS177: 0.2441346 | AT177: 0.48731914 | AU177: 0.36361653 | AV177: 1.166620315 | AW177: 0.9384630268 | AX177: 1.026476793 | AY177: 0.06619123194 | AZ177: 0.1099072675 | BA177: 0 | BB177: 0.2164537358 | BC177: 0.09152612498 | BD177: 0.1653877825 | BE177: 0.4253805925 | BF177: 0.3167224013
A178: 178 | B178: Cathodic protection | D178: 0 | E178: 0 | F178: 0 | G178: 0 | H178: 0 | I178: 0 | J178: 0 | K178: 0 | L178: 0 | M178: 0 | N178: 0 | O178: 0 | P178: 0.00394725 | Q178: 0.00394725 | R178: 0.00394725 | S178: 0.00394725 | T178: 0 | U178: 0 | V178: 0 | W178: 0 | X178: 0.000297 | Y178: 0 | Z178: 0 | AA178: 0 | AB178: 0 | AC178: 0 | AD178: 0.00825 | AE178: 0 | AF178: 0 | AG178: 0 | AH178: 0 | AI178: 0 | AJ178: 0 | AK178: 0.06568597 | AL178: 0.0018755 | AM178: 0.04616319 | AN178: 0.10849443 | AO178: 0.73988261 | AP178: 0.16139918 | AQ178: 0.58868282 | AR178: 0 | AS178: 0 | AT178: 0 | AU178: 0 | AV178: 0 | AW178: 0 | AX178: 0 | AY178: 0 | AZ178: 0 | BA178: 0.07353988287 | BB178: 0 | BC178: 0 | BD178: 0 | BE178: 0 | BF178: 0
A179: 179 | B179: Maintenance bases and depots | D179: 0.00182295 | E179: 0.00182295 | F179: 0.00182295 | G179: 0.00182295 | H179: 0.001067045 | I179: 0.001067045 | J179: 0.001067045 | K179: 0.001067045 | L179: 0.00055 | M179: 0.00055 | N179: 0.00055 | O179: 0.00055 | P179: 0 | Q179: 0 | R179: 0 | S179: 0 | T179: 0 | U179: 0 | V179: 0 | W179: 0 | X179: 0 | Y179: 0 | Z179: 0 | AA179: 0.002619 | AB179: 0 | AC179: 0.0348373 | AD179: 0 | AE179: 0 | AF179: 0 | AG179: 0 | AH179: 0.01046586 | AI179: 0.001661 | AJ179: 0 | AK179: 0.06127894 | AL179: 0.01224307 | AM179: 0.07122134 | AN179: 0 | AO179: 0 | AP179: 0 | AQ179: 0.01881 | AR179: 0.06827324 | AS179: 0 | AT179: 0 | AU179: 1.056 | AV179: 0.01781308687 | AW179: 0.02612537852 | AX179: 0 | AY179: 0 | AZ179: 0.01907929041 | BA179: 0.3059876245 | BB179: 2.14426461 | BC179: 0.1751310891 | BD179: 0 | BE179: 0 | BF179: 0
A180: 180 | B180: Other assets | D180: 0.1355580325 | E180: 0.1355580325 | F180: 0.1355580325 | G180: 0.1355580325 | H180: 0.0545215825 | I180: 0.0545215825 | J180: 0.0545215825 | K180: 0.0545215825 | L180: 0.0881759075 | M180: 0.0881759075 | N180: 0.0881759075 | O180: 0.0881759075 | P180: 0.045699415 | Q180: 0.045699415 | R180: 0.045699415 | S180: 0.045699415 | T180: 0.39829845 | U180: 0.39829845 | V180: 0.39829845 | W180: 0.39829845 | X180: 0.08118179 | Y180: 0.1946215 | Z180: 0.07621263 | AA180: 0.08803465 | AB180: 0.15023145 | AC180: 0.0845521 | AD180: 0.05615649 | AE180: 0.05214001 | AF180: 0.08470009 | AG180: 0.17527503 | AH180: 0.2000654 | AI180: 0.00599739 | AJ180: 0.03913356 | AK180: 0.13693153 | AL180: 0.05626088 | AM180: 0.01692312 | AN180: 0.25993214 | AO180: 0.1239055 | AP180: 0.09556458 | AQ180: 0.12330345 | AR180: 0.044697 | AS180: 0.023212 | AT180: 0.025781 | AU180: 0.5341323141 | AV180: 0.06094068551 | AW180: 0.07038476481 | AX180: 0.3331223155 | AY180: 0.1264230141 | AZ180: 0.1219709292 | BA180: 0.2190546234 | BB180: 0 | BC180: 0 | BD180: 0 | BE180: 0 | BF180: 0
A181: 181 | B181: Equity Raising Cost | D181: 0 | E181: 0 | F181: 0 | G181: 0 | H181: 0 | I181: 0 | J181: 0 | K181: 0 | L181: 0 | M181: 0 | N181: 0 | O181: 0 | P181: 0 | Q181: 0 | R181: 0 | S181: 0 | T181: 0 | U181: 0 | V181: 0 | W181: 0 | X181: 0 | Y181: 0 | Z181: 0 | AA181: 0 | AB181: 0 | AC181: 0 | AD181: 0 | AE181: 0 | AF181: 0 | AG181: 0 | AH181: 0 | AI181: 0 | AJ181: 0 | AK181: 0 | AL181: 0 | AM181: 0 | AN181: 0 | AO181: 0 | AP181: 0 | AQ181: 0 | AR181: 0 | AS181: 0 | AT181: 0 | AU181: 0 | AV181: 0 | AW181: 0 | AX181: 0 | AY181: 0 | AZ181: 0 | BA181: 0 | BB181: 0.01714471367 | BC181: 0 | BD181: 0 | BE181: 0 | BF181: 0
A182: 182 | B182: Non-depreciable assets | D182: 0.366693219 | E182: 0 | F182: -0.01981922987 | G182: 0 | H182: 0.7752762321 | I182: -0.0283387489 | J182: -0.02772268914 | K182: 0 | L182: -0.6273935395 | M182: -0.02082825464 | N182: -0.0203754665 | O182: 0 | P182: 1.459328769 | Q182: -0.03641204637 | R182: -0.03562048015 | S182: 0 | T182: -0.7080215592 | U182: 0 | V182: -0.0275374145 | W182: 0 | X182: -0.06990471975 | Y182: -0.02676923077 | Z182: -0.02618729097 | AA182: 0 | AB182: 0.3860815217 | AC182: -0.03042994505 | AD182: -0.02976842451 | AE182: 0 | AF182: 0.06457336957 | AG182: -0.03047802198 | AH182: -0.02981545628 | AI182: 0 | AJ182: -0.1822037745 | AK182: 0 | AL182: -0.02751089943 | AM182: 0 | AN182: 0.2547581522 | AO182: -0.03031043956 | AP182: -0.02965151696 | AQ182: 0 | AR182: 0 | AS182: 0 | AT182: 0 | AU182: 0 | AV182: 0 | AW182: 0 | AX182: 0 | AY182: 0 | AZ182: 0 | BA182: 0 | BB182: 0 | BC182: 0 | BD182: 0 | BE182: 0 | BF182: 0
A183: 183 | B183: Total | D183: 1.277726184 | E183: 0.911032965 | F183: 0.8912137351 | G183: 0.911032965 | H183: 2.873124682 | I183: 2.069509701 | J183: 2.070125761 | K183: 2.09784845 | L183: -0.3475490295 | M183: 0.2590162554 | N183: 0.2594690435 | O183: 0.27984451 | P183: 3.994014386 | Q183: 2.498273571 | R183: 2.499065137 | S183: 2.534685618 | T183: 0.8268350308 | U183: 1.53485659 | V183: 1.507319175 | W183: 1.53485659 | X183: 0.5743863703 | Y183: 0.5401060492 | Z183: 0.117957629 | AA183: 0.14533614 | AB183: 0.6403464717 | AC183: 0.7500695849 | AD183: 0.6644289855 | AE183: 0.40492871 | AF183: 0.6880974596 | AG183: 0.769020198 | AH183: 0.2571943737 | AI183: 0.08551934 | AJ183: -0.1358019645 | AK183: 0.55677197 | AL183: 0.3972354206 | AM183: 0.66417979 | AN183: 1.183314972 | AO183: 1.30770854 | AP183: 0.242097693 | AQ183: 0.73151163 | AR183: 0.45728972 | AS183: 0.3146466 | AT183: 0.6636569338 | AU183: 2.593294029 | AV183: 2.136212137 | AW183: 3.426074848 | AX183: 1.461393017 | AY183: 1.457626743 | AZ183: 0.7663077899 | BA183: 1.621671855 | BB183: 3.288486051 | BC183: 1.039266436 | BD183: 0.679542281 | BE183: 0.4750191812 | BF183: 0.8322250379
A184: 184 | B184: Total Capex Depreciation ($m) | D184: $OD | E184: $OD | F184: $OD | G184: $OD | H184: $OD | I184: $OD | J184: $OD | K184: $OD | L184: $OD | M184: $OD | N184: $OD | O184: $OD | P184: $OD | Q184: $OD | R184: $OD | S184: $OD | T184: $OD | U184: $OD | V184: $OD | W184: $OD | X184: $OD | Y184: $OD | Z184: $OD | AA184: $OD | AB184: $OD | AC184: $OD | AD184: $OD | AE184: $OD | AF184: $OD | AG184: $OD | AH184: $OD | AI184: $OD | AJ184: $OD | AK184: $OD | AL184: $OD | AM184: $OD | AN184: $OD | AO184: $OD | AP184: $OD | AQ184: $OD | AR184: $OD | AS184: $OD | AT184: $OD | AU184: $OD | AV184: $OD | AW184: $ 31/12/2018 | AX184: $ 31/12/2018 | AY184: $ 31/12/2018 | AZ184: $ 31/12/2018 | BA184: $ 31/12/2018 | BB184: $ 31/12/2018 | BC184: $ 31/12/2018 | BD184: $ 31/12/2018 | BE184: $ 31/12/2018 | BF184: $ 31/12/2018
A185: 185 | B185: Pipeline and laterals | D185: 0 | E185: 0 | F185: 0 | G185: 0 | H185: 0 | I185: 0 | J185: 0 | K185: 0 | L185: 0 | M185: 0 | N185: 0 | O185: 0 | P185: 0 | Q185: 0 | R185: 0 | S185: 0 | T185: 0 | U185: 0 | V185: 0 | W185: 0 | X185: 0 | Y185: 0 | Z185: 0 | AA185: 0 | AB185: 0 | AC185: 0 | AD185: 0 | AE185: 0 | AF185: 0 | AG185: 0 | AH185: 0 | AI185: 0 | AJ185: 0 | AK185: 0 | AL185: 0 | AM185: 0 | AN185: 0 | AO185: 0 | AP185: 0 | AQ185: 0 | AR185: 0.01011862191 | AS185: 0.01011862191 | AT185: 0.01011862191 | AU185: 0.01011862191 | AV185: 0.01011862191 | AW185: -0.07754399266 | AX185: 0.05094710528 | AY185: 0.07053416524 | AZ185: 0.0728596303 | BA185: 0.0728596303 | BB185: 0.04780248695 | BC185: 0.05084648505 | BD185: 0.05084648505 | BE185: 0.05084648505 | BF185: 0.05084648505
A186: 186 | B186: Main line valve and scraper stations | D186: 0 | E186: 0 | F186: 0 | G186: 0 | H186: 0 | I186: 0 | J186: 0 | K186: 0 | L186: 0 | M186: 0 | N186: 0 | O186: 0 | P186: 0 | Q186: 0 | R186: 0 | S186: 0 | T186: 0 | U186: 0 | V186: 0 | W186: 0 | X186: 0 | Y186: 0 | Z186: 0 | AA186: 0 | AB186: 0 | AC186: 0 | AD186: 0 | AE186: 0 | AF186: 0 | AG186: 0 | AH186: 0 | AI186: 0 | AJ186: 0 | AK186: 0 | AL186: 0 | AM186: 0 | AN186: 0 | AO186: 0 | AP186: 0 | AQ186: 0 | AR186: 0.0005736777173 | AS186: 0.001893677717 | AT186: 0.001893677717 | AU186: 0.001893677717 | AV186: 0.001893677717 | AW186: -0.005037442518 | AX186: 0.000614039658 | AY186: 0.01177627193 | AZ186: 0.01177627193 | BA186: 0.01177627193 | BB186: -0.02880972411 | BC186: 0.003121162443 | BD186: 0.003121162443 | BE186: 0.003121162443 | BF186: 0.003121162443
A187: 187 | B187: Compressor stations | D187: 0 | E187: 0.006055065063 | F187: 0.01211013013 | G187: 0.01816519519 | H187: 0.02422026025 | I187: 0.04102591144 | J187: 0.05783156262 | K187: 0.07463721381 | L187: 0.091442865 | M187: 0.09279589223 | N187: 0.09414891946 | O187: 0.09550194669 | P187: 0.09685497392 | Q187: 0.1172742639 | R187: 0.1376935538 | S187: 0.1581128437 | T187: 0.1785321337 | U187: 0.1870172915 | V187: 0.1955024492 | W187: 0.203987607 | X187: 0.2124727648 | Y187: 0.2133684136 | Z187: 0.2142640624 | AA187: 0.2151597111 | AB187: 0.2160553599 | AC187: 0.2235357764 | AD187: 0.2310161928 | AE187: 0.2384966093 | AF187: 0.2459770258 | AG187: 0.2536280316 | AH187: 0.2612790375 | AI187: 0.2689300433 | AJ187: 0.2765810492 | AK187: 0.2765810492 | AL187: 0.2765810492 | AM187: 0.2765810492 | AN187: 0.2765810492 | AO187: 0.2765810492 | AP187: 0.2765810492 | AQ187: 0.2765810492 | AR187: 0.9254466206 | AS187: 1.037696164 | AT187: 1.153420406 | AU187: 1.180384446 | AV187: 1.208740536 | AW187: 0.6274586475 | AX187: 1.065996498 | AY187: 1.092171017 | AZ187: 1.092171017 | BA187: 1.098734642 | BB187: 0.8968789172 | BC187: 1.130388412 | BD187: 1.135836647 | BE187: 1.150250941 | BF187: 1.15190556
A188: 188 | B188: Receipt and delivery point facilities | D188: 0 | E188: 0.0003338255 | F188: 0.000667651 | G188: 0.0010014765 | H188: 0.001335302 | I188: 0.001537686104 | J188: 0.001740070208 | K188: 0.001942454313 | L188: 0.002144838417 | M188: 0.002268011146 | N188: 0.002391183875 | O188: 0.002514356604 | P188: 0.002637529333 | Q188: 0.002782340521 | R188: 0.002927151708 | S188: 0.003071962896 | T188: 0.003216774083 | U188: 0.003287147 | V188: 0.003357519917 | W188: 0.003427892833 | X188: 0.00349826575 | Y188: 0.00349826575 | Z188: 0.00349826575 | AA188: 0.00349826575 | AB188: 0.00349826575 | AC188: 0.00349826575 | AD188: 0.00349826575 | AE188: 0.00349826575 | AF188: 0.00349826575 | AG188: 0.00349826575 | AH188: 0.00349826575 | AI188: 0.00349826575 | AJ188: 0.00349826575 | AK188: 0.00349826575 | AL188: 0.00349826575 | AM188: 0.00349826575 | AN188: 0.00349826575 | AO188: 0.00349826575 | AP188: 0.00349826575 | AQ188: 0.00349826575 | AR188: 0.04662210763 | AS188: 0.04954569539 | AT188: 0.05145729614 | AU188: 0.0534699434 | AV188: 0.05558649601 | AW188: 0.0385632095 | AX188: 0.07100338669 | AY188: 0.07100338669 | AZ188: 0.08611890955 | BA188: 0.09697107981 | BB188: -0.3520261747 | BC188: 0.09188193125 | BD188: 0.1121873364 | BE188: 0.1149115262 | BF188: 0.1149115262
A189: 189 | B189: SCADA and communications | D189: 0 | E189: 0.0001164185833 | F189: 0.0002328371667 | G189: 0.00034925575 | H189: 0.0004656743333 | I189: 0.0004872674583 | J189: 0.0005088605833 | K189: 0.0005304537083 | L189: 0.0005520468333 | M189: 0.0007849569583 | N189: 0.001017867083 | O189: 0.001250777208 | P189: 0.001483687333 | Q189: 0.001772800958 | R189: 0.002061914583 | S189: 0.002351028208 | T189: 0.002640141833 | U189: 0.004471716083 | V189: 0.006303290333 | W189: 0.008134864583 | X189: 0.009966438833 | Y189: 0.0102124933 | Z189: 0.01045854776 | AA189: 0.01070460222 | AB189: 0.01095065669 | AC189: 0.01511732335 | AD189: 0.01928399002 | AE189: 0.02345065669 | AF189: 0.02761732335 | AG189: 0.03178399002 | AH189: 0.03595065669 | AI189: 0.04011732335 | AJ189: 0.04428399002 | AK189: 0.04428399002 | AL189: 0.04428399002 | AM189: 0.04428399002 | AN189: 0.04428399002 | AO189: 0.04428399002 | AP189: 0.04428399002 | AQ189: 0.04428399002 | AR189: 0.3020916487 | AS189: 0.3338550502 | AT189: 0.5170286812 | AU189: 0.7005463943 | AV189: 0.718052532 | AW189: -0.06847728018 | AX189: 0.3995490669 | AY189: 0.3869722115 | AZ189: 0.3777561773 | BA189: 0.2605209728 | BB189: 0.4741484739 | BC189: 0.4957938475 | BD189: 0.50494646 | BE189: 0.5083038496 | BF189: 0.5132730578
A190: 190 | B190: Cathodic protection | D190: 0 | E190: 0 | F190: 0 | G190: 0 | H190: 0 | I190: 0 | J190: 0 | K190: 0 | L190: 0 | M190: 0 | N190: 0 | O190: 0 | P190: 0 | Q190: 6.57875e-05 | R190: 0.000131575 | S190: 0.0001973625 | T190: 0.00026315 | U190: 0.00026315 | V190: 0.00026315 | W190: 0.00026315 | X190: 0.00026315 | Y190: 0.00026315 | Z190: 0.00026315 | AA190: 0.00026315 | AB190: 0.00026315 | AC190: 0.00026315 | AD190: 0.00026315 | AE190: 0.00026315 | AF190: 0.00026315 | AG190: 0.00026315 | AH190: 0.00026315 | AI190: 0.00026315 | AJ190: 0.00026315 | AK190: 0.00026315 | AL190: 0.00026315 | AM190: 0.00026315 | AN190: 0.00026315 | AO190: 0.00026315 | AP190: 0.00026315 | AQ190: 0.00026315 | AR190: 0.1189109711 | AS190: 0.2070063451 | AT190: 0.2974929768 | AU190: 0.2999081535 | AV190: 0.3024480167 | AW190: -0.5483443023 | AX190: 0.134669929 | AY190: 0.1372879792 | AZ190: 0.1393442644 | BA190: 0.1407386339 | BB190: 0.08654841888 | BC190: 0.1308342333 | BD190: 0.1302705881 | BE190: 0.1276301111 | BF190: 0.08503903184
A191: 191 | B191: Maintenance bases and depots | D191: 0 | E191: 9.11475e-06 | F191: 1.82295e-05 | G191: 2.734425e-05 | H191: 3.6459e-05 | I191: 4.1794225e-05 | J191: 4.712945e-05 | K191: 5.2464675e-05 | L191: 5.77999e-05 | M191: 6.05499e-05 | N191: 6.32999e-05 | O191: 6.60499e-05 | P191: 6.87999e-05 | Q191: 6.87999e-05 | R191: 6.87999e-05 | S191: 6.87999e-05 | T191: 6.87999e-05 | U191: 6.87999e-05 | V191: 6.87999e-05 | W191: 6.87999e-05 | X191: 6.87999e-05 | Y191: 6.87999e-05 | Z191: 6.87999e-05 | AA191: 6.87999e-05 | AB191: 6.87999e-05 | AC191: 6.87999e-05 | AD191: 6.87999e-05 | AE191: 6.87999e-05 | AF191: 6.87999e-05 | AG191: 6.87999e-05 | AH191: 6.87999e-05 | AI191: 6.87999e-05 | AJ191: 6.87999e-05 | AK191: 6.87999e-05 | AL191: 6.87999e-05 | AM191: 6.87999e-05 | AN191: 6.87999e-05 | AO191: 6.87999e-05 | AP191: 6.87999e-05 | AQ191: 6.87999e-05 | AR191: 0.004679428042 | AS191: 0.005114889104 | AT191: 0.005573673284 | AU191: 0.006056708627 | AV191: 0.006564681255 | AW191: 0.02748702702 | AX191: 0.03351714819 | AY191: 0.03351714819 | AZ191: 0.03351714819 | BA191: 0.03351714819 | BB191: 0.0367649851 | BC191: 0.0796502773 | BD191: 0.08315289908 | BE191: 0.08315289908 | BF191: 0.08315289908
A192: 192 | B192: Other assets | D192: 0 | E192: 0.003388950812 | F192: 0.006777901625 | G192: 0.01016685244 | H192: 0.01355580325 | I192: 0.01491884281 | J192: 0.01628188237 | K192: 0.01764492194 | L192: 0.0190079615 | M192: 0.02121235919 | N192: 0.02341675687 | O192: 0.02562115456 | P192: 0.02782555225 | Q192: 0.02896803762 | R192: 0.030110523 | S192: 0.03125300838 | T192: 0.03239549375 | U192: 0.042352955 | V192: 0.05231041625 | W192: 0.0622678775 | X192: 0.07222533875 | Y192: 0.07905681076 | Z192: 0.08588828277 | AA192: 0.09271975478 | AB192: 0.09955122679 | AC192: 0.1037349774 | AD192: 0.107918728 | AE192: 0.1121024786 | AF192: 0.1162862292 | AG192: 0.1210207116 | AH192: 0.1257551941 | AI192: 0.1304896765 | AJ192: 0.1352241589 | AK192: 0.1452866589 | AL192: 0.1553491589 | AM192: 0.1654116589 | AN192: 0.1754741589 | AO192: 0.1862241589 | AP192: 0.1969741589 | AQ192: 0.2077241589 | AR192: 0.4081101529 | AS192: 0.7088504603 | AT192: 0.9146269453 | AU192: 0.9669913064 | AV192: 1.018122067 | AW192: -2.090499236 | AX192: 0.2263941716 | AY192: 0.2090942173 | AZ192: 0.1811107498 | BA192: 0.1505035866 | BB192: 0.02472705449 | BC192: 0.1500304439 | BD192: 0.1500304439 | BE192: 0.1500304439 | BF192: 0.1010518912
A193: 193 | B193: Equity Raising Cost | D193: 0 | E193: 0 | F193: 0 | G193: 0 | H193: 0 | I193: 0 | J193: 0 | K193: 0 | L193: 0 | M193: 0 | N193: 0 | O193: 0 | P193: 0 | Q193: 0 | R193: 0 | S193: 0 | T193: 0 | U193: 0 | V193: 0 | W193: 0 | X193: 0 | Y193: 0 | Z193: 0 | AA193: 0 | AB193: 0 | AC193: 0 | AD193: 0 | AE193: 0 | AF193: 0 | AG193: 0 | AH193: 0 | AI193: 0 | AJ193: 0 | AK193: 0 | AL193: 0 | AM193: 0 | AN193: 0 | AO193: 0 | AP193: 0 | AQ193: 0 | AR193: 0 | AS193: 0 | AT193: 0 | AU193: 0 | AV193: 0 | AW193: 0 | AX193: 0 | AY193: 0 | AZ193: 0 | BA193: 0 | BB193: 0 | BC193: 0.0005222837058 | BD193: 0.0005222837058 | BE193: 0.0005222837058 | BF193: 0.0005222837058
A194: 194 | B194: Non-depreciable assets | D194: 0 | E194: 0 | F194: 0 | G194: 0 | H194: 0 | I194: 0 | J194: 0 | K194: 0 | L194: 0 | M194: 0 | N194: 0 | O194: 0 | P194: 0 | Q194: 0 | R194: 0 | S194: 0 | T194: 0 | U194: 0 | V194: 0 | W194: 0 | X194: 0 | Y194: 0 | Z194: 0 | AA194: 0 | AB194: 0 | AC194: 0 | AD194: 0 | AE194: 0 | AF194: 0 | AG194: 0 | AH194: 0 | AI194: 0 | AJ194: 0 | AK194: 0 | AL194: 0 | AM194: 0 | AN194: 0 | AO194: 0 | AP194: 0 | AQ194: 0 | AR194: 0 | AS194: 0 | AT194: 0 | AU194: 0 | AV194: 0 | AW194: 0 | AX194: 0 | AY194: 0 | AZ194: 0 | BA194: 0 | BB194: 0 | BC194: 0 | BD194: 0 | BE194: 0 | BF194: 0
A195: 195 | B195: Total | D195: 0 | E195: 0.009903374708 | F195: 0.01980674942 | G195: 0.02971012412 | H195: 0.03961349883 | I195: 0.05801150204 | J195: 0.07640950524 | K195: 0.09480750845 | L195: 0.1132055116 | M195: 0.1171217694 | N195: 0.1210380272 | O195: 0.124954285 | P195: 0.1288705427 | Q195: 0.1509320304 | R195: 0.172993518 | S195: 0.1950550056 | T195: 0.2171164932 | U195: 0.2374610594 | V195: 0.2578056256 | W195: 0.2781501919 | X195: 0.2984947581 | Y195: 0.3064679333 | Z195: 0.3144411085 | AA195: 0.3224142838 | AB195: 0.330387459 | AC195: 0.3462182928 | AD195: 0.3620491265 | AE195: 0.3778799602 | AF195: 0.3937107939 | AG195: 0.4102629489 | AH195: 0.4268151039 | AI195: 0.4433672588 | AJ195: 0.4599194138 | AK195: 0.4699819138 | AL195: 0.4800444138 | AM195: 0.4901069138 | AN195: 0.5001694138 | AO195: 0.5109194138 | AP195: 0.5216694138 | AQ195: 0.5324194138 | AR195: 1.816553229 | AS195: 2.354080904 | AT195: 2.951612279 | AU195: 3.219369251 | AV195: 3.321526629 | AW195: -2.09639337 | AX195: 1.982691346 | AY195: 2.012356397 | AZ195: 1.994654168 | BA195: 1.865621965 | BB195: 1.186034438 | BC195: 2.133069076 | BD195: 2.170914306 | BE195: 2.188769702 | BF195: 2.103823898
A196: 196 | B196: Capex Over Depreciation - Dollar Value ($m)
A197: 197 | B197: Pipeline and laterals | AQ197: 0.00033 | AV197: 0.082937
A198: 198 | B198: Main line valve and scraper stations | AQ198: 0 | AV198: 0.00528
A199: 199 | B199: Compressor stations | AQ199: 0.1245961865 | AV199: 0.3816354804
A200: 200 | B200: Receipt and delivery point facilities | AQ200: 0 | AV200: 0.02145444781
... 925 more rows

Sheet Inputs
B1: =Main!B1 -> Goldfields Gas Pipeline Tariff Model, 1 January 2024
B2: Inputs
A3: Ref | B3: =COLUMN() -> 2 | C3: =COLUMN() -> 3 | D3: =COLUMN() -> 4 | E3: =COLUMN() -> 5 | F3: =COLUMN() -> 6 | G3: =COLUMN() -> 7 | H3: =COLUMN() -> 8 | I3: =COLUMN() -> 9 | J3: =COLUMN() -> 10 | K3: =COLUMN() -> 11 | L3: =COLUMN() -> 12 | M3: =COLUMN() -> 13 | N3: =COLUMN() -> 14 | O3: =COLUMN() -> 15 | P3: =COLUMN() -> 16 | Q3: =COLUMN() -> 17 | R3: =COLUMN() -> 18 | S3: =COLUMN() -> 19 | T3: =COLUMN() -> 20 | U3: =COLUMN() -> 21 | V3: =COLUMN() -> 22 | W3: =COLUMN() -> 23 | X3: =COLUMN() -> 24 | Y3: =COLUMN() -> 25 | Z3: =COLUMN() -> 26 | AA3: =COLUMN() -> 27 | AB3: =COLUMN() -> 28 | AC3: =COLUMN() -> 29 | AD3: =COLUMN() -> 30 | AE3: =COLUMN() -> 31 | AF3: =COLUMN() -> 32 | AG3: =COLUMN() -> 33 | AH3: =COLUMN() -> 34 | AI3: =COLUMN() -> 35 | AJ3: =COLUMN() -> 36 | AK3: =COLUMN() -> 37 | AL3: =COLUMN() -> 38 | AM3: =COLUMN() -> 39 | AN3: =COLUMN() -> 40 | AO3: =COLUMN() -> 41 | AP3: =COLUMN() -> 42 | AQ3: =COLUMN() -> 43 | AR3: =COLUMN() -> 44 | AS3: =COLUMN() -> 45 | AT3: =COLUMN() -> 46 | AU3: =COLUMN() -> 47 | AV3: =COLUMN() -> 48 | AW3: =COLUMN() -> 49 | AX3: =COLUMN() -> 50 | AY3: =COLUMN() -> 51 | AZ3: =COLUMN() -> 52 | BA3: =COLUMN() -> 53 | BB3: =COLUMN() -> 54 | BC3: =COLUMN() -> 55 | BD3: =COLUMN() -> 56 | BE3: =COLUMN() -> 57 | BF3: =COLUMN() -> 58 | BG3: =COLUMN() -> 59 | BH3: =COLUMN() -> 60 | BI3: =COLUMN() -> 61 | BJ3: =COLUMN() -> 62 | BK3: =COLUMN() -> 63 | BL3: =COLUMN() -> 64 | BM3: =COLUMN() -> 65 | BN3: =COLUMN() -> 66
A4: =ROW() -> 4 | B4: Actual or Forecast | F4: Actual | G4: Actual | H4: Actual | I4: Actual | J4: Actual | K4: Actual | L4: Actual | M4: Actual | N4: Actual | O4: Actual | P4: Actual | Q4: Actual | R4: Actual | S4: Actual | T4: Actual | U4: Actual | V4: Actual | W4: Actual | X4: Actual | Y4: Actual | Z4: Actual | AA4: Actual | AB4: Actual | AC4: Actual | AD4: Actual | AE4: Actual | AF4: Actual | AG4: Actual | AH4: Actual | AI4: Actual | AJ4: Actual | AK4: Actual | AL4: Actual | AM4: Actual | AN4: Actual | AO4: Actual | AP4: Actual | AQ4: Actual | AR4: Actual | AS4: Actual | AT4: Actual | AU4: Actual | AV4: Actual | AW4: Actual | AX4: Actual | AY4: Actual | AZ4: Historic | BA4: Historic | BB4: Historic | BC4: Historic | BD4: Historic | BE4: Historic | BF4: Historic | BG4: Historic | BH4: Forecast | BI4: Forecast | BJ4: Forecast | BK4: Forecast | BL4: Forecast | BM4: Forecast | BN4: Forecast
A5: =ROW() -> 5 | B5: Year Type | F5: Calendar | G5: Calendar | H5: Calendar | I5: Calendar | J5: Calendar | K5: Calendar | L5: Calendar | M5: Calendar | N5: Calendar | O5: Calendar | P5: Calendar | Q5: Calendar | R5: Calendar | S5: Calendar | T5: Calendar | U5: Calendar | V5: Calendar | W5: Calendar | X5: Calendar | Y5: Calendar | Z5: Calendar | AA5: Calendar | AB5: Calendar | AC5: Calendar | AD5: Calendar | AE5: Calendar | AF5: Calendar | AG5: Calendar | AH5: Calendar | AI5: Calendar | AJ5: Calendar | AK5: Calendar | AL5: Calendar | AM5: Calendar | AN5: Calendar | AO5: Calendar | AP5: Calendar | AQ5: Calendar | AR5: Calendar | AS5: Calendar | AT5: Calendar | AU5: Calendar | AV5: Calendar | AW5: Calendar | AX5: Calendar | AY5: Calendar | AZ5: Calendar | BA5: Calendar | BB5: Calendar | BC5: Calendar | BD5: Calendar | BE5: Calendar | BF5: Calendar | BG5: Calendar | BH5: Calendar | BI5: Calendar | BJ5: Calendar | BK5: Calendar | BL5: Calendar | BM5: Calendar | BN5: Calendar
A6: =ROW() -> 6 | B6: Regulatory Period | G6: 1 | H6: 1 | I6: 1 | J6: 1 | K6: 1 | L6: 1 | M6: 1 | N6: 1 | O6: 1 | P6: 1 | Q6: 1 | R6: 1 | S6: 1 | T6: 1 | U6: 1 | V6: 1 | W6: 1 | X6: 1 | Y6: 1 | Z6: 1 | AA6: 1 | AB6: 1 | AC6: 1 | AD6: 1 | AE6: 1 | AF6: 1 | AG6: 1 | AH6: 1 | AI6: 1 | AJ6: 1 | AK6: 1 | AL6: 1 | AM6: 1 | AN6: 1 | AO6: 1 | AP6: 1 | AQ6: 1 | AR6: 1 | AS6: 1 | AT6: 1 | AU6: 2 | AV6: 2 | AW6: 2 | AX6: 2 | AY6: 2 | AZ6: 3 | BA6: 3 | BB6: 3 | BC6: 3 | BD6: 3 | BE6: 4 | BF6: 4 | BG6: 4 | BH6: 4 | BI6: 4 | BJ6: 5 | BK6: 5 | BL6: 5 | BM6: 5 | BN6: 5
A7: =ROW() -> 7 | B7: Start Date | F7: 1999-10-01 | G7: =F8+1 -> 2000-01-01 | H7: 2000-04-01 | I7: 2000-07-01 | J7: 2000-10-01 | K7: 2001-01-01 | L7: 2001-04-01 | M7: 2001-07-01 | N7: 2001-10-01 | O7: 2002-01-01 | P7: 2002-04-01 | Q7: 2002-07-01 | R7: 2002-10-01 | S7: 2003-01-01 | T7: 2003-04-01 | U7: 2003-07-01 | V7: 2003-10-01 | W7: 2004-01-01 | X7: 2004-04-01 | Y7: 2004-07-01 | Z7: 2004-10-01 | AA7: 2005-01-01 | AB7: 2005-04-01 | AC7: 2005-07-01 | AD7: 2005-10-01 | AE7: 2006-01-01 | AF7: 2006-04-01 | AG7: 2006-07-01 | AH7: 2006-10-01 | AI7: 2007-01-01 | AJ7: 2007-04-01 | AK7: 2007-07-01 | AL7: 2007-10-01 | AM7: 2008-01-01 | AN7: 2008-04-01 | AO7: 2008-07-01 | AP7: 2008-10-01 | AQ7: 2009-01-01 | AR7: 2009-04-01 | AS7: 2009-07-01 | AT7: 2009-10-01 | AU7: 2010-01-01 | AV7: 2011-01-01 | AW7: 2012-01-01 | AX7: 2013-01-01 | AY7: 2014-01-01 | AZ7: 2015-01-01 | BA7: 2016-01-01 | BB7: 2017-01-01 | BC7: 2018-01-01 | BD7: 2019-01-01 | BE7: =BD8+1 -> 2020-01-01 | BF7: =BE8+1 -> 2021-01-01 | BG7: =BF8+1 -> 2022-01-01 | BH7: =BG8+1 -> 2023-01-01 | BI7: =BH8+1 -> 2024-01-01 | BJ7: =BI8+1 -> 2025-01-01 | BK7: =BJ8+1 -> 2026-01-01 | BL7: 2027-01-01 | BM7: 2028-01-01 | BN7: 2029-01-01
A8: =ROW() -> 8 | B8: End Date | F8: =F7+F11-1 -> 1999-12-31 | G8: 2000-03-31 | H8: 2000-06-30 | I8: 2000-09-30 | J8: 2000-12-31 | K8: 2001-03-31 | L8: 2001-06-30 | M8: 2001-09-30 | N8: 2001-12-31 | O8: 2002-03-31 | P8: 2002-06-30 | Q8: 2002-09-30 | R8: 2002-12-31 | S8: 2003-03-31 | T8: 2003-06-30 | U8: 2003-09-30 | V8: 2003-12-31 | W8: 2004-03-31 | X8: 2004-06-30 | Y8: 2004-09-30 | Z8: 2004-12-31 | AA8: 2005-03-31 | AB8: 2005-06-30 | AC8: 2005-09-30 | AD8: 2005-12-31 | AE8: 2006-03-31 | AF8: 2006-06-30 | AG8: 2006-09-30 | AH8: 2006-12-31 | AI8: 2007-03-31 | AJ8: 2007-06-30 | AK8: 2007-09-30 | AL8: 2007-12-31 | AM8: 2008-03-31 | AN8: 2008-06-30 | AO8: 2008-09-30 | AP8: 2008-12-31 | AQ8: 2009-03-31 | AR8: 2009-06-30 | AS8: 2009-09-30 | AT8: 2009-12-31 | AU8: 2010-12-31 | AV8: 2011-12-31 | AW8: 2012-12-31 | AX8: 2013-12-31 | AY8: 2014-12-31 | AZ8: 2015-12-31 | BA8: 2016-12-31 | BB8: 2017-12-31 | BC8: 2018-12-31 | BD8: 2019-12-31 | BE8: =BE7+BE11-1 -> 2020-12-31 | BF8: 2021-12-31 | BG8: 2022-12-31 | BH8: 2023-12-31 | BI8: 2024-12-31 | BJ8: =DATE(YEAR(BJ7),12,31) -> 2025-12-31 | BK8: =DATE(YEAR(BK7),12,31) -> 2026-12-31 | BL8: 2027-12-31 | BM8: 2028-12-31 | BN8: 2029-12-31
A9: =ROW() -> 9 | B9: Year | F9: =YEAR(F8) -> 1999 | G9: 2000 | H9: 2000 | I9: 2000 | J9: 2000 | K9: 2001 | L9: 2001 | M9: 2001 | N9: 2001 | O9: 2002 | P9: 2002 | Q9: 2002 | R9: 2002 | S9: 2003 | T9: 2003 | U9: 2003 | V9: 2003 | W9: 2004 | X9: 2004 | Y9: 2004 | Z9: 2004 | AA9: 2005 | AB9: 2005 | AC9: 2005 | AD9: 2005 | AE9: 2006 | AF9: 2006 | AG9: 2006 | AH9: 2006 | AI9: 2007 | AJ9: 2007 | AK9: 2007 | AL9: 2007 | AM9: 2008 | AN9: 2008 | AO9: 2008 | AP9: 2008 | AQ9: 2009 | AR9: 2009 | AS9: 2009 | AT9: 2009 | AU9: 2010 | AV9: 2011 | AW9: 2012 | AX9: 2013 | AY9: 2014 | AZ9: 2015 | BA9: 2016 | BB9: 2017 | BC9: 2018 | BD9: 2019 | BE9: 2020 | BF9: 2021 | BG9: 2022 | BH9: 2023 | BI9: =YEAR(BI8) -> 2024 | BJ9: =YEAR(BJ8) -> 2025 | BK9: 2026 | BL9: 2027 | BM9: 2028 | BN9: 2029
A10: =ROW() -> 10 | B10: Quarter | G10: Q1 | H10: Q2 | I10: Q3 | J10: Q4 | K10: Q1 | L10: Q2 | M10: Q3 | N10: Q4 | O10: Q1 | P10: Q2 | Q10: Q3 | R10: Q4 | S10: Q1 | T10: Q2 | U10: Q3 | V10: Q4 | W10: Q1 | X10: Q2 | Y10: Q3 | Z10: Q4 | AA10: Q1 | AB10: Q2 | AC10: Q3 | AD10: Q4 | AE10: Q1 | AF10: Q2 | AG10: Q3 | AH10: Q4 | AI10: Q1 | AJ10: Q2 | AK10: Q3 | AL10: Q4 | AM10: Q1 | AN10: Q2 | AO10: Q3 | AP10: Q4 | AQ10: - | AR10: - | AS10: - | AT10: - | AU10: - | AV10: - | AW10: - | AX10: - | AY10: - | AZ10: - | BA10: - | BB10: - | BC10: - | BD10: - | BE10: - | BF10: - | BG10: - | BH10: - | BI10: - | BJ10: - | BK10: - | BL10: - | BM10: - | BN10: -
A11: =ROW() -> 11 | B11: Days | F11: 92 | G11: 91 | H11: 91 | I11: 92 | J11: 92 | K11: 90 | L11: 91 | M11: 92 | N11: 92 | O11: 90 | P11: 91 | Q11: 92 | R11: 92 | S11: 90 | T11: 91 | U11: 92 | V11: 92 | W11: 91 | X11: 91 | Y11: 92 | Z11: 92 | AA11: 90 | AB11: 91 | AC11: 92 | AD11: 92 | AE11: 90 | AF11: 91 | AG11: 92 | AH11: 92 | AI11: 90 | AJ11: 91 | AK11: 92 | AL11: 92 | AM11: 91 | AN11: 91 | AO11: 92 | AP11: 92 | AQ11: 90 | AR11: 91 | AS11: 92 | AT11: 92 | AU11: 365 | AV11: 365 | AW11: 366 | AX11: 365 | AY11: 365 | AZ11: 365 | BA11: 366 | BB11: 365 | BC11: 365 | BD11: 365 | BE11: 366 | BF11: 365 | BG11: 365 | BH11: 365 | BI11: 366 | BJ11: =BJ8-BJ7+1 -> 365 | BK11: =BK8-BK7+1 -> 365 | BL11: 365 | BM11: 366 | BN11: 365
A12: =ROW() -> 12 | B12: Years (nearest half) | F12: =ROUND(YEARFRAC(F7,F8),2) -> 0.25 | G12: 0.25 | H12: 0.25 | I12: 0.25 | J12: 0.25 | K12: 0.25 | L12: 0.25 | M12: 0.25 | N12: 0.25 | O12: 0.25 | P12: 0.25 | Q12: 0.25 | R12: 0.25 | S12: 0.25 | T12: 0.25 | U12: 0.25 | V12: 0.25 | W12: 0.25 | X12: 0.25 | Y12: 0.25 | Z12: 0.25 | AA12: 0.25 | AB12: 0.25 | AC12: 0.25 | AD12: 0.25 | AE12: 0.25 | AF12: 0.25 | AG12: 0.25 | AH12: 0.25 | AI12: 0.25 | AJ12: 0.25 | AK12: 0.25 | AL12: 0.25 | AM12: 0.25 | AN12: 0.25 | AO12: 0.25 | AP12: 0.25 | AQ12: 0.25 | AR12: 0.25 | AS12: 0.25 | AT12: 0.25 | AU12: 1 | AV12: 1 | AW12: 1 | AX12: 1 | AY12: 1 | AZ12: 1 | BA12: 1 | BB12: 1 | BC12: 1 | BD12: 1 | BE12: =ROUND(YEARFRAC(BE7,BE8),2) -> 1 | BF12: 1 | BG12: 1 | BH12: 1 | BI12: 1 | BJ12: 1 | BK12: 1 | BL12: 1 | BM12: 1 | BN12: 1
A13: =ROW() -> 13
A14: =ROW() -> 14 | B14: CPI and Inflation
A15: =ROW() -> 15 | C15: Base period: | D15: 2023-12-31 | G15: 2000-03-01 | H15: 2000-06-01 | I15: 2000-09-01 | J15: 2000-12-01 | K15: 2001-03-01 | L15: 2001-06-01 | M15: 2001-09-01 | N15: 2001-12-01 | O15: 2002-03-01 | P15: 2002-06-01 | Q15: 2002-09-01 | R15: 2002-12-01 | S15: 2003-03-01 | T15: 2003-06-01 | U15: 2003-09-01 | V15: 2003-12-01 | W15: 2004-03-01 | X15: 2004-06-01 | Y15: 2004-09-01 | Z15: 2004-12-01 | AA15: 2005-03-01 | AB15: 2005-06-01 | AC15: 2005-09-01 | AD15: 2005-12-01 | AE15: 2006-03-01 | AF15: 2006-06-01 | AG15: 2006-09-01 | AH15: 2006-12-01 | AI15: 2007-03-01 | AJ15: 2007-06-01 | AK15: 2007-09-01 | AL15: 2007-12-01 | AM15: 2008-03-01 | AN15: 2008-06-01 | AO15: 2008-09-01 | AP15: 2008-12-01 | AQ15: 2009-03-01 | AR15: 2009-06-30 | AS15: 2009-09-30 | AT15: 2009-12-31 | AU15: 2010-12-31 | AV15: 2011-12-31 | AW15: 2012-12-31 | AX15: 2013-12-31 | AY15: 2014-12-31 | AZ15: 2015-12-31 | BA15: 2016-12-31 | BB15: 2017-12-31 | BC15: 2018-12-31 | BD15: 2019-12-31 | BE15: 2020-12-31 | BF15: 2021-12-31 | BG15: 2022-12-31 | BH15: 2023-12-31 | BI15: 2024-12-31 | BJ15: =DATE(BJ9,12,31) -> 2025-12-31 | BK15: =DATE(BK9,12,31) -> 2026-12-31 | BL15: 2027-12-31 | BM15: 2028-12-31 | BN15: 2029-12-31
A16: =ROW() -> 16 | B16: Period End CPI | G16: 69.7 | H16: 70.2 | I16: 72.9 | J16: 73.1 | K16: 73.9 | L16: 74.5 | M16: 74.7 | N16: 75.4 | O16: 76.1 | P16: 76.6 | Q16: 77.1 | R16: 77.6 | S16: 78.6 | T16: 78.6 | U16: 79.1 | V16: 79.5 | W16: 80.2 | X16: 80.6 | Y16: 80.9 | Z16: 81.5 | AA16: 82.1 | AB16: 82.6 | AC16: 83.4 | AD16: 83.8 | AE16: 84.5 | AF16: 85.9 | AG16: 86.7 | AH16: 86.6 | AI16: 86.6 | AJ16: 87.7 | AK16: 88.3 | AL16: 89.1 | AM16: 90.3 | AN16: 91.6 | AO16: 92.7 | AP16: 92.4 | AQ16: 92.5 | AR16: 92.9 | AS16: 93.8 | AT16: 94.3 | AU16: 96.9 | AV16: 99.8 | AW16: 102 | AX16: 104.8 | AY16: 106.6 | AZ16: 108.4 | BA16: 110 | BB16: 112.1 | BC16: 114.1 | BD16: 116.2 | BE16: 117.2 | BF16: 121.3 | BG16: 130.8 | BH16: =BG16*(1+BH17) -> 136.359 | BI16: 140.7906675 | BJ16: =BI16*(1+BJ17) -> 144.4230667 | BK16: =BJ16*(1+BK17) -> 148.1491818 | BL16: =BK16*(1+BL17) -> 151.9714307 | BM16: =BL16*(1+BM17) -> 155.8922936 | BN16: =BM16*(1+BN17) -> 159.9143148
A17: =ROW() -> 17 | B17: Period End Inflation | H17: 0.007173601148 | I17: 0.03846153846 | J17: 0.002743484225 | K17: 0.01094391245 | L17: 0.008119079838 | M17: 0.002684563758 | N17: 0.0093708166 | O17: 0.009283819629 | P17: 0.006570302234 | Q17: 0.006527415144 | R17: 0.006485084306 | S17: 0.01288659794 | T17: 0 | U17: 0.006361323155 | V17: 0.005056890013 | W17: 0.008805031447 | X17: 0.004987531172 | Y17: 0.003722084367 | Z17: 0.007416563659 | AA17: 0.00736196319 | AB17: 0.006090133983 | AC17: 0.009685230024 | AD17: 0.00479616307 | AE17: 0.008353221957 | AF17: 0.01656804734 | AG17: 0.009313154831 | AH17: -0.001153402537 | AI17: 0 | AJ17: 0.01270207852 | AK17: 0.006841505131 | AL17: 0.00906002265 | AM17: 0.01346801347 | AN17: 0.01439645626 | AO17: 0.01200873362 | AP17: -0.003236245955 | AQ17: 0.001082251082 | AR17: 0.004324324324 | AS17: 0.009687836383 | AT17: 0.005330490405 | AU17: 0.02757158006 | AV17: 0.02992776058 | AW17: =AW16/AV16-1 -> 0.02204408818 | AX17: 0.02745098039 | AY17: 0.01717557252 | AZ17: =AZ16/AY16-1 -> 0.01688555347 | BA17: =BA16/AZ16-1 -> 0.0147601476 | BB17: =BB16/BA16-1 -> 0.01909090909 | BC17: =BC16/BB16-1 -> 0.0178412132 | BD17: =BD16/BC16-1 -> 0.01840490798 | BE17: =BE16/BD16-1 -> 0.008605851979 | BF17: =BF16/BE16-1 -> 0.03498293515 | BG17: =BG16/BF16-1 -> 0.07831821929 | BH17: 0.0425 | BI17: 0.0325 | BJ17: =WACC!O25 -> 0.0258 | BK17: =WACC!P25 -> 0.0258 | BL17: =WACC!Q25 -> 0.0258 | BM17: =WACC!R25 -> 0.0258 | BN17: =WACC!S25 -> 0.0258
A18: =ROW() -> 18
A19: =ROW() -> 19 | B19: ="Deflation Factor (convert nominal to real $ "&D19&")" -> Deflation Factor (convert nominal to real $ 31/12/2023) | C19: Real $ at | D19: =TEXT(D15,"dd/mm/yyyy") -> 31/12/2023 | AS19: =HLOOKUP($D$15,$AS$15:$BI$16,2,FALSE)/AS$16 -> 1.453720682 | AT19: =HLOOKUP($D$15,$AS$15:$BI$16,2,FALSE)/AT$16 -> 1.446012725 | AU19: 1.407213622 | AV19: 1.366322645 | AW19: 1.336852941 | AX19: 1.301135496 | AY19: 1.279165103 | AZ19: 1.257924354 | BA19: 1.239627273 | BB19: 1.216404996 | BC19: 1.19508326 | BD19: 1.17348537 | BE19: 1.163472696 | BF19: 1.124146744 | BG19: 1.0425 | BH19: 1 | BI19: 0.9685230024 | BJ19: 0.944163582 | BK19: 0.9204168278 | BL19: 0.8972673307 | BM19: 0.8747000689 | BN19: 0.8527003987
A20: =ROW() -> 20
A21: =ROW() -> 21 | B21: General Inputs
A22: =ROW() -> 22 | B22: Tariff Recalculation | C22: =IF(ISNUMBER($BN$23),$BN$9,IF(ISNUMBER($BM$23),$BM$9,IF(ISNUMBER($BL$23),$BL$9,IF(ISNUMBER($BK$23),$BK$9,$BJ$9)))) -> 2025 | D22: =BN9 -> 2029
A23: =ROW() -> 23 | B23: Annual Debt Risk Premium (Annual Update) | BE23: 0.01725 | BF23: 0.02009 | BG23: 0.01482 | BH23: 0.02209 | BI23: 0.01908 | BJ23: 0.01908
A24: =ROW() -> 24 | B24: Trailing Average DRP (10 year ave, modelled) | AZ24: =WACC!E42 -> 0.02526 | BA24: =WACC!F42 -> 0.02713 | BB24: =WACC!G42 -> 0.02855 | BC24: =WACC!H42 -> 0.02666 | BD24: =WACC!I42 -> 0.02365 | BE24: =IF(WACC!J42="","",WACC!J42) -> 0.02325 | BF24: =IF(WACC!K42="","",WACC!K42) -> 0.02288 | BG24: =IF(WACC!L42="","",WACC!L42) -> 0.0212 | BH24: =IF(WACC!M42="","",WACC!M42) -> 0.02036 | BI24: =IF(WACC!N42="","",WACC!N42) -> 0.02002 | BJ24: =IF(WACC!O42="","",WACC!O42) -> 0.01986 | BK24: =IF(WACC!P42="","",WACC!P42) ->  | BL24: =IF(WACC!Q42="","",WACC!Q42) ->  | BM24: =IF(WACC!R42="","",WACC!R42) ->  | BN24: =IF(WACC!S42="","",WACC!S42) -> 
A25: =ROW() -> 25 | B25: X-Factor
A26: =ROW() -> 26 | B26: Toll Charge | BJ26: =ChangeTol2025 -> 0.305028143 | BK26: =ChangeTol2026 ->  | BL26: =ChangeTol2027 ->  | BM26: =ChangeTol2028 ->  | BN26: =ChangeTol2029 -> 
A27: =ROW() -> 27 | B27: Reservation Charge | BJ27: =ChangeRes2025 -> 0.6580238415 | BK27: =ChangeRes2026 ->  | BL27: =ChangeRes2027 ->  | BM27: =ChangeRes2028 ->  | BN27: =ChangeRes2029 -> 
A28: =ROW() -> 28 | B28: Throughput Charge | BJ28: =ChangeThr2025 -> 0.6336262465 | BK28: =ChangeThr2026 ->  | BL28: =ChangeThr2027 ->  | BM28: =ChangeThr2028 ->  | BN28: =ChangeThr2029 -> 
A29: =ROW() -> 29
A30: =ROW() -> 30 | B30: Asset Sheet Inputs
A31: =ROW() -> 31 | C31: ICB Asset Life (years) | D31: Asset Life (years) | E31: Tax Asset Life (years) | BE31: Averarage remaing asset life as for 2024
A32: =ROW() -> 32 | B32: Date of Opening Life | C32: 1999-12-31
A33: =ROW() -> 33 | B33: Pipeline and laterals | C33: 64.5 | D33: 70 | E33: 20 | BE33: 41
A34: =ROW() -> 34 | B34: Main line valve and scraper stations | C34: 44.5 | D34: 50 | E34: 20 | BE34: 21 | BH34: Selected asset life case | BI34: 2
A35: =ROW() -> 35 | B35: Compressor stations | C35: 24.5 | D35: 30 | E35: 20 | BE35: 14
A36: =ROW() -> 36 | B36: Receipt and delivery point facilities | C36: 24.5 | D36: 30 | E36: 20 | BE36: 22 | BH36: Asset Life Case | BI36: Case Name
A37: =ROW() -> 37 | B37: SCADA and communications | C37: 9.5 | D37: 10 | E37: 10 | BE37: 7 | BH37: 1 | BI37: Asset life not capped
A38: =ROW() -> 38 | B38: Cathodic protection | C38: 9.5 | D38: 15 | E38: 10 | BE38: 11 | BH38: 2 | BI38: Asset life capped after 2024
A39: =ROW() -> 39 | B39: Maintenance bases and depots | C39: 44.5 | D39: 50 | E39: 20 | BE39: 32 | BH39: 3 | BI39: Asset life capped for all capex
A40: =ROW() -> 40 | B40: Other assets | C40: 4.5 | D40: 10 | E40: 10 | BE40: 5
A41: =ROW() -> 41 | B41: Equity Raising Cost | D41: =SUMPRODUCT($D$33:$D$40,'Assets '!$BB$194:$BB$201)/SUM('Assets '!$BB$194:$BB$201) -> 32.30237909 | E41: 5 | BE41: 30
A42: =ROW() -> 42 | B42: Non-depreciable assets
A43: =ROW() -> 43 | B43: Shared support assets - IOT & cyber security | D43: 5 | E43: 5
A44: =ROW() -> 44 | B44: Shared support assets (net IOT & cyber security) | D44: 20 | E44: 20
A45: =ROW() -> 45 | B45: Miscellaneous assets
A46: =ROW() -> 46 | C46: ICB | D46: Tax Asset ICB
A47: =ROW() -> 47 | B47: Date of Dollar Value | C47: 1999-12-31 | D47: 1999-12-31
A48: =ROW() -> 48 | B48: Pipeline and laterals | C48: 438.6555358 | D48: 438.6555358
A49: =ROW() -> 49 | B49: Main line valve and scraper stations | C49: 9.177771758 | D49: 9.177771758
A50: =ROW() -> 50 | B50: Compressor stations | C50: 41.57599489 | D50: 41.57599489
A51: =ROW() -> 51 | B51: Receipt and delivery point facilities | C51: 1.534343975 | D51: 1.534343975
A52: =ROW() -> 52 | B52: SCADA and communications | C52: 10.12958811 | D52: 10.12958811
A53: =ROW() -> 53 | B53: Cathodic protection | C53: 1.828833019 | D53: 1.828833019
A54: =ROW() -> 54 | B54: Maintenance bases and depots | C54: 7.727642558 | D54: 7.727642558
A55: =ROW() -> 55 | B55: Other assets | C55: 0.4393552199 | D55: 0.4393552199
A56: =ROW() -> 56 | B56: Equity Raising Cost
A57: =ROW() -> 57 | B57: Non-depreciable assets | C57: =$F$1842 -> 2.581675929 | D57: 0
A58: =ROW() -> 58 | B58: Shared support assets - IOT & cyber security | C58: 0 | D58: 0
A59: =ROW() -> 59 | B59: Shared support assets (net IOT & cyber security) | C59: 0 | D59: 0
A60: =ROW() -> 60 | B60: Miscellaneous assets | C60: 0 | D60: 0
A61: =ROW() -> 61 | B61: Total | C61: 511.0690653
A62: =ROW() -> 62 | B62: ICB Depreciation ($m) HCA
A63: =ROW() -> 63 | B63: Date of Dollar Value | G63: 2000-03-31 | H63: 2000-06-30 | I63: 2000-09-30 | J63: 2000-12-31 | K63: 2001-03-31 | L63: 2001-06-30 | M63: 2001-09-30 | N63: 2001-12-31 | O63: 2002-03-31 | P63: 2002-06-30 | Q63: 2002-09-30 | R63: 2002-12-31 | S63: 2003-03-31 | T63: 2003-06-30 | U63: 2003-09-30 | V63: 2003-12-31 | W63: 2004-03-31 | X63: 2004-06-30 | Y63: 2004-09-30 | Z63: 2004-12-31 | AA63: 2005-03-31 | AB63: 2005-06-30 | AC63: 2005-09-30 | AD63: 2005-12-31 | AE63: 2006-03-31 | AF63: 2006-06-30 | AG63: 2006-09-30 | AH63: 2006-12-31 | AI63: 2007-03-31 | AJ63: 2007-06-30 | AK63: 2007-09-30 | AL63: 2007-12-31 | AM63: 2008-03-31 | AN63: 2008-06-30 | AO63: 2008-09-30 | AP63: 2008-12-31 | AQ63: 2009-03-31 | AR63: 2009-06-30 | AS63: 2009-09-30 | AT63: 2009-12-31 | AU63: 2010-12-31 | AV63: 2011-12-31 | AW63: 2012-12-31 | AX63: 2013-12-31 | AY63: 2014-12-31 | AZ63: 2014-12-31 | BA63: 2014-12-31 | BB63: 2014-12-31 | BC63: 2014-12-31 | BD63: 2014-12-31 | BE63: 2018-12-31 | BF63: 2018-12-31 | BG63: 2018-12-31 | BH63: 2018-12-31 | BI63: 2018-12-31
A64: =ROW() -> 64 | B64: Pipeline and laterals | G64: 6.80086102 | H64: 6.80086102 | I64: 6.80086102 | J64: 6.80086102 | K64: 6.80086102 | L64: 6.80086102 | M64: 6.80086102 | N64: 6.80086102 | O64: 6.80086102 | P64: 6.80086102 | Q64: 6.80086102 | R64: 6.80086102 | S64: 6.80086102 | T64: 6.80086102 | U64: 6.80086102 | V64: 6.80086102 | W64: 6.80086102 | X64: 6.80086102 | Y64: 6.80086102 | Z64: 6.80086102 | AA64: 6.80086102 | AB64: 6.80086102 | AC64: 6.80086102 | AD64: 6.80086102 | AE64: 6.80086102 | AF64: 6.80086102 | AG64: 6.80086102 | AH64: 6.80086102 | AI64: 6.80086102 | AJ64: 6.80086102 | AK64: 6.80086102 | AL64: 6.80086102 | AM64: 6.80086102 | AN64: 6.80086102 | AO64: 6.80086102 | AP64: 6.80086102 | AQ64: 6.80086102 | AR64: 6.80086102 | AS64: 6.80086102 | AT64: 6.80086102 | AU64: 6.80086102 | AV64: 6.80086102 | AW64: 6.80086102 | AX64: 6.80086102 | AY64: 6.80086102 | AZ64: 6.80086102 | BA64: 6.80086102 | BB64: 6.80086102 | BC64: 6.80086102 | BD64: 6.80086102 | BE64: 7.279345613 | BF64: 7.279345613 | BG64: 7.279345613 | BH64: 7.279345613 | BI64: 7.279345613
A65: =ROW() -> 65 | B65: Main line valve and scraper stations | G65: 0.206242062 | H65: 0.206242062 | I65: 0.206242062 | J65: 0.206242062 | K65: 0.206242062 | L65: 0.206242062 | M65: 0.206242062 | N65: 0.206242062 | O65: 0.206242062 | P65: 0.206242062 | Q65: 0.206242062 | R65: 0.206242062 | S65: 0.206242062 | T65: 0.206242062 | U65: 0.206242062 | V65: 0.206242062 | W65: 0.206242062 | X65: 0.206242062 | Y65: 0.206242062 | Z65: 0.206242062 | AA65: 0.206242062 | AB65: 0.206242062 | AC65: 0.206242062 | AD65: 0.206242062 | AE65: 0.206242062 | AF65: 0.206242062 | AG65: 0.206242062 | AH65: 0.206242062 | AI65: 0.206242062 | AJ65: 0.206242062 | AK65: 0.206242062 | AL65: 0.206242062 | AM65: 0.206242062 | AN65: 0.206242062 | AO65: 0.206242062 | AP65: 0.206242062 | AQ65: 0.206242062 | AR65: 0.206242062 | AS65: 0.206242062 | AT65: 0.206242062 | AU65: 0.206242062 | AV65: 0.206242062 | AW65: 0.206242062 | AX65: 0.206242062 | AY65: 0.206242062 | AZ65: 0.206242062 | BA65: 0.206242062 | BB65: 0.206242062 | BC65: 0.206242062 | BD65: 0.206242062 | BE65: 0.220752526 | BF65: 0.220752526 | BG65: 0.220752526 | BH65: 0.220752526 | BI65: 0.220752526
A66: =ROW() -> 66 | B66: Compressor stations | G66: 1.696979383 | H66: 1.696979383 | I66: 1.696979383 | J66: 1.696979383 | K66: 1.696979383 | L66: 1.696979383 | M66: 1.696979383 | N66: 1.696979383 | O66: 1.696979383 | P66: 1.696979383 | Q66: 1.696979383 | R66: 1.696979383 | S66: 1.696979383 | T66: 1.696979383 | U66: 1.696979383 | V66: 1.696979383 | W66: 1.696979383 | X66: 1.696979383 | Y66: 1.696979383 | Z66: 1.696979383 | AA66: 1.696979383 | AB66: 1.696979383 | AC66: 1.696979383 | AD66: 1.696979383 | AE66: 1.696979383 | AF66: 1.696979383 | AG66: 1.696979383 | AH66: 1.696979383 | AI66: 1.696979383 | AJ66: 1.696979383 | AK66: 1.696979383 | AL66: 1.696979383 | AM66: 1.696979383 | AN66: 1.696979383 | AO66: 1.696979383 | AP66: 1.696979383 | AQ66: 1.696979383 | AR66: 1.696979383 | AS66: 1.696979383 | AT66: 1.696979383 | AU66: 1.696979383 | AV66: 1.696979383 | AW66: 1.696979383 | AX66: 1.696979383 | AY66: 1.696979383 | AZ66: 1.696979383 | BA66: 1.696979383 | BB66: 1.696979383 | BC66: 1.696979383 | BD66: 1.696979383 | BE66: 1.816372867 | BF66: 1.816372867 | BG66: 1.816372867 | BH66: 1.816372867 | BI66: 0.9081864334
A67: =ROW() -> 67 | B67: Receipt and delivery point facilities | G67: 0.0626262847 | H67: 0.0626262847 | I67: 0.0626262847 | J67: 0.0626262847 | K67: 0.0626262847 | L67: 0.0626262847 | M67: 0.0626262847 | N67: 0.0626262847 | O67: 0.0626262847 | P67: 0.0626262847 | Q67: 0.0626262847 | R67: 0.0626262847 | S67: 0.0626262847 | T67: 0.0626262847 | U67: 0.0626262847 | V67: 0.0626262847 | W67: 0.0626262847 | X67: 0.0626262847 | Y67: 0.0626262847 | Z67: 0.0626262847 | AA67: 0.0626262847 | AB67: 0.0626262847 | AC67: 0.0626262847 | AD67: 0.0626262847 | AE67: 0.0626262847 | AF67: 0.0626262847 | AG67: 0.0626262847 | AH67: 0.0626262847 | AI67: 0.0626262847 | AJ67: 0.0626262847 | AK67: 0.0626262847 | AL67: 0.0626262847 | AM67: 0.0626262847 | AN67: 0.0626262847 | AO67: 0.0626262847 | AP67: 0.0626262847 | AQ67: 0.0626262847 | AR67: 0.0626262847 | AS67: 0.0626262847 | AT67: 0.0626262847 | AU67: 0.0626262847 | AV67: 0.0626262847 | AW67: 0.0626262847 | AX67: 0.0626262847 | AY67: 0.0626262847 | AZ67: 0.0626262847 | BA67: 0.0626262847 | BB67: 0.0626262847 | BC67: 0.0626262847 | BD67: 0.0626262847 | BE67: 0.06703244919 | BF67: 0.06703244919 | BG67: 0.06703244919 | BH67: 0.06703244919 | BI67: 0.0335162246
A68: =ROW() -> 68 | B68: SCADA and communications | G68: 1.066272432 | H68: 1.066272432 | I68: 1.066272432 | J68: 1.066272432 | K68: 1.066272432 | L68: 1.066272432 | M68: 1.066272432 | N68: 1.066272432 | O68: 1.066272432 | P68: 1.066272432 | Q68: 1.066272432 | R68: 1.066272432 | S68: 1.066272432 | T68: 1.066272432 | U68: 1.066272432 | V68: 1.066272432 | W68: 1.066272432 | X68: 1.066272432 | Y68: 1.066272432 | Z68: 1.066272432 | AA68: 1.066272432 | AB68: 1.066272432 | AC68: 1.066272432 | AD68: 1.066272432 | AE68: 1.066272432 | AF68: 1.066272432 | AG68: 1.066272432 | AH68: 1.066272432 | AI68: 1.066272432 | AJ68: 1.066272432 | AK68: 1.066272432 | AL68: 1.066272432 | AM68: 1.066272432 | AN68: 1.066272432 | AO68: 1.066272432 | AP68: 1.066272432 | AQ68: 1.066272432 | AR68: 1.066272432 | AS68: 0 | AT68: 0 | AU68: 0 | AV68: 0 | AW68: 0 | AX68: 0 | AY68: 0 | AZ68: 1.33226763e-15 | BA68: 0 | BB68: 0 | BC68: 0 | BD68: 0 | BE68: 0 | BF68: 0 | BG68: 0 | BH68: 0 | BI68: 0
A69: =ROW() -> 69 | B69: Cathodic protection | G69: 0.1925087388 | H69: 0.1925087388 | I69: 0.1925087388 | J69: 0.1925087388 | K69: 0.1925087388 | L69: 0.1925087388 | M69: 0.1925087388 | N69: 0.1925087388 | O69: 0.1925087388 | P69: 0.1925087388 | Q69: 0.1925087388 | R69: 0.1925087388 | S69: 0.1925087388 | T69: 0.1925087388 | U69: 0.1925087388 | V69: 0.1925087388 | W69: 0.1925087388 | X69: 0.1925087388 | Y69: 0.1925087388 | Z69: 0.1925087388 | AA69: 0.1925087388 | AB69: 0.1925087388 | AC69: 0.1925087388 | AD69: 0.1925087388 | AE69: 0.1925087388 | AF69: 0.1925087388 | AG69: 0.1925087388 | AH69: 0.1925087388 | AI69: 0.1925087388 | AJ69: 0.1925087388 | AK69: 0.1925087388 | AL69: 0.1925087388 | AM69: 0.1925087388 | AN69: 0.1925087388 | AO69: 0.1925087388 | AP69: 0.1925087388 | AQ69: 0.1925087388 | AR69: 0.1925087388 | AS69: 0 | AT69: 0 | AU69: 0 | AV69: 0 | AW69: 0 | AX69: 0 | AY69: 0 | AZ69: 0 | BA69: 0 | BB69: 0 | BC69: 0 | BD69: 0 | BE69: 0 | BF69: 0 | BG69: 0 | BH69: 0 | BI69: 0
A70: =ROW() -> 70 | B70: Maintenance bases and depots | G70: 0.1736548889 | H70: 0.1736548889 | I70: 0.1736548889 | J70: 0.1736548889 | K70: 0.1736548889 | L70: 0.1736548889 | M70: 0.1736548889 | N70: 0.1736548889 | O70: 0.1736548889 | P70: 0.1736548889 | Q70: 0.1736548889 | R70: 0.1736548889 | S70: 0.1736548889 | T70: 0.1736548889 | U70: 0.1736548889 | V70: 0.1736548889 | W70: 0.1736548889 | X70: 0.1736548889 | Y70: 0.1736548889 | Z70: 0.1736548889 | AA70: 0.1736548889 | AB70: 0.1736548889 | AC70: 0.1736548889 | AD70: 0.1736548889 | AE70: 0.1736548889 | AF70: 0.1736548889 | AG70: 0.1736548889 | AH70: 0.1736548889 | AI70: 0.1736548889 | AJ70: 0.1736548889 | AK70: 0.1736548889 | AL70: 0.1736548889 | AM70: 0.1736548889 | AN70: 0.1736548889 | AO70: 0.1736548889 | AP70: 0.1736548889 | AQ70: 0.1736548889 | AR70: 0.1736548889 | AS70: 0.1736548889 | AT70: 0.1736548889 | AU70: 0.1736548889 | AV70: 0.1736548889 | AW70: 0.1736548889 | AX70: 0.1736548889 | AY70: 0.1736548889 | AZ70: 0.1736548889 | BA70: 0.1736548889 | BB70: 0.1736548889 | BC70: 0.1736548889 | BD70: 0.1736548889 | BE70: 0.1858726344 | BF70: 0.1858726344 | BG70: 0.1858726344 | BH70: 0.1858726344 | BI70: 0.1858726344
A71: =ROW() -> 71 | B71: Other assets | G71: 0.09763449332 | H71: 0.09763449332 | I71: 0.09763449332 | J71: 0.09763449332 | K71: 0.09763449332 | L71: 0.09763449332 | M71: 0.09763449332 | N71: 0.09763449332 | O71: 0.09763449332 | P71: 0.09763449332 | Q71: 0.09763449332 | R71: 0.09763449332 | S71: 0.09763449332 | T71: 0.09763449332 | U71: 0.09763449332 | V71: 0.09763449332 | W71: 0.09763449332 | X71: 0.09763449332 | Y71: 0 | Z71: 0 | AA71: 0 | AB71: 0 | AC71: 0 | AD71: 0 | AE71: 0 | AF71: 0 | AG71: 0 | AH71: 0 | AI71: 0 | AJ71: 0 | AK71: 0 | AL71: 0 | AM71: 0 | AN71: 0 | AO71: 0 | AP71: 0 | AQ71: 0 | AR71: 0 | AS71: 0 | AT71: 0 | AU71: 0 | AV71: 0 | AW71: 0 | AX71: 0 | AY71: 0 | AZ71: 0 | BA71: 0 | BB71: 0 | BC71: 0 | BD71: 0 | BE71: 0 | BF71: 0 | BG71: 0 | BH71: 0 | BI71: 0
A72: =ROW() -> 72 | B72: Equity Raising Cost | BE72: 0 | BF72: 0 | BG72: 0 | BH72: 0 | BI72: 0
A73: =ROW() -> 73 | B73: Non-depreciable assets
A74: =ROW() -> 74 | B74: Shared support assets - IOT & cyber security
A75: =ROW() -> 75 | B75: Shared support assets (net IOT & cyber security)
A76: =ROW() -> 76 | B76: Miscellaneous assets
A77: =ROW() -> 77 | B77: Total | G77: =SUM(G64:G76) -> 10.2967793 | H77: =SUM(H64:H76) -> 10.2967793 | I77: 10.2967793 | J77: 10.2967793 | K77: 10.2967793 | L77: 10.2967793 | M77: 10.2967793 | N77: 10.2967793 | O77: 10.2967793 | P77: 10.2967793 | Q77: 10.2967793 | R77: 10.2967793 | S77: 10.2967793 | T77: 10.2967793 | U77: 10.2967793 | V77: 10.2967793 | W77: 10.2967793 | X77: 10.2967793 | Y77: 10.19914481 | Z77: 10.19914481 | AA77: 10.19914481 | AB77: 10.19914481 | AC77: 10.19914481 | AD77: 10.19914481 | AE77: 10.19914481 | AF77: 10.19914481 | AG77: 10.19914481 | AH77: 10.19914481 | AI77: 10.19914481 | AJ77: 10.19914481 | AK77: 10.19914481 | AL77: 10.19914481 | AM77: 10.19914481 | AN77: 10.19914481 | AO77: 10.19914481 | AP77: 10.19914481 | AQ77: 10.19914481 | AR77: 10.19914481 | AS77: 8.940363639 | AT77: 8.940363639 | AU77: 8.940363639 | AV77: 8.940363639 | AW77: 8.940363639 | AX77: 8.940363639 | AY77: 8.940363639 | AZ77: 8.940363639 | BA77: 8.940363639 | BB77: 8.940363639 | BC77: 8.940363639 | BD77: 8.940363639 | BE77: 9.56937609 | BF77: 9.56937609 | BG77: 9.56937609 | BH77: 9.56937609 | BI77: 8.627673432
A78: =ROW() -> 78 | B78: ="ICB Depreciation (Real $ "&D19&" $m)" -> ICB Depreciation (Real $ 31/12/2023 $m)
A79: =ROW() -> 79 | B79: Date of Dollar Value | AZ79: =$D$15 -> 2023-12-31 | BA79: =$D$15 -> 2023-12-31 | BB79: 2023-12-31 | BC79: 2023-12-31 | BD79: 2023-12-31 | BE79: 2023-12-31 | BF79: 2023-12-31 | BG79: 2023-12-31 | BH79: 2023-12-31 | BI79: 2023-12-31
A80: =ROW() -> 80 | B80: Pipeline and laterals | AZ80: =AZ64/HLOOKUP(AZ$63,$G$15:$BN$16,2,FALSE)*HLOOKUP(AZ$79,$G$15:$BN$16,2,FALSE) -> 8.699424088 | BA80: =BA64/HLOOKUP(BA$63,$G$15:$BN$16,2,FALSE)*HLOOKUP(BA$79,$G$15:$BN$16,2,FALSE) -> 8.699424088 | BB80: 8.699424088 | BC80: 8.699424088 | BD80: 8.699424088 | BE80: =BE64/HLOOKUP(BE$63,$G$15:$BN$16,2,FALSE)*HLOOKUP(BE$79,$G$15:$BN$16,2,FALSE) -> 8.699424088 | BF80: 8.699424088 | BG80: 8.699424088 | BH80: 8.699424088 | BI80: 8.699424088
A81: =ROW() -> 81 | B81: Main line valve and scraper stations | AZ81: =AZ65/HLOOKUP(AZ$63,$G$15:$BN$16,2,FALSE)*HLOOKUP(AZ$79,$G$15:$BN$16,2,FALSE) -> 0.2638176485 | BA81: 0.2638176485 | BB81: 0.2638176485 | BC81: 0.2638176485 | BD81: 0.2638176485 | BE81: =BE65/HLOOKUP(BE$63,$G$15:$BN$16,2,FALSE)*HLOOKUP(BE$79,$G$15:$BN$16,2,FALSE) -> 0.2638176485 | BF81: 0.2638176485 | BG81: 0.2638176485 | BH81: 0.2638176485 | BI81: 0.2638176485
A82: =ROW() -> 82 | B82: Compressor stations | AZ82: =AZ66/HLOOKUP(AZ$63,$G$15:$BN$16,2,FALSE)*HLOOKUP(AZ$79,$G$15:$BN$16,2,FALSE) -> 2.170716808 | BA82: 2.170716808 | BB82: 2.170716808 | BC82: 2.170716808 | BD82: 2.170716808 | BE82: =BE66/HLOOKUP(BE$63,$G$15:$BN$16,2,FALSE)*HLOOKUP(BE$79,$G$15:$BN$16,2,FALSE) -> 2.170716808 | BF82: 2.170716808 | BG82: 2.170716808 | BH82: 2.170716808 | BI82: 1.085358404
A83: =ROW() -> 83 | B83: Receipt and delivery point facilities | AZ83: =AZ67/HLOOKUP(AZ$63,$G$15:$BN$16,2,FALSE)*HLOOKUP(AZ$79,$G$15:$BN$16,2,FALSE) -> 0.08010935793 | BA83: 0.08010935793 | BB83: 0.08010935793 | BC83: 0.08010935793 | BD83: 0.08010935793 | BE83: =BE67/HLOOKUP(BE$63,$G$15:$BN$16,2,FALSE)*HLOOKUP(BE$79,$G$15:$BN$16,2,FALSE) -> 0.08010935793 | BF83: 0.08010935793 | BG83: 0.08010935793 | BH83: 0.08010935793 | BI83: 0.04005467896
A84: =ROW() -> 84 | B84: SCADA and communications | AZ84: =AZ68/HLOOKUP(AZ$63,$G$15:$BN$16,2,FALSE)*HLOOKUP(AZ$79,$G$15:$BN$16,2,FALSE) -> 1.70419026e-15 | BA84: 0 | BB84: 0 | BC84: 0 | BD84: 0 | BE84: =BE68/HLOOKUP(BE$63,$G$15:$BN$16,2,FALSE)*HLOOKUP(BE$79,$G$15:$BN$16,2,FALSE) -> 0 | BF84: 0 | BG84: 0 | BH84: 0 | BI84: 0
A85: =ROW() -> 85 | B85: Cathodic protection | AZ85: =AZ69/HLOOKUP(AZ$63,$G$15:$BN$16,2,FALSE)*HLOOKUP(AZ$79,$G$15:$BN$16,2,FALSE) -> 0 | BA85: 0 | BB85: 0 | BC85: 0 | BD85: 0 | BE85: =BE69/HLOOKUP(BE$63,$G$15:$BN$16,2,FALSE)*HLOOKUP(BE$79,$G$15:$BN$16,2,FALSE) -> 0 | BF85: 0 | BG85: 0 | BH85: 0 | BI85: 0
A86: =ROW() -> 86 | B86: Maintenance bases and depots | AZ86: =AZ70/HLOOKUP(AZ$63,$G$15:$BN$16,2,FALSE)*HLOOKUP(AZ$79,$G$15:$BN$16,2,FALSE) -> 0.2221332739 | BA86: 0.2221332739 | BB86: 0.2221332739 | BC86: 0.2221332739 | BD86: 0.2221332739 | BE86: =BE70/HLOOKUP(BE$63,$G$15:$BN$16,2,FALSE)*HLOOKUP(BE$79,$G$15:$BN$16,2,FALSE) -> 0.2221332739 | BF86: 0.2221332739 | BG86: 0.2221332739 | BH86: 0.2221332739 | BI86: 0.2221332739
A87: =ROW() -> 87 | B87: Other assets | AZ87: =AZ71/HLOOKUP(AZ$63,$G$15:$BN$16,2,FALSE)*HLOOKUP(AZ$79,$G$15:$BN$16,2,FALSE) -> 0 | BA87: 0 | BB87: 0 | BC87: 0 | BD87: 0 | BE87: =BE71/HLOOKUP(BE$63,$G$15:$BN$16,2,FALSE)*HLOOKUP(BE$79,$G$15:$BN$16,2,FALSE) -> 0 | BF87: 0 | BG87: 0 | BH87: 0 | BI87: 0
A88: =ROW() -> 88 | B88: Equity Raising Cost | AZ88: =AZ72/HLOOKUP(AZ$63,$G$15:$BN$16,2,FALSE)*HLOOKUP(AZ$79,$G$15:$BN$16,2,FALSE) -> 0 | BA88: 0 | BB88: 0 | BC88: 0 | BD88: 0 | BE88: =BE72/HLOOKUP(BE$63,$G$15:$BN$16,2,FALSE)*HLOOKUP(BE$79,$G$15:$BN$16,2,FALSE) -> 0 | BF88: 0 | BG88: 0 | BH88: 0 | BI88: 0
A89: =ROW() -> 89 | B89: Non-depreciable assets | AZ89: =AZ73/HLOOKUP(AZ$63,$G$15:$BN$16,2,FALSE)*HLOOKUP(AZ$79,$G$15:$BN$16,2,FALSE) -> 0 | BA89: 0 | BB89: 0 | BC89: 0 | BD89: 0 | BE89: =BE73/HLOOKUP(BE$63,$G$15:$BN$16,2,FALSE)*HLOOKUP(BE$79,$G$15:$BN$16,2,FALSE) -> 0 | BF89: 0 | BG89: 0 | BH89: 0 | BI89: 0
A90: =ROW() -> 90 | B90: Shared support assets - IOT & cyber security
A91: =ROW() -> 91 | B91: Shared support assets (net IOT & cyber security)
A92: =ROW() -> 92 | B92: Miscellaneous assets
A93: =ROW() -> 93 | B93: Total | AZ93: =SUM(AZ80:AZ87) -> 11.43620118 | BA93: 11.43620118 | BB93: 11.43620118 | BC93: 11.43620118 | BD93: 11.43620118 | BE93: =SUM(BE80:BE87) -> 11.43620118 | BF93: 11.43620118 | BG93: 11.43620118 | BH93: 11.43620118 | BI93: 10.31078809
A94: =ROW() -> 94 | B94: Capex (Input as annual actuals and forecasts)
A95: =ROW() -> 95 | B95: Date of Dollar Value | G95: 2000-03-31 | H95: 2000-06-30 | I95: 2000-09-30 | J95: 2000-12-31 | K95: 2001-03-31 | L95: 2001-06-30 | M95: 2001-09-30 | N95: 2001-12-31 | O95: 2002-03-31 | P95: 2002-06-30 | Q95: 2002-09-30 | R95: 2002-12-31 | S95: 2003-03-31 | T95: 2003-06-30 | U95: 2003-09-30 | V95: 2003-12-31 | W95: 2004-03-31 | X95: 2004-06-30 | Y95: 2004-09-30 | Z95: 2004-12-31 | AA95: 2005-03-31 | AB95: 2005-06-30 | AC95: 2005-09-30 | AD95: 2005-12-31 | AE95: 2006-03-31 | AF95: 2006-06-30 | AG95: 2006-09-30 | AH95: 2006-12-31 | AI95: 2007-03-31 | AJ95: 2007-06-30 | AK95: 2007-09-30 | AL95: 2007-12-31 | AM95: 2008-03-31 | AN95: 2008-06-30 | AO95: 2008-09-30 | AP95: 2008-12-31 | AQ95: 2009-03-31 | AR95: 2009-06-30 | AS95: 2009-09-30 | AT95: 2009-12-31 | AU95: 2013-12-31 | AV95: 2013-12-31 | AW95: 2013-12-31 | AX95: 2013-12-31 | AY95: 2013-12-31 | AZ95: 2018-12-31 | BA95: 2018-12-31 | BB95: 2018-12-31 | BC95: 2018-12-31 | BD95: 2019-12-31 | BE95: 2020-12-31 | BF95: 2021-12-31 | BG95: 2022-12-31 | BH95: 2023-12-31 | BI95: 2023-12-31 | BJ95: =VALUE($D$19) -> 2023-12-31 | BK95: 2023-12-31 | BL95: 2023-12-31 | BM95: 2023-12-31 | BN95: 2023-12-31
A96: =ROW() -> 96 | B96: Pipeline and laterals | G96: 0 | H96: 0 | I96: 0 | J96: 0 | K96: 0 | L96: 0 | M96: 0 | N96: 0 | O96: 0 | P96: 0 | Q96: 0 | R96: 0 | S96: 0 | T96: 0 | U96: 0 | V96: 0 | W96: 0 | X96: 0 | Y96: 0 | Z96: 0 | AA96: 0.30112484 | AB96: 0.00025486 | AC96: 0.00045632 | AD96: -0.00033 | AE96: 0 | AF96: 0 | AG96: 0 | AH96: 0 | AI96: 0 | AJ96: 0.28621376 | AK96: 0 | AL96: 0 | AM96: 0 | AN96: 0.00355109 | AO96: 0.01002201 | AP96: 0.06076867 | AQ96: 0.00144492 | AR96: 0.0014231 | AS96: 0.00856286 | AT96: 0.00071536 | AU96: -0.08969863364 | AV96: 0 | AW96: 0 | AX96: 0.025633 | AY96: 0 | AZ96: 1.858949047 | BA96: 0.5102709704 | BB96: 0.2809646297 | BC96: 0.000914249579 | BD96: 0.028 | BE96: 0.096 | BF96: 0.03020345209 | BG96: 0 | BH96: 0 | BI96: 0 | BJ96: 0 | BK96: 0 | BL96: 0.05042956845 | BM96: 0.05042956845 | BN96: 0
A97: =ROW() -> 97 | B97: Main line valve and scraper stations | G97: 0 | H97: 0 | I97: 0 | J97: 0 | K97: 0 | L97: 0 | M97: 0 | N97: 0 | O97: 0 | P97: 0 | Q97: 0 | R97: 0 | S97: 0 | T97: 0 | U97: 0 | V97: 0 | W97: 0 | X97: 0 | Y97: 0 | Z97: 0 | AA97: 0 | AB97: 0 | AC97: 0 | AD97: 0 | AE97: 0 | AF97: 0 | AG97: 0 | AH97: 0 | AI97: 0 | AJ97: 0 | AK97: 0 | AL97: 0 | AM97: 0 | AN97: 0 | AO97: 0 | AP97: 0 | AQ97: 0.02711449 | AR97: 0.00114492 | AS97: 0 | AT97: 0 | AU97: 0 | AV97: 0 | AW97: 0 | AX97: 0 | AY97: 0 | AZ97: 0.1153276481 | BA97: 0.001555810255 | BB97: 0 | BC97: 0 | BD97: 0 | BE97: 0 | BF97: 0 | BG97: 0.001 | BH97: 0.207811677 | BI97: 1.066077116 | BJ97: 1.877015962 | BK97: 1.371196725 | BL97: 1.210949535 | BM97: 1.180478496 | BN97: 0.3504169409
A98: =ROW() -> 98 | B98: Compressor stations | G98: 0.7266078075 | H98: 0.7266078075 | I98: 0.7266078075 | J98: 0.7266078075 | K98: 2.016678142 | L98: 2.016678142 | M98: 2.016678142 | N98: 2.016678142 | O98: 0.1623632675 | P98: 0.1623632675 | Q98: 0.1623632675 | R98: 0.1623632675 | S98: 2.450314792 | T98: 2.450314792 | U98: 2.450314792 | V98: 2.450314792 | W98: 1.018218935 | X98: 1.018218935 | Y98: 1.018218935 | Z98: 1.018218935 | AA98: 0.23668579 | AB98: 0.36644481 | AC98: 0.06653221 | AD98: 0.03745882 | AE98: 0.03906246 | AF98: 0.33773978 | AG98: 0.3358245 | AH98: 0.20489235 | AI98: 0.09346673 | AJ98: 0.18295022 | AK98: 0.05837254 | AL98: 0.02024216 | AM98: 0 | AN98: 0.23202959 | AO98: 0.04096777 | AP98: 0.12877112 | AQ98: 0.28400227 | AR98: 0.0078502 | AS98: 0.00194744 | AT98: 0 | AU98: 0.3971751498 | AV98: 0.04966973948 | AW98: 0.1546897254 | AX98: 0.4783121846 | AY98: 0.6912304957 | AZ98: -0.01647923985 | BA98: 0 | BB98: 0.9827399411 | BC98: 0.3268918291 | BD98: 0.133 | BE98: 1.6572199 | BF98: 4.545743643 | BG98: 2.203 | BH98: 3.812720834 | BI98: 7.046442379 | BJ98: 11.37274181 | BK98: 4.2128785 | BL98: 4.3068355 | BM98: 5.404333333 | BN98: 3.294333333
A99: =ROW() -> 99 | B99: Receipt and delivery point facilities | G99: 0.04005906 | H99: 0.04005906 | I99: 0.04005906 | J99: 0.04005906 | K99: 0.0242860925 | L99: 0.0242860925 | M99: 0.0242860925 | N99: 0.0242860925 | O99: 0.0147807275 | P99: 0.0147807275 | Q99: 0.0147807275 | R99: 0.0147807275 | S99: 0.0173773425 | T99: 0.0173773425 | U99: 0.0173773425 | V99: 0.0173773425 | W99: 0.00844475 | X99: 0.00844475 | Y99: 0.00844475 | Z99: 0.00844475 | AA99: 0 | AB99: 0 | AC99: 0 | AD99: 0.01755367 | AE99: 0.01368143 | AF99: 0.12254546 | AG99: 0.11840168 | AH99: 0.12576146 | AI99: 0.3960732 | AJ99: 0.08453083 | AK99: 0.00012867 | AL99: 0 | AM99: 0 | AN99: 0 | AO99: 0 | AP99: 0.00321914 | AQ99: 0 | AR99: 0 | AS99: 0 | AT99: 0 | AU99: 0 | AV99: 0 | AW99: 0 | AX99: 0.1356 | AY99: 0.1845652601 | AZ99: 0.4333042232 | BA99: -0.4100328718 | BB99: 0.001307925959 | BC99: 0.1875442241 | BD99: 0.351 | BE99: 2.223807 | BF99: 0.3585085249 | BG99: 0.657 | BH99: 0.7675856763 | BI99: 1.455289173 | BJ99: 1.706577732 | BK99: 1.081721861 | BL99: 0.4183368854 | BM99: 0.00697786778 | BN99: 0
A100: =ROW() -> 100 | B100: SCADA and communications | G100: 0.006985115 | H100: 0.006985115 | I100: 0.006985115 | J100: 0.006985115 | K100: 0.0012955875 | L100: 0.0012955875 | M100: 0.0012955875 | N100: 0.0012955875 | O100: 0.0139746075 | P100: 0.0139746075 | Q100: 0.0139746075 | R100: 0.0139746075 | S100: 0.0173468175 | T100: 0.0173468175 | U100: 0.0173468175 | V100: 0.0173468175 | W100: 0.109894455 | X100: 0.109894455 | Y100: 0.109894455 | Z100: 0.109894455 | AA100: 0.02500167 | AB100: 0.00555411 | AC100: 0.00094376 | AD100: 0 | AE100: 0.05128961 | AF100: 0.20082489 | AG100: 0.17556474 | AH100: 0.02213489 | AI100: 0.04928407 | AJ100: 0.07052838 | AK100: 0.01797736 | AL100: 0.05761879 | AM100: 0.00726825 | AN100: 0.05729485 | AO100: 0.30337709 | AP100: 0.33711321 | AQ100: 0.24756857 | AR100: 0.46381265 | AS100: 0.00427515 | AT100: 0 | AU100: 0.06491441783 | AV100: 0.2563657924 | AW100: 0.5006965282 | AX100: 0.36361653 | AY100: 1.146921286 | AZ100: 0.9384630268 | BA100: 1.026476793 | BB100: 0.06619123194 | BC100: 0.1099072675 | BD100: 0.397 | BE100: 0.678 | BF100: 0.0901383894 | BG100: 0.063 | BH100: 0.9341092305 | BI100: 0.5571586701 | BJ100: 0.1165556829 | BK100: 0 | BL100: 0 | BM100: 0 | BN100: 0
A101: =ROW() -> 101 | B101: Cathodic protection | G101: 0 | H101: 0 | I101: 0 | J101: 0 | K101: 0 | L101: 0 | M101: 0 | N101: 0 | O101: 0 | P101: 0 | Q101: 0 | R101: 0 | S101: 0.00394725 | T101: 0.00394725 | U101: 0.00394725 | V101: 0.00394725 | W101: 0 | X101: 0 | Y101: 0 | Z101: 0 | AA101: 0.000297 | AB101: 0 | AC101: 0 | AD101: 0 | AE101: 0 | AF101: 0 | AG101: 0.00825 | AH101: 0 | AI101: 0 | AJ101: 0 | AK101: 0 | AL101: 0 | AM101: 0 | AN101: 0.06568597 | AO101: 0.0018755 | AP101: 0.04616319 | AQ101: 0.10849443 | AR101: 0.73988261 | AS101: 0.16139918 | AT101: 0.58868282 | AU101: 0 | AV101: 0 | AW101: 0 | AX101: 0 | AY101: 0 | AZ101: 0 | BA101: 0 | BB101: 0 | BC101: 0 | BD101: 0.001 | BE101: 0 | BF101: 0 | BG101: 0.001 | BH101: 0.207019 | BI101: 0.103875465 | BJ101: 0.2179638307 | BK101: 0.1807550324 | BL101: 0.06666666667 | BM101: 0 | BN101: 0.01523551917
A102: =ROW() -> 102 | B102: Maintenance bases and depots | G102: 0.00182295 | H102: 0.00182295 | I102: 0.00182295 | J102: 0.00182295 | K102: 0.001067045 | L102: 0.001067045 | M102: 0.001067045 | N102: 0.001067045 | O102: 0.00055 | P102: 0.00055 | Q102: 0.00055 | R102: 0.00055 | S102: 0 | T102: 0 | U102: 0 | V102: 0 | W102: 0 | X102: 0 | Y102: 0 | Z102: 0 | AA102: 0 | AB102: 0 | AC102: 0 | AD102: 0.002619 | AE102: 0 | AF102: 0.0348373 | AG102: 0 | AH102: 0 | AI102: 0 | AJ102: 0 | AK102: 0.01046586 | AL102: 0.001661 | AM102: 0 | AN102: 0.06127894 | AO102: 0.01224307 | AP102: 0.07122134 | AQ102: 0 | AR102: 0 | AS102: 0 | AT102: 0.01881 | AU102: 0.07383937618 | AV102: 0 | AW102: 0 | AX102: 1.056 | AY102: 0.01751230304 | AZ102: 0.02612537852 | BA102: 0 | BB102: 0 | BC102: 0.01907929041 | BD102: 0.05585121293 | BE102: 0.114638 | BF102: 0.5768756658 | BG102: 0.576 | BH102: 0.206429 | BI102: 0 | BJ102: 0 | BK102: 0.1568649054 | BL102: 0.4059351727 | BM102: 0.2490702674 | BN102: 0
A103: =ROW() -> 103 | B103: Other assets | G103: 0.1355580325 | H103: 0.1355580325 | I103: 0.1355580325 | J103: 0.1355580325 | K103: 0.0545215825 | L103: 0.0545215825 | M103: 0.0545215825 | N103: 0.0545215825 | O103: 0.0881759075 | P103: 0.0881759075 | Q103: 0.0881759075 | R103: 0.0881759075 | S103: 0.045699415 | T103: 0.045699415 | U103: 0.045699415 | V103: 0.045699415 | W103: 0.39829845 | X103: 0.39829845 | Y103: 0.39829845 | Z103: 0.39829845 | AA103: 0.08118179 | AB103: 0.1946215 | AC103: 0.07621263 | AD103: 0.08803465 | AE103: 0.15023145 | AF103: 0.0845521 | AG103: 0.05615649 | AH103: 0.05214001 | AI103: 0.08470009 | AJ103: 0.17527503 | AK103: 0.2000654 | AL103: 0.00599739 | AM103: 0.03913356 | AN103: 0.13693153 | AO103: 0.05626088 | AP103: 0.01692312 | AQ103: 0.25993214 | AR103: 0.1239055 | AS103: 0.09556458 | AT103: 0.12330345 | AU103: 0.04834102786 | AV103: 0.02437492585 | AW103: 0.02648871373 | AX103: 0.5341323141 | AY103: 0.0599116683 | AZ103: 0.07038476481 | BA103: 0.3331223155 | BB103: 0.1264230141 | BC103: 0.1219709292 | BD103: 0.337 | BE103: 0.496523 | BF103: 0.051602 | BG103: 0.241 | BH103: 0.4265319797 | BI103: 0.547960142 | BJ103: 10.07836212 | BK103: 3.373447154 | BL103: 0.1486986671 | BM103: 0.1486986671 | BN103: 0.3134545801
A104: =ROW() -> 104 | B104: Equity Raising Cost | BD104: 0 | BE104: 0.01753784127 | BF104: 0 | BG104: 0 | BH104: 0 | BI104: 0 | BJ104: =Tax_CoRE!K90 -> 0.2838169177 | BK104: =Tax_CoRE!L90 -> 0 | BL104: =Tax_CoRE!M90 -> 0 | BM104: =Tax_CoRE!N90 -> 0 | BN104: =Tax_CoRE!O90 -> 0
A105: =ROW() -> 105 | B105: Non-depreciable assets | G105: =G$1842 -> 0.366693219 | H105: =H$1842 -> 0 | I105: -0.01981922987 | J105: 0 | K105: 0.7752762321 | L105: -0.0283387489 | M105: -0.02772268914 | N105: 0 | O105: -0.6273935395 | P105: -0.02082825464 | Q105: -0.0203754665 | R105: 0 | S105: 1.459328769 | T105: -0.03641204637 | U105: -0.03562048015 | V105: 0 | W105: -0.7080215592 | X105: 0 | Y105: -0.0275374145 | Z105: 0 | AA105: -0.06990471975 | AB105: -0.02676923077 | AC105: -0.02618729097 | AD105: 0 | AE105: 0.3860815217 | AF105: -0.03042994505 | AG105: -0.02976842451 | AH105: 0 | AI105: 0.06457336957 | AJ105: -0.03047802198 | AK105: -0.02981545628 | AL105: 0 | AM105: -0.1822037745 | AN105: 0 | AO105: -0.02751089943 | AP105: 0 | AQ105: 0.2547581522 | AR105: -0.03031043956 | AS105: -0.02965151696 | AT105: 0 | AU105: 0 | AV105: 0 | AW105: 0 | AX105: 0 | AY105: 0 | AZ105: 0 | BA105: 0 | BB105: 0 | BC105: 0 | BD105: 0 | BE105: 0 | BF105: 0 | BG105: 0 | BH105: 0 | BI105: 0 | BJ105: 0 | BK105: 0 | BL105: 0 | BM105: 0 | BN105: 0
A106: =ROW() -> 106 | B106: Shared support assets - IOT & cyber security | BD106: 0 | BE106: 1.999 | BF106: 2.07 | BG106: 4.398 | BH106: 6.451226081 | BI106: 6.393479961 | BJ106: 3.892663054 | BK106: 2.107239855 | BL106: 1.152276112 | BM106: 0.9740892756 | BN106: 0.8107490054
A107: =ROW() -> 107 | B107: Shared support assets (net IOT & cyber security) | BD107: 0 | BE107: 0.795 | BF107: 1.196 | BG107: 3.132 | BH107: 1.397696385 | BI107: 1.397696385 | BJ107: 1.397696385 | BK107: 1.397696385 | BL107: 1.397696385 | BM107: 1.397696385 | BN107: 1.397696385
A108: =ROW() -> 108 | B108: Miscellaneous assets | BD108: 0 | BE108: 0 | BF108: 0 | BG108: 0 | BH108: 0 | BI108: 0 | BJ108: 0 | BK108: 0 | BL108: 0 | BM108: 0 | BN108: 0
A109: =ROW() -> 109 | B109: Total | G109: =SUM(G96:G108) -> 1.277726184 | H109: 0.911032965 | I109: 0.8912137351 | J109: 0.911032965 | K109: 2.873124682 | L109: 2.069509701 | M109: 2.070125761 | N109: 2.09784845 | O109: -0.3475490295 | P109: 0.2590162554 | Q109: 0.2594690435 | R109: 0.27984451 | S109: 3.994014386 | T109: 2.498273571 | U109: 2.499065137 | V109: 2.534685618 | W109: 0.8268350308 | X109: 1.53485659 | Y109: 1.507319175 | Z109: 1.53485659 | AA109: 0.5743863703 | AB109: 0.5401060492 | AC109: 0.117957629 | AD109: 0.14533614 | AE109: 0.6403464717 | AF109: 0.7500695849 | AG109: 0.6644289855 | AH109: 0.40492871 | AI109: 0.6880974596 | AJ109: 0.769020198 | AK109: 0.2571943737 | AL109: 0.08551934 | AM109: =SUM(AM96:AM108) -> -0.1358019645 | AN109: 0.55677197 | AO109: 0.3972354206 | AP109: 0.66417979 | AQ109: 1.183314972 | AR109: 1.30770854 | AS109: 0.242097693 | AT109: 0.73151163 | AU109: 0.494571338 | AV109: 0.3304104577 | AW109: 0.6818749673 | AX109: 2.593294029 | AY109: 2.100141013 | AZ109: 3.426074848 | BA109: 1.461393017 | BB109: 1.457626743 | BC109: 0.7663077899 | BD109: 1.302851213 | BE109: 8.077725741 | BF109: 8.919071676 | BG109: 11.272 | BH109: 14.41112986 | BI109: 18.56797929 | BJ109: 30.94339349 | BK109: 13.88180042 | BL109: 9.157824492 | BM109: 9.41177386 | BN109: 6.181885763
A110: =ROW() -> 110 | B110: Capex (Model)
A111: =ROW() -> 111 | B111: Date of Dollar Value | G111: 2000-03-31 | H111: 2000-06-30 | I111: 2000-09-30 | J111: 2000-12-31 | K111: 2001-03-31 | L111: 2001-06-30 | M111: 2001-09-30 | N111: 2001-12-31 | O111: 2002-03-31 | P111: 2002-06-30 | Q111: 2002-09-30 | R111: 2002-12-31 | S111: 2003-03-31 | T111: 2003-06-30 | U111: 2003-09-30 | V111: 2003-12-31 | W111: 2004-03-31 | X111: 2004-06-30 | Y111: 2004-09-30 | Z111: 2004-12-31 | AA111: 2005-03-31 | AB111: 2005-06-30 | AC111: 2005-09-30 | AD111: 2005-12-31 | AE111: 2006-03-31 | AF111: 2006-06-30 | AG111: 2006-09-30 | AH111: 2006-12-31 | AI111: 2007-03-31 | AJ111: 2007-06-30 | AK111: 2007-09-30 | AL111: 2007-12-31 | AM111: 2008-03-31 | AN111: 2008-06-30 | AO111: 2008-09-30 | AP111: 2008-12-31 | AQ111: 2009-03-31 | AR111: 2009-06-30 | AS111: 2009-09-30 | AT111: 2009-12-31 | AU111: 2010-12-31 | AV111: 2011-12-31 | AW111: 2012-12-31 | AX111: 2013-12-31 | AY111: 2014-12-31 | AZ111: =VALUE($D$19) -> 2023-12-31 | BA111: =VALUE($D$19) -> 2023-12-31 | BB111: 2023-12-31 | BC111: 2023-12-31 | BD111: 2023-12-31 | BE111: 2023-12-31 | BF111: 2023-12-31 | BG111: 2023-12-31 | BH111: 2023-12-31 | BI111: 2023-12-31 | BJ111: 2023-12-31 | BK111: 2023-12-31 | BL111: 2023-12-31 | BM111: 2023-12-31 | BN111: 2023-12-31
A112: =ROW() -> 112 | B112: Pipeline and laterals | G112: =G96*HLOOKUP(G$111,InputCPI,9,FALSE)/HLOOKUP(G$95,InputCPI,9,FALSE) -> 0 | H112: 0 | I112: 0 | J112: 0 | K112: 0 | L112: 0 | M112: 0 | N112: 0 | O112: 0 | P112: 0 | Q112: 0 | R112: 0 | S112: 0 | T112: 0 | U112: 0 | V112: 0 | W112: 0 | X112: 0 | Y112: 0 | Z112: 0 | AA112: 0.30112484 | AB112: 0.00025486 | AC112: 0.00045632 | AD112: -0.00033 | AE112: 0 | AF112: 0 | AG112: 0 | AH112: 0 | AI112: 0 | AJ112: 0.28621376 | AK112: 0 | AL112: 0 | AM112: =AM96*HLOOKUP(AM$111,InputCPI,9,FALSE)/HLOOKUP(AM$95,InputCPI,9,FALSE) -> 0 | AN112: 0.00355109 | AO112: 0.01002201 | AP112: 0.06076867 | AQ112: 0.00144492 | AR112: 0.0014231 | AS112: 0.00856286 | AT112: 0.00071536 | AU112: -0.082937 | AV112: 0 | AW112: 0 | AX112: 0.025633 | AY112: 0 | AZ112: 2.221598887 | BA112: 0.6098162949 | BB112: 0.3357761257 | BC112: 0.001092604368 | BD112: 0.03285759036 | BE112: 0.1116933788 | BF112: 0.03395311232 | BG112: 0 | BH112: 0 | BI112: 0 | BJ112: 0 | BK112: 0 | BL112: 0.05042956845 | BM112: 0.05042956845 | BN112: 0
A113: =ROW() -> 113 | B113: Main line valve and scraper stations | G113: =G97*HLOOKUP(G$111,InputCPI,9,FALSE)/HLOOKUP(G$95,InputCPI,9,FALSE) -> 0 | H113: 0 | I113: 0 | J113: 0 | K113: 0 | L113: 0 | M113: 0 | N113: 0 | O113: 0 | P113: 0 | Q113: 0 | R113: 0 | S113: 0 | T113: 0 | U113: 0 | V113: 0 | W113: 0 | X113: 0 | Y113: 0 | Z113: 0 | AA113: 0 | AB113: 0 | AC113: 0 | AD113: 0 | AE113: 0 | AF113: 0 | AG113: 0 | AH113: 0 | AI113: 0 | AJ113: 0 | AK113: 0 | AL113: 0 | AM113: =AM97*HLOOKUP(AM$111,InputCPI,9,FALSE)/HLOOKUP(AM$95,InputCPI,9,FALSE) -> 0 | AN113: 0 | AO113: 0 | AP113: 0 | AQ113: 0.02711449 | AR113: 0.00114492 | AS113: 0 | AT113: 0 | AU113: 0 | AV113: 0 | AW113: 0 | AX113: 0 | AY113: 0 | AZ113: 0.1378261417 | BA113: 0.001859322792 | BB113: 0 | BC113: 0 | BD113: 0 | BE113: 0 | BF113: 0 | BG113: 0.0010425 | BH113: 0.207811677 | BI113: 1.066077116 | BJ113: 1.877015962 | BK113: 1.371196725 | BL113: 1.210949535 | BM113: 1.180478496 | BN113: 0.3504169409
A114: =ROW() -> 114 | B114: Compressor stations | G114: =G98*HLOOKUP(G$111,InputCPI,9,FALSE)/HLOOKUP(G$95,InputCPI,9,FALSE) -> 0.7266078075 | H114: 0.7266078075 | I114: 0.7266078075 | J114: 0.7266078075 | K114: 2.016678142 | L114: 2.016678142 | M114: 2.016678142 | N114: 2.016678142 | O114: 0.1623632675 | P114: 0.1623632675 | Q114: 0.1623632675 | R114: 0.1623632675 | S114: 2.450314792 | T114: 2.450314792 | U114: 2.450314792 | V114: 2.450314792 | W114: 1.018218935 | X114: 1.018218935 | Y114: 1.018218935 | Z114: 1.018218935 | AA114: 0.23668579 | AB114: 0.36644481 | AC114: 0.06653221 | AD114: 0.03745882 | AE114: 0.03906246 | AF114: 0.33773978 | AG114: 0.3358245 | AH114: 0.20489235 | AI114: 0.09346673 | AJ114: 0.18295022 | AK114: 0.05837254 | AL114: 0.02024216 | AM114: =AM98*HLOOKUP(AM$111,InputCPI,9,FALSE)/HLOOKUP(AM$95,InputCPI,9,FALSE) -> 0 | AN114: 0.23202959 | AO114: 0.04096777 | AP114: 0.12877112 | AQ114: 0.28400227 | AR114: 0.0078502 | AS114: 0.00194744 | AT114: 0 | AU114: 0.36723542 | AV114: 0.0473 | AW114: 0.1505567938 | AX114: 0.4783121846 | AY114: 0.7031027752 | AZ114: -0.01969406369 | BA114: 0 | BB114: 1.174456053 | BC114: 0.3906629529 | BD114: 0.1560735542 | BE114: 1.928130105 | BF114: 5.110082914 | BG114: 2.2966275 | BH114: 3.812720834 | BI114: 7.046442379 | BJ114: 11.37274181 | BK114: 4.2128785 | BL114: 4.3068355 | BM114: 5.404333333 | BN114: 3.294333333
A115: =ROW() -> 115 | B115: Receipt and delivery point facilities | G115: =G99*HLOOKUP(G$111,InputCPI,9,FALSE)/HLOOKUP(G$95,InputCPI,9,FALSE) -> 0.04005906 | H115: 0.04005906 | I115: 0.04005906 | J115: 0.04005906 | K115: 0.0242860925 | L115: 0.0242860925 | M115: 0.0242860925 | N115: 0.0242860925 | O115: 0.0147807275 | P115: 0.0147807275 | Q115: 0.0147807275 | R115: 0.0147807275 | S115: 0.0173773425 | T115: 0.0173773425 | U115: 0.0173773425 | V115: 0.0173773425 | W115: 0.00844475 | X115: 0.00844475 | Y115: 0.00844475 | Z115: 0.00844475 | AA115: 0 | AB115: 0 | AC115: 0 | AD115: 0.01755367 | AE115: 0.01368143 | AF115: 0.12254546 | AG115: 0.11840168 | AH115: 0.12576146 | AI115: 0.3960732 | AJ115: 0.08453083 | AK115: 0.00012867 | AL115: 0 | AM115: =AM99*HLOOKUP(AM$111,InputCPI,9,FALSE)/HLOOKUP(AM$95,InputCPI,9,FALSE) -> 0 | AN115: 0 | AO115: 0 | AP115: 0.00321914 | AQ115: 0 | AR115: 0 | AS115: 0 | AT115: 0 | AU115: 0 | AV115: 0 | AW115: 0 | AX115: 0.1356 | AY115: 0.1877352741 | AZ115: 0.5178346238 | BA115: -0.4900234213 | BB115: 0.001563080419 | BC115: 0.2241309628 | BD115: 0.4118933649 | BE115: 2.587338726 | BF115: 0.4030161908 | BG115: 0.6849225 | BH115: 0.7675856763 | BI115: 1.455289173 | BJ115: 1.706577732 | BK115: 1.081721861 | BL115: 0.4183368854 | BM115: 0.00697786778 | BN115: 0
A116: =ROW() -> 116 | B116: SCADA and communications | G116: =G100*HLOOKUP(G$111,InputCPI,9,FALSE)/HLOOKUP(G$95,InputCPI,9,FALSE) -> 0.006985115 | H116: 0.006985115 | I116: 0.006985115 | J116: 0.006985115 | K116: 0.0012955875 | L116: 0.0012955875 | M116: 0.0012955875 | N116: 0.0012955875 | O116: 0.0139746075 | P116: 0.0139746075 | Q116: 0.0139746075 | R116: 0.0139746075 | S116: 0.0173468175 | T116: 0.0173468175 | U116: 0.0173468175 | V116: 0.0173468175 | W116: 0.109894455 | X116: 0.109894455 | Y116: 0.109894455 | Z116: 0.109894455 | AA116: 0.02500167 | AB116: 0.00555411 | AC116: 0.00094376 | AD116: 0 | AE116: 0.05128961 | AF116: 0.20082489 | AG116: 0.17556474 | AH116: 0.02213489 | AI116: 0.04928407 | AJ116: 0.07052838 | AK116: 0.01797736 | AL116: 0.05761879 | AM116: =AM100*HLOOKUP(AM$111,InputCPI,9,FALSE)/HLOOKUP(AM$95,InputCPI,9,FALSE) -> 0.00726825 | AN116: 0.05729485 | AO116: 0.30337709 | AP116: 0.33711321 | AQ116: 0.24756857 | AR116: 0.46381265 | AS116: 0.00427515 | AT116: 0 | AU116: 0.06002106 | AV116: 0.2441346 | AW116: 0.48731914 | AX116: 0.36361653 | AY116: 1.166620315 | AZ116: 1.121541454 | BA116: 1.226725232 | BB116: 0.07910403326 | BC116: 0.1313483356 | BD116: 0.4658736919 | BE116: 0.7888344881 | BF116: 0.1013287769 | BG116: 0.0656775 | BH116: 0.9341092305 | BI116: 0.5571586701 | BJ116: 0.1165556829 | BK116: 0 | BL116: 0 | BM116: 0 | BN116: 0
A117: =ROW() -> 117 | B117: Cathodic protection | G117: =G101*HLOOKUP(G$111,InputCPI,9,FALSE)/HLOOKUP(G$95,InputCPI,9,FALSE) -> 0 | H117: 0 | I117: 0 | J117: 0 | K117: 0 | L117: 0 | M117: 0 | N117: 0 | O117: 0 | P117: 0 | Q117: 0 | R117: 0 | S117: 0.00394725 | T117: 0.00394725 | U117: 0.00394725 | V117: 0.00394725 | W117: 0 | X117: 0 | Y117: 0 | Z117: 0 | AA117: 0.000297 | AB117: 0 | AC117: 0 | AD117: 0 | AE117: 0 | AF117: 0 | AG117: 0.00825 | AH117: 0 | AI117: 0 | AJ117: 0 | AK117: 0 | AL117: 0 | AM117: =AM101*HLOOKUP(AM$111,InputCPI,9,FALSE)/HLOOKUP(AM$95,InputCPI,9,FALSE) -> 0 | AN117: 0.06568597 | AO117: 0.0018755 | AP117: 0.04616319 | AQ117: 0.10849443 | AR117: 0.73988261 | AS117: 0.16139918 | AT117: 0.58868282 | AU117: 0 | AV117: 0 | AW117: 0 | AX117: 0 | AY117: 0 | AZ117: 0 | BA117: 0 | BB117: 0 | BC117: 0 | BD117: 0.00117348537 | BE117: 0 | BF117: 0 | BG117: 0.0010425 | BH117: 0.207019 | BI117: 0.103875465 | BJ117: 0.2179638307 | BK117: 0.1807550324 | BL117: 0.06666666667 | BM117: 0 | BN117: 0.01523551917
A118: =ROW() -> 118 | B118: Maintenance bases and depots | G118: =G102*HLOOKUP(G$111,InputCPI,9,FALSE)/HLOOKUP(G$95,InputCPI,9,FALSE) -> 0.00182295 | H118: 0.00182295 | I118: 0.00182295 | J118: 0.00182295 | K118: 0.001067045 | L118: 0.001067045 | M118: 0.001067045 | N118: 0.001067045 | O118: 0.00055 | P118: 0.00055 | Q118: 0.00055 | R118: 0.00055 | S118: 0 | T118: 0 | U118: 0 | V118: 0 | W118: 0 | X118: 0 | Y118: 0 | Z118: 0 | AA118: 0 | AB118: 0 | AC118: 0 | AD118: 0.002619 | AE118: 0 | AF118: 0.0348373 | AG118: 0 | AH118: 0 | AI118: 0 | AJ118: 0 | AK118: 0.01046586 | AL118: 0.001661 | AM118: =AM102*HLOOKUP(AM$111,InputCPI,9,FALSE)/HLOOKUP(AM$95,InputCPI,9,FALSE) -> 0 | AN118: 0.06127894 | AO118: 0.01224307 | AP118: 0.07122134 | AQ118: 0 | AR118: 0 | AS118: 0 | AT118: 0.01881 | AU118: 0.06827324 | AV118: 0 | AW118: 0 | AX118: 1.056 | AY118: 0.01781308687 | AZ118: 0.03122200254 | BA118: 0 | BB118: 0 | BC118: 0.02280134059 | BD118: 0.06554058127 | BE118: 0.133378183 | BF118: 0.6484929011 | BG118: 0.60048 | BH118: 0.206429 | BI118: 0 | BJ118: 0 | BK118: 0.1568649054 | BL118: 0.4059351727 | BM118: 0.2490702674 | BN118: 0
A119: =ROW() -> 119 | B119: Other assets | G119: =G103*HLOOKUP(G$111,InputCPI,9,FALSE)/HLOOKUP(G$95,InputCPI,9,FALSE) -> 0.1355580325 | H119: 0.1355580325 | I119: 0.1355580325 | J119: 0.1355580325 | K119: 0.0545215825 | L119: 0.0545215825 | M119: 0.0545215825 | N119: 0.0545215825 | O119: 0.0881759075 | P119: 0.0881759075 | Q119: 0.0881759075 | R119: 0.0881759075 | S119: 0.045699415 | T119: 0.045699415 | U119: 0.045699415 | V119: 0.045699415 | W119: 0.39829845 | X119: 0.39829845 | Y119: 0.39829845 | Z119: 0.39829845 | AA119: 0.08118179 | AB119: 0.1946215 | AC119: 0.07621263 | AD119: 0.08803465 | AE119: 0.15023145 | AF119: 0.0845521 | AG119: 0.05615649 | AH119: 0.05214001 | AI119: 0.08470009 | AJ119: 0.17527503 | AK119: 0.2000654 | AL119: 0.00599739 | AM119: =AM103*HLOOKUP(AM$111,InputCPI,9,FALSE)/HLOOKUP(AM$95,InputCPI,9,FALSE) -> 0.03913356 | AN119: 0.13693153 | AO119: 0.05626088 | AP119: 0.01692312 | AQ119: 0.25993214 | AR119: 0.1239055 | AS119: 0.09556458 | AT119: 0.12330345 | AU119: 0.044697 | AV119: 0.023212 | AW119: 0.025781 | AX119: 0.5341323141 | AY119: 0.06094068551 | AZ119: 0.08411565421 | BA119: 0.3981089029 | BB119: 0.1510860279 | BC119: 0.1457654157 | BD119: 0.3954645697 | BE119: 0.5776909536 | BF119: 0.05800822026 | BG119: 0.2512425 | BH119: 0.4265319797 | BI119: 0.547960142 | BJ119: 10.07836212 | BK119: 3.373447154 | BL119: 0.1486986671 | BM119: 0.1486986671 | BN119: 0.3134545801
A120: =ROW() -> 120 | B120: Equity Raising Cost | BE120: =BE104*HLOOKUP(BE$111,InputCPI,9,FALSE)/HLOOKUP(BE$95,InputCPI,9,FALSE) -> 0.02040479947 | BF120: 0 | BG120: 0 | BH120: 0 | BI120: 0 | BJ120: 0.2838169177 | BK120: 0 | BL120: 0 | BM120: 0 | BN120: 0
A121: =ROW() -> 121 | B121: Non-depreciable assets | G121: =G105*HLOOKUP(G$111,InputCPI,9,FALSE)/HLOOKUP(G$95,InputCPI,9,FALSE) -> 0.366693219 | H121: 0 | I121: -0.01981922987 | J121: 0 | K121: 0.7752762321 | L121: -0.0283387489 | M121: -0.02772268914 | N121: 0 | O121: -0.6273935395 | P121: -0.02082825464 | Q121: -0.0203754665 | R121: 0 | S121: 1.459328769 | T121: -0.03641204637 | U121: -0.03562048015 | V121: 0 | W121: -0.7080215592 | X121: 0 | Y121: -0.0275374145 | Z121: 0 | AA121: -0.06990471975 | AB121: -0.02676923077 | AC121: -0.02618729097 | AD121: 0 | AE121: 0.3860815217 | AF121: -0.03042994505 | AG121: -0.02976842451 | AH121: 0 | AI121: 0.06457336957 | AJ121: -0.03047802198 | AK121: -0.02981545628 | AL121: 0 | AM121: =AM105*HLOOKUP(AM$111,InputCPI,9,FALSE)/HLOOKUP(AM$95,InputCPI,9,FALSE) -> -0.1822037745 | AN121: 0 | AO121: -0.02751089943 | AP121: 0 | AQ121: 0.2547581522 | AR121: -0.03031043956 | AS121: -0.02965151696 | AT121: 0 | AU121: 0 | AV121: 0 | AW121: 0 | AX121: 0 | AY121: 0 | AZ121: 0 | BA121: 0 | BB121: 0 | BC121: 0 | BD121: 0 | BE121: =BE105*HLOOKUP(BE$111,InputCPI,9,FALSE)/HLOOKUP(BE$95,InputCPI,9,FALSE) -> 0 | BF121: 0 | BG121: 0 | BH121: 0 | BI121: 0 | BJ121: 0 | BK121: 0 | BL121: 0 | BM121: 0 | BN121: 0
A122: =ROW() -> 122 | B122: Shared support assets - IOT & cyber security | G122: =G106*HLOOKUP(G$111,InputCPI,9,FALSE)/HLOOKUP(G$95,InputCPI,9,FALSE) -> 0 | H122: 0 | I122: 0 | J122: 0 | K122: 0 | L122: 0 | M122: 0 | N122: 0 | O122: 0 | P122: 0 | Q122: 0 | R122: 0 | S122: 0 | T122: 0 | U122: 0 | V122: 0 | W122: 0 | X122: 0 | Y122: 0 | Z122: 0 | AA122: 0 | AB122: 0 | AC122: 0 | AD122: 0 | AE122: 0 | AF122: 0 | AG122: 0 | AH122: 0 | AI122: 0 | AJ122: 0 | AK122: 0 | AL122: 0 | AM122: =AM106*HLOOKUP(AM$111,InputCPI,9,FALSE)/HLOOKUP(AM$95,InputCPI,9,FALSE) -> 0 | AN122: 0 | AO122: 0 | AP122: 0 | AQ122: 0 | AR122: 0 | AS122: 0 | AT122: 0 | AU122: 0 | AV122: 0 | AW122: 0 | AX122: 0 | AY122: 0 | AZ122: 0 | BA122: 0 | BB122: 0 | BC122: 0 | BD122: 0 | BE122: =BE106*HLOOKUP(BE$111,InputCPI,9,FALSE)/HLOOKUP(BE$95,InputCPI,9,FALSE) -> 2.32578192 | BF122: 2.326983759 | BG122: 4.584915 | BH122: 6.451226081 | BI122: 6.393479961 | BJ122: 3.892663054 | BK122: 2.107239855 | BL122: 1.152276112 | BM122: 0.9740892756 | BN122: 0.8107490054
A123: =ROW() -> 123 | B123: Shared support assets (net IOT & cyber security) | G123: =G107*HLOOKUP(G$111,InputCPI,9,FALSE)/HLOOKUP(G$95,InputCPI,9,FALSE) -> 0 | H123: 0 | I123: 0 | J123: 0 | K123: 0 | L123: 0 | M123: 0 | N123: 0 | O123: 0 | P123: 0 | Q123: 0 | R123: 0 | S123: 0 | T123: 0 | U123: 0 | V123: 0 | W123: 0 | X123: 0 | Y123: 0 | Z123: 0 | AA123: 0 | AB123: 0 | AC123: 0 | AD123: 0 | AE123: 0 | AF123: 0 | AG123: 0 | AH123: 0 | AI123: 0 | AJ123: 0 | AK123: 0 | AL123: 0 | AM123: =AM107*HLOOKUP(AM$111,InputCPI,9,FALSE)/HLOOKUP(AM$95,InputCPI,9,FALSE) -> 0 | AN123: 0 | AO123: 0 | AP123: 0 | AQ123: 0 | AR123: 0 | AS123: 0 | AT123: 0 | AU123: 0 | AV123: 0 | AW123: 0 | AX123: 0 | AY123: 0 | AZ123: 0 | BA123: 0 | BB123: 0 | BC123: 0 | BD123: 0 | BE123: =BE107*HLOOKUP(BE$111,InputCPI,9,FALSE)/HLOOKUP(BE$95,InputCPI,9,FALSE) -> 0.9249607935 | BF123: 1.344479505 | BG123: 3.26511 | BH123: 1.397696385 | BI123: 1.397696385 | BJ123: 1.397696385 | BK123: 1.397696385 | BL123: 1.397696385 | BM123: 1.397696385 | BN123: 1.397696385
A124: =ROW() -> 124 | B124: Miscellaneous assets | G124: =G108*HLOOKUP(G$111,InputCPI,9,FALSE)/HLOOKUP(G$95,InputCPI,9,FALSE) -> 0 | H124: 0 | I124: 0 | J124: 0 | K124: 0 | L124: 0 | M124: 0 | N124: 0 | O124: 0 | P124: 0 | Q124: 0 | R124: 0 | S124: 0 | T124: 0 | U124: 0 | V124: 0 | W124: 0 | X124: 0 | Y124: 0 | Z124: 0 | AA124: 0 | AB124: 0 | AC124: 0 | AD124: 0 | AE124: 0 | AF124: 0 | AG124: 0 | AH124: 0 | AI124: 0 | AJ124: 0 | AK124: 0 | AL124: 0 | AM124: =AM108*HLOOKUP(AM$111,InputCPI,9,FALSE)/HLOOKUP(AM$95,InputCPI,9,FALSE) -> 0 | AN124: 0 | AO124: 0 | AP124: 0 | AQ124: 0 | AR124: 0 | AS124: 0 | AT124: 0 | AU124: 0 | AV124: 0 | AW124: 0 | AX124: 0 | AY124: 0 | AZ124: 0 | BA124: 0 | BB124: 0 | BC124: 0 | BD124: 0 | BE124: =BE108*HLOOKUP(BE$111,InputCPI,9,FALSE)/HLOOKUP(BE$95,InputCPI,9,FALSE) -> 0 | BF124: 0 | BG124: 0 | BH124: 0 | BI124: 0 | BJ124: 0 | BK124: 0 | BL124: 0 | BM124: 0 | BN124: 0
A125: =ROW() -> 125 | B125: Total | G125: =SUM(G112:G124) -> 1.277726184 | H125: =SUM(H112:H124) -> 0.911032965 | I125: 0.8912137351 | J125: 0.911032965 | K125: 2.873124682 | L125: 2.069509701 | M125: 2.070125761 | N125: 2.09784845 | O125: -0.3475490295 | P125: 0.2590162554 | Q125: 0.2594690435 | R125: 0.27984451 | S125: 3.994014386 | T125: 2.498273571 | U125: 2.499065137 | V125: 2.534685618 | W125: 0.8268350308 | X125: 1.53485659 | Y125: 1.507319175 | Z125: 1.53485659 | AA125: 0.5743863703 | AB125: 0.5401060492 | AC125: 0.117957629 | AD125: 0.14533614 | AE125: 0.6403464717 | AF125: 0.7500695849 | AG125: 0.6644289855 | AH125: 0.40492871 | AI125: 0.6880974596 | AJ125: 0.769020198 | AK125: 0.2571943737 | AL125: 0.08551934 | AM125: -0.1358019645 | AN125: 0.55677197 | AO125: 0.3972354206 | AP125: 0.66417979 | AQ125: 1.183314972 | AR125: 1.30770854 | AS125: 0.242097693 | AT125: 0.73151163 | AU125: 0.45728972 | AV125: 0.3146466 | AW125: 0.6636569338 | AX125: 2.593294029 | AY125: 2.136212137 | AZ125: 4.0944447 | BA125: 1.746486331 | BB125: 1.74198532 | BC125: 0.915801612 | BD125: 1.528876838 | BE125: 9.398213348 | BF125: 10.02634538 | BG125: 11.75106 | BH125: 14.41112986 | BI125: 18.56797929 | BJ125: 30.94339349 | BK125: 13.88180042 | BL125: 9.157824492 | BM125: 9.41177386 | BN125: 6.181885763
A126: =ROW() -> 126 | B126: Capex (Model) [m$ nominal]
A127: =ROW() -> 127 | B127: Date of Dollar Value | G127: 2000-03-31 | H127: 2000-06-30 | I127: 2000-09-30 | J127: 2000-12-31 | K127: 2001-03-31 | L127: 2001-06-30 | M127: 2001-09-30 | N127: 2001-12-31 | O127: 2002-03-31 | P127: 2002-06-30 | Q127: 2002-09-30 | R127: 2002-12-31 | S127: 2003-03-31 | T127: 2003-06-30 | U127: 2003-09-30 | V127: 2003-12-31 | W127: 2004-03-31 | X127: 2004-06-30 | Y127: 2004-09-30 | Z127: 2004-12-31 | AA127: 2005-03-31 | AB127: 2005-06-30 | AC127: 2005-09-30 | AD127: 2005-12-31 | AE127: 2006-03-31 | AF127: 2006-06-30 | AG127: 2006-09-30 | AH127: 2006-12-31 | AI127: 2007-03-31 | AJ127: 2007-06-30 | AK127: 2007-09-30 | AL127: 2007-12-31 | AM127: 2008-03-31 | AN127: 2008-06-30 | AO127: 2008-09-30 | AP127: 2008-12-31 | AQ127: 2009-03-31 | AR127: 2009-06-30 | AS127: 2009-09-30 | AT127: 2009-12-31 | AU127: 2010-12-31 | AV127: 2011-12-31 | AW127: 2012-12-31 | AX127: 2013-12-31 | AY127: 2014-12-31 | AZ127: 2015-12-31 | BA127: 2016-12-31 | BB127: 2017-12-31 | BC127: 2018-12-31 | BD127: =BD8 -> 2019-12-31 | BE127: 2020-12-31 | BF127: 2021-12-31 | BG127: 2022-12-31 | BH127: 2023-12-31 | BI127: 2024-12-31 | BJ127: 2025-12-31 | BK127: 2026-12-31 | BL127: 2027-12-31 | BM127: 2028-12-31 | BN127: 2029-12-31
A128: =ROW() -> 128 | B128: Pipeline and laterals | G128: =G96*HLOOKUP(G$127,InputCPI,9,FALSE)/HLOOKUP(G$95,InputCPI,9,FALSE) -> 0 | H128: 0 | I128: 0 | J128: 0 | K128: 0 | L128: 0 | M128: 0 | N128: 0 | O128: 0 | P128: 0 | Q128: 0 | R128: 0 | S128: 0 | T128: 0 | U128: 0 | V128: 0 | W128: 0 | X128: 0 | Y128: 0 | Z128: 0 | AA128: 0.30112484 | AB128: 0.00025486 | AC128: 0.00045632 | AD128: -0.00033 | AE128: 0 | AF128: 0 | AG128: 0 | AH128: 0 | AI128: 0 | AJ128: 0.28621376 | AK128: 0 | AL128: 0 | AM128: =AM96*HLOOKUP(AM$127,InputCPI,9,FALSE)/HLOOKUP(AM$95,InputCPI,9,FALSE) -> 0 | AN128: 0.00355109 | AO128: 0.01002201 | AP128: 0.06076867 | AQ128: 0.00144492 | AR128: 0.0014231 | AS128: 0.00856286 | AT128: 0.00071536 | AU128: -0.082937 | AV128: 0 | AW128: 0 | AX128: 0.025633 | AY128: 0 | AZ128: 1.766083056 | BA128: 0.4919352037 | BB128: 0.2760397457 | BC128: 0.000914249579 | BD128: =BD112/BD$19 -> 0.028 | BE128: =BE112/BE$19 -> 0.096 | BF128: 0.03020345209 | BG128: 0 | BH128: 0 | BI128: 0 | BJ128: =BJ112/BJ$19 -> 0 | BK128: 0 | BL128: 0.05620350449 | BM128: 0.05765355491 | BN128: 0
A129: =ROW() -> 129 | B129: Main line valve and scraper stations | G129: =G97*HLOOKUP(G$127,InputCPI,9,FALSE)/HLOOKUP(G$95,InputCPI,9,FALSE) -> 0 | H129: 0 | I129: 0 | J129: 0 | K129: 0 | L129: 0 | M129: 0 | N129: 0 | O129: 0 | P129: 0 | Q129: 0 | R129: 0 | S129: 0 | T129: 0 | U129: 0 | V129: 0 | W129: 0 | X129: 0 | Y129: 0 | Z129: 0 | AA129: 0 | AB129: 0 | AC129: 0 | AD129: 0 | AE129: 0 | AF129: 0 | AG129: 0 | AH129: 0 | AI129: 0 | AJ129: 0 | AK129: 0 | AL129: 0 | AM129: =AM97*HLOOKUP(AM$127,InputCPI,9,FALSE)/HLOOKUP(AM$95,InputCPI,9,FALSE) -> 0 | AN129: 0 | AO129: 0 | AP129: 0 | AQ129: 0.02711449 | AR129: 0.00114492 | AS129: 0 | AT129: 0 | AU129: 0 | AV129: 0 | AW129: 0 | AX129: 0 | AY129: 0 | AZ129: 0.1095663195 | BA129: 0.001499904716 | BB129: 0 | BC129: 0 | BD129: =BD113/BD$19 -> 0 | BE129: 0 | BF129: 0 | BG129: 0.001 | BH129: 0.207811677 | BI129: 1.100724622 | BJ129: =BJ113/BJ$19 -> 1.98801987 | BK129: 1.489756254 | BL129: 1.349597264 | BM129: 1.349580889 | BN129: 0.4109496623
A130: =ROW() -> 130 | B130: Compressor stations | G130: =G98*HLOOKUP(G$127,InputCPI,9,FALSE)/HLOOKUP(G$95,InputCPI,9,FALSE) -> 0.7266078075 | H130: 0.7266078075 | I130: 0.7266078075 | J130: 0.7266078075 | K130: 2.016678142 | L130: 2.016678142 | M130: 2.016678142 | N130: 2.016678142 | O130: 0.1623632675 | P130: 0.1623632675 | Q130: 0.1623632675 | R130: 0.1623632675 | S130: 2.450314792 | T130: 2.450314792 | U130: 2.450314792 | V130: 2.450314792 | W130: 1.018218935 | X130: 1.018218935 | Y130: 1.018218935 | Z130: 1.018218935 | AA130: 0.23668579 | AB130: 0.36644481 | AC130: 0.06653221 | AD130: 0.03745882 | AE130: 0.03906246 | AF130: 0.33773978 | AG130: 0.3358245 | AH130: 0.20489235 | AI130: 0.09346673 | AJ130: 0.18295022 | AK130: 0.05837254 | AL130: 0.02024216 | AM130: =AM98*HLOOKUP(AM$127,InputCPI,9,FALSE)/HLOOKUP(AM$95,InputCPI,9,FALSE) -> 0 | AN130: 0.23202959 | AO130: 0.04096777 | AP130: 0.12877112 | AQ130: 0.28400227 | AR130: 0.0078502 | AS130: 0.00194744 | AT130: 0 | AU130: 0.36723542 | AV130: 0.0473 | AW130: 0.1505567938 | AX130: 0.4783121846 | AY130: 0.7031027752 | AZ130: -0.015656 | BA130: 0 | BB130: 0.965514 | BC130: 0.3268918291 | BD130: =BD114/BD$19 -> 0.133 | BE130: 1.6572199 | BF130: 4.545743643 | BG130: 2.203 | BH130: 3.812720834 | BI130: 7.275451756 | BJ130: =BJ114/BJ$19 -> 12.0453087 | BK130: 4.577141978 | BL130: 4.799946853 | BM130: 6.178498808 | BN130: 3.863412447
A131: =ROW() -> 131 | B131: Receipt and delivery point facilities | G131: =G99*HLOOKUP(G$127,InputCPI,9,FALSE)/HLOOKUP(G$95,InputCPI,9,FALSE) -> 0.04005906 | H131: 0.04005906 | I131: 0.04005906 | J131: 0.04005906 | K131: 0.0242860925 | L131: 0.0242860925 | M131: 0.0242860925 | N131: 0.0242860925 | O131: 0.0147807275 | P131: 0.0147807275 | Q131: 0.0147807275 | R131: 0.0147807275 | S131: 0.0173773425 | T131: 0.0173773425 | U131: 0.0173773425 | V131: 0.0173773425 | W131: 0.00844475 | X131: 0.00844475 | Y131: 0.00844475 | Z131: 0.00844475 | AA131: 0 | AB131: 0 | AC131: 0 | AD131: 0.01755367 | AE131: 0.01368143 | AF131: 0.12254546 | AG131: 0.11840168 | AH131: 0.12576146 | AI131: 0.3960732 | AJ131: 0.08453083 | AK131: 0.00012867 | AL131: 0 | AM131: =AM99*HLOOKUP(AM$127,InputCPI,9,FALSE)/HLOOKUP(AM$95,InputCPI,9,FALSE) -> 0 | AN131: 0 | AO131: 0 | AP131: 0.00321914 | AQ131: 0 | AR131: 0 | AS131: 0 | AT131: 0 | AU131: 0 | AV131: 0 | AW131: 0 | AX131: 0.1356 | AY131: 0.1877352741 | AZ131: 0.411658 | BA131: -0.395299 | BB131: 0.001285 | BC131: 0.1875442241 | BD131: =BD115/BD$19 -> 0.351 | BE131: 2.223807 | BF131: 0.3585085249 | BG131: 0.657 | BH131: 0.7675856763 | BI131: 1.502586071 | BJ131: =BJ115/BJ$19 -> 1.807502179 | BK131: 1.175252156 | BL131: 0.4662343886 | BM131: 0.007977440528 | BN131: 0
A132: =ROW() -> 132 | B132: SCADA and communications | G132: =G100*HLOOKUP(G$127,InputCPI,9,FALSE)/HLOOKUP(G$95,InputCPI,9,FALSE) -> 0.006985115 | H132: 0.006985115 | I132: 0.006985115 | J132: 0.006985115 | K132: 0.0012955875 | L132: 0.0012955875 | M132: 0.0012955875 | N132: 0.0012955875 | O132: 0.0139746075 | P132: 0.0139746075 | Q132: 0.0139746075 | R132: 0.0139746075 | S132: 0.0173468175 | T132: 0.0173468175 | U132: 0.0173468175 | V132: 0.0173468175 | W132: 0.109894455 | X132: 0.109894455 | Y132: 0.109894455 | Z132: 0.109894455 | AA132: 0.02500167 | AB132: 0.00555411 | AC132: 0.00094376 | AD132: 0 | AE132: 0.05128961 | AF132: 0.20082489 | AG132: 0.17556474 | AH132: 0.02213489 | AI132: 0.04928407 | AJ132: 0.07052838 | AK132: 0.01797736 | AL132: 0.05761879 | AM132: =AM100*HLOOKUP(AM$127,InputCPI,9,FALSE)/HLOOKUP(AM$95,InputCPI,9,FALSE) -> 0.00726825 | AN132: 0.05729485 | AO132: 0.30337709 | AP132: 0.33711321 | AQ132: 0.24756857 | AR132: 0.46381265 | AS132: 0.00427515 | AT132: 0 | AU132: 0.06002106 | AV132: 0.2441346 | AW132: 0.48731914 | AX132: 0.36361653 | AY132: 1.166620315 | AZ132: 0.891581 | BA132: 0.989592 | BB132: 0.065031 | BC132: 0.1099072675 | BD132: =BD116/BD$19 -> 0.397 | BE132: 0.678 | BF132: 0.0901383894 | BG132: 0.063 | BH132: 0.9341092305 | BI132: 0.5752663269 | BJ132: =BJ116/BJ$19 -> 0.1234486111 | BK132: 0 | BL132: 0 | BM132: 0 | BN132: 0
A133: =ROW() -> 133 | B133: Cathodic protection | G133: =G101*HLOOKUP(G$127,InputCPI,9,FALSE)/HLOOKUP(G$95,InputCPI,9,FALSE) -> 0 | H133: 0 | I133: 0 | J133: 0 | K133: 0 | L133: 0 | M133: 0 | N133: 0 | O133: 0 | P133: 0 | Q133: 0 | R133: 0 | S133: 0.00394725 | T133: 0.00394725 | U133: 0.00394725 | V133: 0.00394725 | W133: 0 | X133: 0 | Y133: 0 | Z133: 0 | AA133: 0.000297 | AB133: 0 | AC133: 0 | AD133: 0 | AE133: 0 | AF133: 0 | AG133: 0.00825 | AH133: 0 | AI133: 0 | AJ133: 0 | AK133: 0 | AL133: 0 | AM133: =AM101*HLOOKUP(AM$127,InputCPI,9,FALSE)/HLOOKUP(AM$95,InputCPI,9,FALSE) -> 0 | AN133: 0.06568597 | AO133: 0.0018755 | AP133: 0.04616319 | AQ133: 0.10849443 | AR133: 0.73988261 | AS133: 0.16139918 | AT133: 0.58868282 | AU133: 0 | AV133: 0 | AW133: 0 | AX133: 0 | AY133: 0 | AZ133: 0 | BA133: 0 | BB133: 0 | BC133: 0 | BD133: =BD117/BD$19 -> 0.001 | BE133: 0 | BF133: 0 | BG133: 0.001 | BH133: 0.207019 | BI133: 0.1072514176 | BJ133: =BJ117/BJ$19 -> 0.2308538847 | BK133: 0.1963838849 | BL133: 0.0742996701 | BM133: 0 | BN133: 0.01786737662
A134: =ROW() -> 134 | B134: Maintenance bases and depots | G134: =G102*HLOOKUP(G$127,InputCPI,9,FALSE)/HLOOKUP(G$95,InputCPI,9,FALSE) -> 0.00182295 | H134: 0.00182295 | I134: 0.00182295 | J134: 0.00182295 | K134: 0.001067045 | L134: 0.001067045 | M134: 0.001067045 | N134: 0.001067045 | O134: 0.00055 | P134: 0.00055 | Q134: 0.00055 | R134: 0.00055 | S134: 0 | T134: 0 | U134: 0 | V134: 0 | W134: 0 | X134: 0 | Y134: 0 | Z134: 0 | AA134: 0 | AB134: 0 | AC134: 0 | AD134: 0.002619 | AE134: 0 | AF134: 0.0348373 | AG134: 0 | AH134: 0 | AI134: 0 | AJ134: 0 | AK134: 0.01046586 | AL134: 0.001661 | AM134: =AM102*HLOOKUP(AM$127,InputCPI,9,FALSE)/HLOOKUP(AM$95,InputCPI,9,FALSE) -> 0 | AN134: 0.06127894 | AO134: 0.01224307 | AP134: 0.07122134 | AQ134: 0 | AR134: 0 | AS134: 0 | AT134: 0.01881 | AU134: 0.06827324 | AV134: 0 | AW134: 0 | AX134: 1.056 | AY134: 0.01781308687 | AZ134: 0.02482025444 | BA134: 0 | BB134: 0 | BC134: 0.01907929041 | BD134: =BD118/BD$19 -> 0.05585121293 | BE134: 0.114638 | BF134: 0.5768756658 | BG134: 0.576 | BH134: 0.206429 | BI134: 0 | BJ134: =BJ118/BJ$19 -> 0 | BK134: 0.1704281154 | BL134: 0.4524127413 | BM134: 0.2847493401 | BN134: 0
A135: =ROW() -> 135 | B135: Other assets | G135: =G103*HLOOKUP(G$127,InputCPI,9,FALSE)/HLOOKUP(G$95,InputCPI,9,FALSE) -> 0.1355580325 | H135: 0.1355580325 | I135: 0.1355580325 | J135: 0.1355580325 | K135: 0.0545215825 | L135: 0.0545215825 | M135: 0.0545215825 | N135: 0.0545215825 | O135: 0.0881759075 | P135: 0.0881759075 | Q135: 0.0881759075 | R135: 0.0881759075 | S135: 0.045699415 | T135: 0.045699415 | U135: 0.045699415 | V135: 0.045699415 | W135: 0.39829845 | X135: 0.39829845 | Y135: 0.39829845 | Z135: 0.39829845 | AA135: 0.08118179 | AB135: 0.1946215 | AC135: 0.07621263 | AD135: 0.08803465 | AE135: 0.15023145 | AF135: 0.0845521 | AG135: 0.05615649 | AH135: 0.05214001 | AI135: 0.08470009 | AJ135: 0.17527503 | AK135: 0.2000654 | AL135: 0.00599739 | AM135: =AM103*HLOOKUP(AM$127,InputCPI,9,FALSE)/HLOOKUP(AM$95,InputCPI,9,FALSE) -> 0.03913356 | AN135: 0.13693153 | AO135: 0.05626088 | AP135: 0.01692312 | AQ135: 0.25993214 | AR135: 0.1239055 | AS135: 0.09556458 | AT135: 0.12330345 | AU135: 0.044697 | AV135: 0.023212 | AW135: 0.025781 | AX135: 0.5341323141 | AY135: 0.06094068551 | AZ135: 0.06686861092 | BA135: 0.3211521008 | BB135: 0.1242070104 | BC135: 0.1219709292 | BD135: =BD119/BD$19 -> 0.337 | BE135: 0.496523 | BF135: 0.051602 | BG135: 0.241 | BH135: 0.4265319797 | BI135: 0.5657688466 | BJ135: =BJ119/BJ$19 -> 10.67438134 | BK135: 3.665129811 | BL135: 0.1657239286 | BM135: 0.169999606 | BN135: 0.3676022441
A136: =ROW() -> 136 | B136: Equity Raising Cost | BE136: =BE120/BE$19 -> 0.01753784127 | BF136: =BF120/BF$19 -> 0 | BG136: =BG120/BG$19 -> 0 | BH136: =BH120/BH$19 -> 0 | BI136: =BI120/BI$19 -> 0 | BJ136: =BJ120/BJ$19 -> 0.3006014245 | BK136: 0 | BL136: 0 | BM136: 0 | BN136: 0
A137: =ROW() -> 137 | B137: Non-depreciable assets | G137: =G$1836 -> 1.466772876 | H137: =H$1836 -> 0 | I137: -0.07927691947 | J137: 0 | K137: 3.101104928 | L137: -0.1133549956 | M137: -0.1108907566 | N137: 0 | O137: -2.509574158 | P137: -0.08331301857 | Q137: -0.08150186599 | R137: 0 | S137: 5.837315075 | T137: -0.1456481855 | U137: -0.1424819206 | V137: 0 | W137: -2.832086237 | X137: 0 | Y137: -0.110149658 | Z137: 0 | AA137: -0.279618879 | AB137: -0.1070769231 | AC137: -0.1047491639 | AD137: 0 | AE137: 1.544326087 | AF137: -0.1217197802 | AG137: -0.119073698 | AH137: 0 | AI137: 0.2582934783 | AJ137: -0.1219120879 | AK137: -0.1192618251 | AL137: 0 | AM137: -0.7288150979 | AN137: 0 | AO137: -0.1100435977 | AP137: 0 | AQ137: 1.019032609 | AR137: -0.1212417582 | AS137: -0.1186060678 | AT137: 0 | AU137: -11.46986413 | AV137: 0 | AW137: 0 | AX137: 0 | AY137: 0 | AZ137: 0 | BA137: 0 | BB137: 0 | BC137: 0 | BD137: 0 | BE137: 0 | BF137: 0 | BG137: 0 | BH137: 0 | BI137: 0 | BJ137: 0 | BK137: 0 | BL137: 0 | BM137: 0 | BN137: 0
A138: =ROW() -> 138 | B138: Shared support assets - IOT & cyber security | G138: =G106*HLOOKUP(G$127,InputCPI,9,FALSE)/HLOOKUP(G$95,InputCPI,9,FALSE) -> 0 | H138: 0 | I138: 0 | J138: 0 | K138: 0 | L138: 0 | M138: 0 | N138: 0 | O138: 0 | P138: 0 | Q138: 0 | R138: 0 | S138: 0 | T138: 0 | U138: 0 | V138: 0 | W138: 0 | X138: 0 | Y138: 0 | Z138: 0 | AA138: 0 | AB138: 0 | AC138: 0 | AD138: 0 | AE138: 0 | AF138: 0 | AG138: 0 | AH138: 0 | AI138: 0 | AJ138: 0 | AK138: 0 | AL138: 0 | AM138: =AM106*HLOOKUP(AM$127,InputCPI,9,FALSE)/HLOOKUP(AM$95,InputCPI,9,FALSE) -> 0 | AN138: 0 | AO138: 0 | AP138: 0 | AQ138: 0 | AR138: 0 | AS138: 0 | AT138: 0 | AU138: 0 | AV138: 0 | AW138: 0 | AX138: 0 | AY138: 0 | AZ138: 0 | BA138: 0 | BB138: 0 | BC138: 0 | BD138: =BD122/BD$19 -> 0 | BE138: 1.999 | BF138: 2.07 | BG138: 4.398 | BH138: 6.451226081 | BI138: 6.60126806 | BJ138: 4.122869308 | BK138: 2.289440818 | BL138: 1.284206025 | BM138: 1.113626613 | BN138: 0.9508017196
A139: =ROW() -> 139 | B139: Shared support assets (net IOT & cyber security) | G139: =G107*HLOOKUP(G$127,InputCPI,9,FALSE)/HLOOKUP(G$95,InputCPI,9,FALSE) -> 0 | H139: 0 | I139: 0 | J139: 0 | K139: 0 | L139: 0 | M139: 0 | N139: 0 | O139: 0 | P139: 0 | Q139: 0 | R139: 0 | S139: 0 | T139: 0 | U139: 0 | V139: 0 | W139: 0 | X139: 0 | Y139: 0 | Z139: 0 | AA139: 0 | AB139: 0 | AC139: 0 | AD139: 0 | AE139: 0 | AF139: 0 | AG139: 0 | AH139: 0 | AI139: 0 | AJ139: 0 | AK139: 0 | AL139: 0 | AM139: =AM107*HLOOKUP(AM$127,InputCPI,9,FALSE)/HLOOKUP(AM$95,InputCPI,9,FALSE) -> 0 | AN139: 0 | AO139: 0 | AP139: 0 | AQ139: 0 | AR139: 0 | AS139: 0 | AT139: 0 | AU139: 0 | AV139: 0 | AW139: 0 | AX139: 0 | AY139: 0 | AZ139: 0 | BA139: 0 | BB139: 0 | BC139: 0 | BD139: =BD123/BD$19 -> 0 | BE139: 0.795 | BF139: 1.196 | BG139: 3.132 | BH139: 1.397696385 | BI139: 1.443121517 | BJ139: 1.480354052 | BK139: 1.518547187 | BL139: 1.557725704 | BM139: 1.597915027 | BN139: 1.639141235
A140: =ROW() -> 140 | B140: Miscellaneous assets | G140: =G108*HLOOKUP(G$127,InputCPI,9,FALSE)/HLOOKUP(G$95,InputCPI,9,FALSE) -> 0 | H140: 0 | I140: 0 | J140: 0 | K140: 0 | L140: 0 | M140: 0 | N140: 0 | O140: 0 | P140: 0 | Q140: 0 | R140: 0 | S140: 0 | T140: 0 | U140: 0 | V140: 0 | W140: 0 | X140: 0 | Y140: 0 | Z140: 0 | AA140: 0 | AB140: 0 | AC140: 0 | AD140: 0 | AE140: 0 | AF140: 0 | AG140: 0 | AH140: 0 | AI140: 0 | AJ140: 0 | AK140: 0 | AL140: 0 | AM140: =AM108*HLOOKUP(AM$127,InputCPI,9,FALSE)/HLOOKUP(AM$95,InputCPI,9,FALSE) -> 0 | AN140: 0 | AO140: 0 | AP140: 0 | AQ140: 0 | AR140: 0 | AS140: 0 | AT140: 0 | AU140: 0 | AV140: 0 | AW140: 0 | AX140: 0 | AY140: 0 | AZ140: 0 | BA140: 0 | BB140: 0 | BC140: 0 | BD140: =BD124/BD$19 -> 0 | BE140: 0 | BF140: 0 | BG140: 0 | BH140: 0 | BI140: 0 | BJ140: 0 | BK140: 0 | BL140: 0 | BM140: 0 | BN140: 0
A141: =ROW() -> 141 | B141: Total | G141: =SUM(G128:G140) -> 2.377805841 | H141: =SUM(H128:H140) -> 0.911032965 | I141: 0.8317560455 | J141: 0.911032965 | K141: 5.198953378 | L141: 1.984493454 | M141: 1.986957693 | N141: 2.09784845 | O141: -2.229729648 | P141: 0.1965314914 | Q141: 0.198342644 | R141: 0.27984451 | S141: 8.372000692 | T141: 2.389037432 | U141: 2.392203697 | V141: 2.534685618 | W141: -1.297229647 | X141: 1.53485659 | Y141: 1.424706932 | Z141: 1.53485659 | AA141: 0.364672211 | AB141: 0.4597983569 | AC141: 0.03939575612 | AD141: 0.14533614 | AE141: 1.798591037 | AF141: 0.6587797498 | AG141: 0.575123712 | AH141: 0.40492871 | AI141: 0.8818175683 | AJ141: 0.6775861321 | AK141: 0.1677480049 | AL141: 0.08551934 | AM141: -0.6824132879 | AN141: 0.55677197 | AO141: 0.3147027223 | AP141: 0.66417979 | AQ141: 1.947589429 | AR141: 1.216777222 | AS141: 0.1531431422 | AT141: 0.73151163 | AU141: -11.01257441 | AV141: 0.3146466 | AW141: 0.6636569338 | AX141: 2.593294029 | AY141: 2.136212137 | AZ141: 3.254921241 | BA141: 1.408880209 | BB141: 1.432076756 | BC141: 0.7663077899 | BD141: 1.302851213 | BE141: 8.077725741 | BF141: 8.919071676 | BG141: 11.272 | BH141: 14.41112986 | BI141: 19.17143862 | BJ141: 32.77333937 | BK141: 15.0820802 | BL141: 10.20635008 | BM141: 10.76000128 | BN141: 7.249774684
A142: =ROW() -> 142 | B142: Capex Depreciation
A143: =ROW() -> 143 | B143: As per previous AA model $
A144: =ROW() -> 144 | B144: Date of Dollar Value | G144: 2000-03-31 | H144: 2000-06-30 | I144: 2000-09-30 | J144: 2000-12-31 | K144: 2001-03-31 | L144: 2001-06-30 | M144: 2001-09-30 | N144: 2001-12-31 | O144: 2002-03-31 | P144: 2002-06-30 | Q144: 2002-09-30 | R144: 2002-12-31 | S144: 2003-03-31 | T144: 2003-06-30 | U144: 2003-09-30 | V144: 2003-12-31 | W144: 2004-03-31 | X144: 2004-06-30 | Y144: 2004-09-30 | Z144: 2004-12-31 | AA144: 2005-03-31 | AB144: 2005-06-30 | AC144: 2005-09-30 | AD144: 2005-12-31 | AE144: 2006-03-31 | AF144: 2006-06-30 | AG144: 2006-09-30 | AH144: 2006-12-31 | AI144: 2007-03-31 | AJ144: 2007-06-30 | AK144: 2007-09-30 | AL144: 2007-12-31 | AM144: 2008-03-31 | AN144: 2008-06-30 | AO144: 2008-09-30 | AP144: 2008-12-31 | AQ144: 2009-03-31 | AR144: 2009-06-30 | AS144: 2009-09-30 | AT144: 2009-12-31 | AU144: 2010-12-31 | AV144: 2011-12-31 | AW144: 2012-12-31 | AX144: 2013-12-31 | AY144: 2014-12-31 | AZ144: 2014-12-31 | BA144: 2014-12-31 | BB144: 2014-12-31 | BC144: 2014-12-31 | BD144: 2014-12-31 | BE144: 2018-12-31 | BF144: 2018-12-31 | BG144: 2018-12-31 | BH144: 2018-12-31 | BI144: 2018-12-31
A145: =ROW() -> 145 | B145: 2000-03-31 | C145: Capex
A146: =ROW() -> 146 | B146: Pipeline and laterals | H146: 0 | I146: 0 | J146: 0 | K146: 0 | L146: 0 | M146: 0 | N146: 0 | O146: 0 | P146: 0 | Q146: 0 | R146: 0 | S146: 0 | T146: 0 | U146: 0 | V146: 0 | W146: 0 | X146: 0 | Y146: 0 | Z146: 0 | AA146: 0 | AB146: 0 | AC146: 0 | AD146: 0 | AE146: 0 | AF146: 0 | AG146: 0 | AH146: 0 | AI146: 0 | AJ146: 0 | AK146: 0 | AL146: 0 | AM146: 0 | AN146: 0 | AO146: 0 | AP146: 0 | AQ146: 0 | AR146: 0 | AS146: 0 | AT146: 0 | AU146: 0 | AV146: 0 | AW146: 0 | AX146: 0 | AY146: 0 | AZ146: 0 | BA146: 0 | BB146: 0 | BC146: 0 | BD146: 0 | BE146: 0 | BF146: 0 | BG146: 0 | BH146: 0 | BI146: 0
A147: =ROW() -> 147 | B147: Main line valve and scraper stations | H147: 0 | I147: 0 | J147: 0 | K147: 0 | L147: 0 | M147: 0 | N147: 0 | O147: 0 | P147: 0 | Q147: 0 | R147: 0 | S147: 0 | T147: 0 | U147: 0 | V147: 0 | W147: 0 | X147: 0 | Y147: 0 | Z147: 0 | AA147: 0 | AB147: 0 | AC147: 0 | AD147: 0 | AE147: 0 | AF147: 0 | AG147: 0 | AH147: 0 | AI147: 0 | AJ147: 0 | AK147: 0 | AL147: 0 | AM147: 0 | AN147: 0 | AO147: 0 | AP147: 0 | AQ147: 0 | AR147: 0 | AS147: 0 | AT147: 0 | AU147: 0 | AV147: 0 | AW147: 0 | AX147: 0 | AY147: 0 | AZ147: 0 | BA147: 0 | BB147: 0 | BC147: 0 | BD147: 0 | BE147: 0 | BF147: 0 | BG147: 0 | BH147: 0 | BI147: 0
A148: =ROW() -> 148 | B148: Compressor stations | H148: 0.02422026025 | I148: 0.02422026025 | J148: 0.02422026025 | K148: 0.02422026025 | L148: 0.02422026025 | M148: 0.02422026025 | N148: 0.02422026025 | O148: 0.02422026025 | P148: 0.02422026025 | Q148: 0.02422026025 | R148: 0.02422026025 | S148: 0.02422026025 | T148: 0.02422026025 | U148: 0.02422026025 | V148: 0.02422026025 | W148: 0.02422026025 | X148: 0.02422026025 | Y148: 0.02422026025 | Z148: 0.02422026025 | AA148: 0.02422026025 | AB148: 0.02422026025 | AC148: 0.02422026025 | AD148: 0.02422026025 | AE148: 0.02422026025 | AF148: 0.02422026025 | AG148: 0.02422026025 | AH148: 0.02422026025 | AI148: 0.02422026025 | AJ148: 0.02422026025 | AK148: 0.02422026025 | AL148: 0.02422026025 | AM148: 0.02422026025 | AN148: 0.02422026025 | AO148: 0.02422026025 | AP148: 0.02422026025 | AQ148: 0.02422026025 | AR148: 0.02422026025 | AS148: 0.02422026025 | AT148: 0.02422026025 | AU148: 0.02422026025 | AV148: 0.02422026025 | AW148: 0.02422026025 | AX148: 0.02422026025 | AY148: 0.02422026025 | AZ148: 0.02422026025 | BA148: 0.02422026025 | BB148: 0.02422026025 | BC148: 0.02422026025 | BD148: 0.02422026025 | BE148: 0.02592431233 | BF148: 0.02592431233 | BG148: 0.02592431233 | BH148: 0.02592431233 | BI148: 0.02592431233
A149: =ROW() -> 149 | B149: Receipt and delivery point facilities | H149: 0.001335302 | I149: 0.001335302 | J149: 0.001335302 | K149: 0.001335302 | L149: 0.001335302 | M149: 0.001335302 | N149: 0.001335302 | O149: 0.001335302 | P149: 0.001335302 | Q149: 0.001335302 | R149: 0.001335302 | S149: 0.001335302 | T149: 0.001335302 | U149: 0.001335302 | V149: 0.001335302 | W149: 0.001335302 | X149: 0.001335302 | Y149: 0.001335302 | Z149: 0.001335302 | AA149: 0.001335302 | AB149: 0.001335302 | AC149: 0.001335302 | AD149: 0.001335302 | AE149: 0.001335302 | AF149: 0.001335302 | AG149: 0.001335302 | AH149: 0.001335302 | AI149: 0.001335302 | AJ149: 0.001335302 | AK149: 0.001335302 | AL149: 0.001335302 | AM149: 0.001335302 | AN149: 0.001335302 | AO149: 0.001335302 | AP149: 0.001335302 | AQ149: 0.001335302 | AR149: 0.001335302 | AS149: 0.001335302 | AT149: 0.001335302 | AU149: 0.001335302 | AV149: 0.001335302 | AW149: 0.001335302 | AX149: 0.001335302 | AY149: 0.001335302 | AZ149: 0.001335302 | BA149: 0.001335302 | BB149: 0.001335302 | BC149: 0.001335302 | BD149: 0.001335302 | BE149: 0.001429249139 | BF149: 0.001429249139 | BG149: 0.001429249139 | BH149: 0.001429249139 | BI149: 0.001429249139
A150: =ROW() -> 150 | B150: SCADA and communications | H150: 0.0004656743333 | I150: 0.0004656743333 | J150: 0.0004656743333 | K150: 0.0004656743333 | L150: 0.0004656743333 | M150: 0.0004656743333 | N150: 0.0004656743333 | O150: 0.0004656743333 | P150: 0.0004656743333 | Q150: 0.0004656743333 | R150: 0.0004656743333 | S150: 0.0004656743333 | T150: 0.0004656743333 | U150: 0.0004656743333 | V150: 0.0004656743333 | W150: 0.0004656743333 | X150: 0.0004656743333 | Y150: 0.0004656743333 | Z150: 0.0004656743333 | AA150: 0.0004656743333 | AB150: 0.0004656743333 | AC150: 0.0004656743333 | AD150: 0.0004656743333 | AE150: 0.0004656743333 | AF150: 0.0004656743333 | AG150: 0.0004656743333 | AH150: 0.0004656743333 | AI150: 0.0004656743333 | AJ150: 0.0004656743333 | AK150: 0.0004656743333 | AL150: 0.0004656743333 | AM150: 0.0004656743333 | AN150: 0.0004656743333 | AO150: 0.0004656743333 | AP150: 0.0004656743333 | AQ150: 0.0004656743333 | AR150: 0.0004656743333 | AS150: 0.0004656743333 | AT150: 0.0004656743333 | AU150: 0.00244479025 | AV150: 0 | AW150: 0 | AX150: 0 | AY150: 0 | AZ150: 8.67361738e-19 | BA150: 0 | BB150: 0 | BC150: 0 | BD150: 0 | BE150: 0 | BF150: 0 | BG150: 0 | BH150: 0 | BI150: 0
A151: =ROW() -> 151 | B151: Cathodic protection | H151: 0 | I151: 0 | J151: 0 | K151: 0 | L151: 0 | M151: 0 | N151: 0 | O151: 0 | P151: 0 | Q151: 0 | R151: 0 | S151: 0 | T151: 0 | U151: 0 | V151: 0 | W151: 0 | X151: 0 | Y151: 0 | Z151: 0 | AA151: 0 | AB151: 0 | AC151: 0 | AD151: 0 | AE151: 0 | AF151: 0 | AG151: 0 | AH151: 0 | AI151: 0 | AJ151: 0 | AK151: 0 | AL151: 0 | AM151: 0 | AN151: 0 | AO151: 0 | AP151: 0 | AQ151: 0 | AR151: 0 | AS151: 0 | AT151: 0 | AU151: 0 | AV151: 0 | AW151: 0 | AX151: 0 | AY151: 0 | AZ151: 0 | BA151: 0 | BB151: 0 | BC151: 0 | BD151: 0 | BE151: 0 | BF151: 0 | BG151: 0 | BH151: 0 | BI151: 0
A152: =ROW() -> 152 | B152: Maintenance bases and depots | H152: 3.6459e-05 | I152: 3.6459e-05 | J152: 3.6459e-05 | K152: 3.6459e-05 | L152: 3.6459e-05 | M152: 3.6459e-05 | N152: 3.6459e-05 | O152: 3.6459e-05 | P152: 3.6459e-05 | Q152: 3.6459e-05 | R152: 3.6459e-05 | S152: 3.6459e-05 | T152: 3.6459e-05 | U152: 3.6459e-05 | V152: 3.6459e-05 | W152: 3.6459e-05 | X152: 3.6459e-05 | Y152: 3.6459e-05 | Z152: 3.6459e-05 | AA152: 3.6459e-05 | AB152: 3.6459e-05 | AC152: 3.6459e-05 | AD152: 3.6459e-05 | AE152: 3.6459e-05 | AF152: 3.6459e-05 | AG152: 3.6459e-05 | AH152: 3.6459e-05 | AI152: 3.6459e-05 | AJ152: 3.6459e-05 | AK152: 3.6459e-05 | AL152: 3.6459e-05 | AM152: 3.6459e-05 | AN152: 3.6459e-05 | AO152: 3.6459e-05 | AP152: 3.6459e-05 | AQ152: 3.6459e-05 | AR152: 3.6459e-05 | AS152: 3.6459e-05 | AT152: 3.6459e-05 | AU152: 3.6459e-05 | AV152: 3.6459e-05 | AW152: 3.6459e-05 | AX152: 3.6459e-05 | AY152: 3.6459e-05 | AZ152: 3.6459e-05 | BA152: 3.6459e-05 | BB152: 3.6459e-05 | BC152: 3.6459e-05 | BD152: 3.6459e-05 | BE152: 3.902412664e-05 | BF152: 3.902412664e-05 | BG152: 3.902412664e-05 | BH152: 3.902412664e-05 | BI152: 3.902412664e-05
A153: =ROW() -> 153 | B153: Other assets | H153: 0.01355580325 | I153: 0.01355580325 | J153: 0.01355580325 | K153: 0.01355580325 | L153: 0.01355580325 | M153: 0.01355580325 | N153: 0.01355580325 | O153: 0.01355580325 | P153: 0.01355580325 | Q153: 0.01355580325 | R153: 0.01355580325 | S153: 0.01355580325 | T153: 0.01355580325 | U153: 0.01355580325 | V153: 0.01355580325 | W153: 0.01355580325 | X153: 0.01355580325 | Y153: 0.01355580325 | Z153: 0.01355580325 | AA153: 0.01355580325 | AB153: 0.01355580325 | AC153: 0.01355580325 | AD153: 0.01355580325 | AE153: 0.01355580325 | AF153: 0.01355580325 | AG153: 0.01355580325 | AH153: 0.01355580325 | AI153: 0.01355580325 | AJ153: 0.01355580325 | AK153: 0.01355580325 | AL153: 0.01355580325 | AM153: 0.01355580325 | AN153: 0.01355580325 | AO153: 0.01355580325 | AP153: 0.01355580325 | AQ153: 0.01355580325 | AR153: 0.01355580325 | AS153: 0.01355580325 | AT153: 0.01355580325 | AU153: 0.003388950812 | AV153: 0 | AW153: 0 | AX153: 0 | AY153: 0 | AZ153: 2.775557562e-17 | BA153: 0 | BB153: 0 | BC153: 0 | BD153: 0 | BE153: 0 | BF153: 0 | BG153: 0 | BH153: 0 | BI153: 0
A154: =ROW() -> 154 | B154: Equity Raising Cost | BE154: 0 | BF154: 0 | BG154: 0 | BH154: 0 | BI154: 0
A155: =ROW() -> 155 | B155: Non-depreciable assets
A156: =ROW() -> 156 | B156: Shared support assets - IOT & cyber security
A157: =ROW() -> 157 | B157: Shared support assets (net IOT & cyber security)
A158: =ROW() -> 158 | B158: Miscellaneous assets
A159: =ROW() -> 159 | B159: Total | G159: 0 | H159: 0.03961349883 | I159: 0.03961349883 | J159: 0.03961349883 | K159: 0.03961349883 | L159: 0.03961349883 | M159: 0.03961349883 | N159: 0.03961349883 | O159: 0.03961349883 | P159: 0.03961349883 | Q159: 0.03961349883 | R159: 0.03961349883 | S159: 0.03961349883 | T159: 0.03961349883 | U159: 0.03961349883 | V159: 0.03961349883 | W159: 0.03961349883 | X159: 0.03961349883 | Y159: 0.03961349883 | Z159: 0.03961349883 | AA159: 0.03961349883 | AB159: 0.03961349883 | AC159: 0.03961349883 | AD159: 0.03961349883 | AE159: 0.03961349883 | AF159: 0.03961349883 | AG159: 0.03961349883 | AH159: 0.03961349883 | AI159: 0.03961349883 | AJ159: 0.03961349883 | AK159: 0.03961349883 | AL159: 0.03961349883 | AM159: 0.03961349883 | AN159: 0.03961349883 | AO159: 0.03961349883 | AP159: 0.03961349883 | AQ159: 0.03961349883 | AR159: 0.03961349883 | AS159: 0.03961349883 | AT159: 0.03961349883 | AU159: 0.03142576231 | AV159: 0.02559202125 | AW159: 0.02559202125 | AX159: 0.02559202125 | AY159: 0.02559202125 | AZ159: 0.02559202125 | BA159: 0.02559202125 | BB159: 0.02559202125 | BC159: 0.02559202125 | BD159: 0.02559202125 | BE159: 0.0273925856 | BF159: 0.0273925856 | BG159: 0.0273925856 | BH159: 0.0273925856 | BI159: 0.0273925856
A160: =ROW() -> 160 | B160: 2000-06-30 | C160: Capex
A161: =ROW() -> 161 | B161: Pipeline and laterals | I161: 0 | J161: 0 | K161: 0 | L161: 0 | M161: 0 | N161: 0 | O161: 0 | P161: 0 | Q161: 0 | R161: 0 | S161: 0 | T161: 0 | U161: 0 | V161: 0 | W161: 0 | X161: 0 | Y161: 0 | Z161: 0 | AA161: 0 | AB161: 0 | AC161: 0 | AD161: 0 | AE161: 0 | AF161: 0 | AG161: 0 | AH161: 0 | AI161: 0 | AJ161: 0 | AK161: 0 | AL161: 0 | AM161: 0 | AN161: 0 | AO161: 0 | AP161: 0 | AQ161: 0 | AR161: 0 | AS161: 0 | AT161: 0 | AU161: 0 | AV161: 0 | AW161: 0 | AX161: 0 | AY161: 0 | AZ161: 0 | BA161: 0 | BB161: 0 | BC161: 0 | BD161: 0 | BE161: 0 | BF161: 0 | BG161: 0 | BH161: 0 | BI161: 0
A162: =ROW() -> 162 | B162: Main line valve and scraper stations | I162: 0 | J162: 0 | K162: 0 | L162: 0 | M162: 0 | N162: 0 | O162: 0 | P162: 0 | Q162: 0 | R162: 0 | S162: 0 | T162: 0 | U162: 0 | V162: 0 | W162: 0 | X162: 0 | Y162: 0 | Z162: 0 | AA162: 0 | AB162: 0 | AC162: 0 | AD162: 0 | AE162: 0 | AF162: 0 | AG162: 0 | AH162: 0 | AI162: 0 | AJ162: 0 | AK162: 0 | AL162: 0 | AM162: 0 | AN162: 0 | AO162: 0 | AP162: 0 | AQ162: 0 | AR162: 0 | AS162: 0 | AT162: 0 | AU162: 0 | AV162: 0 | AW162: 0 | AX162: 0 | AY162: 0 | AZ162: 0 | BA162: 0 | BB162: 0 | BC162: 0 | BD162: 0 | BE162: 0 | BF162: 0 | BG162: 0 | BH162: 0 | BI162: 0
A163: =ROW() -> 163 | B163: Compressor stations | I163: 0.02422026025 | J163: 0.02422026025 | K163: 0.02422026025 | L163: 0.02422026025 | M163: 0.02422026025 | N163: 0.02422026025 | O163: 0.02422026025 | P163: 0.02422026025 | Q163: 0.02422026025 | R163: 0.02422026025 | S163: 0.02422026025 | T163: 0.02422026025 | U163: 0.02422026025 | V163: 0.02422026025 | W163: 0.02422026025 | X163: 0.02422026025 | Y163: 0.02422026025 | Z163: 0.02422026025 | AA163: 0.02422026025 | AB163: 0.02422026025 | AC163: 0.02422026025 | AD163: 0.02422026025 | AE163: 0.02422026025 | AF163: 0.02422026025 | AG163: 0.02422026025 | AH163: 0.02422026025 | AI163: 0.02422026025 | AJ163: 0.02422026025 | AK163: 0.02422026025 | AL163: 0.02422026025 | AM163: 0.02422026025 | AN163: 0.02422026025 | AO163: 0.02422026025 | AP163: 0.02422026025 | AQ163: 0.02422026025 | AR163: 0.02422026025 | AS163: 0.02422026025 | AT163: 0.02422026025 | AU163: 0.02422026025 | AV163: 0.02422026025 | AW163: 0.02422026025 | AX163: 0.02422026025 | AY163: 0.02422026025 | AZ163: 0.02422026025 | BA163: 0.02422026025 | BB163: 0.02422026025 | BC163: 0.02422026025 | BD163: 0.02422026025 | BE163: 0.02592431233 | BF163: 0.02592431233 | BG163: 0.02592431233 | BH163: 0.02592431233 | BI163: 0.02592431233
A164: =ROW() -> 164 | B164: Receipt and delivery point facilities | I164: 0.001335302 | J164: 0.001335302 | K164: 0.001335302 | L164: 0.001335302 | M164: 0.001335302 | N164: 0.001335302 | O164: 0.001335302 | P164: 0.001335302 | Q164: 0.001335302 | R164: 0.001335302 | S164: 0.001335302 | T164: 0.001335302 | U164: 0.001335302 | V164: 0.001335302 | W164: 0.001335302 | X164: 0.001335302 | Y164: 0.001335302 | Z164: 0.001335302 | AA164: 0.001335302 | AB164: 0.001335302 | AC164: 0.001335302 | AD164: 0.001335302 | AE164: 0.001335302 | AF164: 0.001335302 | AG164: 0.001335302 | AH164: 0.001335302 | AI164: 0.001335302 | AJ164: 0.001335302 | AK164: 0.001335302 | AL164: 0.001335302 | AM164: 0.001335302 | AN164: 0.001335302 | AO164: 0.001335302 | AP164: 0.001335302 | AQ164: 0.001335302 | AR164: 0.001335302 | AS164: 0.001335302 | AT164: 0.001335302 | AU164: 0.001335302 | AV164: 0.001335302 | AW164: 0.001335302 | AX164: 0.001335302 | AY164: 0.001335302 | AZ164: 0.001335302 | BA164: 0.001335302 | BB164: 0.001335302 | BC164: 0.001335302 | BD164: 0.001335302 | BE164: 0.001429249139 | BF164: 0.001429249139 | BG164: 0.001429249139 | BH164: 0.001429249139 | BI164: 0.001429249139
A165: =ROW() -> 165 | B165: SCADA and communications | I165: 0.0004656743333 | J165: 0.0004656743333 | K165: 0.0004656743333 | L165: 0.0004656743333 | M165: 0.0004656743333 | N165: 0.0004656743333 | O165: 0.0004656743333 | P165: 0.0004656743333 | Q165: 0.0004656743333 | R165: 0.0004656743333 | S165: 0.0004656743333 | T165: 0.0004656743333 | U165: 0.0004656743333 | V165: 0.0004656743333 | W165: 0.0004656743333 | X165: 0.0004656743333 | Y165: 0.0004656743333 | Z165: 0.0004656743333 | AA165: 0.0004656743333 | AB165: 0.0004656743333 | AC165: 0.0004656743333 | AD165: 0.0004656743333 | AE165: 0.0004656743333 | AF165: 0.0004656743333 | AG165: 0.0004656743333 | AH165: 0.0004656743333 | AI165: 0.0004656743333 | AJ165: 0.0004656743333 | AK165: 0.0004656743333 | AL165: 0.0004656743333 | AM165: 0.0004656743333 | AN165: 0.0004656743333 | AO165: 0.0004656743333 | AP165: 0.0004656743333 | AQ165: 0.0004656743333 | AR165: 0.0004656743333 | AS165: 0.0004656743333 | AT165: 0.0004656743333 | AU165: 0.002561208833 | AV165: 0 | AW165: 0 | AX165: 0 | AY165: 0 | AZ165: 1.734723476e-18 | BA165: 0 | BB165: 0 | BC165: 0 | BD165: 0 | BE165: 0 | BF165: 0 | BG165: 0 | BH165: 0 | BI165: 0
A166: =ROW() -> 166 | B166: Cathodic protection | I166: 0 | J166: 0 | K166: 0 | L166: 0 | M166: 0 | N166: 0 | O166: 0 | P166: 0 | Q166: 0 | R166: 0 | S166: 0 | T166: 0 | U166: 0 | V166: 0 | W166: 0 | X166: 0 | Y166: 0 | Z166: 0 | AA166: 0 | AB166: 0 | AC166: 0 | AD166: 0 | AE166: 0 | AF166: 0 | AG166: 0 | AH166: 0 | AI166: 0 | AJ166: 0 | AK166: 0 | AL166: 0 | AM166: 0 | AN166: 0 | AO166: 0 | AP166: 0 | AQ166: 0 | AR166: 0 | AS166: 0 | AT166: 0 | AU166: 0 | AV166: 0 | AW166: 0 | AX166: 0 | AY166: 0 | AZ166: 0 | BA166: 0 | BB166: 0 | BC166: 0 | BD166: 0 | BE166: 0 | BF166: 0 | BG166: 0 | BH166: 0 | BI166: 0
A167: =ROW() -> 167 | B167: Maintenance bases and depots | I167: 3.6459e-05 | J167: 3.6459e-05 | K167: 3.6459e-05 | L167: 3.6459e-05 | M167: 3.6459e-05 | N167: 3.6459e-05 | O167: 3.6459e-05 | P167: 3.6459e-05 | Q167: 3.6459e-05 | R167: 3.6459e-05 | S167: 3.6459e-05 | T167: 3.6459e-05 | U167: 3.6459e-05 | V167: 3.6459e-05 | W167: 3.6459e-05 | X167: 3.6459e-05 | Y167: 3.6459e-05 | Z167: 3.6459e-05 | AA167: 3.6459e-05 | AB167: 3.6459e-05 | AC167: 3.6459e-05 | AD167: 3.6459e-05 | AE167: 3.6459e-05 | AF167: 3.6459e-05 | AG167: 3.6459e-05 | AH167: 3.6459e-05 | AI167: 3.6459e-05 | AJ167: 3.6459e-05 | AK167: 3.6459e-05 | AL167: 3.6459e-05 | AM167: 3.6459e-05 | AN167: 3.6459e-05 | AO167: 3.6459e-05 | AP167: 3.6459e-05 | AQ167: 3.6459e-05 | AR167: 3.6459e-05 | AS167: 3.6459e-05 | AT167: 3.6459e-05 | AU167: 3.6459e-05 | AV167: 3.6459e-05 | AW167: 3.6459e-05 | AX167: 3.6459e-05 | AY167: 3.6459e-05 | AZ167: 3.6459e-05 | BA167: 3.6459e-05 | BB167: 3.6459e-05 | BC167: 3.6459e-05 | BD167: 3.6459e-05 | BE167: 3.902412664e-05 | BF167: 3.902412664e-05 | BG167: 3.902412664e-05 | BH167: 3.902412664e-05 | BI167: 3.902412664e-05
A168: =ROW() -> 168 | B168: Other assets | I168: 0.01355580325 | J168: 0.01355580325 | K168: 0.01355580325 | L168: 0.01355580325 | M168: 0.01355580325 | N168: 0.01355580325 | O168: 0.01355580325 | P168: 0.01355580325 | Q168: 0.01355580325 | R168: 0.01355580325 | S168: 0.01355580325 | T168: 0.01355580325 | U168: 0.01355580325 | V168: 0.01355580325 | W168: 0.01355580325 | X168: 0.01355580325 | Y168: 0.01355580325 | Z168: 0.01355580325 | AA168: 0.01355580325 | AB168: 0.01355580325 | AC168: 0.01355580325 | AD168: 0.01355580325 | AE168: 0.01355580325 | AF168: 0.01355580325 | AG168: 0.01355580325 | AH168: 0.01355580325 | AI168: 0.01355580325 | AJ168: 0.01355580325 | AK168: 0.01355580325 | AL168: 0.01355580325 | AM168: 0.01355580325 | AN168: 0.01355580325 | AO168: 0.01355580325 | AP168: 0.01355580325 | AQ168: 0.01355580325 | AR168: 0.01355580325 | AS168: 0.01355580325 | AT168: 0.01355580325 | AU168: 0.006777901625 | AV168: 0 | AW168: 0 | AX168: 0 | AY168: 0 | AZ168: 1.387778781e-17 | BA168: 0 | BB168: 0 | BC168: 0 | BD168: 0 | BE168: 0 | BF168: 0 | BG168: 0 | BH168: 0 | BI168: 0
A169: =ROW() -> 169 | B169: Equity Raising Cost | BE169: 0 | BF169: 0 | BG169: 0 | BH169: 0 | BI169: 0
A170: =ROW() -> 170 | B170: Non-depreciable assets
A171: =ROW() -> 171 | B171: Shared support assets - IOT & cyber security
A172: =ROW() -> 172 | B172: Shared support assets (net IOT & cyber security)
A173: =ROW() -> 173 | B173: Miscellaneous assets
A174: =ROW() -> 174 | B174: Total | G174: 0 | H174: 0 | I174: 0.03961349883 | J174: 0.03961349883 | K174: 0.03961349883 | L174: 0.03961349883 | M174: 0.03961349883 | N174: 0.03961349883 | O174: 0.03961349883 | P174: 0.03961349883 | Q174: 0.03961349883 | R174: 0.03961349883 | S174: 0.03961349883 | T174: 0.03961349883 | U174: 0.03961349883 | V174: 0.03961349883 | W174: 0.03961349883 | X174: 0.03961349883 | Y174: 0.03961349883 | Z174: 0.03961349883 | AA174: 0.03961349883 | AB174: 0.03961349883 | AC174: 0.03961349883 | AD174: 0.03961349883 | AE174: 0.03961349883 | AF174: 0.03961349883 | AG174: 0.03961349883 | AH174: 0.03961349883 | AI174: 0.03961349883 | AJ174: 0.03961349883 | AK174: 0.03961349883 | AL174: 0.03961349883 | AM174: 0.03961349883 | AN174: 0.03961349883 | AO174: 0.03961349883 | AP174: 0.03961349883 | AQ174: 0.03961349883 | AR174: 0.03961349883 | AS174: 0.03961349883 | AT174: 0.03961349883 | AU174: 0.03493113171 | AV174: 0.02559202125 | AW174: 0.02559202125 | AX174: 0.02559202125 | AY174: 0.02559202125 | AZ174: 0.02559202125 | BA174: 0.02559202125 | BB174: 0.02559202125 | BC174: 0.02559202125 | BD174: 0.02559202125 | BE174: 0.0273925856 | BF174: 0.0273925856 | BG174: 0.0273925856 | BH174: 0.0273925856 | BI174: 0.0273925856
A175: =ROW() -> 175 | B175: 2000-09-30 | C175: Capex
A176: =ROW() -> 176 | B176: Pipeline and laterals | J176: 0 | K176: 0 | L176: 0 | M176: 0 | N176: 0 | O176: 0 | P176: 0 | Q176: 0 | R176: 0 | S176: 0 | T176: 0 | U176: 0 | V176: 0 | W176: 0 | X176: 0 | Y176: 0 | Z176: 0 | AA176: 0 | AB176: 0 | AC176: 0 | AD176: 0 | AE176: 0 | AF176: 0 | AG176: 0 | AH176: 0 | AI176: 0 | AJ176: 0 | AK176: 0 | AL176: 0 | AM176: 0 | AN176: 0 | AO176: 0 | AP176: 0 | AQ176: 0 | AR176: 0 | AS176: 0 | AT176: 0 | AU176: 0 | AV176: 0 | AW176: 0 | AX176: 0 | AY176: 0 | AZ176: 0 | BA176: 0 | BB176: 0 | BC176: 0 | BD176: 0 | BE176: 0 | BF176: 0 | BG176: 0 | BH176: 0 | BI176: 0
A177: =ROW() -> 177 | B177: Main line valve and scraper stations | J177: 0 | K177: 0 | L177: 0 | M177: 0 | N177: 0 | O177: 0 | P177: 0 | Q177: 0 | R177: 0 | S177: 0 | T177: 0 | U177: 0 | V177: 0 | W177: 0 | X177: 0 | Y177: 0 | Z177: 0 | AA177: 0 | AB177: 0 | AC177: 0 | AD177: 0 | AE177: 0 | AF177: 0 | AG177: 0 | AH177: 0 | AI177: 0 | AJ177: 0 | AK177: 0 | AL177: 0 | AM177: 0 | AN177: 0 | AO177: 0 | AP177: 0 | AQ177: 0 | AR177: 0 | AS177: 0 | AT177: 0 | AU177: 0 | AV177: 0 | AW177: 0 | AX177: 0 | AY177: 0 | AZ177: 0 | BA177: 0 | BB177: 0 | BC177: 0 | BD177: 0 | BE177: 0 | BF177: 0 | BG177: 0 | BH177: 0 | BI177: 0
A178: =ROW() -> 178 | B178: Compressor stations | J178: 0.02422026025 | K178: 0.02422026025 | L178: 0.02422026025 | M178: 0.02422026025 | N178: 0.02422026025 | O178: 0.02422026025 | P178: 0.02422026025 | Q178: 0.02422026025 | R178: 0.02422026025 | S178: 0.02422026025 | T178: 0.02422026025 | U178: 0.02422026025 | V178: 0.02422026025 | W178: 0.02422026025 | X178: 0.02422026025 | Y178: 0.02422026025 | Z178: 0.02422026025 | AA178: 0.02422026025 | AB178: 0.02422026025 | AC178: 0.02422026025 | AD178: 0.02422026025 | AE178: 0.02422026025 | AF178: 0.02422026025 | AG178: 0.02422026025 | AH178: 0.02422026025 | AI178: 0.02422026025 | AJ178: 0.02422026025 | AK178: 0.02422026025 | AL178: 0.02422026025 | AM178: 0.02422026025 | AN178: 0.02422026025 | AO178: 0.02422026025 | AP178: 0.02422026025 | AQ178: 0.02422026025 | AR178: 0.02422026025 | AS178: 0.02422026025 | AT178: 0.02422026025 | AU178: 0.02422026025 | AV178: 0.02422026025 | AW178: 0.02422026025 | AX178: 0.02422026025 | AY178: 0.02422026025 | AZ178: 0.02422026025 | BA178: 0.02422026025 | BB178: 0.02422026025 | BC178: 0.02422026025 | BD178: 0.02422026025 | BE178: 0.02592431233 | BF178: 0.02592431233 | BG178: 0.02592431233 | BH178: 0.02592431233 | BI178: 0.02592431233
A179: =ROW() -> 179 | B179: Receipt and delivery point facilities | J179: 0.001335302 | K179: 0.001335302 | L179: 0.001335302 | M179: 0.001335302 | N179: 0.001335302 | O179: 0.001335302 | P179: 0.001335302 | Q179: 0.001335302 | R179: 0.001335302 | S179: 0.001335302 | T179: 0.001335302 | U179: 0.001335302 | V179: 0.001335302 | W179: 0.001335302 | X179: 0.001335302 | Y179: 0.001335302 | Z179: 0.001335302 | AA179: 0.001335302 | AB179: 0.001335302 | AC179: 0.001335302 | AD179: 0.001335302 | AE179: 0.001335302 | AF179: 0.001335302 | AG179: 0.001335302 | AH179: 0.001335302 | AI179: 0.001335302 | AJ179: 0.001335302 | AK179: 0.001335302 | AL179: 0.001335302 | AM179: 0.001335302 | AN179: 0.001335302 | AO179: 0.001335302 | AP179: 0.001335302 | AQ179: 0.001335302 | AR179: 0.001335302 | AS179: 0.001335302 | AT179: 0.001335302 | AU179: 0.001335302 | AV179: 0.001335302 | AW179: 0.001335302 | AX179: 0.001335302 | AY179: 0.001335302 | AZ179: 0.001335302 | BA179: 0.001335302 | BB179: 0.001335302 | BC179: 0.001335302 | BD179: 0.001335302 | BE179: 0.001429249139 | BF179: 0.001429249139 | BG179: 0.001429249139 | BH179: 0.001429249139 | BI179: 0.001429249139
A180: =ROW() -> 180 | B180: SCADA and communications | J180: 0.0004656743333 | K180: 0.0004656743333 | L180: 0.0004656743333 | M180: 0.0004656743333 | N180: 0.0004656743333 | O180: 0.0004656743333 | P180: 0.0004656743333 | Q180: 0.0004656743333 | R180: 0.0004656743333 | S180: 0.0004656743333 | T180: 0.0004656743333 | U180: 0.0004656743333 | V180: 0.0004656743333 | W180: 0.0004656743333 | X180: 0.0004656743333 | Y180: 0.0004656743333 | Z180: 0.0004656743333 | AA180: 0.0004656743333 | AB180: 0.0004656743333 | AC180: 0.0004656743333 | AD180: 0.0004656743333 | AE180: 0.0004656743333 | AF180: 0.0004656743333 | AG180: 0.0004656743333 | AH180: 0.0004656743333 | AI180: 0.0004656743333 | AJ180: 0.0004656743333 | AK180: 0.0004656743333 | AL180: 0.0004656743333 | AM180: 0.0004656743333 | AN180: 0.0004656743333 | AO180: 0.0004656743333 | AP180: 0.0004656743333 | AQ180: 0.0004656743333 | AR180: 0.0004656743333 | AS180: 0.0004656743333 | AT180: 0.0004656743333 | AU180: 0.002677627417 | AV180: 0 | AW180: 0 | AX180: 0 | AY180: 0 | AZ180: 1.734723476e-18 | BA180: 0 | BB180: 0 | BC180: 0 | BD180: 0 | BE180: 0 | BF180: 0 | BG180: 0 | BH180: 0 | BI180: 0
A181: =ROW() -> 181 | B181: Cathodic protection | J181: 0 | K181: 0 | L181: 0 | M181: 0 | N181: 0 | O181: 0 | P181: 0 | Q181: 0 | R181: 0 | S181: 0 | T181: 0 | U181: 0 | V181: 0 | W181: 0 | X181: 0 | Y181: 0 | Z181: 0 | AA181: 0 | AB181: 0 | AC181: 0 | AD181: 0 | AE181: 0 | AF181: 0 | AG181: 0 | AH181: 0 | AI181: 0 | AJ181: 0 | AK181: 0 | AL181: 0 | AM181: 0 | AN181: 0 | AO181: 0 | AP181: 0 | AQ181: 0 | AR181: 0 | AS181: 0 | AT181: 0 | AU181: 0 | AV181: 0 | AW181: 0 | AX181: 0 | AY181: 0 | AZ181: 0 | BA181: 0 | BB181: 0 | BC181: 0 | BD181: 0 | BE181: 0 | BF181: 0 | BG181: 0 | BH181: 0 | BI181: 0
A182: =ROW() -> 182 | B182: Maintenance bases and depots | J182: 3.6459e-05 | K182: 3.6459e-05 | L182: 3.6459e-05 | M182: 3.6459e-05 | N182: 3.6459e-05 | O182: 3.6459e-05 | P182: 3.6459e-05 | Q182: 3.6459e-05 | R182: 3.6459e-05 | S182: 3.6459e-05 | T182: 3.6459e-05 | U182: 3.6459e-05 | V182: 3.6459e-05 | W182: 3.6459e-05 | X182: 3.6459e-05 | Y182: 3.6459e-05 | Z182: 3.6459e-05 | AA182: 3.6459e-05 | AB182: 3.6459e-05 | AC182: 3.6459e-05 | AD182: 3.6459e-05 | AE182: 3.6459e-05 | AF182: 3.6459e-05 | AG182: 3.6459e-05 | AH182: 3.6459e-05 | AI182: 3.6459e-05 | AJ182: 3.6459e-05 | AK182: 3.6459e-05 | AL182: 3.6459e-05 | AM182: 3.6459e-05 | AN182: 3.6459e-05 | AO182: 3.6459e-05 | AP182: 3.6459e-05 | AQ182: 3.6459e-05 | AR182: 3.6459e-05 | AS182: 3.6459e-05 | AT182: 3.6459e-05 | AU182: 3.6459e-05 | AV182: 3.6459e-05 | AW182: 3.6459e-05 | AX182: 3.6459e-05 | AY182: 3.6459e-05 | AZ182: 3.6459e-05 | BA182: 3.6459e-05 | BB182: 3.6459e-05 | BC182: 3.6459e-05 | BD182: 3.6459e-05 | BE182: 3.902412664e-05 | BF182: 3.902412664e-05 | BG182: 3.902412664e-05 | BH182: 3.902412664e-05 | BI182: 3.902412664e-05
A183: =ROW() -> 183 | B183: Other assets | J183: 0.01355580325 | K183: 0.01355580325 | L183: 0.01355580325 | M183: 0.01355580325 | N183: 0.01355580325 | O183: 0.01355580325 | P183: 0.01355580325 | Q183: 0.01355580325 | R183: 0.01355580325 | S183: 0.01355580325 | T183: 0.01355580325 | U183: 0.01355580325 | V183: 0.01355580325 | W183: 0.01355580325 | X183: 0.01355580325 | Y183: 0.01355580325 | Z183: 0.01355580325 | AA183: 0.01355580325 | AB183: 0.01355580325 | AC183: 0.01355580325 | AD183: 0.01355580325 | AE183: 0.01355580325 | AF183: 0.01355580325 | AG183: 0.01355580325 | AH183: 0.01355580325 | AI183: 0.01355580325 | AJ183: 0.01355580325 | AK183: 0.01355580325 | AL183: 0.01355580325 | AM183: 0.01355580325 | AN183: 0.01355580325 | AO183: 0.01355580325 | AP183: 0.01355580325 | AQ183: 0.01355580325 | AR183: 0.01355580325 | AS183: 0.01355580325 | AT183: 0.01355580325 | AU183: 0.01016685244 | AV183: 0 | AW183: 0 | AX183: 0 | AY183: 0 | AZ183: 2.775557562e-17 | BA183: 0 | BB183: 0 | BC183: 0 | BD183: 0 | BE183: 0 | BF183: 0 | BG183: 0 | BH183: 0 | BI183: 0
A184: =ROW() -> 184 | B184: Equity Raising Cost | BE184: 0 | BF184: 0 | BG184: 0 | BH184: 0 | BI184: 0
A185: =ROW() -> 185 | B185: Non-depreciable assets
A186: =ROW() -> 186 | B186: Shared support assets - IOT & cyber security
A187: =ROW() -> 187 | B187: Shared support assets (net IOT & cyber security)
A188: =ROW() -> 188 | B188: Miscellaneous assets
A189: =ROW() -> 189 | B189: Total | G189: 0 | H189: 0 | I189: 0 | J189: 0.03961349883 | K189: 0.03961349883 | L189: 0.03961349883 | M189: 0.03961349883 | N189: 0.03961349883 | O189: 0.03961349883 | P189: 0.03961349883 | Q189: 0.03961349883 | R189: 0.03961349883 | S189: 0.03961349883 | T189: 0.03961349883 | U189: 0.03961349883 | V189: 0.03961349883 | W189: 0.03961349883 | X189: 0.03961349883 | Y189: 0.03961349883 | Z189: 0.03961349883 | AA189: 0.03961349883 | AB189: 0.03961349883 | AC189: 0.03961349883 | AD189: 0.03961349883 | AE189: 0.03961349883 | AF189: 0.03961349883 | AG189: 0.03961349883 | AH189: 0.03961349883 | AI189: 0.03961349883 | AJ189: 0.03961349883 | AK189: 0.03961349883 | AL189: 0.03961349883 | AM189: 0.03961349883 | AN189: 0.03961349883 | AO189: 0.03961349883 | AP189: 0.03961349883 | AQ189: 0.03961349883 | AR189: 0.03961349883 | AS189: 0.03961349883 | AT189: 0.03961349883 | AU189: 0.0384365011 | AV189: 0.02559202125 | AW189: 0.02559202125 | AX189: 0.02559202125 | AY189: 0.02559202125 | AZ189: 0.02559202125 | BA189: 0.02559202125 | BB189: 0.02559202125 | BC189: 0.02559202125 | BD189: 0.02559202125 | BE189: 0.0273925856 | BF189: 0.0273925856 | BG189: 0.0273925856 | BH189: 0.0273925856 | BI189: 0.0273925856
A190: =ROW() -> 190 | B190: 2000-12-31 | C190: Capex
A191: =ROW() -> 191 | B191: Pipeline and laterals | K191: 0 | L191: 0 | M191: 0 | N191: 0 | O191: 0 | P191: 0 | Q191: 0 | R191: 0 | S191: 0 | T191: 0 | U191: 0 | V191: 0 | W191: 0 | X191: 0 | Y191: 0 | Z191: 0 | AA191: 0 | AB191: 0 | AC191: 0 | AD191: 0 | AE191: 0 | AF191: 0 | AG191: 0 | AH191: 0 | AI191: 0 | AJ191: 0 | AK191: 0 | AL191: 0 | AM191: 0 | AN191: 0 | AO191: 0 | AP191: 0 | AQ191: 0 | AR191: 0 | AS191: 0 | AT191: 0 | AU191: 0 | AV191: 0 | AW191: 0 | AX191: 0 | AY191: 0 | AZ191: 0 | BA191: 0 | BB191: 0 | BC191: 0 | BD191: 0 | BE191: 0 | BF191: 0 | BG191: 0 | BH191: 0 | BI191: 0
A192: =ROW() -> 192 | B192: Main line valve and scraper stations | K192: 0 | L192: 0 | M192: 0 | N192: 0 | O192: 0 | P192: 0 | Q192: 0 | R192: 0 | S192: 0 | T192: 0 | U192: 0 | V192: 0 | W192: 0 | X192: 0 | Y192: 0 | Z192: 0 | AA192: 0 | AB192: 0 | AC192: 0 | AD192: 0 | AE192: 0 | AF192: 0 | AG192: 0 | AH192: 0 | AI192: 0 | AJ192: 0 | AK192: 0 | AL192: 0 | AM192: 0 | AN192: 0 | AO192: 0 | AP192: 0 | AQ192: 0 | AR192: 0 | AS192: 0 | AT192: 0 | AU192: 0 | AV192: 0 | AW192: 0 | AX192: 0 | AY192: 0 | AZ192: 0 | BA192: 0 | BB192: 0 | BC192: 0 | BD192: 0 | BE192: 0 | BF192: 0 | BG192: 0 | BH192: 0 | BI192: 0
A193: =ROW() -> 193 | B193: Compressor stations | K193: 0.02422026025 | L193: 0.02422026025 | M193: 0.02422026025 | N193: 0.02422026025 | O193: 0.02422026025 | P193: 0.02422026025 | Q193: 0.02422026025 | R193: 0.02422026025 | S193: 0.02422026025 | T193: 0.02422026025 | U193: 0.02422026025 | V193: 0.02422026025 | W193: 0.02422026025 | X193: 0.02422026025 | Y193: 0.02422026025 | Z193: 0.02422026025 | AA193: 0.02422026025 | AB193: 0.02422026025 | AC193: 0.02422026025 | AD193: 0.02422026025 | AE193: 0.02422026025 | AF193: 0.02422026025 | AG193: 0.02422026025 | AH193: 0.02422026025 | AI193: 0.02422026025 | AJ193: 0.02422026025 | AK193: 0.02422026025 | AL193: 0.02422026025 | AM193: 0.02422026025 | AN193: 0.02422026025 | AO193: 0.02422026025 | AP193: 0.02422026025 | AQ193: 0.02422026025 | AR193: 0.02422026025 | AS193: 0.02422026025 | AT193: 0.02422026025 | AU193: 0.02422026025 | AV193: 0.02422026025 | AW193: 0.02422026025 | AX193: 0.02422026025 | AY193: 0.02422026025 | AZ193: 0.02422026025 | BA193: 0.02422026025 | BB193: 0.02422026025 | BC193: 0.02422026025 | BD193: 0.02422026025 | BE193: 0.02592431233 | BF193: 0.02592431233 | BG193: 0.02592431233 | BH193: 0.02592431233 | BI193: 0.02592431233
A194: =ROW() -> 194 | B194: Receipt and delivery point facilities | K194: 0.001335302 | L194: 0.001335302 | M194: 0.001335302 | N194: 0.001335302 | O194: 0.001335302 | P194: 0.001335302 | Q194: 0.001335302 | R194: 0.001335302 | S194: 0.001335302 | T194: 0.001335302 | U194: 0.001335302 | V194: 0.001335302 | W194: 0.001335302 | X194: 0.001335302 | Y194: 0.001335302 | Z194: 0.001335302 | AA194: 0.001335302 | AB194: 0.001335302 | AC194: 0.001335302 | AD194: 0.001335302 | AE194: 0.001335302 | AF194: 0.001335302 | AG194: 0.001335302 | AH194: 0.001335302 | AI194: 0.001335302 | AJ194: 0.001335302 | AK194: 0.001335302 | AL194: 0.001335302 | AM194: 0.001335302 | AN194: 0.001335302 | AO194: 0.001335302 | AP194: 0.001335302 | AQ194: 0.001335302 | AR194: 0.001335302 | AS194: 0.001335302 | AT194: 0.001335302 | AU194: 0.001335302 | AV194: 0.001335302 | AW194: 0.001335302 | AX194: 0.001335302 | AY194: 0.001335302 | AZ194: 0.001335302 | BA194: 0.001335302 | BB194: 0.001335302 | BC194: 0.001335302 | BD194: 0.001335302 | BE194: 0.001429249139 | BF194: 0.001429249139 | BG194: 0.001429249139 | BH194: 0.001429249139 | BI194: 0.001429249139
